Workbook

Sheet Journal (hidden)
B2: Journal of structural changes made to model/spreadsheet
B4: Changes since Draft report (D23/9745)
B5: Please paste the name of the updated version in the box below (file name)
B7: <Enter file name here>
B9: Description of changes: | C9: Worksheet: | D9: Made by: | E9: Date | F9: Notes
B10: SIGNIFICANT STRUCTURAL CHANGES MADE IN THIS VERSION
B11: Simplified
B22: OTHER CHANGES
B27: CORRECTIONS TO BE MADE AFTER next date (next step)
B32: ALTERATIONS TO BE MADE AFTER Next date (next step)

Sheet Cover
B3: IPART Rate peg model
B5: MODELLER: | D5: Bee Thompson
B6: email | D6: Bee_Thompson@ipart.nsw.gov.au
B9: HOW WE CALCULATE THE RATE PEG
B11: This model calculates a rate peg for each council under the methodology IPART established in 2023. For more information see
B12: IPART, Review of the rate peg methodology, Final Report, August 2023.
B14: For more information on the rate peg for the 2024-25 financial year, see
B15: IPART, Rate peg for NSW councils for 2024-25. Information Paper, 21 November 2023
B17: We calculate the rate peg as follows:
B21: BCC (Base Cost Change)
C22: The Base Cost Change (BCC) is a forward-looking price index that measures changes in councils' base costs. It has 3 components:
C24: ● | D24: Employee costs, which are measured by changes in the Local Government State (NSW) Award (the Award) when available, adjusted for changes in the superannuation guarantee. When the Award isn't available at the time we set the rate peg, we use the Reserve Bank of Australia’s(RBA) forecast change in the Wage Price Index (WPI) from the most recent Statement on Monetary Policy, averaging the changes over the year to June and December for the year the rate peg applies.
C25: ● | D25: Other operating costs, which are measured by the RBA’s forecast change in the Consumer Price Index (CPI), averaging the changes over the year to June and December for the year the rate peg applies.
C26: ● | D26: Asset costs, which we consider are best measured by the change in the Producer Price Index (PPI) for Road and bridge construction. In the absence of a publicly available forecast for the PPI, we apply an adjustment to the RBA's forecast change in the CPI to derive a forecast change in the PPI. The adjustment reflects the average difference between actual CPI (All groups, Sydney) and actual PPI (Road and bridge construction, NSW) over the past 5 years.
C28: The model calculates 3 separate BCCs, namely for metropolitan, regional and rural councils respectively.
C29: ● | D29: Each of the separate BCCs weights the 3 cost components differently to reflect the spending pattern of the average council in each group. | AL29: The population true-up reflects this and mitigates the impact of intercensal errors. We also decided that we would apply the true–up for any amount and to all councils for the rate peg for the 2024-25 financial year, due to the uncertainty with ABS population estimates due to the impact of COVID-19.
C30: ● | D30: We weight the 3 components using the latest 3 years of data obtained from the Financial Data Returns of councils in that group and update the weights annually.
B32: Productivity factor
C33: We set the productivity factor to 0% as a default.
B35: Population factor
C36: We calculate the population factor as follows:
D40: The change in population and the supplementary valuations percentage are based on data that is lagged by 3 years. For example, for the rate peg for the 2024-25 financial year:
D46: Where ERP = Estimated Residential Population as at 30 June, sourced from the Australian Bureau of Statistics (ABS).
C48: We include a population true-up in the rate peg for the 2024-25 financial year following the 2021 Census.
D49: In our 2021 Review of the rate peg to include population growth, we decided to true–up the population factor based on updates to the Census data. A true–up was decided because the ABS retrospectively recalculates its intercensal estimates of population once the Census data has been obtained. The population true-up reflects this and mitigates the impact of intercensal errors. We also decided that we would apply the true–up for any amount and to all councils for the rate peg for the 2024-25 financial year, due to the uncertainty with ABS population estimates due to the impact of COVID-19.
C51: Census true-up
D52: The Census true-up is based on the difference between the ABS’s original estimates and their post-Census estimates of the annual growth rates over the 2-year period from 30 June 2019 to 30 June 2021. Specifically, the true-up is the cumulative difference between the re-calculated population factors and the original population factors for the rate peg for the 2022-23 and 2023-24 financial years.
C53: For more information about the census true-up, see Review of the rate peg to include population growth, Final Report, September 2021 (Appendix B).
B55: Emergency Services Levy factor (ESL factor)
C56: The ESL factor reflects the annual change in the ESL contribution of individual councils, lagged by one year (after sharing arrangements between councils within some rural fire service
C57: districts). ESL factors are not the simple increase in a council’s ESL contribution. Instead they reflect the additional change to total permissible income that is needed for a council to meet
C58: its ESL obligations after this income has been adjusted by the BCC, the population factor and any specific (non-ESL related) adjustment factors.
C60: We calculate the ESL factor as follows:
D61: General formula The ESL factor for the 2024-25 rate peg, for example
C66: Where:
C67: TPI = Total Permissible income
C68: ESL = ESL Contribution
C69: Rx = Rate peg excluding the ESL factor
C70: I = Rate peg or special variation as applicable
C71: t = Current year
B73: Emergency Services Levy (ESL) catch-up adjustment for the discontinuation of the ESL subsidy
C74: For four years up until 2022-23, the NSW Government subsidised increases in council ESL contributions. These subsidy amounts were excluded when we calculated the rate peg
C75: (and hence not recovered from rates). For the ESL contributions for the 2023-24 financial year, the NSW Government discontinued this subsidy and this resulted in substantial increases in
C76: councils' ESL contribution costs over and above the increases in the amounts councils were invoiced between the 2022-23 and 2023-24 financial years.
C78: The ESL factor does not capture the impact on councils of the discontinuation of the subsidy in the 2023-24 financial year. Instead, we address this with a specific adjustment factor for each
C79: council. We plan to phase in this increase over several year to limit the impact on ratepayer affordability .
B81: Other adjustments
C82: Our methodology makes provision for other adjustments for each council, to be decided when we set the rate peg each year.
B86: TAB COLOURS
B87: The tabs are coloured-coded as follows:
C88: 'Results' tab (rate peg by council) is dark blue
B89: Input worksheets:
C90: BCC inputs are light blue
C91: Population factor inputs are pink
C92: ESL inputs are green
B93: The calculation worksheets are grey (Excel's default colour)
B95: COLOUR CODE FOR WORKSHEETS
B96: This model uses standard IPART colour coding within worksheets:
C97: Blue cells indicate inputs
C98: Blue font indicates IPART hard-coded values used that should not be changed
C99: Key outputs
C100: Pink font indicates calculation checks
C101: Red indicates assumptions made in calculations
C102: Red double line means formula changes across row
B105: PROTECTION
B107: We have protected the worksheets without a password to avoid accidental changes to the calculations. The input cells are all unprotected.
B108: If you wish to use Excel's auditing function, you will need to unprotect the worksheets. Please don't change or over-write formulae. | E108: done (duh) | F108: KM: replace 'with' with 'wish'

Sheet Rate peg
B2: =Cover!$B$3 -> IPART Rate peg model
B4: ="Rate Peg for "&D9&"-"&RIGHT(D9,2)+1 -> Rate Peg for 2024-25
A7: 1 | B7: ="Table "&A7 -> Table 1 | C7: Selected year
B9: Rate peg for 1 July | D9: 2024 | E9: <-- select year
B10: IPART Determination year | D10: =D9-1&"-"&RIGHT(D9,2) -> 2023-24
B17: ='Rate peg calcs'!B20 -> Rounding rules: We round the Population factor after true-up to 3 decimal places and the final Rate Peg to 3 decimal places. All other components of the Rate Peg are unrounded.
B23: Org. Id | D23: Council | E23: ='Rate peg calcs'!E24 -> BCC | F23: ='Rate peg calcs'!F24 -> Super-annuation catch-up adjustment | G23: =LEFT('Rate peg calcs'!G24,10) -> ESL factor | H23: ='Rate peg calcs'!H24 -> ESL subsidy catch-up adjustment | I23: ='Rate peg calcs'!N24 -> Other adjustment (placeholder) | J23: ='Rate peg calcs'!O24 -> Productivity factor | K23: Rate peg excl population factor (after true-up) | L23: ='Rate peg calcs'!I24 -> Change in population | M23: ='Rate peg calcs'!J24 -> Supplementary valuations percentage | N23: ='Rate peg calcs'!K24 -> Population factor before true-up | O23: ='Rate peg calcs'!L24 -> Census true-up | P23: ='Rate peg calcs'!M24 -> Population factor after true-up | Q23: ='Rate peg calcs'!P24 -> Rate Peg | S23: ='Rate peg calcs'!U24 -> ESL factor + subsidy catch-up adjustment
E24: ='Rate peg calcs'!E25 -> unrounded | F24: ='Rate peg calcs'!F25 -> unrounded | G24: =LEFT('Rate peg calcs'!G25,10) -> unrounded | H24: ='Rate peg calcs'!H25 -> unrounded | I24: ='Rate peg calcs'!N25 -> unrounded | J24: ='Rate peg calcs'!O25 -> unrounded | L24: ='Rate peg calcs'!I25 -> unrounded | M24: ='Rate peg calcs'!J25 -> unrounded | N24: ='Rate peg calcs'!K25 -> unrounded | O24: ='Rate peg calcs'!L25 -> unrounded | P24: ='Rate peg calcs'!M25 -> rounded | Q24: ='Rate peg calcs'!P25 -> rounded
B25: ='Rate peg calcs'!B26 -> 2047 | C25: =INDEX('Rate peg calcs'!C$26:C$153,MATCH($B25,'Rate peg calcs'!$B$26:$B$153,0)) -> Regional | D25: =INDEX('Rate peg calcs'!D$26:D$153,MATCH($B25,'Rate peg calcs'!$B$26:$B$153,0)) -> Albury | E25: =INDEX('Rate peg calcs'!E$26:E$153,MATCH($B25,'Rate peg calcs'!$B$26:$B$153,0)) -> 0.03872464517 | F25: =INDEX('Rate peg calcs'!F$26:F$153,MATCH($B25,'Rate peg calcs'!$B$26:$B$153,0)) -> 0.0037 | G25: =INDEX('Rate peg calcs'!G$26:G$153,MATCH($B25,'Rate peg calcs'!$B$26:$B$153,0)) -> 0.0033945965 | H25: =INDEX('Rate peg calcs'!H$26:H$153,MATCH($B25,'Rate peg calcs'!$B$26:$B$153,0)) -> 0 | I25: =INDEX('Rate peg calcs'!N$26:N$153,MATCH($B25,'Rate peg calcs'!$B$26:$B$153,0)) -> 0 | J25: =INDEX('Rate peg calcs'!O$26:O$153,MATCH($B25,'Rate peg calcs'!$B$26:$B$153,0)) -> 0 | K25: =Q25-P25 -> 0.046 | L25: =INDEX('Rate peg calcs'!I$26:I$153,MATCH($B25,'Rate peg calcs'!$B$26:$B$153,0)) -> 0.0100292669 | M25: =INDEX('Rate peg calcs'!J$26:J$153,MATCH($B25,'Rate peg calcs'!$B$26:$B$153,0)) -> 0.01504696804 | N25: =INDEX('Rate peg calcs'!K$26:K$153,MATCH($B25,'Rate peg calcs'!$B$26:$B$153,0)) -> 0 | O25: =INDEX('Rate peg calcs'!L$26:L$153,MATCH($B25,'Rate peg calcs'!$B$26:$B$153,0)) -> 0.001266010948 | P25: =INDEX('Rate peg calcs'!M$26:M$153,MATCH($B25,'Rate peg calcs'!$B$26:$B$153,0)) -> 0.001 | Q25: =INDEX('Rate peg calcs'!P$26:P$153,MATCH($B25,'Rate peg calcs'!$B$26:$B$153,0)) -> 0.047 | S25: =SUM(G25:H25) -> 0.0033945965
B26: ='Rate peg calcs'!B27 -> 2079 | C26: =INDEX('Rate peg calcs'!C$26:C$153,MATCH($B26,'Rate peg calcs'!$B$26:$B$153,0)) -> Regional | D26: =INDEX('Rate peg calcs'!D$26:D$153,MATCH($B26,'Rate peg calcs'!$B$26:$B$153,0)) -> Armidale Regional | E26: =INDEX('Rate peg calcs'!E$26:E$153,MATCH($B26,'Rate peg calcs'!$B$26:$B$153,0)) -> 0.03872464517 | F26: =INDEX('Rate peg calcs'!F$26:F$153,MATCH($B26,'Rate peg calcs'!$B$26:$B$153,0)) -> 0.0037 | G26: =INDEX('Rate peg calcs'!G$26:G$153,MATCH($B26,'Rate peg calcs'!$B$26:$B$153,0)) -> 0.002461259521 | H26: =INDEX('Rate peg calcs'!H$26:H$153,MATCH($B26,'Rate peg calcs'!$B$26:$B$153,0)) -> 0 | I26: =INDEX('Rate peg calcs'!N$26:N$153,MATCH($B26,'Rate peg calcs'!$B$26:$B$153,0)) -> 0 | J26: =INDEX('Rate peg calcs'!O$26:O$153,MATCH($B26,'Rate peg calcs'!$B$26:$B$153,0)) -> 0 | K26: =Q26-P26 -> 0.045 | L26: =INDEX('Rate peg calcs'!I$26:I$153,MATCH($B26,'Rate peg calcs'!$B$26:$B$153,0)) -> 0 | M26: =INDEX('Rate peg calcs'!J$26:J$153,MATCH($B26,'Rate peg calcs'!$B$26:$B$153,0)) -> 0.006465952718 | N26: =INDEX('Rate peg calcs'!K$26:K$153,MATCH($B26,'Rate peg calcs'!$B$26:$B$153,0)) -> 0 | O26: =INDEX('Rate peg calcs'!L$26:L$153,MATCH($B26,'Rate peg calcs'!$B$26:$B$153,0)) -> 0 | P26: =INDEX('Rate peg calcs'!M$26:M$153,MATCH($B26,'Rate peg calcs'!$B$26:$B$153,0)) -> 0 | Q26: =INDEX('Rate peg calcs'!P$26:P$153,MATCH($B26,'Rate peg calcs'!$B$26:$B$153,0)) -> 0.045 | S26: 0.002461259521
B27: ='Rate peg calcs'!B28 -> 54 | C27: =INDEX('Rate peg calcs'!C$26:C$153,MATCH($B27,'Rate peg calcs'!$B$26:$B$153,0)) -> Regional | D27: =INDEX('Rate peg calcs'!D$26:D$153,MATCH($B27,'Rate peg calcs'!$B$26:$B$153,0)) -> Ballina | E27: =INDEX('Rate peg calcs'!E$26:E$153,MATCH($B27,'Rate peg calcs'!$B$26:$B$153,0)) -> 0.03872464517 | F27: =INDEX('Rate peg calcs'!F$26:F$153,MATCH($B27,'Rate peg calcs'!$B$26:$B$153,0)) -> 0.0037 | G27: =INDEX('Rate peg calcs'!G$26:G$153,MATCH($B27,'Rate peg calcs'!$B$26:$B$153,0)) -> 0.002957404284 | H27: =INDEX('Rate peg calcs'!H$26:H$153,MATCH($B27,'Rate peg calcs'!$B$26:$B$153,0)) -> 0 | I27: =INDEX('Rate peg calcs'!N$26:N$153,MATCH($B27,'Rate peg calcs'!$B$26:$B$153,0)) -> 0 | J27: =INDEX('Rate peg calcs'!O$26:O$153,MATCH($B27,'Rate peg calcs'!$B$26:$B$153,0)) -> 0 | K27: 0.045 | L27: =INDEX('Rate peg calcs'!I$26:I$153,MATCH($B27,'Rate peg calcs'!$B$26:$B$153,0)) -> 0.0127349909 | M27: =INDEX('Rate peg calcs'!J$26:J$153,MATCH($B27,'Rate peg calcs'!$B$26:$B$153,0)) -> 0.01294571883 | N27: =INDEX('Rate peg calcs'!K$26:K$153,MATCH($B27,'Rate peg calcs'!$B$26:$B$153,0)) -> 0 | O27: =INDEX('Rate peg calcs'!L$26:L$153,MATCH($B27,'Rate peg calcs'!$B$26:$B$153,0)) -> 0.001025961994 | P27: =INDEX('Rate peg calcs'!M$26:M$153,MATCH($B27,'Rate peg calcs'!$B$26:$B$153,0)) -> 0.001 | Q27: =INDEX('Rate peg calcs'!P$26:P$153,MATCH($B27,'Rate peg calcs'!$B$26:$B$153,0)) -> 0.046 | S27: 0.002957404284
B28: ='Rate peg calcs'!B29 -> 55 | C28: =INDEX('Rate peg calcs'!C$26:C$153,MATCH($B28,'Rate peg calcs'!$B$26:$B$153,0)) -> Rural | D28: =INDEX('Rate peg calcs'!D$26:D$153,MATCH($B28,'Rate peg calcs'!$B$26:$B$153,0)) -> Balranald | E28: =INDEX('Rate peg calcs'!E$26:E$153,MATCH($B28,'Rate peg calcs'!$B$26:$B$153,0)) -> 0.0388443815 | F28: =INDEX('Rate peg calcs'!F$26:F$153,MATCH($B28,'Rate peg calcs'!$B$26:$B$153,0)) -> 0.0036 | G28: =INDEX('Rate peg calcs'!G$26:G$153,MATCH($B28,'Rate peg calcs'!$B$26:$B$153,0)) -> -0.00226363817 | H28: =INDEX('Rate peg calcs'!H$26:H$153,MATCH($B28,'Rate peg calcs'!$B$26:$B$153,0)) -> 0.004346646875 | I28: =INDEX('Rate peg calcs'!N$26:N$153,MATCH($B28,'Rate peg calcs'!$B$26:$B$153,0)) -> 0 | J28: =INDEX('Rate peg calcs'!O$26:O$153,MATCH($B28,'Rate peg calcs'!$B$26:$B$153,0)) -> 0 | K28: 0.045 | L28: =INDEX('Rate peg calcs'!I$26:I$153,MATCH($B28,'Rate peg calcs'!$B$26:$B$153,0)) -> 0 | M28: =INDEX('Rate peg calcs'!J$26:J$153,MATCH($B28,'Rate peg calcs'!$B$26:$B$153,0)) -> 0 | N28: =INDEX('Rate peg calcs'!K$26:K$153,MATCH($B28,'Rate peg calcs'!$B$26:$B$153,0)) -> 0 | O28: =INDEX('Rate peg calcs'!L$26:L$153,MATCH($B28,'Rate peg calcs'!$B$26:$B$153,0)) -> 0 | P28: =INDEX('Rate peg calcs'!M$26:M$153,MATCH($B28,'Rate peg calcs'!$B$26:$B$153,0)) -> 0 | Q28: =INDEX('Rate peg calcs'!P$26:P$153,MATCH($B28,'Rate peg calcs'!$B$26:$B$153,0)) -> 0.045 | S28: 0.002083008705
B29: ='Rate peg calcs'!B30 -> 2043 | C29: =INDEX('Rate peg calcs'!C$26:C$153,MATCH($B29,'Rate peg calcs'!$B$26:$B$153,0)) -> Regional | D29: =INDEX('Rate peg calcs'!D$26:D$153,MATCH($B29,'Rate peg calcs'!$B$26:$B$153,0)) -> Bathurst Regional | E29: =INDEX('Rate peg calcs'!E$26:E$153,MATCH($B29,'Rate peg calcs'!$B$26:$B$153,0)) -> 0.03872464517 | F29: =INDEX('Rate peg calcs'!F$26:F$153,MATCH($B29,'Rate peg calcs'!$B$26:$B$153,0)) -> 0.0037 | G29: =INDEX('Rate peg calcs'!G$26:G$153,MATCH($B29,'Rate peg calcs'!$B$26:$B$153,0)) -> 0.003944484448 | H29: =INDEX('Rate peg calcs'!H$26:H$153,MATCH($B29,'Rate peg calcs'!$B$26:$B$153,0)) -> 0 | I29: =INDEX('Rate peg calcs'!N$26:N$153,MATCH($B29,'Rate peg calcs'!$B$26:$B$153,0)) -> 0 | J29: =INDEX('Rate peg calcs'!O$26:O$153,MATCH($B29,'Rate peg calcs'!$B$26:$B$153,0)) -> 0 | K29: 0.046 | L29: =INDEX('Rate peg calcs'!I$26:I$153,MATCH($B29,'Rate peg calcs'!$B$26:$B$153,0)) -> 0.01173164735 | M29: =INDEX('Rate peg calcs'!J$26:J$153,MATCH($B29,'Rate peg calcs'!$B$26:$B$153,0)) -> 0.007095101651 | N29: =INDEX('Rate peg calcs'!K$26:K$153,MATCH($B29,'Rate peg calcs'!$B$26:$B$153,0)) -> 0.004636545697 | O29: =INDEX('Rate peg calcs'!L$26:L$153,MATCH($B29,'Rate peg calcs'!$B$26:$B$153,0)) -> -0.002968163157 | P29: =INDEX('Rate peg calcs'!M$26:M$153,MATCH($B29,'Rate peg calcs'!$B$26:$B$153,0)) -> 0.002 | Q29: =INDEX('Rate peg calcs'!P$26:P$153,MATCH($B29,'Rate peg calcs'!$B$26:$B$153,0)) -> 0.048 | S29: 0.003944484448
B30: ='Rate peg calcs'!B31 -> 2099 | C30: =INDEX('Rate peg calcs'!C$26:C$153,MATCH($B30,'Rate peg calcs'!$B$26:$B$153,0)) -> Metropolitan | D30: =INDEX('Rate peg calcs'!D$26:D$153,MATCH($B30,'Rate peg calcs'!$B$26:$B$153,0)) -> Bayside | E30: =INDEX('Rate peg calcs'!E$26:E$153,MATCH($B30,'Rate peg calcs'!$B$26:$B$153,0)) -> 0.03882841796 | F30: =INDEX('Rate peg calcs'!F$26:F$153,MATCH($B30,'Rate peg calcs'!$B$26:$B$153,0)) -> 0.0041 | G30: =INDEX('Rate peg calcs'!G$26:G$153,MATCH($B30,'Rate peg calcs'!$B$26:$B$153,0)) -> 0.005391306673 | H30: =INDEX('Rate peg calcs'!H$26:H$153,MATCH($B30,'Rate peg calcs'!$B$26:$B$153,0)) -> 0 | I30: =INDEX('Rate peg calcs'!N$26:N$153,MATCH($B30,'Rate peg calcs'!$B$26:$B$153,0)) -> 0 | J30: =INDEX('Rate peg calcs'!O$26:O$153,MATCH($B30,'Rate peg calcs'!$B$26:$B$153,0)) -> 0 | K30: 0.048 | L30: =INDEX('Rate peg calcs'!I$26:I$153,MATCH($B30,'Rate peg calcs'!$B$26:$B$153,0)) -> 0.008906004169 | M30: =INDEX('Rate peg calcs'!J$26:J$153,MATCH($B30,'Rate peg calcs'!$B$26:$B$153,0)) -> 0.005062611067 | N30: =INDEX('Rate peg calcs'!K$26:K$153,MATCH($B30,'Rate peg calcs'!$B$26:$B$153,0)) -> 0.003843393102 | O30: =INDEX('Rate peg calcs'!L$26:L$153,MATCH($B30,'Rate peg calcs'!$B$26:$B$153,0)) -> -0.004986959525 | P30: =INDEX('Rate peg calcs'!M$26:M$153,MATCH($B30,'Rate peg calcs'!$B$26:$B$153,0)) -> 0 | Q30: =INDEX('Rate peg calcs'!P$26:P$153,MATCH($B30,'Rate peg calcs'!$B$26:$B$153,0)) -> 0.048 | S30: 0.005391306673
B31: ='Rate peg calcs'!B32 -> 60 | C31: =INDEX('Rate peg calcs'!C$26:C$153,MATCH($B31,'Rate peg calcs'!$B$26:$B$153,0)) -> Regional | D31: =INDEX('Rate peg calcs'!D$26:D$153,MATCH($B31,'Rate peg calcs'!$B$26:$B$153,0)) -> Bega Valley | E31: =INDEX('Rate peg calcs'!E$26:E$153,MATCH($B31,'Rate peg calcs'!$B$26:$B$153,0)) -> 0.03872464517 | F31: =INDEX('Rate peg calcs'!F$26:F$153,MATCH($B31,'Rate peg calcs'!$B$26:$B$153,0)) -> 0.0037 | G31: =INDEX('Rate peg calcs'!G$26:G$153,MATCH($B31,'Rate peg calcs'!$B$26:$B$153,0)) -> 0.001118500466 | H31: =INDEX('Rate peg calcs'!H$26:H$153,MATCH($B31,'Rate peg calcs'!$B$26:$B$153,0)) -> 0.0009959676744 | I31: =INDEX('Rate peg calcs'!N$26:N$153,MATCH($B31,'Rate peg calcs'!$B$26:$B$153,0)) -> 0 | J31: =INDEX('Rate peg calcs'!O$26:O$153,MATCH($B31,'Rate peg calcs'!$B$26:$B$153,0)) -> 0 | K31: 0.045 | L31: =INDEX('Rate peg calcs'!I$26:I$153,MATCH($B31,'Rate peg calcs'!$B$26:$B$153,0)) -> 0.005900282431 | M31: =INDEX('Rate peg calcs'!J$26:J$153,MATCH($B31,'Rate peg calcs'!$B$26:$B$153,0)) -> 0.007856037152 | N31: =INDEX('Rate peg calcs'!K$26:K$153,MATCH($B31,'Rate peg calcs'!$B$26:$B$153,0)) -> 0 | O31: =INDEX('Rate peg calcs'!L$26:L$153,MATCH($B31,'Rate peg calcs'!$B$26:$B$153,0)) -> 0.003974788112 | P31: =INDEX('Rate peg calcs'!M$26:M$153,MATCH($B31,'Rate peg calcs'!$B$26:$B$153,0)) -> 0.004 | Q31: =INDEX('Rate peg calcs'!P$26:P$153,MATCH($B31,'Rate peg calcs'!$B$26:$B$153,0)) -> 0.049 | S31: 0.00211446814
B32: ='Rate peg calcs'!B33 -> 61 | C32: =INDEX('Rate peg calcs'!C$26:C$153,MATCH($B32,'Rate peg calcs'!$B$26:$B$153,0)) -> Rural | D32: =INDEX('Rate peg calcs'!D$26:D$153,MATCH($B32,'Rate peg calcs'!$B$26:$B$153,0)) -> Bellingen | E32: =INDEX('Rate peg calcs'!E$26:E$153,MATCH($B32,'Rate peg calcs'!$B$26:$B$153,0)) -> 0.0388443815 | F32: =INDEX('Rate peg calcs'!F$26:F$153,MATCH($B32,'Rate peg calcs'!$B$26:$B$153,0)) -> 0.0036 | G32: =INDEX('Rate peg calcs'!G$26:G$153,MATCH($B32,'Rate peg calcs'!$B$26:$B$153,0)) -> 0.0009933697563 | H32: =INDEX('Rate peg calcs'!H$26:H$153,MATCH($B32,'Rate peg calcs'!$B$26:$B$153,0)) -> 0.001100855133 | I32: =INDEX('Rate peg calcs'!N$26:N$153,MATCH($B32,'Rate peg calcs'!$B$26:$B$153,0)) -> 0 | J32: =INDEX('Rate peg calcs'!O$26:O$153,MATCH($B32,'Rate peg calcs'!$B$26:$B$153,0)) -> 0 | K32: 0.045 | L32: =INDEX('Rate peg calcs'!I$26:I$153,MATCH($B32,'Rate peg calcs'!$B$26:$B$153,0)) -> 0.001667045541 | M32: =INDEX('Rate peg calcs'!J$26:J$153,MATCH($B32,'Rate peg calcs'!$B$26:$B$153,0)) -> 0.001111234582 | N32: =INDEX('Rate peg calcs'!K$26:K$153,MATCH($B32,'Rate peg calcs'!$B$26:$B$153,0)) -> 0.000555810959 | O32: =INDEX('Rate peg calcs'!L$26:L$153,MATCH($B32,'Rate peg calcs'!$B$26:$B$153,0)) -> -0.006404589861 | P32: =INDEX('Rate peg calcs'!M$26:M$153,MATCH($B32,'Rate peg calcs'!$B$26:$B$153,0)) -> 0 | Q32: =INDEX('Rate peg calcs'!P$26:P$153,MATCH($B32,'Rate peg calcs'!$B$26:$B$153,0)) -> 0.045 | S32: 0.00209422489
B33: ='Rate peg calcs'!B34 -> 62 | C33: =INDEX('Rate peg calcs'!C$26:C$153,MATCH($B33,'Rate peg calcs'!$B$26:$B$153,0)) -> Rural | D33: =INDEX('Rate peg calcs'!D$26:D$153,MATCH($B33,'Rate peg calcs'!$B$26:$B$153,0)) -> Berrigan | E33: =INDEX('Rate peg calcs'!E$26:E$153,MATCH($B33,'Rate peg calcs'!$B$26:$B$153,0)) -> 0.0388443815 | F33: =INDEX('Rate peg calcs'!F$26:F$153,MATCH($B33,'Rate peg calcs'!$B$26:$B$153,0)) -> 0.0036 | G33: =INDEX('Rate peg calcs'!G$26:G$153,MATCH($B33,'Rate peg calcs'!$B$26:$B$153,0)) -> 0.002837791445 | H33: =INDEX('Rate peg calcs'!H$26:H$153,MATCH($B33,'Rate peg calcs'!$B$26:$B$153,0)) -> 0 | I33: =INDEX('Rate peg calcs'!N$26:N$153,MATCH($B33,'Rate peg calcs'!$B$26:$B$153,0)) -> 0 | J33: =INDEX('Rate peg calcs'!O$26:O$153,MATCH($B33,'Rate peg calcs'!$B$26:$B$153,0)) -> 0 | K33: 0.045 | L33: =INDEX('Rate peg calcs'!I$26:I$153,MATCH($B33,'Rate peg calcs'!$B$26:$B$153,0)) -> 0.005225267069 | M33: =INDEX('Rate peg calcs'!J$26:J$153,MATCH($B33,'Rate peg calcs'!$B$26:$B$153,0)) -> 0.004127041091 | N33: =INDEX('Rate peg calcs'!K$26:K$153,MATCH($B33,'Rate peg calcs'!$B$26:$B$153,0)) -> 0.001098225978 | O33: =INDEX('Rate peg calcs'!L$26:L$153,MATCH($B33,'Rate peg calcs'!$B$26:$B$153,0)) -> -0.001622417417 | P33: =INDEX('Rate peg calcs'!M$26:M$153,MATCH($B33,'Rate peg calcs'!$B$26:$B$153,0)) -> 0 | Q33: =INDEX('Rate peg calcs'!P$26:P$153,MATCH($B33,'Rate peg calcs'!$B$26:$B$153,0)) -> 0.045 | S33: 0.002837791445
B34: ='Rate peg calcs'!B35 -> 64 | C34: =INDEX('Rate peg calcs'!C$26:C$153,MATCH($B34,'Rate peg calcs'!$B$26:$B$153,0)) -> Metropolitan | D34: =INDEX('Rate peg calcs'!D$26:D$153,MATCH($B34,'Rate peg calcs'!$B$26:$B$153,0)) -> Blacktown | E34: =INDEX('Rate peg calcs'!E$26:E$153,MATCH($B34,'Rate peg calcs'!$B$26:$B$153,0)) -> 0.03882841796 | F34: =INDEX('Rate peg calcs'!F$26:F$153,MATCH($B34,'Rate peg calcs'!$B$26:$B$153,0)) -> 0.0041 | G34: =INDEX('Rate peg calcs'!G$26:G$153,MATCH($B34,'Rate peg calcs'!$B$26:$B$153,0)) -> 0.006314337461 | H34: =INDEX('Rate peg calcs'!H$26:H$153,MATCH($B34,'Rate peg calcs'!$B$26:$B$153,0)) -> 0 | I34: =INDEX('Rate peg calcs'!N$26:N$153,MATCH($B34,'Rate peg calcs'!$B$26:$B$153,0)) -> 0 | J34: =INDEX('Rate peg calcs'!O$26:O$153,MATCH($B34,'Rate peg calcs'!$B$26:$B$153,0)) -> 0 | K34: 0.049 | L34: =INDEX('Rate peg calcs'!I$26:I$153,MATCH($B34,'Rate peg calcs'!$B$26:$B$153,0)) -> 0.02698774859 | M34: =INDEX('Rate peg calcs'!J$26:J$153,MATCH($B34,'Rate peg calcs'!$B$26:$B$153,0)) -> 0.01237200256 | N34: =INDEX('Rate peg calcs'!K$26:K$153,MATCH($B34,'Rate peg calcs'!$B$26:$B$153,0)) -> 0.01461574603 | O34: =INDEX('Rate peg calcs'!L$26:L$153,MATCH($B34,'Rate peg calcs'!$B$26:$B$153,0)) -> 0.007547873552 | P34: =INDEX('Rate peg calcs'!M$26:M$153,MATCH($B34,'Rate peg calcs'!$B$26:$B$153,0)) -> 0.022 | Q34: =INDEX('Rate peg calcs'!P$26:P$153,MATCH($B34,'Rate peg calcs'!$B$26:$B$153,0)) -> 0.071 | S34: 0.006314337461
B35: ='Rate peg calcs'!B36 -> 65 | C35: =INDEX('Rate peg calcs'!C$26:C$153,MATCH($B35,'Rate peg calcs'!$B$26:$B$153,0)) -> Rural | D35: =INDEX('Rate peg calcs'!D$26:D$153,MATCH($B35,'Rate peg calcs'!$B$26:$B$153,0)) -> Bland | E35: =INDEX('Rate peg calcs'!E$26:E$153,MATCH($B35,'Rate peg calcs'!$B$26:$B$153,0)) -> 0.0388443815 | F35: =INDEX('Rate peg calcs'!F$26:F$153,MATCH($B35,'Rate peg calcs'!$B$26:$B$153,0)) -> 0.0036 | G35: =INDEX('Rate peg calcs'!G$26:G$153,MATCH($B35,'Rate peg calcs'!$B$26:$B$153,0)) -> -0.001444931673 | H35: =INDEX('Rate peg calcs'!H$26:H$153,MATCH($B35,'Rate peg calcs'!$B$26:$B$153,0)) -> 0.003519626126 | I35: =INDEX('Rate peg calcs'!N$26:N$153,MATCH($B35,'Rate peg calcs'!$B$26:$B$153,0)) -> 0 | J35: =INDEX('Rate peg calcs'!O$26:O$153,MATCH($B35,'Rate peg calcs'!$B$26:$B$153,0)) -> 0 | K35: 0.045 | L35: =INDEX('Rate peg calcs'!I$26:I$153,MATCH($B35,'Rate peg calcs'!$B$26:$B$153,0)) -> 0 | M35: =INDEX('Rate peg calcs'!J$26:J$153,MATCH($B35,'Rate peg calcs'!$B$26:$B$153,0)) -> 0.0002850627138 | N35: =INDEX('Rate peg calcs'!K$26:K$153,MATCH($B35,'Rate peg calcs'!$B$26:$B$153,0)) -> 0 | O35: =INDEX('Rate peg calcs'!L$26:L$153,MATCH($B35,'Rate peg calcs'!$B$26:$B$153,0)) -> 0 | P35: =INDEX('Rate peg calcs'!M$26:M$153,MATCH($B35,'Rate peg calcs'!$B$26:$B$153,0)) -> 0 | Q35: =INDEX('Rate peg calcs'!P$26:P$153,MATCH($B35,'Rate peg calcs'!$B$26:$B$153,0)) -> 0.045 | S35: 0.002074694452
B36: ='Rate peg calcs'!B37 -> 66 | C36: =INDEX('Rate peg calcs'!C$26:C$153,MATCH($B36,'Rate peg calcs'!$B$26:$B$153,0)) -> Rural | D36: =INDEX('Rate peg calcs'!D$26:D$153,MATCH($B36,'Rate peg calcs'!$B$26:$B$153,0)) -> Blayney | E36: =INDEX('Rate peg calcs'!E$26:E$153,MATCH($B36,'Rate peg calcs'!$B$26:$B$153,0)) -> 0.0388443815 | F36: =INDEX('Rate peg calcs'!F$26:F$153,MATCH($B36,'Rate peg calcs'!$B$26:$B$153,0)) -> 0.0036 | G36: =INDEX('Rate peg calcs'!G$26:G$153,MATCH($B36,'Rate peg calcs'!$B$26:$B$153,0)) -> -0.0006037920396 | H36: =INDEX('Rate peg calcs'!H$26:H$153,MATCH($B36,'Rate peg calcs'!$B$26:$B$153,0)) -> 0.00273215546 | I36: =INDEX('Rate peg calcs'!N$26:N$153,MATCH($B36,'Rate peg calcs'!$B$26:$B$153,0)) -> 0 | J36: =INDEX('Rate peg calcs'!O$26:O$153,MATCH($B36,'Rate peg calcs'!$B$26:$B$153,0)) -> 0 | K36: 0.045 | L36: =INDEX('Rate peg calcs'!I$26:I$153,MATCH($B36,'Rate peg calcs'!$B$26:$B$153,0)) -> 0.01065530101 | M36: =INDEX('Rate peg calcs'!J$26:J$153,MATCH($B36,'Rate peg calcs'!$B$26:$B$153,0)) -> 0.003977639217 | N36: =INDEX('Rate peg calcs'!K$26:K$153,MATCH($B36,'Rate peg calcs'!$B$26:$B$153,0)) -> 0.006677661795 | O36: =INDEX('Rate peg calcs'!L$26:L$153,MATCH($B36,'Rate peg calcs'!$B$26:$B$153,0)) -> 0.005332034225 | P36: =INDEX('Rate peg calcs'!M$26:M$153,MATCH($B36,'Rate peg calcs'!$B$26:$B$153,0)) -> 0.012 | Q36: =INDEX('Rate peg calcs'!P$26:P$153,MATCH($B36,'Rate peg calcs'!$B$26:$B$153,0)) -> 0.057 | S36: 0.00212836342
B37: ='Rate peg calcs'!B38 -> 67 | C37: =INDEX('Rate peg calcs'!C$26:C$153,MATCH($B37,'Rate peg calcs'!$B$26:$B$153,0)) -> Metropolitan | D37: =INDEX('Rate peg calcs'!D$26:D$153,MATCH($B37,'Rate peg calcs'!$B$26:$B$153,0)) -> Blue Mountains | E37: =INDEX('Rate peg calcs'!E$26:E$153,MATCH($B37,'Rate peg calcs'!$B$26:$B$153,0)) -> 0.03882841796 | F37: =INDEX('Rate peg calcs'!F$26:F$153,MATCH($B37,'Rate peg calcs'!$B$26:$B$153,0)) -> 0.0041 | G37: =INDEX('Rate peg calcs'!G$26:G$153,MATCH($B37,'Rate peg calcs'!$B$26:$B$153,0)) -> 0.00355001096 | H37: =INDEX('Rate peg calcs'!H$26:H$153,MATCH($B37,'Rate peg calcs'!$B$26:$B$153,0)) -> 0 | I37: =INDEX('Rate peg calcs'!N$26:N$153,MATCH($B37,'Rate peg calcs'!$B$26:$B$153,0)) -> 0 | J37: =INDEX('Rate peg calcs'!O$26:O$153,MATCH($B37,'Rate peg calcs'!$B$26:$B$153,0)) -> 0 | K37: 0.046 | L37: =INDEX('Rate peg calcs'!I$26:I$153,MATCH($B37,'Rate peg calcs'!$B$26:$B$153,0)) -> 0 | M37: =INDEX('Rate peg calcs'!J$26:J$153,MATCH($B37,'Rate peg calcs'!$B$26:$B$153,0)) -> 0.0008224924262 | N37: =INDEX('Rate peg calcs'!K$26:K$153,MATCH($B37,'Rate peg calcs'!$B$26:$B$153,0)) -> 0 | O37: =INDEX('Rate peg calcs'!L$26:L$153,MATCH($B37,'Rate peg calcs'!$B$26:$B$153,0)) -> -0.0008700950807 | P37: =INDEX('Rate peg calcs'!M$26:M$153,MATCH($B37,'Rate peg calcs'!$B$26:$B$153,0)) -> 0 | Q37: =INDEX('Rate peg calcs'!P$26:P$153,MATCH($B37,'Rate peg calcs'!$B$26:$B$153,0)) -> 0.046 | S37: 0.00355001096
B38: ='Rate peg calcs'!B39 -> 68 | C38: =INDEX('Rate peg calcs'!C$26:C$153,MATCH($B38,'Rate peg calcs'!$B$26:$B$153,0)) -> Rural | D38: =INDEX('Rate peg calcs'!D$26:D$153,MATCH($B38,'Rate peg calcs'!$B$26:$B$153,0)) -> Bogan | E38: =INDEX('Rate peg calcs'!E$26:E$153,MATCH($B38,'Rate peg calcs'!$B$26:$B$153,0)) -> 0.0388443815 | F38: =INDEX('Rate peg calcs'!F$26:F$153,MATCH($B38,'Rate peg calcs'!$B$26:$B$153,0)) -> 0.0036 | G38: =INDEX('Rate peg calcs'!G$26:G$153,MATCH($B38,'Rate peg calcs'!$B$26:$B$153,0)) -> 0.0001116688985 | H38: =INDEX('Rate peg calcs'!H$26:H$153,MATCH($B38,'Rate peg calcs'!$B$26:$B$153,0)) -> 0.002071826903 | I38: =INDEX('Rate peg calcs'!N$26:N$153,MATCH($B38,'Rate peg calcs'!$B$26:$B$153,0)) -> 0 | J38: =INDEX('Rate peg calcs'!O$26:O$153,MATCH($B38,'Rate peg calcs'!$B$26:$B$153,0)) -> 0 | K38: 0.045 | L38: =INDEX('Rate peg calcs'!I$26:I$153,MATCH($B38,'Rate peg calcs'!$B$26:$B$153,0)) -> 0 | M38: =INDEX('Rate peg calcs'!J$26:J$153,MATCH($B38,'Rate peg calcs'!$B$26:$B$153,0)) -> 0 | N38: =INDEX('Rate peg calcs'!K$26:K$153,MATCH($B38,'Rate peg calcs'!$B$26:$B$153,0)) -> 0 | O38: =INDEX('Rate peg calcs'!L$26:L$153,MATCH($B38,'Rate peg calcs'!$B$26:$B$153,0)) -> 0 | P38: =INDEX('Rate peg calcs'!M$26:M$153,MATCH($B38,'Rate peg calcs'!$B$26:$B$153,0)) -> 0 | Q38: =INDEX('Rate peg calcs'!P$26:P$153,MATCH($B38,'Rate peg calcs'!$B$26:$B$153,0)) -> 0.045 | S38: 0.002183495802
B39: ='Rate peg calcs'!B40 -> 72 | C39: =INDEX('Rate peg calcs'!C$26:C$153,MATCH($B39,'Rate peg calcs'!$B$26:$B$153,0)) -> Rural | D39: =INDEX('Rate peg calcs'!D$26:D$153,MATCH($B39,'Rate peg calcs'!$B$26:$B$153,0)) -> Bourke | E39: =INDEX('Rate peg calcs'!E$26:E$153,MATCH($B39,'Rate peg calcs'!$B$26:$B$153,0)) -> 0.0388443815 | F39: =INDEX('Rate peg calcs'!F$26:F$153,MATCH($B39,'Rate peg calcs'!$B$26:$B$153,0)) -> 0.0036 | G39: =INDEX('Rate peg calcs'!G$26:G$153,MATCH($B39,'Rate peg calcs'!$B$26:$B$153,0)) -> 0.00118357506 | H39: =INDEX('Rate peg calcs'!H$26:H$153,MATCH($B39,'Rate peg calcs'!$B$26:$B$153,0)) -> 0.0009249235866 | I39: =INDEX('Rate peg calcs'!N$26:N$153,MATCH($B39,'Rate peg calcs'!$B$26:$B$153,0)) -> 0 | J39: =INDEX('Rate peg calcs'!O$26:O$153,MATCH($B39,'Rate peg calcs'!$B$26:$B$153,0)) -> 0 | K39: 0.045 | L39: =INDEX('Rate peg calcs'!I$26:I$153,MATCH($B39,'Rate peg calcs'!$B$26:$B$153,0)) -> 0 | M39: =INDEX('Rate peg calcs'!J$26:J$153,MATCH($B39,'Rate peg calcs'!$B$26:$B$153,0)) -> 0 | N39: =INDEX('Rate peg calcs'!K$26:K$153,MATCH($B39,'Rate peg calcs'!$B$26:$B$153,0)) -> 0 | O39: =INDEX('Rate peg calcs'!L$26:L$153,MATCH($B39,'Rate peg calcs'!$B$26:$B$153,0)) -> -0.01351351351 | P39: =INDEX('Rate peg calcs'!M$26:M$153,MATCH($B39,'Rate peg calcs'!$B$26:$B$153,0)) -> 0 | Q39: =INDEX('Rate peg calcs'!P$26:P$153,MATCH($B39,'Rate peg calcs'!$B$26:$B$153,0)) -> 0.045 | S39: 0.002108498647
B40: ='Rate peg calcs'!B41 -> 73 | C40: =INDEX('Rate peg calcs'!C$26:C$153,MATCH($B40,'Rate peg calcs'!$B$26:$B$153,0)) -> Rural | D40: =INDEX('Rate peg calcs'!D$26:D$153,MATCH($B40,'Rate peg calcs'!$B$26:$B$153,0)) -> Brewarrina | E40: =INDEX('Rate peg calcs'!E$26:E$153,MATCH($B40,'Rate peg calcs'!$B$26:$B$153,0)) -> 0.0388443815 | F40: =INDEX('Rate peg calcs'!F$26:F$153,MATCH($B40,'Rate peg calcs'!$B$26:$B$153,0)) -> 0.0036 | G40: =INDEX('Rate peg calcs'!G$26:G$153,MATCH($B40,'Rate peg calcs'!$B$26:$B$153,0)) -> -0.002433311354 | H40: =INDEX('Rate peg calcs'!H$26:H$153,MATCH($B40,'Rate peg calcs'!$B$26:$B$153,0)) -> 0.004618646388 | I40: =INDEX('Rate peg calcs'!N$26:N$153,MATCH($B40,'Rate peg calcs'!$B$26:$B$153,0)) -> 0 | J40: =INDEX('Rate peg calcs'!O$26:O$153,MATCH($B40,'Rate peg calcs'!$B$26:$B$153,0)) -> 0 | K40: 0.045 | L40: =INDEX('Rate peg calcs'!I$26:I$153,MATCH($B40,'Rate peg calcs'!$B$26:$B$153,0)) -> 0 | M40: =INDEX('Rate peg calcs'!J$26:J$153,MATCH($B40,'Rate peg calcs'!$B$26:$B$153,0)) -> 0 | N40: =INDEX('Rate peg calcs'!K$26:K$153,MATCH($B40,'Rate peg calcs'!$B$26:$B$153,0)) -> 0 | O40: =INDEX('Rate peg calcs'!L$26:L$153,MATCH($B40,'Rate peg calcs'!$B$26:$B$153,0)) -> 0 | P40: =INDEX('Rate peg calcs'!M$26:M$153,MATCH($B40,'Rate peg calcs'!$B$26:$B$153,0)) -> 0 | Q40: =INDEX('Rate peg calcs'!P$26:P$153,MATCH($B40,'Rate peg calcs'!$B$26:$B$153,0)) -> 0.045 | S40: 0.002185335034
B41: ='Rate peg calcs'!B42 -> 74 | C41: =INDEX('Rate peg calcs'!C$26:C$153,MATCH($B41,'Rate peg calcs'!$B$26:$B$153,0)) -> Regional | D41: =INDEX('Rate peg calcs'!D$26:D$153,MATCH($B41,'Rate peg calcs'!$B$26:$B$153,0)) -> Broken Hill | E41: =INDEX('Rate peg calcs'!E$26:E$153,MATCH($B41,'Rate peg calcs'!$B$26:$B$153,0)) -> 0.03872464517 | F41: =INDEX('Rate peg calcs'!F$26:F$153,MATCH($B41,'Rate peg calcs'!$B$26:$B$153,0)) -> 0.0037 | G41: =INDEX('Rate peg calcs'!G$26:G$153,MATCH($B41,'Rate peg calcs'!$B$26:$B$153,0)) -> 0.006496561824 | H41: =INDEX('Rate peg calcs'!H$26:H$153,MATCH($B41,'Rate peg calcs'!$B$26:$B$153,0)) -> 0 | I41: =INDEX('Rate peg calcs'!N$26:N$153,MATCH($B41,'Rate peg calcs'!$B$26:$B$153,0)) -> 0 | J41: =INDEX('Rate peg calcs'!O$26:O$153,MATCH($B41,'Rate peg calcs'!$B$26:$B$153,0)) -> 0 | K41: 0.049 | L41: =INDEX('Rate peg calcs'!I$26:I$153,MATCH($B41,'Rate peg calcs'!$B$26:$B$153,0)) -> 0 | M41: =INDEX('Rate peg calcs'!J$26:J$153,MATCH($B41,'Rate peg calcs'!$B$26:$B$153,0)) -> 0.0007190364911 | N41: =INDEX('Rate peg calcs'!K$26:K$153,MATCH($B41,'Rate peg calcs'!$B$26:$B$153,0)) -> 0 | O41: =INDEX('Rate peg calcs'!L$26:L$153,MATCH($B41,'Rate peg calcs'!$B$26:$B$153,0)) -> 0 | P41: =INDEX('Rate peg calcs'!M$26:M$153,MATCH($B41,'Rate peg calcs'!$B$26:$B$153,0)) -> 0 | Q41: =INDEX('Rate peg calcs'!P$26:P$153,MATCH($B41,'Rate peg calcs'!$B$26:$B$153,0)) -> 0.049 | S41: 0.006496561824
B42: ='Rate peg calcs'!B43 -> 75 | C42: =INDEX('Rate peg calcs'!C$26:C$153,MATCH($B42,'Rate peg calcs'!$B$26:$B$153,0)) -> Metropolitan | D42: =INDEX('Rate peg calcs'!D$26:D$153,MATCH($B42,'Rate peg calcs'!$B$26:$B$153,0)) -> Burwood | E42: =INDEX('Rate peg calcs'!E$26:E$153,MATCH($B42,'Rate peg calcs'!$B$26:$B$153,0)) -> 0.03882841796 | F42: =INDEX('Rate peg calcs'!F$26:F$153,MATCH($B42,'Rate peg calcs'!$B$26:$B$153,0)) -> 0.0041 | G42: =INDEX('Rate peg calcs'!G$26:G$153,MATCH($B42,'Rate peg calcs'!$B$26:$B$153,0)) -> 0.00511804384 | H42: =INDEX('Rate peg calcs'!H$26:H$153,MATCH($B42,'Rate peg calcs'!$B$26:$B$153,0)) -> 0 | I42: =INDEX('Rate peg calcs'!N$26:N$153,MATCH($B42,'Rate peg calcs'!$B$26:$B$153,0)) -> 0 | J42: =INDEX('Rate peg calcs'!O$26:O$153,MATCH($B42,'Rate peg calcs'!$B$26:$B$153,0)) -> 0 | K42: 0.048 | L42: =INDEX('Rate peg calcs'!I$26:I$153,MATCH($B42,'Rate peg calcs'!$B$26:$B$153,0)) -> 0.008664009704 | M42: =INDEX('Rate peg calcs'!J$26:J$153,MATCH($B42,'Rate peg calcs'!$B$26:$B$153,0)) -> 0.01242349837 | N42: =INDEX('Rate peg calcs'!K$26:K$153,MATCH($B42,'Rate peg calcs'!$B$26:$B$153,0)) -> 0 | O42: =INDEX('Rate peg calcs'!L$26:L$153,MATCH($B42,'Rate peg calcs'!$B$26:$B$153,0)) -> 0 | P42: =INDEX('Rate peg calcs'!M$26:M$153,MATCH($B42,'Rate peg calcs'!$B$26:$B$153,0)) -> 0 | Q42: =INDEX('Rate peg calcs'!P$26:P$153,MATCH($B42,'Rate peg calcs'!$B$26:$B$153,0)) -> 0.048 | S42: 0.00511804384
B43: ='Rate peg calcs'!B44 -> 76 | C43: =INDEX('Rate peg calcs'!C$26:C$153,MATCH($B43,'Rate peg calcs'!$B$26:$B$153,0)) -> Regional | D43: =INDEX('Rate peg calcs'!D$26:D$153,MATCH($B43,'Rate peg calcs'!$B$26:$B$153,0)) -> Byron | E43: =INDEX('Rate peg calcs'!E$26:E$153,MATCH($B43,'Rate peg calcs'!$B$26:$B$153,0)) -> 0.03872464517 | F43: =INDEX('Rate peg calcs'!F$26:F$153,MATCH($B43,'Rate peg calcs'!$B$26:$B$153,0)) -> 0.0037 | G43: =INDEX('Rate peg calcs'!G$26:G$153,MATCH($B43,'Rate peg calcs'!$B$26:$B$153,0)) -> 0.002309486056 | H43: =INDEX('Rate peg calcs'!H$26:H$153,MATCH($B43,'Rate peg calcs'!$B$26:$B$153,0)) -> 0 | I43: =INDEX('Rate peg calcs'!N$26:N$153,MATCH($B43,'Rate peg calcs'!$B$26:$B$153,0)) -> 0 | J43: =INDEX('Rate peg calcs'!O$26:O$153,MATCH($B43,'Rate peg calcs'!$B$26:$B$153,0)) -> 0 | K43: 0.045 | L43: =INDEX('Rate peg calcs'!I$26:I$153,MATCH($B43,'Rate peg calcs'!$B$26:$B$153,0)) -> 0.008897635613 | M43: =INDEX('Rate peg calcs'!J$26:J$153,MATCH($B43,'Rate peg calcs'!$B$26:$B$153,0)) -> 0.003908390255 | N43: =INDEX('Rate peg calcs'!K$26:K$153,MATCH($B43,'Rate peg calcs'!$B$26:$B$153,0)) -> 0.004989245358 | O43: =INDEX('Rate peg calcs'!L$26:L$153,MATCH($B43,'Rate peg calcs'!$B$26:$B$153,0)) -> -0.001546266067 | P43: =INDEX('Rate peg calcs'!M$26:M$153,MATCH($B43,'Rate peg calcs'!$B$26:$B$153,0)) -> 0.003 | Q43: =INDEX('Rate peg calcs'!P$26:P$153,MATCH($B43,'Rate peg calcs'!$B$26:$B$153,0)) -> 0.048 | S43: 0.002309486056
B44: ='Rate peg calcs'!B45 -> 77 | C44: =INDEX('Rate peg calcs'!C$26:C$153,MATCH($B44,'Rate peg calcs'!$B$26:$B$153,0)) -> Rural | D44: =INDEX('Rate peg calcs'!D$26:D$153,MATCH($B44,'Rate peg calcs'!$B$26:$B$153,0)) -> Cabonne | E44: =INDEX('Rate peg calcs'!E$26:E$153,MATCH($B44,'Rate peg calcs'!$B$26:$B$153,0)) -> 0.0388443815 | F44: =INDEX('Rate peg calcs'!F$26:F$153,MATCH($B44,'Rate peg calcs'!$B$26:$B$153,0)) -> 0.0036 | G44: =INDEX('Rate peg calcs'!G$26:G$153,MATCH($B44,'Rate peg calcs'!$B$26:$B$153,0)) -> 0.0004812842442 | H44: =INDEX('Rate peg calcs'!H$26:H$153,MATCH($B44,'Rate peg calcs'!$B$26:$B$153,0)) -> 0.00165092276 | I44: =INDEX('Rate peg calcs'!N$26:N$153,MATCH($B44,'Rate peg calcs'!$B$26:$B$153,0)) -> 0 | J44: =INDEX('Rate peg calcs'!O$26:O$153,MATCH($B44,'Rate peg calcs'!$B$26:$B$153,0)) -> 0 | K44: 0.045 | L44: =INDEX('Rate peg calcs'!I$26:I$153,MATCH($B44,'Rate peg calcs'!$B$26:$B$153,0)) -> 0.004723837209 | M44: =INDEX('Rate peg calcs'!J$26:J$153,MATCH($B44,'Rate peg calcs'!$B$26:$B$153,0)) -> 0.0006397952655 | N44: =INDEX('Rate peg calcs'!K$26:K$153,MATCH($B44,'Rate peg calcs'!$B$26:$B$153,0)) -> 0.004084041944 | O44: =INDEX('Rate peg calcs'!L$26:L$153,MATCH($B44,'Rate peg calcs'!$B$26:$B$153,0)) -> -0.004277427129 | P44: =INDEX('Rate peg calcs'!M$26:M$153,MATCH($B44,'Rate peg calcs'!$B$26:$B$153,0)) -> 0 | Q44: =INDEX('Rate peg calcs'!P$26:P$153,MATCH($B44,'Rate peg calcs'!$B$26:$B$153,0)) -> 0.045 | S44: 0.002132207004
B45: ='Rate peg calcs'!B46 -> 78 | C45: =INDEX('Rate peg calcs'!C$26:C$153,MATCH($B45,'Rate peg calcs'!$B$26:$B$153,0)) -> Metropolitan | D45: =INDEX('Rate peg calcs'!D$26:D$153,MATCH($B45,'Rate peg calcs'!$B$26:$B$153,0)) -> Camden | E45: =INDEX('Rate peg calcs'!E$26:E$153,MATCH($B45,'Rate peg calcs'!$B$26:$B$153,0)) -> 0.03882841796 | F45: =INDEX('Rate peg calcs'!F$26:F$153,MATCH($B45,'Rate peg calcs'!$B$26:$B$153,0)) -> 0.0041 | G45: =INDEX('Rate peg calcs'!G$26:G$153,MATCH($B45,'Rate peg calcs'!$B$26:$B$153,0)) -> 0.01211310559 | H45: =INDEX('Rate peg calcs'!H$26:H$153,MATCH($B45,'Rate peg calcs'!$B$26:$B$153,0)) -> 0 | I45: =INDEX('Rate peg calcs'!N$26:N$153,MATCH($B45,'Rate peg calcs'!$B$26:$B$153,0)) -> 0 | J45: =INDEX('Rate peg calcs'!O$26:O$153,MATCH($B45,'Rate peg calcs'!$B$26:$B$153,0)) -> 0 | K45: 0.055 | L45: =INDEX('Rate peg calcs'!I$26:I$153,MATCH($B45,'Rate peg calcs'!$B$26:$B$153,0)) -> 0.06407616443 | M45: =INDEX('Rate peg calcs'!J$26:J$153,MATCH($B45,'Rate peg calcs'!$B$26:$B$153,0)) -> 0.0551354217 | N45: =INDEX('Rate peg calcs'!K$26:K$153,MATCH($B45,'Rate peg calcs'!$B$26:$B$153,0)) -> 0.008940742732 | O45: =INDEX('Rate peg calcs'!L$26:L$153,MATCH($B45,'Rate peg calcs'!$B$26:$B$153,0)) -> 0.01828521694 | P45: =INDEX('Rate peg calcs'!M$26:M$153,MATCH($B45,'Rate peg calcs'!$B$26:$B$153,0)) -> 0.027 | Q45: =INDEX('Rate peg calcs'!P$26:P$153,MATCH($B45,'Rate peg calcs'!$B$26:$B$153,0)) -> 0.082 | S45: 0.01211310559
B46: ='Rate peg calcs'!B47 -> 79 | C46: =INDEX('Rate peg calcs'!C$26:C$153,MATCH($B46,'Rate peg calcs'!$B$26:$B$153,0)) -> Metropolitan | D46: =INDEX('Rate peg calcs'!D$26:D$153,MATCH($B46,'Rate peg calcs'!$B$26:$B$153,0)) -> Campbelltown | E46: =INDEX('Rate peg calcs'!E$26:E$153,MATCH($B46,'Rate peg calcs'!$B$26:$B$153,0)) -> 0.03882841796 | F46: =INDEX('Rate peg calcs'!F$26:F$153,MATCH($B46,'Rate peg calcs'!$B$26:$B$153,0)) -> 0.0041 | G46: =INDEX('Rate peg calcs'!G$26:G$153,MATCH($B46,'Rate peg calcs'!$B$26:$B$153,0)) -> 0.00457374512 | H46: =INDEX('Rate peg calcs'!H$26:H$153,MATCH($B46,'Rate peg calcs'!$B$26:$B$153,0)) -> 0 | I46: =INDEX('Rate peg calcs'!N$26:N$153,MATCH($B46,'Rate peg calcs'!$B$26:$B$153,0)) -> 0 | J46: =INDEX('Rate peg calcs'!O$26:O$153,MATCH($B46,'Rate peg calcs'!$B$26:$B$153,0)) -> 0 | K46: 0.048 | L46: =INDEX('Rate peg calcs'!I$26:I$153,MATCH($B46,'Rate peg calcs'!$B$26:$B$153,0)) -> 0.01430589401 | M46: =INDEX('Rate peg calcs'!J$26:J$153,MATCH($B46,'Rate peg calcs'!$B$26:$B$153,0)) -> 0.01525900958 | N46: =INDEX('Rate peg calcs'!K$26:K$153,MATCH($B46,'Rate peg calcs'!$B$26:$B$153,0)) -> 0 | O46: =INDEX('Rate peg calcs'!L$26:L$153,MATCH($B46,'Rate peg calcs'!$B$26:$B$153,0)) -> 0.004848660094 | P46: =INDEX('Rate peg calcs'!M$26:M$153,MATCH($B46,'Rate peg calcs'!$B$26:$B$153,0)) -> 0.005 | Q46: =INDEX('Rate peg calcs'!P$26:P$153,MATCH($B46,'Rate peg calcs'!$B$26:$B$153,0)) -> 0.053 | S46: 0.00457374512
B47: ='Rate peg calcs'!B48 -> 1989 | C47: =INDEX('Rate peg calcs'!C$26:C$153,MATCH($B47,'Rate peg calcs'!$B$26:$B$153,0)) -> Metropolitan | D47: =INDEX('Rate peg calcs'!D$26:D$153,MATCH($B47,'Rate peg calcs'!$B$26:$B$153,0)) -> Canada Bay | E47: =INDEX('Rate peg calcs'!E$26:E$153,MATCH($B47,'Rate peg calcs'!$B$26:$B$153,0)) -> 0.03882841796 | F47: =INDEX('Rate peg calcs'!F$26:F$153,MATCH($B47,'Rate peg calcs'!$B$26:$B$153,0)) -> 0.0041 | G47: =INDEX('Rate peg calcs'!G$26:G$153,MATCH($B47,'Rate peg calcs'!$B$26:$B$153,0)) -> 0.009716192662 | H47: =INDEX('Rate peg calcs'!H$26:H$153,MATCH($B47,'Rate peg calcs'!$B$26:$B$153,0)) -> 0 | I47: =INDEX('Rate peg calcs'!N$26:N$153,MATCH($B47,'Rate peg calcs'!$B$26:$B$153,0)) -> 0 | J47: =INDEX('Rate peg calcs'!O$26:O$153,MATCH($B47,'Rate peg calcs'!$B$26:$B$153,0)) -> 0 | K47: 0.053 | L47: =INDEX('Rate peg calcs'!I$26:I$153,MATCH($B47,'Rate peg calcs'!$B$26:$B$153,0)) -> 0 | M47: =INDEX('Rate peg calcs'!J$26:J$153,MATCH($B47,'Rate peg calcs'!$B$26:$B$153,0)) -> 0.001165722986 | N47: =INDEX('Rate peg calcs'!K$26:K$153,MATCH($B47,'Rate peg calcs'!$B$26:$B$153,0)) -> 0 | O47: =INDEX('Rate peg calcs'!L$26:L$153,MATCH($B47,'Rate peg calcs'!$B$26:$B$153,0)) -> -0.004671371785 | P47: =INDEX('Rate peg calcs'!M$26:M$153,MATCH($B47,'Rate peg calcs'!$B$26:$B$153,0)) -> 0 | Q47: =INDEX('Rate peg calcs'!P$26:P$153,MATCH($B47,'Rate peg calcs'!$B$26:$B$153,0)) -> 0.053 | S47: 0.009716192662
B48: ='Rate peg calcs'!B49 -> 2080 | C48: =INDEX('Rate peg calcs'!C$26:C$153,MATCH($B48,'Rate peg calcs'!$B$26:$B$153,0)) -> Metropolitan | D48: =INDEX('Rate peg calcs'!D$26:D$153,MATCH($B48,'Rate peg calcs'!$B$26:$B$153,0)) -> Canterbury-Bankstown | E48: =INDEX('Rate peg calcs'!E$26:E$153,MATCH($B48,'Rate peg calcs'!$B$26:$B$153,0)) -> 0.03882841796 | F48: =INDEX('Rate peg calcs'!F$26:F$153,MATCH($B48,'Rate peg calcs'!$B$26:$B$153,0)) -> 0.0041 | G48: =INDEX('Rate peg calcs'!G$26:G$153,MATCH($B48,'Rate peg calcs'!$B$26:$B$153,0)) -> 0.006193047764 | H48: =INDEX('Rate peg calcs'!H$26:H$153,MATCH($B48,'Rate peg calcs'!$B$26:$B$153,0)) -> 0 | I48: =INDEX('Rate peg calcs'!N$26:N$153,MATCH($B48,'Rate peg calcs'!$B$26:$B$153,0)) -> 0 | J48: =INDEX('Rate peg calcs'!O$26:O$153,MATCH($B48,'Rate peg calcs'!$B$26:$B$153,0)) -> 0 | K48: 0.049 | L48: =INDEX('Rate peg calcs'!I$26:I$153,MATCH($B48,'Rate peg calcs'!$B$26:$B$153,0)) -> 0 | M48: =INDEX('Rate peg calcs'!J$26:J$153,MATCH($B48,'Rate peg calcs'!$B$26:$B$153,0)) -> 0.002782169534 | N48: =INDEX('Rate peg calcs'!K$26:K$153,MATCH($B48,'Rate peg calcs'!$B$26:$B$153,0)) -> 0 | O48: =INDEX('Rate peg calcs'!L$26:L$153,MATCH($B48,'Rate peg calcs'!$B$26:$B$153,0)) -> -0.001270853996 | P48: =INDEX('Rate peg calcs'!M$26:M$153,MATCH($B48,'Rate peg calcs'!$B$26:$B$153,0)) -> 0 | Q48: =INDEX('Rate peg calcs'!P$26:P$153,MATCH($B48,'Rate peg calcs'!$B$26:$B$153,0)) -> 0.049 | S48: 0.006193047764
B49: ='Rate peg calcs'!B50 -> 81 | C49: =INDEX('Rate peg calcs'!C$26:C$153,MATCH($B49,'Rate peg calcs'!$B$26:$B$153,0)) -> Rural | D49: =INDEX('Rate peg calcs'!D$26:D$153,MATCH($B49,'Rate peg calcs'!$B$26:$B$153,0)) -> Carrathool | E49: =INDEX('Rate peg calcs'!E$26:E$153,MATCH($B49,'Rate peg calcs'!$B$26:$B$153,0)) -> 0.0388443815 | F49: =INDEX('Rate peg calcs'!F$26:F$153,MATCH($B49,'Rate peg calcs'!$B$26:$B$153,0)) -> 0.0036 | G49: =INDEX('Rate peg calcs'!G$26:G$153,MATCH($B49,'Rate peg calcs'!$B$26:$B$153,0)) -> -0.002020263844 | H49: =INDEX('Rate peg calcs'!H$26:H$153,MATCH($B49,'Rate peg calcs'!$B$26:$B$153,0)) -> 0.00414825398 | I49: =INDEX('Rate peg calcs'!N$26:N$153,MATCH($B49,'Rate peg calcs'!$B$26:$B$153,0)) -> 0 | J49: =INDEX('Rate peg calcs'!O$26:O$153,MATCH($B49,'Rate peg calcs'!$B$26:$B$153,0)) -> 0 | K49: 0.045 | L49: =INDEX('Rate peg calcs'!I$26:I$153,MATCH($B49,'Rate peg calcs'!$B$26:$B$153,0)) -> 0 | M49: =INDEX('Rate peg calcs'!J$26:J$153,MATCH($B49,'Rate peg calcs'!$B$26:$B$153,0)) -> 0 | N49: =INDEX('Rate peg calcs'!K$26:K$153,MATCH($B49,'Rate peg calcs'!$B$26:$B$153,0)) -> 0 | O49: =INDEX('Rate peg calcs'!L$26:L$153,MATCH($B49,'Rate peg calcs'!$B$26:$B$153,0)) -> 0.009797060882 | P49: =INDEX('Rate peg calcs'!M$26:M$153,MATCH($B49,'Rate peg calcs'!$B$26:$B$153,0)) -> 0.01 | Q49: =INDEX('Rate peg calcs'!P$26:P$153,MATCH($B49,'Rate peg calcs'!$B$26:$B$153,0)) -> 0.055 | S49: 0.002127990136
B50: ='Rate peg calcs'!B51 -> 2088 | C50: =INDEX('Rate peg calcs'!C$26:C$153,MATCH($B50,'Rate peg calcs'!$B$26:$B$153,0)) -> Metropolitan | D50: =INDEX('Rate peg calcs'!D$26:D$153,MATCH($B50,'Rate peg calcs'!$B$26:$B$153,0)) -> Central Coast | E50: =INDEX('Rate peg calcs'!E$26:E$153,MATCH($B50,'Rate peg calcs'!$B$26:$B$153,0)) -> 0.03882841796 | F50: =INDEX('Rate peg calcs'!F$26:F$153,MATCH($B50,'Rate peg calcs'!$B$26:$B$153,0)) -> 0.0041 | G50: =INDEX('Rate peg calcs'!G$26:G$153,MATCH($B50,'Rate peg calcs'!$B$26:$B$153,0)) -> 0.00472945756 | H50: =INDEX('Rate peg calcs'!H$26:H$153,MATCH($B50,'Rate peg calcs'!$B$26:$B$153,0)) -> 0 | I50: =INDEX('Rate peg calcs'!N$26:N$153,MATCH($B50,'Rate peg calcs'!$B$26:$B$153,0)) -> 0 | J50: =INDEX('Rate peg calcs'!O$26:O$153,MATCH($B50,'Rate peg calcs'!$B$26:$B$153,0)) -> 0 | K50: 0.048 | L50: =INDEX('Rate peg calcs'!I$26:I$153,MATCH($B50,'Rate peg calcs'!$B$26:$B$153,0)) -> 0.001593188616 | M50: =INDEX('Rate peg calcs'!J$26:J$153,MATCH($B50,'Rate peg calcs'!$B$26:$B$153,0)) -> 0.002352557418 | N50: =INDEX('Rate peg calcs'!K$26:K$153,MATCH($B50,'Rate peg calcs'!$B$26:$B$153,0)) -> 0 | O50: =INDEX('Rate peg calcs'!L$26:L$153,MATCH($B50,'Rate peg calcs'!$B$26:$B$153,0)) -> -0.000117830521 | P50: =INDEX('Rate peg calcs'!M$26:M$153,MATCH($B50,'Rate peg calcs'!$B$26:$B$153,0)) -> 0 | Q50: =INDEX('Rate peg calcs'!P$26:P$153,MATCH($B50,'Rate peg calcs'!$B$26:$B$153,0)) -> 0.048 | S50: 0.00472945756
B51: ='Rate peg calcs'!B52 -> 83 | C51: =INDEX('Rate peg calcs'!C$26:C$153,MATCH($B51,'Rate peg calcs'!$B$26:$B$153,0)) -> Rural | D51: =INDEX('Rate peg calcs'!D$26:D$153,MATCH($B51,'Rate peg calcs'!$B$26:$B$153,0)) -> Central Darling | E51: =INDEX('Rate peg calcs'!E$26:E$153,MATCH($B51,'Rate peg calcs'!$B$26:$B$153,0)) -> 0.0388443815 | F51: =INDEX('Rate peg calcs'!F$26:F$153,MATCH($B51,'Rate peg calcs'!$B$26:$B$153,0)) -> 0.0036 | G51: =INDEX('Rate peg calcs'!G$26:G$153,MATCH($B51,'Rate peg calcs'!$B$26:$B$153,0)) -> -0.007429017086 | H51: =INDEX('Rate peg calcs'!H$26:H$153,MATCH($B51,'Rate peg calcs'!$B$26:$B$153,0)) -> 0.009575066154 | I51: =INDEX('Rate peg calcs'!N$26:N$153,MATCH($B51,'Rate peg calcs'!$B$26:$B$153,0)) -> 0 | J51: =INDEX('Rate peg calcs'!O$26:O$153,MATCH($B51,'Rate peg calcs'!$B$26:$B$153,0)) -> 0 | K51: 0.045 | L51: =INDEX('Rate peg calcs'!I$26:I$153,MATCH($B51,'Rate peg calcs'!$B$26:$B$153,0)) -> 0 | M51: =INDEX('Rate peg calcs'!J$26:J$153,MATCH($B51,'Rate peg calcs'!$B$26:$B$153,0)) -> 0 | N51: =INDEX('Rate peg calcs'!K$26:K$153,MATCH($B51,'Rate peg calcs'!$B$26:$B$153,0)) -> 0 | O51: =INDEX('Rate peg calcs'!L$26:L$153,MATCH($B51,'Rate peg calcs'!$B$26:$B$153,0)) -> 0 | P51: =INDEX('Rate peg calcs'!M$26:M$153,MATCH($B51,'Rate peg calcs'!$B$26:$B$153,0)) -> 0 | Q51: =INDEX('Rate peg calcs'!P$26:P$153,MATCH($B51,'Rate peg calcs'!$B$26:$B$153,0)) -> 0.045 | S51: 0.002146049068
B52: ='Rate peg calcs'!B53 -> 84 | C52: =INDEX('Rate peg calcs'!C$26:C$153,MATCH($B52,'Rate peg calcs'!$B$26:$B$153,0)) -> Regional | D52: =INDEX('Rate peg calcs'!D$26:D$153,MATCH($B52,'Rate peg calcs'!$B$26:$B$153,0)) -> Cessnock | E52: =INDEX('Rate peg calcs'!E$26:E$153,MATCH($B52,'Rate peg calcs'!$B$26:$B$153,0)) -> 0.03872464517 | F52: =INDEX('Rate peg calcs'!F$26:F$153,MATCH($B52,'Rate peg calcs'!$B$26:$B$153,0)) -> 0.0037 | G52: =INDEX('Rate peg calcs'!G$26:G$153,MATCH($B52,'Rate peg calcs'!$B$26:$B$153,0)) -> 0.002839738097 | H52: =INDEX('Rate peg calcs'!H$26:H$153,MATCH($B52,'Rate peg calcs'!$B$26:$B$153,0)) -> 0 | I52: =INDEX('Rate peg calcs'!N$26:N$153,MATCH($B52,'Rate peg calcs'!$B$26:$B$153,0)) -> 0 | J52: =INDEX('Rate peg calcs'!O$26:O$153,MATCH($B52,'Rate peg calcs'!$B$26:$B$153,0)) -> 0 | K52: 0.045 | L52: =INDEX('Rate peg calcs'!I$26:I$153,MATCH($B52,'Rate peg calcs'!$B$26:$B$153,0)) -> 0.03184062116 | M52: =INDEX('Rate peg calcs'!J$26:J$153,MATCH($B52,'Rate peg calcs'!$B$26:$B$153,0)) -> 0.0285124829 | N52: =INDEX('Rate peg calcs'!K$26:K$153,MATCH($B52,'Rate peg calcs'!$B$26:$B$153,0)) -> 0.003328138252 | O52: =INDEX('Rate peg calcs'!L$26:L$153,MATCH($B52,'Rate peg calcs'!$B$26:$B$153,0)) -> 0.004439406376 | P52: =INDEX('Rate peg calcs'!M$26:M$153,MATCH($B52,'Rate peg calcs'!$B$26:$B$153,0)) -> 0.008 | Q52: =INDEX('Rate peg calcs'!P$26:P$153,MATCH($B52,'Rate peg calcs'!$B$26:$B$153,0)) -> 0.053 | S52: 0.002839738097
B53: ='Rate peg calcs'!B54 -> 2037 | C53: =INDEX('Rate peg calcs'!C$26:C$153,MATCH($B53,'Rate peg calcs'!$B$26:$B$153,0)) -> Regional | D53: =INDEX('Rate peg calcs'!D$26:D$153,MATCH($B53,'Rate peg calcs'!$B$26:$B$153,0)) -> Clarence Valley | E53: =INDEX('Rate peg calcs'!E$26:E$153,MATCH($B53,'Rate peg calcs'!$B$26:$B$153,0)) -> 0.03872464517 | F53: =INDEX('Rate peg calcs'!F$26:F$153,MATCH($B53,'Rate peg calcs'!$B$26:$B$153,0)) -> 0.0037 | G53: =INDEX('Rate peg calcs'!G$26:G$153,MATCH($B53,'Rate peg calcs'!$B$26:$B$153,0)) -> 0.001496907586 | H53: =INDEX('Rate peg calcs'!H$26:H$153,MATCH($B53,'Rate peg calcs'!$B$26:$B$153,0)) -> 0.0006726776113 | I53: =INDEX('Rate peg calcs'!N$26:N$153,MATCH($B53,'Rate peg calcs'!$B$26:$B$153,0)) -> 0 | J53: =INDEX('Rate peg calcs'!O$26:O$153,MATCH($B53,'Rate peg calcs'!$B$26:$B$153,0)) -> 0 | K53: 0.045 | L53: =INDEX('Rate peg calcs'!I$26:I$153,MATCH($B53,'Rate peg calcs'!$B$26:$B$153,0)) -> 0.007498539857 | M53: =INDEX('Rate peg calcs'!J$26:J$153,MATCH($B53,'Rate peg calcs'!$B$26:$B$153,0)) -> 0.01049463282 | N53: =INDEX('Rate peg calcs'!K$26:K$153,MATCH($B53,'Rate peg calcs'!$B$26:$B$153,0)) -> 0 | O53: =INDEX('Rate peg calcs'!L$26:L$153,MATCH($B53,'Rate peg calcs'!$B$26:$B$153,0)) -> 0.002208972013 | P53: =INDEX('Rate peg calcs'!M$26:M$153,MATCH($B53,'Rate peg calcs'!$B$26:$B$153,0)) -> 0.002 | Q53: =INDEX('Rate peg calcs'!P$26:P$153,MATCH($B53,'Rate peg calcs'!$B$26:$B$153,0)) -> 0.047 | S53: 0.002169585197
B54: ='Rate peg calcs'!B55 -> 85 | C54: =INDEX('Rate peg calcs'!C$26:C$153,MATCH($B54,'Rate peg calcs'!$B$26:$B$153,0)) -> Rural | D54: =INDEX('Rate peg calcs'!D$26:D$153,MATCH($B54,'Rate peg calcs'!$B$26:$B$153,0)) -> Cobar | E54: =INDEX('Rate peg calcs'!E$26:E$153,MATCH($B54,'Rate peg calcs'!$B$26:$B$153,0)) -> 0.0388443815 | F54: =INDEX('Rate peg calcs'!F$26:F$153,MATCH($B54,'Rate peg calcs'!$B$26:$B$153,0)) -> 0.0036 | G54: =INDEX('Rate peg calcs'!G$26:G$153,MATCH($B54,'Rate peg calcs'!$B$26:$B$153,0)) -> 1.189086757e-05 | H54: =INDEX('Rate peg calcs'!H$26:H$153,MATCH($B54,'Rate peg calcs'!$B$26:$B$153,0)) -> 0.002050127053 | I54: =INDEX('Rate peg calcs'!N$26:N$153,MATCH($B54,'Rate peg calcs'!$B$26:$B$153,0)) -> 0 | J54: =INDEX('Rate peg calcs'!O$26:O$153,MATCH($B54,'Rate peg calcs'!$B$26:$B$153,0)) -> 0 | K54: 0.045 | L54: =INDEX('Rate peg calcs'!I$26:I$153,MATCH($B54,'Rate peg calcs'!$B$26:$B$153,0)) -> 0 | M54: =INDEX('Rate peg calcs'!J$26:J$153,MATCH($B54,'Rate peg calcs'!$B$26:$B$153,0)) -> 0 | N54: =INDEX('Rate peg calcs'!K$26:K$153,MATCH($B54,'Rate peg calcs'!$B$26:$B$153,0)) -> 0 | O54: =INDEX('Rate peg calcs'!L$26:L$153,MATCH($B54,'Rate peg calcs'!$B$26:$B$153,0)) -> 0 | P54: =INDEX('Rate peg calcs'!M$26:M$153,MATCH($B54,'Rate peg calcs'!$B$26:$B$153,0)) -> 0 | Q54: =INDEX('Rate peg calcs'!P$26:P$153,MATCH($B54,'Rate peg calcs'!$B$26:$B$153,0)) -> 0.045 | S54: 0.002062017921
B55: ='Rate peg calcs'!B56 -> 86 | C55: =INDEX('Rate peg calcs'!C$26:C$153,MATCH($B55,'Rate peg calcs'!$B$26:$B$153,0)) -> Regional | D55: =INDEX('Rate peg calcs'!D$26:D$153,MATCH($B55,'Rate peg calcs'!$B$26:$B$153,0)) -> Coffs Harbour | E55: =INDEX('Rate peg calcs'!E$26:E$153,MATCH($B55,'Rate peg calcs'!$B$26:$B$153,0)) -> 0.03872464517 | F55: =INDEX('Rate peg calcs'!F$26:F$153,MATCH($B55,'Rate peg calcs'!$B$26:$B$153,0)) -> 0.0037 | G55: =INDEX('Rate peg calcs'!G$26:G$153,MATCH($B55,'Rate peg calcs'!$B$26:$B$153,0)) -> 0.003186360812 | H55: =INDEX('Rate peg calcs'!H$26:H$153,MATCH($B55,'Rate peg calcs'!$B$26:$B$153,0)) -> 0 | I55: =INDEX('Rate peg calcs'!N$26:N$153,MATCH($B55,'Rate peg calcs'!$B$26:$B$153,0)) -> 0 | J55: =INDEX('Rate peg calcs'!O$26:O$153,MATCH($B55,'Rate peg calcs'!$B$26:$B$153,0)) -> 0 | K55: 0.046 | L55: =INDEX('Rate peg calcs'!I$26:I$153,MATCH($B55,'Rate peg calcs'!$B$26:$B$153,0)) -> 0.01092229927 | M55: =INDEX('Rate peg calcs'!J$26:J$153,MATCH($B55,'Rate peg calcs'!$B$26:$B$153,0)) -> 0.003445788925 | N55: =INDEX('Rate peg calcs'!K$26:K$153,MATCH($B55,'Rate peg calcs'!$B$26:$B$153,0)) -> 0.007476510346 | O55: =INDEX('Rate peg calcs'!L$26:L$153,MATCH($B55,'Rate peg calcs'!$B$26:$B$153,0)) -> 0.002903005203 | P55: =INDEX('Rate peg calcs'!M$26:M$153,MATCH($B55,'Rate peg calcs'!$B$26:$B$153,0)) -> 0.01 | Q55: =INDEX('Rate peg calcs'!P$26:P$153,MATCH($B55,'Rate peg calcs'!$B$26:$B$153,0)) -> 0.056 | S55: 0.003186360812
B56: ='Rate peg calcs'!B57 -> 90 | C56: =INDEX('Rate peg calcs'!C$26:C$153,MATCH($B56,'Rate peg calcs'!$B$26:$B$153,0)) -> Rural | D56: =INDEX('Rate peg calcs'!D$26:D$153,MATCH($B56,'Rate peg calcs'!$B$26:$B$153,0)) -> Coolamon | E56: =INDEX('Rate peg calcs'!E$26:E$153,MATCH($B56,'Rate peg calcs'!$B$26:$B$153,0)) -> 0.0388443815 | F56: =INDEX('Rate peg calcs'!F$26:F$153,MATCH($B56,'Rate peg calcs'!$B$26:$B$153,0)) -> 0.0036 | G56: =INDEX('Rate peg calcs'!G$26:G$153,MATCH($B56,'Rate peg calcs'!$B$26:$B$153,0)) -> -0.00207603529 | H56: =INDEX('Rate peg calcs'!H$26:H$153,MATCH($B56,'Rate peg calcs'!$B$26:$B$153,0)) -> 0.004306926843 | I56: =INDEX('Rate peg calcs'!N$26:N$153,MATCH($B56,'Rate peg calcs'!$B$26:$B$153,0)) -> 0 | J56: =INDEX('Rate peg calcs'!O$26:O$153,MATCH($B56,'Rate peg calcs'!$B$26:$B$153,0)) -> 0 | K56: 0.045 | L56: =INDEX('Rate peg calcs'!I$26:I$153,MATCH($B56,'Rate peg calcs'!$B$26:$B$153,0)) -> 0.01408770734 | M56: =INDEX('Rate peg calcs'!J$26:J$153,MATCH($B56,'Rate peg calcs'!$B$26:$B$153,0)) -> 0 | N56: =INDEX('Rate peg calcs'!K$26:K$153,MATCH($B56,'Rate peg calcs'!$B$26:$B$153,0)) -> 0.01408770734 | O56: =INDEX('Rate peg calcs'!L$26:L$153,MATCH($B56,'Rate peg calcs'!$B$26:$B$153,0)) -> 0 | P56: =INDEX('Rate peg calcs'!M$26:M$153,MATCH($B56,'Rate peg calcs'!$B$26:$B$153,0)) -> 0.014 | Q56: =INDEX('Rate peg calcs'!P$26:P$153,MATCH($B56,'Rate peg calcs'!$B$26:$B$153,0)) -> 0.059 | S56: 0.002230891553
B57: ='Rate peg calcs'!B58 -> 93 | C57: =INDEX('Rate peg calcs'!C$26:C$153,MATCH($B57,'Rate peg calcs'!$B$26:$B$153,0)) -> Rural | D57: =INDEX('Rate peg calcs'!D$26:D$153,MATCH($B57,'Rate peg calcs'!$B$26:$B$153,0)) -> Coonamble | E57: =INDEX('Rate peg calcs'!E$26:E$153,MATCH($B57,'Rate peg calcs'!$B$26:$B$153,0)) -> 0.0388443815 | F57: =INDEX('Rate peg calcs'!F$26:F$153,MATCH($B57,'Rate peg calcs'!$B$26:$B$153,0)) -> 0.0036 | G57: =INDEX('Rate peg calcs'!G$26:G$153,MATCH($B57,'Rate peg calcs'!$B$26:$B$153,0)) -> 0.0005768367523 | H57: =INDEX('Rate peg calcs'!H$26:H$153,MATCH($B57,'Rate peg calcs'!$B$26:$B$153,0)) -> 0.001481965839 | I57: =INDEX('Rate peg calcs'!N$26:N$153,MATCH($B57,'Rate peg calcs'!$B$26:$B$153,0)) -> 0 | J57: =INDEX('Rate peg calcs'!O$26:O$153,MATCH($B57,'Rate peg calcs'!$B$26:$B$153,0)) -> 0 | K57: =Q57-P57 -> 0.045 | L57: =INDEX('Rate peg calcs'!I$26:I$153,MATCH($B57,'Rate peg calcs'!$B$26:$B$153,0)) -> 0 | M57: =INDEX('Rate peg calcs'!J$26:J$153,MATCH($B57,'Rate peg calcs'!$B$26:$B$153,0)) -> 0.0007996801279 | N57: =INDEX('Rate peg calcs'!K$26:K$153,MATCH($B57,'Rate peg calcs'!$B$26:$B$153,0)) -> 0 | O57: =INDEX('Rate peg calcs'!L$26:L$153,MATCH($B57,'Rate peg calcs'!$B$26:$B$153,0)) -> 0 | P57: =INDEX('Rate peg calcs'!M$26:M$153,MATCH($B57,'Rate peg calcs'!$B$26:$B$153,0)) -> 0 | Q57: =INDEX('Rate peg calcs'!P$26:P$153,MATCH($B57,'Rate peg calcs'!$B$26:$B$153,0)) -> 0.045 | S57: =SUM(G57:H57) -> 0.002058802592
B58: ='Rate peg calcs'!B59 -> 2094 | C58: =INDEX('Rate peg calcs'!C$26:C$153,MATCH($B58,'Rate peg calcs'!$B$26:$B$153,0)) -> Rural | D58: =INDEX('Rate peg calcs'!D$26:D$153,MATCH($B58,'Rate peg calcs'!$B$26:$B$153,0)) -> Cootamundra-Gundagai Regional | E58: =INDEX('Rate peg calcs'!E$26:E$153,MATCH($B58,'Rate peg calcs'!$B$26:$B$153,0)) -> 0.0388443815 | F58: =INDEX('Rate peg calcs'!F$26:F$153,MATCH($B58,'Rate peg calcs'!$B$26:$B$153,0)) -> 0.0036 | G58: =INDEX('Rate peg calcs'!G$26:G$153,MATCH($B58,'Rate peg calcs'!$B$26:$B$153,0)) -> 0.0003522461956 | H58: =INDEX('Rate peg calcs'!H$26:H$153,MATCH($B58,'Rate peg calcs'!$B$26:$B$153,0)) -> 0.001868540272 | I58: =INDEX('Rate peg calcs'!N$26:N$153,MATCH($B58,'Rate peg calcs'!$B$26:$B$153,0)) -> 0 | J58: =INDEX('Rate peg calcs'!O$26:O$153,MATCH($B58,'Rate peg calcs'!$B$26:$B$153,0)) -> 0 | K58: 0.045 | L58: =INDEX('Rate peg calcs'!I$26:I$153,MATCH($B58,'Rate peg calcs'!$B$26:$B$153,0)) -> 0.0006147361026 | M58: =INDEX('Rate peg calcs'!J$26:J$153,MATCH($B58,'Rate peg calcs'!$B$26:$B$153,0)) -> 0.0009766684753 | N58: =INDEX('Rate peg calcs'!K$26:K$153,MATCH($B58,'Rate peg calcs'!$B$26:$B$153,0)) -> 0 | O58: =INDEX('Rate peg calcs'!L$26:L$153,MATCH($B58,'Rate peg calcs'!$B$26:$B$153,0)) -> 0.002379903041 | P58: =INDEX('Rate peg calcs'!M$26:M$153,MATCH($B58,'Rate peg calcs'!$B$26:$B$153,0)) -> 0.002 | Q58: =INDEX('Rate peg calcs'!P$26:P$153,MATCH($B58,'Rate peg calcs'!$B$26:$B$153,0)) -> 0.047 | S58: 0.002220786468
B59: ='Rate peg calcs'!B60 -> 97 | C59: =INDEX('Rate peg calcs'!C$26:C$153,MATCH($B59,'Rate peg calcs'!$B$26:$B$153,0)) -> Rural | D59: =INDEX('Rate peg calcs'!D$26:D$153,MATCH($B59,'Rate peg calcs'!$B$26:$B$153,0)) -> Cowra | E59: =INDEX('Rate peg calcs'!E$26:E$153,MATCH($B59,'Rate peg calcs'!$B$26:$B$153,0)) -> 0.0388443815 | F59: =INDEX('Rate peg calcs'!F$26:F$153,MATCH($B59,'Rate peg calcs'!$B$26:$B$153,0)) -> 0.0036 | G59: =INDEX('Rate peg calcs'!G$26:G$153,MATCH($B59,'Rate peg calcs'!$B$26:$B$153,0)) -> 0.001494509257 | H59: =INDEX('Rate peg calcs'!H$26:H$153,MATCH($B59,'Rate peg calcs'!$B$26:$B$153,0)) -> 0.0006404959296 | I59: =INDEX('Rate peg calcs'!N$26:N$153,MATCH($B59,'Rate peg calcs'!$B$26:$B$153,0)) -> 0 | J59: =INDEX('Rate peg calcs'!O$26:O$153,MATCH($B59,'Rate peg calcs'!$B$26:$B$153,0)) -> 0 | K59: 0.045 | L59: =INDEX('Rate peg calcs'!I$26:I$153,MATCH($B59,'Rate peg calcs'!$B$26:$B$153,0)) -> 0 | M59: =INDEX('Rate peg calcs'!J$26:J$153,MATCH($B59,'Rate peg calcs'!$B$26:$B$153,0)) -> 0.001638672675 | N59: =INDEX('Rate peg calcs'!K$26:K$153,MATCH($B59,'Rate peg calcs'!$B$26:$B$153,0)) -> 0 | O59: =INDEX('Rate peg calcs'!L$26:L$153,MATCH($B59,'Rate peg calcs'!$B$26:$B$153,0)) -> -0.001509478836 | P59: =INDEX('Rate peg calcs'!M$26:M$153,MATCH($B59,'Rate peg calcs'!$B$26:$B$153,0)) -> 0 | Q59: =INDEX('Rate peg calcs'!P$26:P$153,MATCH($B59,'Rate peg calcs'!$B$26:$B$153,0)) -> 0.045 | S59: 0.002135005187
B60: ='Rate peg calcs'!B61 -> 2090 | C60: =INDEX('Rate peg calcs'!C$26:C$153,MATCH($B60,'Rate peg calcs'!$B$26:$B$153,0)) -> Metropolitan | D60: =INDEX('Rate peg calcs'!D$26:D$153,MATCH($B60,'Rate peg calcs'!$B$26:$B$153,0)) -> Cumberland | E60: =INDEX('Rate peg calcs'!E$26:E$153,MATCH($B60,'Rate peg calcs'!$B$26:$B$153,0)) -> 0.03882841796 | F60: =INDEX('Rate peg calcs'!F$26:F$153,MATCH($B60,'Rate peg calcs'!$B$26:$B$153,0)) -> 0.0041 | G60: =INDEX('Rate peg calcs'!G$26:G$153,MATCH($B60,'Rate peg calcs'!$B$26:$B$153,0)) -> 0.007012136513 | H60: =INDEX('Rate peg calcs'!H$26:H$153,MATCH($B60,'Rate peg calcs'!$B$26:$B$153,0)) -> 0 | I60: =INDEX('Rate peg calcs'!N$26:N$153,MATCH($B60,'Rate peg calcs'!$B$26:$B$153,0)) -> 0 | J60: =INDEX('Rate peg calcs'!O$26:O$153,MATCH($B60,'Rate peg calcs'!$B$26:$B$153,0)) -> 0 | K60: 0.05 | L60: =INDEX('Rate peg calcs'!I$26:I$153,MATCH($B60,'Rate peg calcs'!$B$26:$B$153,0)) -> 0.000650000211 | M60: =INDEX('Rate peg calcs'!J$26:J$153,MATCH($B60,'Rate peg calcs'!$B$26:$B$153,0)) -> 0.006114203539 | N60: =INDEX('Rate peg calcs'!K$26:K$153,MATCH($B60,'Rate peg calcs'!$B$26:$B$153,0)) -> 0 | O60: =INDEX('Rate peg calcs'!L$26:L$153,MATCH($B60,'Rate peg calcs'!$B$26:$B$153,0)) -> -0.002378905525 | P60: =INDEX('Rate peg calcs'!M$26:M$153,MATCH($B60,'Rate peg calcs'!$B$26:$B$153,0)) -> 0 | Q60: =INDEX('Rate peg calcs'!P$26:P$153,MATCH($B60,'Rate peg calcs'!$B$26:$B$153,0)) -> 0.05 | S60: 0.007012136513
B61: ='Rate peg calcs'!B62 -> 2098 | C61: =INDEX('Rate peg calcs'!C$26:C$153,MATCH($B61,'Rate peg calcs'!$B$26:$B$153,0)) -> Regional | D61: =INDEX('Rate peg calcs'!D$26:D$153,MATCH($B61,'Rate peg calcs'!$B$26:$B$153,0)) -> Dubbo Regional | E61: =INDEX('Rate peg calcs'!E$26:E$153,MATCH($B61,'Rate peg calcs'!$B$26:$B$153,0)) -> 0.03872464517 | F61: =INDEX('Rate peg calcs'!F$26:F$153,MATCH($B61,'Rate peg calcs'!$B$26:$B$153,0)) -> 0.0037 | G61: =INDEX('Rate peg calcs'!G$26:G$153,MATCH($B61,'Rate peg calcs'!$B$26:$B$153,0)) -> 0.002638987442 | H61: =INDEX('Rate peg calcs'!H$26:H$153,MATCH($B61,'Rate peg calcs'!$B$26:$B$153,0)) -> 0 | I61: =INDEX('Rate peg calcs'!N$26:N$153,MATCH($B61,'Rate peg calcs'!$B$26:$B$153,0)) -> 0 | J61: =INDEX('Rate peg calcs'!O$26:O$153,MATCH($B61,'Rate peg calcs'!$B$26:$B$153,0)) -> 0 | K61: 0.045 | L61: =INDEX('Rate peg calcs'!I$26:I$153,MATCH($B61,'Rate peg calcs'!$B$26:$B$153,0)) -> 0.004449852882 | M61: =INDEX('Rate peg calcs'!J$26:J$153,MATCH($B61,'Rate peg calcs'!$B$26:$B$153,0)) -> 0.0123472313 | N61: =INDEX('Rate peg calcs'!K$26:K$153,MATCH($B61,'Rate peg calcs'!$B$26:$B$153,0)) -> 0 | O61: =INDEX('Rate peg calcs'!L$26:L$153,MATCH($B61,'Rate peg calcs'!$B$26:$B$153,0)) -> 0.005350631361 | P61: =INDEX('Rate peg calcs'!M$26:M$153,MATCH($B61,'Rate peg calcs'!$B$26:$B$153,0)) -> 0.005 | Q61: =INDEX('Rate peg calcs'!P$26:P$153,MATCH($B61,'Rate peg calcs'!$B$26:$B$153,0)) -> 0.05 | S61: 0.002638987442
B62: ='Rate peg calcs'!B63 -> 104 | C62: =INDEX('Rate peg calcs'!C$26:C$153,MATCH($B62,'Rate peg calcs'!$B$26:$B$153,0)) -> Rural | D62: =INDEX('Rate peg calcs'!D$26:D$153,MATCH($B62,'Rate peg calcs'!$B$26:$B$153,0)) -> Dungog | E62: =INDEX('Rate peg calcs'!E$26:E$153,MATCH($B62,'Rate peg calcs'!$B$26:$B$153,0)) -> 0.0388443815 | F62: =INDEX('Rate peg calcs'!F$26:F$153,MATCH($B62,'Rate peg calcs'!$B$26:$B$153,0)) -> 0.0036 | G62: =INDEX('Rate peg calcs'!G$26:G$153,MATCH($B62,'Rate peg calcs'!$B$26:$B$153,0)) -> -0.0004372680029 | H62: =INDEX('Rate peg calcs'!H$26:H$153,MATCH($B62,'Rate peg calcs'!$B$26:$B$153,0)) -> 0.00254982603 | I62: =INDEX('Rate peg calcs'!N$26:N$153,MATCH($B62,'Rate peg calcs'!$B$26:$B$153,0)) -> 0 | J62: =INDEX('Rate peg calcs'!O$26:O$153,MATCH($B62,'Rate peg calcs'!$B$26:$B$153,0)) -> 0 | K62: 0.045 | L62: =INDEX('Rate peg calcs'!I$26:I$153,MATCH($B62,'Rate peg calcs'!$B$26:$B$153,0)) -> 0.01910761155 | M62: =INDEX('Rate peg calcs'!J$26:J$153,MATCH($B62,'Rate peg calcs'!$B$26:$B$153,0)) -> 0.003451148399 | N62: =INDEX('Rate peg calcs'!K$26:K$153,MATCH($B62,'Rate peg calcs'!$B$26:$B$153,0)) -> 0.01565646315 | O62: =INDEX('Rate peg calcs'!L$26:L$153,MATCH($B62,'Rate peg calcs'!$B$26:$B$153,0)) -> -0.01556711821 | P62: =INDEX('Rate peg calcs'!M$26:M$153,MATCH($B62,'Rate peg calcs'!$B$26:$B$153,0)) -> 0 | Q62: =INDEX('Rate peg calcs'!P$26:P$153,MATCH($B62,'Rate peg calcs'!$B$26:$B$153,0)) -> 0.045 | S62: 0.002112558027
B63: ='Rate peg calcs'!B64 -> 2091 | C63: =INDEX('Rate peg calcs'!C$26:C$153,MATCH($B63,'Rate peg calcs'!$B$26:$B$153,0)) -> Rural | D63: =INDEX('Rate peg calcs'!D$26:D$153,MATCH($B63,'Rate peg calcs'!$B$26:$B$153,0)) -> Edward River | E63: =INDEX('Rate peg calcs'!E$26:E$153,MATCH($B63,'Rate peg calcs'!$B$26:$B$153,0)) -> 0.0388443815 | F63: =INDEX('Rate peg calcs'!F$26:F$153,MATCH($B63,'Rate peg calcs'!$B$26:$B$153,0)) -> 0.0036 | G63: =INDEX('Rate peg calcs'!G$26:G$153,MATCH($B63,'Rate peg calcs'!$B$26:$B$153,0)) -> 0.001117784926 | H63: =INDEX('Rate peg calcs'!H$26:H$153,MATCH($B63,'Rate peg calcs'!$B$26:$B$153,0)) -> 0.0009812485143 | I63: =INDEX('Rate peg calcs'!N$26:N$153,MATCH($B63,'Rate peg calcs'!$B$26:$B$153,0)) -> 0 | J63: =INDEX('Rate peg calcs'!O$26:O$153,MATCH($B63,'Rate peg calcs'!$B$26:$B$153,0)) -> 0 | K63: 0.045 | L63: =INDEX('Rate peg calcs'!I$26:I$153,MATCH($B63,'Rate peg calcs'!$B$26:$B$153,0)) -> 0.002014934218 | M63: =INDEX('Rate peg calcs'!J$26:J$153,MATCH($B63,'Rate peg calcs'!$B$26:$B$153,0)) -> 0.0009010168619 | N63: =INDEX('Rate peg calcs'!K$26:K$153,MATCH($B63,'Rate peg calcs'!$B$26:$B$153,0)) -> 0.001113917356 | O63: =INDEX('Rate peg calcs'!L$26:L$153,MATCH($B63,'Rate peg calcs'!$B$26:$B$153,0)) -> -0.007337674733 | P63: =INDEX('Rate peg calcs'!M$26:M$153,MATCH($B63,'Rate peg calcs'!$B$26:$B$153,0)) -> 0 | Q63: =INDEX('Rate peg calcs'!P$26:P$153,MATCH($B63,'Rate peg calcs'!$B$26:$B$153,0)) -> 0.045 | S63: 0.00209903344
B64: ='Rate peg calcs'!B65 -> 105 | C64: =INDEX('Rate peg calcs'!C$26:C$153,MATCH($B64,'Rate peg calcs'!$B$26:$B$153,0)) -> Regional | D64: =INDEX('Rate peg calcs'!D$26:D$153,MATCH($B64,'Rate peg calcs'!$B$26:$B$153,0)) -> Eurobodalla | E64: =INDEX('Rate peg calcs'!E$26:E$153,MATCH($B64,'Rate peg calcs'!$B$26:$B$153,0)) -> 0.03872464517 | F64: =INDEX('Rate peg calcs'!F$26:F$153,MATCH($B64,'Rate peg calcs'!$B$26:$B$153,0)) -> 0.0037 | G64: =INDEX('Rate peg calcs'!G$26:G$153,MATCH($B64,'Rate peg calcs'!$B$26:$B$153,0)) -> 0.002770541162 | H64: =INDEX('Rate peg calcs'!H$26:H$153,MATCH($B64,'Rate peg calcs'!$B$26:$B$153,0)) -> 0 | I64: =INDEX('Rate peg calcs'!N$26:N$153,MATCH($B64,'Rate peg calcs'!$B$26:$B$153,0)) -> 0 | J64: =INDEX('Rate peg calcs'!O$26:O$153,MATCH($B64,'Rate peg calcs'!$B$26:$B$153,0)) -> 0 | K64: 0.045 | L64: =INDEX('Rate peg calcs'!I$26:I$153,MATCH($B64,'Rate peg calcs'!$B$26:$B$153,0)) -> 0.00689689269 | M64: =INDEX('Rate peg calcs'!J$26:J$153,MATCH($B64,'Rate peg calcs'!$B$26:$B$153,0)) -> 0.004523633678 | N64: =INDEX('Rate peg calcs'!K$26:K$153,MATCH($B64,'Rate peg calcs'!$B$26:$B$153,0)) -> 0.002373259012 | O64: =INDEX('Rate peg calcs'!L$26:L$153,MATCH($B64,'Rate peg calcs'!$B$26:$B$153,0)) -> 0.008013874078 | P64: =INDEX('Rate peg calcs'!M$26:M$153,MATCH($B64,'Rate peg calcs'!$B$26:$B$153,0)) -> 0.01 | Q64: =INDEX('Rate peg calcs'!P$26:P$153,MATCH($B64,'Rate peg calcs'!$B$26:$B$153,0)) -> 0.055 | S64: 0.002770541162
B65: ='Rate peg calcs'!B66 -> 107 | C65: =INDEX('Rate peg calcs'!C$26:C$153,MATCH($B65,'Rate peg calcs'!$B$26:$B$153,0)) -> Metropolitan | D65: =INDEX('Rate peg calcs'!D$26:D$153,MATCH($B65,'Rate peg calcs'!$B$26:$B$153,0)) -> Fairfield | E65: =INDEX('Rate peg calcs'!E$26:E$153,MATCH($B65,'Rate peg calcs'!$B$26:$B$153,0)) -> 0.03882841796 | F65: =INDEX('Rate peg calcs'!F$26:F$153,MATCH($B65,'Rate peg calcs'!$B$26:$B$153,0)) -> 0.0041 | G65: =INDEX('Rate peg calcs'!G$26:G$153,MATCH($B65,'Rate peg calcs'!$B$26:$B$153,0)) -> 0.006116196445 | H65: =INDEX('Rate peg calcs'!H$26:H$153,MATCH($B65,'Rate peg calcs'!$B$26:$B$153,0)) -> 0 | I65: =INDEX('Rate peg calcs'!N$26:N$153,MATCH($B65,'Rate peg calcs'!$B$26:$B$153,0)) -> 0 | J65: =INDEX('Rate peg calcs'!O$26:O$153,MATCH($B65,'Rate peg calcs'!$B$26:$B$153,0)) -> 0 | K65: 0.049 | L65: =INDEX('Rate peg calcs'!I$26:I$153,MATCH($B65,'Rate peg calcs'!$B$26:$B$153,0)) -> 0 | M65: =INDEX('Rate peg calcs'!J$26:J$153,MATCH($B65,'Rate peg calcs'!$B$26:$B$153,0)) -> 0.001001981697 | N65: =INDEX('Rate peg calcs'!K$26:K$153,MATCH($B65,'Rate peg calcs'!$B$26:$B$153,0)) -> 0 | O65: =INDEX('Rate peg calcs'!L$26:L$153,MATCH($B65,'Rate peg calcs'!$B$26:$B$153,0)) -> 0 | P65: =INDEX('Rate peg calcs'!M$26:M$153,MATCH($B65,'Rate peg calcs'!$B$26:$B$153,0)) -> 0 | Q65: =INDEX('Rate peg calcs'!P$26:P$153,MATCH($B65,'Rate peg calcs'!$B$26:$B$153,0)) -> 0.049 | S65: 0.006116196445
B66: ='Rate peg calcs'!B67 -> 2092 | C66: =INDEX('Rate peg calcs'!C$26:C$153,MATCH($B66,'Rate peg calcs'!$B$26:$B$153,0)) -> Rural | D66: =INDEX('Rate peg calcs'!D$26:D$153,MATCH($B66,'Rate peg calcs'!$B$26:$B$153,0)) -> Federation | E66: =INDEX('Rate peg calcs'!E$26:E$153,MATCH($B66,'Rate peg calcs'!$B$26:$B$153,0)) -> 0.0388443815 | F66: =INDEX('Rate peg calcs'!F$26:F$153,MATCH($B66,'Rate peg calcs'!$B$26:$B$153,0)) -> 0.0036 | G66: =INDEX('Rate peg calcs'!G$26:G$153,MATCH($B66,'Rate peg calcs'!$B$26:$B$153,0)) -> 0.0009383532659 | H66: =INDEX('Rate peg calcs'!H$26:H$153,MATCH($B66,'Rate peg calcs'!$B$26:$B$153,0)) -> 0.001139082456 | I66: =INDEX('Rate peg calcs'!N$26:N$153,MATCH($B66,'Rate peg calcs'!$B$26:$B$153,0)) -> 0 | J66: =INDEX('Rate peg calcs'!O$26:O$153,MATCH($B66,'Rate peg calcs'!$B$26:$B$153,0)) -> 0 | K66: 0.045 | L66: =INDEX('Rate peg calcs'!I$26:I$153,MATCH($B66,'Rate peg calcs'!$B$26:$B$153,0)) -> 0.002417908119 | M66: =INDEX('Rate peg calcs'!J$26:J$153,MATCH($B66,'Rate peg calcs'!$B$26:$B$153,0)) -> 0.007596067918 | N66: =INDEX('Rate peg calcs'!K$26:K$153,MATCH($B66,'Rate peg calcs'!$B$26:$B$153,0)) -> 0 | O66: =INDEX('Rate peg calcs'!L$26:L$153,MATCH($B66,'Rate peg calcs'!$B$26:$B$153,0)) -> -0.007198911717 | P66: =INDEX('Rate peg calcs'!M$26:M$153,MATCH($B66,'Rate peg calcs'!$B$26:$B$153,0)) -> 0 | Q66: =INDEX('Rate peg calcs'!P$26:P$153,MATCH($B66,'Rate peg calcs'!$B$26:$B$153,0)) -> 0.045 | S66: 0.002077435722
B67: ='Rate peg calcs'!B68 -> 108 | C67: =INDEX('Rate peg calcs'!C$26:C$153,MATCH($B67,'Rate peg calcs'!$B$26:$B$153,0)) -> Rural | D67: =INDEX('Rate peg calcs'!D$26:D$153,MATCH($B67,'Rate peg calcs'!$B$26:$B$153,0)) -> Forbes | E67: =INDEX('Rate peg calcs'!E$26:E$153,MATCH($B67,'Rate peg calcs'!$B$26:$B$153,0)) -> 0.0388443815 | F67: =INDEX('Rate peg calcs'!F$26:F$153,MATCH($B67,'Rate peg calcs'!$B$26:$B$153,0)) -> 0.0036 | G67: =INDEX('Rate peg calcs'!G$26:G$153,MATCH($B67,'Rate peg calcs'!$B$26:$B$153,0)) -> 0.0002972212856 | H67: =INDEX('Rate peg calcs'!H$26:H$153,MATCH($B67,'Rate peg calcs'!$B$26:$B$153,0)) -> 0.00181493876 | I67: =INDEX('Rate peg calcs'!N$26:N$153,MATCH($B67,'Rate peg calcs'!$B$26:$B$153,0)) -> 0 | J67: =INDEX('Rate peg calcs'!O$26:O$153,MATCH($B67,'Rate peg calcs'!$B$26:$B$153,0)) -> 0 | K67: 0.045 | L67: =INDEX('Rate peg calcs'!I$26:I$153,MATCH($B67,'Rate peg calcs'!$B$26:$B$153,0)) -> 0 | M67: =INDEX('Rate peg calcs'!J$26:J$153,MATCH($B67,'Rate peg calcs'!$B$26:$B$153,0)) -> 0.0005001875703 | N67: =INDEX('Rate peg calcs'!K$26:K$153,MATCH($B67,'Rate peg calcs'!$B$26:$B$153,0)) -> 0 | O67: =INDEX('Rate peg calcs'!L$26:L$153,MATCH($B67,'Rate peg calcs'!$B$26:$B$153,0)) -> -0.0007982534562 | P67: =INDEX('Rate peg calcs'!M$26:M$153,MATCH($B67,'Rate peg calcs'!$B$26:$B$153,0)) -> 0 | Q67: =INDEX('Rate peg calcs'!P$26:P$153,MATCH($B67,'Rate peg calcs'!$B$26:$B$153,0)) -> 0.045 | S67: 0.002112160046
B68: ='Rate peg calcs'!B69 -> 2093 | C68: =INDEX('Rate peg calcs'!C$26:C$153,MATCH($B68,'Rate peg calcs'!$B$26:$B$153,0)) -> Metropolitan | D68: =INDEX('Rate peg calcs'!D$26:D$153,MATCH($B68,'Rate peg calcs'!$B$26:$B$153,0)) -> Georges River | E68: =INDEX('Rate peg calcs'!E$26:E$153,MATCH($B68,'Rate peg calcs'!$B$26:$B$153,0)) -> 0.03882841796 | F68: =INDEX('Rate peg calcs'!F$26:F$153,MATCH($B68,'Rate peg calcs'!$B$26:$B$153,0)) -> 0.0041 | G68: =INDEX('Rate peg calcs'!G$26:G$153,MATCH($B68,'Rate peg calcs'!$B$26:$B$153,0)) -> 0.005409233032 | H68: =INDEX('Rate peg calcs'!H$26:H$153,MATCH($B68,'Rate peg calcs'!$B$26:$B$153,0)) -> 0 | I68: =INDEX('Rate peg calcs'!N$26:N$153,MATCH($B68,'Rate peg calcs'!$B$26:$B$153,0)) -> 0 | J68: =INDEX('Rate peg calcs'!O$26:O$153,MATCH($B68,'Rate peg calcs'!$B$26:$B$153,0)) -> 0 | K68: 0.048 | L68: =INDEX('Rate peg calcs'!I$26:I$153,MATCH($B68,'Rate peg calcs'!$B$26:$B$153,0)) -> 0.002305128256 | M68: =INDEX('Rate peg calcs'!J$26:J$153,MATCH($B68,'Rate peg calcs'!$B$26:$B$153,0)) -> 0.00979931539 | N68: =INDEX('Rate peg calcs'!K$26:K$153,MATCH($B68,'Rate peg calcs'!$B$26:$B$153,0)) -> 0 | O68: =INDEX('Rate peg calcs'!L$26:L$153,MATCH($B68,'Rate peg calcs'!$B$26:$B$153,0)) -> 0 | P68: =INDEX('Rate peg calcs'!M$26:M$153,MATCH($B68,'Rate peg calcs'!$B$26:$B$153,0)) -> 0 | Q68: =INDEX('Rate peg calcs'!P$26:P$153,MATCH($B68,'Rate peg calcs'!$B$26:$B$153,0)) -> 0.048 | S68: 0.005409233032
B69: ='Rate peg calcs'!B70 -> 109 | C69: =INDEX('Rate peg calcs'!C$26:C$153,MATCH($B69,'Rate peg calcs'!$B$26:$B$153,0)) -> Rural | D69: =INDEX('Rate peg calcs'!D$26:D$153,MATCH($B69,'Rate peg calcs'!$B$26:$B$153,0)) -> Gilgandra | E69: =INDEX('Rate peg calcs'!E$26:E$153,MATCH($B69,'Rate peg calcs'!$B$26:$B$153,0)) -> 0.0388443815 | F69: =INDEX('Rate peg calcs'!F$26:F$153,MATCH($B69,'Rate peg calcs'!$B$26:$B$153,0)) -> 0.0036 | G69: =INDEX('Rate peg calcs'!G$26:G$153,MATCH($B69,'Rate peg calcs'!$B$26:$B$153,0)) -> -0.0003716460255 | H69: =INDEX('Rate peg calcs'!H$26:H$153,MATCH($B69,'Rate peg calcs'!$B$26:$B$153,0)) -> 0.002443584114 | I69: =INDEX('Rate peg calcs'!N$26:N$153,MATCH($B69,'Rate peg calcs'!$B$26:$B$153,0)) -> 0 | J69: =INDEX('Rate peg calcs'!O$26:O$153,MATCH($B69,'Rate peg calcs'!$B$26:$B$153,0)) -> 0 | K69: 0.045 | L69: =INDEX('Rate peg calcs'!I$26:I$153,MATCH($B69,'Rate peg calcs'!$B$26:$B$153,0)) -> 0 | M69: =INDEX('Rate peg calcs'!J$26:J$153,MATCH($B69,'Rate peg calcs'!$B$26:$B$153,0)) -> 0 | N69: =INDEX('Rate peg calcs'!K$26:K$153,MATCH($B69,'Rate peg calcs'!$B$26:$B$153,0)) -> 0 | O69: =INDEX('Rate peg calcs'!L$26:L$153,MATCH($B69,'Rate peg calcs'!$B$26:$B$153,0)) -> 0.0001038659575 | P69: =INDEX('Rate peg calcs'!M$26:M$153,MATCH($B69,'Rate peg calcs'!$B$26:$B$153,0)) -> 0 | Q69: =INDEX('Rate peg calcs'!P$26:P$153,MATCH($B69,'Rate peg calcs'!$B$26:$B$153,0)) -> 0.045 | S69: 0.002071938088
B70: ='Rate peg calcs'!B71 -> 2053 | C70: =INDEX('Rate peg calcs'!C$26:C$153,MATCH($B70,'Rate peg calcs'!$B$26:$B$153,0)) -> Rural | D70: =INDEX('Rate peg calcs'!D$26:D$153,MATCH($B70,'Rate peg calcs'!$B$26:$B$153,0)) -> Glen Innes Severn | E70: =INDEX('Rate peg calcs'!E$26:E$153,MATCH($B70,'Rate peg calcs'!$B$26:$B$153,0)) -> 0.0388443815 | F70: =INDEX('Rate peg calcs'!F$26:F$153,MATCH($B70,'Rate peg calcs'!$B$26:$B$153,0)) -> 0.0036 | G70: =INDEX('Rate peg calcs'!G$26:G$153,MATCH($B70,'Rate peg calcs'!$B$26:$B$153,0)) -> -0.001476448284 | H70: =INDEX('Rate peg calcs'!H$26:H$153,MATCH($B70,'Rate peg calcs'!$B$26:$B$153,0)) -> 0.003615552151 | I70: =INDEX('Rate peg calcs'!N$26:N$153,MATCH($B70,'Rate peg calcs'!$B$26:$B$153,0)) -> 0 | J70: =INDEX('Rate peg calcs'!O$26:O$153,MATCH($B70,'Rate peg calcs'!$B$26:$B$153,0)) -> 0 | K70: 0.045 | L70: =INDEX('Rate peg calcs'!I$26:I$153,MATCH($B70,'Rate peg calcs'!$B$26:$B$153,0)) -> 0.004543905487 | M70: =INDEX('Rate peg calcs'!J$26:J$153,MATCH($B70,'Rate peg calcs'!$B$26:$B$153,0)) -> 0.001498229365 | N70: =INDEX('Rate peg calcs'!K$26:K$153,MATCH($B70,'Rate peg calcs'!$B$26:$B$153,0)) -> 0.003045676121 | O70: =INDEX('Rate peg calcs'!L$26:L$153,MATCH($B70,'Rate peg calcs'!$B$26:$B$153,0)) -> 0 | P70: =INDEX('Rate peg calcs'!M$26:M$153,MATCH($B70,'Rate peg calcs'!$B$26:$B$153,0)) -> 0.003 | Q70: =INDEX('Rate peg calcs'!P$26:P$153,MATCH($B70,'Rate peg calcs'!$B$26:$B$153,0)) -> 0.048 | S70: 0.002139103867
B71: ='Rate peg calcs'!B72 -> 2032 | C71: =INDEX('Rate peg calcs'!C$26:C$153,MATCH($B71,'Rate peg calcs'!$B$26:$B$153,0)) -> Regional | D71: =INDEX('Rate peg calcs'!D$26:D$153,MATCH($B71,'Rate peg calcs'!$B$26:$B$153,0)) -> Goulburn Mulwaree | E71: =INDEX('Rate peg calcs'!E$26:E$153,MATCH($B71,'Rate peg calcs'!$B$26:$B$153,0)) -> 0.03872464517 | F71: =INDEX('Rate peg calcs'!F$26:F$153,MATCH($B71,'Rate peg calcs'!$B$26:$B$153,0)) -> 0.0037 | G71: =INDEX('Rate peg calcs'!G$26:G$153,MATCH($B71,'Rate peg calcs'!$B$26:$B$153,0)) -> 0.002371899442 | H71: =INDEX('Rate peg calcs'!H$26:H$153,MATCH($B71,'Rate peg calcs'!$B$26:$B$153,0)) -> 0 | I71: =INDEX('Rate peg calcs'!N$26:N$153,MATCH($B71,'Rate peg calcs'!$B$26:$B$153,0)) -> 0 | J71: =INDEX('Rate peg calcs'!O$26:O$153,MATCH($B71,'Rate peg calcs'!$B$26:$B$153,0)) -> 0 | K71: 0.045 | L71: =INDEX('Rate peg calcs'!I$26:I$153,MATCH($B71,'Rate peg calcs'!$B$26:$B$153,0)) -> 0.008080042925 | M71: =INDEX('Rate peg calcs'!J$26:J$153,MATCH($B71,'Rate peg calcs'!$B$26:$B$153,0)) -> 0.008629648037 | N71: =INDEX('Rate peg calcs'!K$26:K$153,MATCH($B71,'Rate peg calcs'!$B$26:$B$153,0)) -> 0 | O71: =INDEX('Rate peg calcs'!L$26:L$153,MATCH($B71,'Rate peg calcs'!$B$26:$B$153,0)) -> -4.201921372e-05 | P71: =INDEX('Rate peg calcs'!M$26:M$153,MATCH($B71,'Rate peg calcs'!$B$26:$B$153,0)) -> 0 | Q71: =INDEX('Rate peg calcs'!P$26:P$153,MATCH($B71,'Rate peg calcs'!$B$26:$B$153,0)) -> 0.045 | S71: 0.002371899442
B72: ='Rate peg calcs'!B73 -> 2049 | C72: =INDEX('Rate peg calcs'!C$26:C$153,MATCH($B72,'Rate peg calcs'!$B$26:$B$153,0)) -> Rural | D72: =INDEX('Rate peg calcs'!D$26:D$153,MATCH($B72,'Rate peg calcs'!$B$26:$B$153,0)) -> Greater Hume | E72: =INDEX('Rate peg calcs'!E$26:E$153,MATCH($B72,'Rate peg calcs'!$B$26:$B$153,0)) -> 0.0388443815 | F72: =INDEX('Rate peg calcs'!F$26:F$153,MATCH($B72,'Rate peg calcs'!$B$26:$B$153,0)) -> 0.0036 | G72: =INDEX('Rate peg calcs'!G$26:G$153,MATCH($B72,'Rate peg calcs'!$B$26:$B$153,0)) -> -0.0002185889658 | H72: =INDEX('Rate peg calcs'!H$26:H$153,MATCH($B72,'Rate peg calcs'!$B$26:$B$153,0)) -> 0.002356199108 | I72: =INDEX('Rate peg calcs'!N$26:N$153,MATCH($B72,'Rate peg calcs'!$B$26:$B$153,0)) -> 0 | J72: =INDEX('Rate peg calcs'!O$26:O$153,MATCH($B72,'Rate peg calcs'!$B$26:$B$153,0)) -> 0 | K72: 0.045 | L72: =INDEX('Rate peg calcs'!I$26:I$153,MATCH($B72,'Rate peg calcs'!$B$26:$B$153,0)) -> 0.01197658712 | M72: =INDEX('Rate peg calcs'!J$26:J$153,MATCH($B72,'Rate peg calcs'!$B$26:$B$153,0)) -> 0.01035375324 | N72: =INDEX('Rate peg calcs'!K$26:K$153,MATCH($B72,'Rate peg calcs'!$B$26:$B$153,0)) -> 0.001622833887 | O72: =INDEX('Rate peg calcs'!L$26:L$153,MATCH($B72,'Rate peg calcs'!$B$26:$B$153,0)) -> 0.005195093717 | P72: =INDEX('Rate peg calcs'!M$26:M$153,MATCH($B72,'Rate peg calcs'!$B$26:$B$153,0)) -> 0.007 | Q72: =INDEX('Rate peg calcs'!P$26:P$153,MATCH($B72,'Rate peg calcs'!$B$26:$B$153,0)) -> 0.052 | S72: 0.002137610143
B73: ='Rate peg calcs'!B74 -> 118 | C73: =INDEX('Rate peg calcs'!C$26:C$153,MATCH($B73,'Rate peg calcs'!$B$26:$B$153,0)) -> Regional | D73: =INDEX('Rate peg calcs'!D$26:D$153,MATCH($B73,'Rate peg calcs'!$B$26:$B$153,0)) -> Griffith | E73: =INDEX('Rate peg calcs'!E$26:E$153,MATCH($B73,'Rate peg calcs'!$B$26:$B$153,0)) -> 0.03872464517 | F73: =INDEX('Rate peg calcs'!F$26:F$153,MATCH($B73,'Rate peg calcs'!$B$26:$B$153,0)) -> 0.0037 | G73: =INDEX('Rate peg calcs'!G$26:G$153,MATCH($B73,'Rate peg calcs'!$B$26:$B$153,0)) -> 0.001433024634 | H73: =INDEX('Rate peg calcs'!H$26:H$153,MATCH($B73,'Rate peg calcs'!$B$26:$B$153,0)) -> 0.0006763960223 | I73: =INDEX('Rate peg calcs'!N$26:N$153,MATCH($B73,'Rate peg calcs'!$B$26:$B$153,0)) -> 0 | J73: =INDEX('Rate peg calcs'!O$26:O$153,MATCH($B73,'Rate peg calcs'!$B$26:$B$153,0)) -> 0 | K73: 0.045 | L73: =INDEX('Rate peg calcs'!I$26:I$153,MATCH($B73,'Rate peg calcs'!$B$26:$B$153,0)) -> 0 | M73: =INDEX('Rate peg calcs'!J$26:J$153,MATCH($B73,'Rate peg calcs'!$B$26:$B$153,0)) -> 0.008212770586 | N73: =INDEX('Rate peg calcs'!K$26:K$153,MATCH($B73,'Rate peg calcs'!$B$26:$B$153,0)) -> 0 | O73: =INDEX('Rate peg calcs'!L$26:L$153,MATCH($B73,'Rate peg calcs'!$B$26:$B$153,0)) -> 0 | P73: =INDEX('Rate peg calcs'!M$26:M$153,MATCH($B73,'Rate peg calcs'!$B$26:$B$153,0)) -> 0 | Q73: =INDEX('Rate peg calcs'!P$26:P$153,MATCH($B73,'Rate peg calcs'!$B$26:$B$153,0)) -> 0.045 | S73: 0.002109420656
B74: ='Rate peg calcs'!B75 -> 120 | C74: =INDEX('Rate peg calcs'!C$26:C$153,MATCH($B74,'Rate peg calcs'!$B$26:$B$153,0)) -> Rural | D74: =INDEX('Rate peg calcs'!D$26:D$153,MATCH($B74,'Rate peg calcs'!$B$26:$B$153,0)) -> Gunnedah | E74: =INDEX('Rate peg calcs'!E$26:E$153,MATCH($B74,'Rate peg calcs'!$B$26:$B$153,0)) -> 0.0388443815 | F74: =INDEX('Rate peg calcs'!F$26:F$153,MATCH($B74,'Rate peg calcs'!$B$26:$B$153,0)) -> 0.0036 | G74: =INDEX('Rate peg calcs'!G$26:G$153,MATCH($B74,'Rate peg calcs'!$B$26:$B$153,0)) -> 0.0008310030359 | H74: =INDEX('Rate peg calcs'!H$26:H$153,MATCH($B74,'Rate peg calcs'!$B$26:$B$153,0)) -> 0.001242353853 | I74: =INDEX('Rate peg calcs'!N$26:N$153,MATCH($B74,'Rate peg calcs'!$B$26:$B$153,0)) -> 0 | J74: =INDEX('Rate peg calcs'!O$26:O$153,MATCH($B74,'Rate peg calcs'!$B$26:$B$153,0)) -> 0 | K74: 0.045 | L74: =INDEX('Rate peg calcs'!I$26:I$153,MATCH($B74,'Rate peg calcs'!$B$26:$B$153,0)) -> 0.003056935422 | M74: =INDEX('Rate peg calcs'!J$26:J$153,MATCH($B74,'Rate peg calcs'!$B$26:$B$153,0)) -> 0.02217262976 | N74: =INDEX('Rate peg calcs'!K$26:K$153,MATCH($B74,'Rate peg calcs'!$B$26:$B$153,0)) -> 0 | O74: =INDEX('Rate peg calcs'!L$26:L$153,MATCH($B74,'Rate peg calcs'!$B$26:$B$153,0)) -> 0.01141471298 | P74: =INDEX('Rate peg calcs'!M$26:M$153,MATCH($B74,'Rate peg calcs'!$B$26:$B$153,0)) -> 0.011 | Q74: =INDEX('Rate peg calcs'!P$26:P$153,MATCH($B74,'Rate peg calcs'!$B$26:$B$153,0)) -> 0.056 | S74: 0.002073356889
B75: ='Rate peg calcs'!B76 -> 2039 | C75: =INDEX('Rate peg calcs'!C$26:C$153,MATCH($B75,'Rate peg calcs'!$B$26:$B$153,0)) -> Rural | D75: =INDEX('Rate peg calcs'!D$26:D$153,MATCH($B75,'Rate peg calcs'!$B$26:$B$153,0)) -> Gwydir | E75: =INDEX('Rate peg calcs'!E$26:E$153,MATCH($B75,'Rate peg calcs'!$B$26:$B$153,0)) -> 0.0388443815 | F75: =INDEX('Rate peg calcs'!F$26:F$153,MATCH($B75,'Rate peg calcs'!$B$26:$B$153,0)) -> 0.0036 | G75: =INDEX('Rate peg calcs'!G$26:G$153,MATCH($B75,'Rate peg calcs'!$B$26:$B$153,0)) -> -0.000646022815 | H75: =INDEX('Rate peg calcs'!H$26:H$153,MATCH($B75,'Rate peg calcs'!$B$26:$B$153,0)) -> 0.002739060759 | I75: =INDEX('Rate peg calcs'!N$26:N$153,MATCH($B75,'Rate peg calcs'!$B$26:$B$153,0)) -> 0 | J75: =INDEX('Rate peg calcs'!O$26:O$153,MATCH($B75,'Rate peg calcs'!$B$26:$B$153,0)) -> 0 | K75: 0.045 | L75: =INDEX('Rate peg calcs'!I$26:I$153,MATCH($B75,'Rate peg calcs'!$B$26:$B$153,0)) -> 0.0008144980656 | M75: =INDEX('Rate peg calcs'!J$26:J$153,MATCH($B75,'Rate peg calcs'!$B$26:$B$153,0)) -> 0.0004756242568 | N75: =INDEX('Rate peg calcs'!K$26:K$153,MATCH($B75,'Rate peg calcs'!$B$26:$B$153,0)) -> 0.0003388738087 | O75: =INDEX('Rate peg calcs'!L$26:L$153,MATCH($B75,'Rate peg calcs'!$B$26:$B$153,0)) -> -0.003557929056 | P75: =INDEX('Rate peg calcs'!M$26:M$153,MATCH($B75,'Rate peg calcs'!$B$26:$B$153,0)) -> 0 | Q75: =INDEX('Rate peg calcs'!P$26:P$153,MATCH($B75,'Rate peg calcs'!$B$26:$B$153,0)) -> 0.045 | S75: 0.002093037944
B76: ='Rate peg calcs'!B77 -> 125 | C76: =INDEX('Rate peg calcs'!C$26:C$153,MATCH($B76,'Rate peg calcs'!$B$26:$B$153,0)) -> Metropolitan | D76: =INDEX('Rate peg calcs'!D$26:D$153,MATCH($B76,'Rate peg calcs'!$B$26:$B$153,0)) -> Hawkesbury | E76: =INDEX('Rate peg calcs'!E$26:E$153,MATCH($B76,'Rate peg calcs'!$B$26:$B$153,0)) -> 0.03882841796 | F76: =INDEX('Rate peg calcs'!F$26:F$153,MATCH($B76,'Rate peg calcs'!$B$26:$B$153,0)) -> 0.0041 | G76: =INDEX('Rate peg calcs'!G$26:G$153,MATCH($B76,'Rate peg calcs'!$B$26:$B$153,0)) -> 0.001859654055 | H76: =INDEX('Rate peg calcs'!H$26:H$153,MATCH($B76,'Rate peg calcs'!$B$26:$B$153,0)) -> 0 | I76: =INDEX('Rate peg calcs'!N$26:N$153,MATCH($B76,'Rate peg calcs'!$B$26:$B$153,0)) -> 0 | J76: =INDEX('Rate peg calcs'!O$26:O$153,MATCH($B76,'Rate peg calcs'!$B$26:$B$153,0)) -> 0 | K76: 0.045 | L76: =INDEX('Rate peg calcs'!I$26:I$153,MATCH($B76,'Rate peg calcs'!$B$26:$B$153,0)) -> 0.003462511653 | M76: =INDEX('Rate peg calcs'!J$26:J$153,MATCH($B76,'Rate peg calcs'!$B$26:$B$153,0)) -> 0.004504712622 | N76: =INDEX('Rate peg calcs'!K$26:K$153,MATCH($B76,'Rate peg calcs'!$B$26:$B$153,0)) -> 0 | O76: =INDEX('Rate peg calcs'!L$26:L$153,MATCH($B76,'Rate peg calcs'!$B$26:$B$153,0)) -> -0.001378029363 | P76: =INDEX('Rate peg calcs'!M$26:M$153,MATCH($B76,'Rate peg calcs'!$B$26:$B$153,0)) -> 0 | Q76: =INDEX('Rate peg calcs'!P$26:P$153,MATCH($B76,'Rate peg calcs'!$B$26:$B$153,0)) -> 0.045 | S76: 0.001859654055
B77: ='Rate peg calcs'!B78 -> 126 | C77: =INDEX('Rate peg calcs'!C$26:C$153,MATCH($B77,'Rate peg calcs'!$B$26:$B$153,0)) -> Rural | D77: =INDEX('Rate peg calcs'!D$26:D$153,MATCH($B77,'Rate peg calcs'!$B$26:$B$153,0)) -> Hay | E77: =INDEX('Rate peg calcs'!E$26:E$153,MATCH($B77,'Rate peg calcs'!$B$26:$B$153,0)) -> 0.0388443815 | F77: =INDEX('Rate peg calcs'!F$26:F$153,MATCH($B77,'Rate peg calcs'!$B$26:$B$153,0)) -> 0.0036 | G77: =INDEX('Rate peg calcs'!G$26:G$153,MATCH($B77,'Rate peg calcs'!$B$26:$B$153,0)) -> -4.609244525e-05 | H77: =INDEX('Rate peg calcs'!H$26:H$153,MATCH($B77,'Rate peg calcs'!$B$26:$B$153,0)) -> 0.002183077141 | I77: =INDEX('Rate peg calcs'!N$26:N$153,MATCH($B77,'Rate peg calcs'!$B$26:$B$153,0)) -> 0 | J77: =INDEX('Rate peg calcs'!O$26:O$153,MATCH($B77,'Rate peg calcs'!$B$26:$B$153,0)) -> 0 | K77: 0.045 | L77: =INDEX('Rate peg calcs'!I$26:I$153,MATCH($B77,'Rate peg calcs'!$B$26:$B$153,0)) -> 0 | M77: =INDEX('Rate peg calcs'!J$26:J$153,MATCH($B77,'Rate peg calcs'!$B$26:$B$153,0)) -> 0.0003895597974 | N77: =INDEX('Rate peg calcs'!K$26:K$153,MATCH($B77,'Rate peg calcs'!$B$26:$B$153,0)) -> 0 | O77: =INDEX('Rate peg calcs'!L$26:L$153,MATCH($B77,'Rate peg calcs'!$B$26:$B$153,0)) -> 0 | P77: =INDEX('Rate peg calcs'!M$26:M$153,MATCH($B77,'Rate peg calcs'!$B$26:$B$153,0)) -> 0 | Q77: =INDEX('Rate peg calcs'!P$26:P$153,MATCH($B77,'Rate peg calcs'!$B$26:$B$153,0)) -> 0.045 | S77: 0.002136984696
B78: ='Rate peg calcs'!B79 -> 2081 | C78: =INDEX('Rate peg calcs'!C$26:C$153,MATCH($B78,'Rate peg calcs'!$B$26:$B$153,0)) -> Rural | D78: =INDEX('Rate peg calcs'!D$26:D$153,MATCH($B78,'Rate peg calcs'!$B$26:$B$153,0)) -> Hilltops | E78: =INDEX('Rate peg calcs'!E$26:E$153,MATCH($B78,'Rate peg calcs'!$B$26:$B$153,0)) -> 0.0388443815 | F78: =INDEX('Rate peg calcs'!F$26:F$153,MATCH($B78,'Rate peg calcs'!$B$26:$B$153,0)) -> 0.0036 | G78: =INDEX('Rate peg calcs'!G$26:G$153,MATCH($B78,'Rate peg calcs'!$B$26:$B$153,0)) -> 9.468135744e-05 | H78: =INDEX('Rate peg calcs'!H$26:H$153,MATCH($B78,'Rate peg calcs'!$B$26:$B$153,0)) -> 0.002040363056 | I78: =INDEX('Rate peg calcs'!N$26:N$153,MATCH($B78,'Rate peg calcs'!$B$26:$B$153,0)) -> 0 | J78: =INDEX('Rate peg calcs'!O$26:O$153,MATCH($B78,'Rate peg calcs'!$B$26:$B$153,0)) -> 0 | K78: 0.045 | L78: =INDEX('Rate peg calcs'!I$26:I$153,MATCH($B78,'Rate peg calcs'!$B$26:$B$153,0)) -> 0.0006244796003 | M78: =INDEX('Rate peg calcs'!J$26:J$153,MATCH($B78,'Rate peg calcs'!$B$26:$B$153,0)) -> 0.00377977464 | N78: =INDEX('Rate peg calcs'!K$26:K$153,MATCH($B78,'Rate peg calcs'!$B$26:$B$153,0)) -> 0 | O78: =INDEX('Rate peg calcs'!L$26:L$153,MATCH($B78,'Rate peg calcs'!$B$26:$B$153,0)) -> 0.00596796147 | P78: =INDEX('Rate peg calcs'!M$26:M$153,MATCH($B78,'Rate peg calcs'!$B$26:$B$153,0)) -> 0.006 | Q78: =INDEX('Rate peg calcs'!P$26:P$153,MATCH($B78,'Rate peg calcs'!$B$26:$B$153,0)) -> 0.051 | S78: 0.002135044413
B79: ='Rate peg calcs'!B80 -> 129 | C79: =INDEX('Rate peg calcs'!C$26:C$153,MATCH($B79,'Rate peg calcs'!$B$26:$B$153,0)) -> Metropolitan | D79: =INDEX('Rate peg calcs'!D$26:D$153,MATCH($B79,'Rate peg calcs'!$B$26:$B$153,0)) -> Hornsby | E79: =INDEX('Rate peg calcs'!E$26:E$153,MATCH($B79,'Rate peg calcs'!$B$26:$B$153,0)) -> 0.03882841796 | F79: =INDEX('Rate peg calcs'!F$26:F$153,MATCH($B79,'Rate peg calcs'!$B$26:$B$153,0)) -> 0.0041 | G79: =INDEX('Rate peg calcs'!G$26:G$153,MATCH($B79,'Rate peg calcs'!$B$26:$B$153,0)) -> 0.005861668304 | H79: =INDEX('Rate peg calcs'!H$26:H$153,MATCH($B79,'Rate peg calcs'!$B$26:$B$153,0)) -> 0 | I79: =INDEX('Rate peg calcs'!N$26:N$153,MATCH($B79,'Rate peg calcs'!$B$26:$B$153,0)) -> 0 | J79: =INDEX('Rate peg calcs'!O$26:O$153,MATCH($B79,'Rate peg calcs'!$B$26:$B$153,0)) -> 0 | K79: 0.049 | L79: =INDEX('Rate peg calcs'!I$26:I$153,MATCH($B79,'Rate peg calcs'!$B$26:$B$153,0)) -> 0 | M79: =INDEX('Rate peg calcs'!J$26:J$153,MATCH($B79,'Rate peg calcs'!$B$26:$B$153,0)) -> 0.0022964594 | N79: =INDEX('Rate peg calcs'!K$26:K$153,MATCH($B79,'Rate peg calcs'!$B$26:$B$153,0)) -> 0 | O79: =INDEX('Rate peg calcs'!L$26:L$153,MATCH($B79,'Rate peg calcs'!$B$26:$B$153,0)) -> 0.0002899443589 | P79: =INDEX('Rate peg calcs'!M$26:M$153,MATCH($B79,'Rate peg calcs'!$B$26:$B$153,0)) -> 0 | Q79: =INDEX('Rate peg calcs'!P$26:P$153,MATCH($B79,'Rate peg calcs'!$B$26:$B$153,0)) -> 0.049 | S79: 0.005861668304
B80: ='Rate peg calcs'!B81 -> 131 | C80: =INDEX('Rate peg calcs'!C$26:C$153,MATCH($B80,'Rate peg calcs'!$B$26:$B$153,0)) -> Metropolitan | D80: =INDEX('Rate peg calcs'!D$26:D$153,MATCH($B80,'Rate peg calcs'!$B$26:$B$153,0)) -> Hunters Hill | E80: =INDEX('Rate peg calcs'!E$26:E$153,MATCH($B80,'Rate peg calcs'!$B$26:$B$153,0)) -> 0.03882841796 | F80: =INDEX('Rate peg calcs'!F$26:F$153,MATCH($B80,'Rate peg calcs'!$B$26:$B$153,0)) -> 0.0041 | G80: =INDEX('Rate peg calcs'!G$26:G$153,MATCH($B80,'Rate peg calcs'!$B$26:$B$153,0)) -> 0.006740095585 | H80: =INDEX('Rate peg calcs'!H$26:H$153,MATCH($B80,'Rate peg calcs'!$B$26:$B$153,0)) -> 0 | I80: =INDEX('Rate peg calcs'!N$26:N$153,MATCH($B80,'Rate peg calcs'!$B$26:$B$153,0)) -> 0 | J80: =INDEX('Rate peg calcs'!O$26:O$153,MATCH($B80,'Rate peg calcs'!$B$26:$B$153,0)) -> 0 | K80: 0.05 | L80: =INDEX('Rate peg calcs'!I$26:I$153,MATCH($B80,'Rate peg calcs'!$B$26:$B$153,0)) -> 0 | M80: =INDEX('Rate peg calcs'!J$26:J$153,MATCH($B80,'Rate peg calcs'!$B$26:$B$153,0)) -> 0 | N80: =INDEX('Rate peg calcs'!K$26:K$153,MATCH($B80,'Rate peg calcs'!$B$26:$B$153,0)) -> 0 | O80: =INDEX('Rate peg calcs'!L$26:L$153,MATCH($B80,'Rate peg calcs'!$B$26:$B$153,0)) -> 0 | P80: =INDEX('Rate peg calcs'!M$26:M$153,MATCH($B80,'Rate peg calcs'!$B$26:$B$153,0)) -> 0 | Q80: =INDEX('Rate peg calcs'!P$26:P$153,MATCH($B80,'Rate peg calcs'!$B$26:$B$153,0)) -> 0.05 | S80: 0.006740095585
B81: ='Rate peg calcs'!B82 -> 2083 | C81: =INDEX('Rate peg calcs'!C$26:C$153,MATCH($B81,'Rate peg calcs'!$B$26:$B$153,0)) -> Metropolitan | D81: =INDEX('Rate peg calcs'!D$26:D$153,MATCH($B81,'Rate peg calcs'!$B$26:$B$153,0)) -> Inner West | E81: =INDEX('Rate peg calcs'!E$26:E$153,MATCH($B81,'Rate peg calcs'!$B$26:$B$153,0)) -> 0.03882841796 | F81: =INDEX('Rate peg calcs'!F$26:F$153,MATCH($B81,'Rate peg calcs'!$B$26:$B$153,0)) -> 0.0041 | G81: =INDEX('Rate peg calcs'!G$26:G$153,MATCH($B81,'Rate peg calcs'!$B$26:$B$153,0)) -> 0.005969756917 | H81: =INDEX('Rate peg calcs'!H$26:H$153,MATCH($B81,'Rate peg calcs'!$B$26:$B$153,0)) -> 0 | I81: =INDEX('Rate peg calcs'!N$26:N$153,MATCH($B81,'Rate peg calcs'!$B$26:$B$153,0)) -> 0 | J81: =INDEX('Rate peg calcs'!O$26:O$153,MATCH($B81,'Rate peg calcs'!$B$26:$B$153,0)) -> 0 | K81: 0.049 | L81: =INDEX('Rate peg calcs'!I$26:I$153,MATCH($B81,'Rate peg calcs'!$B$26:$B$153,0)) -> 0 | M81: =INDEX('Rate peg calcs'!J$26:J$153,MATCH($B81,'Rate peg calcs'!$B$26:$B$153,0)) -> 0 | N81: =INDEX('Rate peg calcs'!K$26:K$153,MATCH($B81,'Rate peg calcs'!$B$26:$B$153,0)) -> 0 | O81: =INDEX('Rate peg calcs'!L$26:L$153,MATCH($B81,'Rate peg calcs'!$B$26:$B$153,0)) -> -0.005541702166 | P81: =INDEX('Rate peg calcs'!M$26:M$153,MATCH($B81,'Rate peg calcs'!$B$26:$B$153,0)) -> 0 | Q81: =INDEX('Rate peg calcs'!P$26:P$153,MATCH($B81,'Rate peg calcs'!$B$26:$B$153,0)) -> 0.049 | S81: 0.005969756917
B82: ='Rate peg calcs'!B83 -> 133 | C82: =INDEX('Rate peg calcs'!C$26:C$153,MATCH($B82,'Rate peg calcs'!$B$26:$B$153,0)) -> Rural | D82: =INDEX('Rate peg calcs'!D$26:D$153,MATCH($B82,'Rate peg calcs'!$B$26:$B$153,0)) -> Inverell | E82: =INDEX('Rate peg calcs'!E$26:E$153,MATCH($B82,'Rate peg calcs'!$B$26:$B$153,0)) -> 0.0388443815 | F82: =INDEX('Rate peg calcs'!F$26:F$153,MATCH($B82,'Rate peg calcs'!$B$26:$B$153,0)) -> 0.0036 | G82: =INDEX('Rate peg calcs'!G$26:G$153,MATCH($B82,'Rate peg calcs'!$B$26:$B$153,0)) -> 0.0006710779292 | H82: =INDEX('Rate peg calcs'!H$26:H$153,MATCH($B82,'Rate peg calcs'!$B$26:$B$153,0)) -> 0.001419982326 | I82: =INDEX('Rate peg calcs'!N$26:N$153,MATCH($B82,'Rate peg calcs'!$B$26:$B$153,0)) -> 0 | J82: =INDEX('Rate peg calcs'!O$26:O$153,MATCH($B82,'Rate peg calcs'!$B$26:$B$153,0)) -> 0 | K82: 0.045 | L82: =INDEX('Rate peg calcs'!I$26:I$153,MATCH($B82,'Rate peg calcs'!$B$26:$B$153,0)) -> 0.001339360455 | M82: =INDEX('Rate peg calcs'!J$26:J$153,MATCH($B82,'Rate peg calcs'!$B$26:$B$153,0)) -> 0.002451982019 | N82: =INDEX('Rate peg calcs'!K$26:K$153,MATCH($B82,'Rate peg calcs'!$B$26:$B$153,0)) -> 0 | O82: =INDEX('Rate peg calcs'!L$26:L$153,MATCH($B82,'Rate peg calcs'!$B$26:$B$153,0)) -> 0 | P82: =INDEX('Rate peg calcs'!M$26:M$153,MATCH($B82,'Rate peg calcs'!$B$26:$B$153,0)) -> 0 | Q82: =INDEX('Rate peg calcs'!P$26:P$153,MATCH($B82,'Rate peg calcs'!$B$26:$B$153,0)) -> 0.045 | S82: 0.002091060255
B83: ='Rate peg calcs'!B84 -> 135 | C83: =INDEX('Rate peg calcs'!C$26:C$153,MATCH($B83,'Rate peg calcs'!$B$26:$B$153,0)) -> Rural | D83: =INDEX('Rate peg calcs'!D$26:D$153,MATCH($B83,'Rate peg calcs'!$B$26:$B$153,0)) -> Junee | E83: =INDEX('Rate peg calcs'!E$26:E$153,MATCH($B83,'Rate peg calcs'!$B$26:$B$153,0)) -> 0.0388443815 | F83: =INDEX('Rate peg calcs'!F$26:F$153,MATCH($B83,'Rate peg calcs'!$B$26:$B$153,0)) -> 0.0036 | G83: =INDEX('Rate peg calcs'!G$26:G$153,MATCH($B83,'Rate peg calcs'!$B$26:$B$153,0)) -> 0.0007844376316 | H83: =INDEX('Rate peg calcs'!H$26:H$153,MATCH($B83,'Rate peg calcs'!$B$26:$B$153,0)) -> 0.001336963399 | I83: =INDEX('Rate peg calcs'!N$26:N$153,MATCH($B83,'Rate peg calcs'!$B$26:$B$153,0)) -> 0 | J83: =INDEX('Rate peg calcs'!O$26:O$153,MATCH($B83,'Rate peg calcs'!$B$26:$B$153,0)) -> 0 | K83: 0.045 | L83: =INDEX('Rate peg calcs'!I$26:I$153,MATCH($B83,'Rate peg calcs'!$B$26:$B$153,0)) -> 0 | M83: =INDEX('Rate peg calcs'!J$26:J$153,MATCH($B83,'Rate peg calcs'!$B$26:$B$153,0)) -> 0.006273234201 | N83: =INDEX('Rate peg calcs'!K$26:K$153,MATCH($B83,'Rate peg calcs'!$B$26:$B$153,0)) -> 0 | O83: =INDEX('Rate peg calcs'!L$26:L$153,MATCH($B83,'Rate peg calcs'!$B$26:$B$153,0)) -> -0.001162744917 | P83: =INDEX('Rate peg calcs'!M$26:M$153,MATCH($B83,'Rate peg calcs'!$B$26:$B$153,0)) -> 0 | Q83: =INDEX('Rate peg calcs'!P$26:P$153,MATCH($B83,'Rate peg calcs'!$B$26:$B$153,0)) -> 0.045 | S83: 0.00212140103
B84: ='Rate peg calcs'!B85 -> 136 | C84: =INDEX('Rate peg calcs'!C$26:C$153,MATCH($B84,'Rate peg calcs'!$B$26:$B$153,0)) -> Regional | D84: =INDEX('Rate peg calcs'!D$26:D$153,MATCH($B84,'Rate peg calcs'!$B$26:$B$153,0)) -> Kempsey | E84: =INDEX('Rate peg calcs'!E$26:E$153,MATCH($B84,'Rate peg calcs'!$B$26:$B$153,0)) -> 0.03872464517 | F84: =INDEX('Rate peg calcs'!F$26:F$153,MATCH($B84,'Rate peg calcs'!$B$26:$B$153,0)) -> 0.0037 | G84: =INDEX('Rate peg calcs'!G$26:G$153,MATCH($B84,'Rate peg calcs'!$B$26:$B$153,0)) -> 0.002038626172 | H84: =INDEX('Rate peg calcs'!H$26:H$153,MATCH($B84,'Rate peg calcs'!$B$26:$B$153,0)) -> 4.211027923e-05 | I84: =INDEX('Rate peg calcs'!N$26:N$153,MATCH($B84,'Rate peg calcs'!$B$26:$B$153,0)) -> 0 | J84: =INDEX('Rate peg calcs'!O$26:O$153,MATCH($B84,'Rate peg calcs'!$B$26:$B$153,0)) -> 0 | K84: 0.045 | L84: =INDEX('Rate peg calcs'!I$26:I$153,MATCH($B84,'Rate peg calcs'!$B$26:$B$153,0)) -> 0.009651545911 | M84: =INDEX('Rate peg calcs'!J$26:J$153,MATCH($B84,'Rate peg calcs'!$B$26:$B$153,0)) -> 0.01297400646 | N84: =INDEX('Rate peg calcs'!K$26:K$153,MATCH($B84,'Rate peg calcs'!$B$26:$B$153,0)) -> 0 | O84: =INDEX('Rate peg calcs'!L$26:L$153,MATCH($B84,'Rate peg calcs'!$B$26:$B$153,0)) -> 0.001935107764 | P84: =INDEX('Rate peg calcs'!M$26:M$153,MATCH($B84,'Rate peg calcs'!$B$26:$B$153,0)) -> 0.002 | Q84: =INDEX('Rate peg calcs'!P$26:P$153,MATCH($B84,'Rate peg calcs'!$B$26:$B$153,0)) -> 0.047 | S84: 0.002080736451
B85: ='Rate peg calcs'!B86 -> 137 | C85: =INDEX('Rate peg calcs'!C$26:C$153,MATCH($B85,'Rate peg calcs'!$B$26:$B$153,0)) -> Regional | D85: =INDEX('Rate peg calcs'!D$26:D$153,MATCH($B85,'Rate peg calcs'!$B$26:$B$153,0)) -> Kiama | E85: =INDEX('Rate peg calcs'!E$26:E$153,MATCH($B85,'Rate peg calcs'!$B$26:$B$153,0)) -> 0.03872464517 | F85: =INDEX('Rate peg calcs'!F$26:F$153,MATCH($B85,'Rate peg calcs'!$B$26:$B$153,0)) -> 0.0037 | G85: =INDEX('Rate peg calcs'!G$26:G$153,MATCH($B85,'Rate peg calcs'!$B$26:$B$153,0)) -> 0.00180945093 | H85: =INDEX('Rate peg calcs'!H$26:H$153,MATCH($B85,'Rate peg calcs'!$B$26:$B$153,0)) -> 0.000294824657 | I85: =INDEX('Rate peg calcs'!N$26:N$153,MATCH($B85,'Rate peg calcs'!$B$26:$B$153,0)) -> 0 | J85: =INDEX('Rate peg calcs'!O$26:O$153,MATCH($B85,'Rate peg calcs'!$B$26:$B$153,0)) -> 0 | K85: 0.045 | L85: =INDEX('Rate peg calcs'!I$26:I$153,MATCH($B85,'Rate peg calcs'!$B$26:$B$153,0)) -> 0 | M85: =INDEX('Rate peg calcs'!J$26:J$153,MATCH($B85,'Rate peg calcs'!$B$26:$B$153,0)) -> . | N85: =INDEX('Rate peg calcs'!K$26:K$153,MATCH($B85,'Rate peg calcs'!$B$26:$B$153,0)) -> 0 | O85: =INDEX('Rate peg calcs'!L$26:L$153,MATCH($B85,'Rate peg calcs'!$B$26:$B$153,0)) -> -0.0140425121 | P85: =INDEX('Rate peg calcs'!M$26:M$153,MATCH($B85,'Rate peg calcs'!$B$26:$B$153,0)) -> 0 | Q85: =INDEX('Rate peg calcs'!P$26:P$153,MATCH($B85,'Rate peg calcs'!$B$26:$B$153,0)) -> 0.045 | S85: 0.002104275587
B86: ='Rate peg calcs'!B87 -> 139 | C86: =INDEX('Rate peg calcs'!C$26:C$153,MATCH($B86,'Rate peg calcs'!$B$26:$B$153,0)) -> Metropolitan | D86: =INDEX('Rate peg calcs'!D$26:D$153,MATCH($B86,'Rate peg calcs'!$B$26:$B$153,0)) -> Ku-ring-gai | E86: =INDEX('Rate peg calcs'!E$26:E$153,MATCH($B86,'Rate peg calcs'!$B$26:$B$153,0)) -> 0.03882841796 | F86: =INDEX('Rate peg calcs'!F$26:F$153,MATCH($B86,'Rate peg calcs'!$B$26:$B$153,0)) -> 0.0041 | G86: =INDEX('Rate peg calcs'!G$26:G$153,MATCH($B86,'Rate peg calcs'!$B$26:$B$153,0)) -> 0.009473019413 | H86: =INDEX('Rate peg calcs'!H$26:H$153,MATCH($B86,'Rate peg calcs'!$B$26:$B$153,0)) -> 0 | I86: =INDEX('Rate peg calcs'!N$26:N$153,MATCH($B86,'Rate peg calcs'!$B$26:$B$153,0)) -> 0 | J86: =INDEX('Rate peg calcs'!O$26:O$153,MATCH($B86,'Rate peg calcs'!$B$26:$B$153,0)) -> 0 | K86: 0.052 | L86: =INDEX('Rate peg calcs'!I$26:I$153,MATCH($B86,'Rate peg calcs'!$B$26:$B$153,0)) -> 0 | M86: =INDEX('Rate peg calcs'!J$26:J$153,MATCH($B86,'Rate peg calcs'!$B$26:$B$153,0)) -> 0.002699323748 | N86: =INDEX('Rate peg calcs'!K$26:K$153,MATCH($B86,'Rate peg calcs'!$B$26:$B$153,0)) -> 0 | O86: =INDEX('Rate peg calcs'!L$26:L$153,MATCH($B86,'Rate peg calcs'!$B$26:$B$153,0)) -> 0 | P86: =INDEX('Rate peg calcs'!M$26:M$153,MATCH($B86,'Rate peg calcs'!$B$26:$B$153,0)) -> 0 | Q86: =INDEX('Rate peg calcs'!P$26:P$153,MATCH($B86,'Rate peg calcs'!$B$26:$B$153,0)) -> 0.052 | S86: 0.009473019413
B87: ='Rate peg calcs'!B88 -> 140 | C87: =INDEX('Rate peg calcs'!C$26:C$153,MATCH($B87,'Rate peg calcs'!$B$26:$B$153,0)) -> Rural | D87: =INDEX('Rate peg calcs'!D$26:D$153,MATCH($B87,'Rate peg calcs'!$B$26:$B$153,0)) -> Kyogle | E87: =INDEX('Rate peg calcs'!E$26:E$153,MATCH($B87,'Rate peg calcs'!$B$26:$B$153,0)) -> 0.0388443815 | F87: =INDEX('Rate peg calcs'!F$26:F$153,MATCH($B87,'Rate peg calcs'!$B$26:$B$153,0)) -> 0.0036 | G87: =INDEX('Rate peg calcs'!G$26:G$153,MATCH($B87,'Rate peg calcs'!$B$26:$B$153,0)) -> 9.352521578e-05 | H87: =INDEX('Rate peg calcs'!H$26:H$153,MATCH($B87,'Rate peg calcs'!$B$26:$B$153,0)) -> 0.002013839617 | I87: =INDEX('Rate peg calcs'!N$26:N$153,MATCH($B87,'Rate peg calcs'!$B$26:$B$153,0)) -> 0 | J87: =INDEX('Rate peg calcs'!O$26:O$153,MATCH($B87,'Rate peg calcs'!$B$26:$B$153,0)) -> 0 | K87: 0.045 | L87: =INDEX('Rate peg calcs'!I$26:I$153,MATCH($B87,'Rate peg calcs'!$B$26:$B$153,0)) -> 0.007919520548 | M87: =INDEX('Rate peg calcs'!J$26:J$153,MATCH($B87,'Rate peg calcs'!$B$26:$B$153,0)) -> 0.006577250451 | N87: =INDEX('Rate peg calcs'!K$26:K$153,MATCH($B87,'Rate peg calcs'!$B$26:$B$153,0)) -> 0.001342270097 | O87: =INDEX('Rate peg calcs'!L$26:L$153,MATCH($B87,'Rate peg calcs'!$B$26:$B$153,0)) -> 0.0003294751455 | P87: =INDEX('Rate peg calcs'!M$26:M$153,MATCH($B87,'Rate peg calcs'!$B$26:$B$153,0)) -> 0.002 | Q87: =INDEX('Rate peg calcs'!P$26:P$153,MATCH($B87,'Rate peg calcs'!$B$26:$B$153,0)) -> 0.047 | S87: 0.002107364833
B88: ='Rate peg calcs'!B89 -> 141 | C88: =INDEX('Rate peg calcs'!C$26:C$153,MATCH($B88,'Rate peg calcs'!$B$26:$B$153,0)) -> Rural | D88: =INDEX('Rate peg calcs'!D$26:D$153,MATCH($B88,'Rate peg calcs'!$B$26:$B$153,0)) -> Lachlan | E88: =INDEX('Rate peg calcs'!E$26:E$153,MATCH($B88,'Rate peg calcs'!$B$26:$B$153,0)) -> 0.0388443815 | F88: =INDEX('Rate peg calcs'!F$26:F$153,MATCH($B88,'Rate peg calcs'!$B$26:$B$153,0)) -> 0.0036 | G88: =INDEX('Rate peg calcs'!G$26:G$153,MATCH($B88,'Rate peg calcs'!$B$26:$B$153,0)) -> -0.0007352677508 | H88: =INDEX('Rate peg calcs'!H$26:H$153,MATCH($B88,'Rate peg calcs'!$B$26:$B$153,0)) -> 0.002810733995 | I88: =INDEX('Rate peg calcs'!N$26:N$153,MATCH($B88,'Rate peg calcs'!$B$26:$B$153,0)) -> 0 | J88: =INDEX('Rate peg calcs'!O$26:O$153,MATCH($B88,'Rate peg calcs'!$B$26:$B$153,0)) -> 0 | K88: 0.045 | L88: =INDEX('Rate peg calcs'!I$26:I$153,MATCH($B88,'Rate peg calcs'!$B$26:$B$153,0)) -> 0 | M88: =INDEX('Rate peg calcs'!J$26:J$153,MATCH($B88,'Rate peg calcs'!$B$26:$B$153,0)) -> 0.001397712834 | N88: =INDEX('Rate peg calcs'!K$26:K$153,MATCH($B88,'Rate peg calcs'!$B$26:$B$153,0)) -> 0 | O88: =INDEX('Rate peg calcs'!L$26:L$153,MATCH($B88,'Rate peg calcs'!$B$26:$B$153,0)) -> 0 | P88: =INDEX('Rate peg calcs'!M$26:M$153,MATCH($B88,'Rate peg calcs'!$B$26:$B$153,0)) -> 0 | Q88: =INDEX('Rate peg calcs'!P$26:P$153,MATCH($B88,'Rate peg calcs'!$B$26:$B$153,0)) -> 0.045 | S88: 0.002075466244
B89: ='Rate peg calcs'!B90 -> 142 | C89: =INDEX('Rate peg calcs'!C$26:C$153,MATCH($B89,'Rate peg calcs'!$B$26:$B$153,0)) -> Regional | D89: =INDEX('Rate peg calcs'!D$26:D$153,MATCH($B89,'Rate peg calcs'!$B$26:$B$153,0)) -> Lake Macquarie | E89: =INDEX('Rate peg calcs'!E$26:E$153,MATCH($B89,'Rate peg calcs'!$B$26:$B$153,0)) -> 0.03872464517 | F89: =INDEX('Rate peg calcs'!F$26:F$153,MATCH($B89,'Rate peg calcs'!$B$26:$B$153,0)) -> 0.0037 | G89: =INDEX('Rate peg calcs'!G$26:G$153,MATCH($B89,'Rate peg calcs'!$B$26:$B$153,0)) -> 0.00471898598 | H89: =INDEX('Rate peg calcs'!H$26:H$153,MATCH($B89,'Rate peg calcs'!$B$26:$B$153,0)) -> 0 | I89: =INDEX('Rate peg calcs'!N$26:N$153,MATCH($B89,'Rate peg calcs'!$B$26:$B$153,0)) -> 0 | J89: =INDEX('Rate peg calcs'!O$26:O$153,MATCH($B89,'Rate peg calcs'!$B$26:$B$153,0)) -> 0 | K89: =Q89-P89 -> 0.047 | L89: =INDEX('Rate peg calcs'!I$26:I$153,MATCH($B89,'Rate peg calcs'!$B$26:$B$153,0)) -> 0.01150177364 | M89: =INDEX('Rate peg calcs'!J$26:J$153,MATCH($B89,'Rate peg calcs'!$B$26:$B$153,0)) -> 0.005022313905 | N89: =INDEX('Rate peg calcs'!K$26:K$153,MATCH($B89,'Rate peg calcs'!$B$26:$B$153,0)) -> 0.006479459733 | O89: =INDEX('Rate peg calcs'!L$26:L$153,MATCH($B89,'Rate peg calcs'!$B$26:$B$153,0)) -> 0.00234373399 | P89: =INDEX('Rate peg calcs'!M$26:M$153,MATCH($B89,'Rate peg calcs'!$B$26:$B$153,0)) -> 0.009 | Q89: =INDEX('Rate peg calcs'!P$26:P$153,MATCH($B89,'Rate peg calcs'!$B$26:$B$153,0)) -> 0.056 | S89: =SUM(G89:H89) -> 0.00471898598
B90: ='Rate peg calcs'!B91 -> 143 | C90: =INDEX('Rate peg calcs'!C$26:C$153,MATCH($B90,'Rate peg calcs'!$B$26:$B$153,0)) -> Metropolitan | D90: =INDEX('Rate peg calcs'!D$26:D$153,MATCH($B90,'Rate peg calcs'!$B$26:$B$153,0)) -> Lane Cove | E90: =INDEX('Rate peg calcs'!E$26:E$153,MATCH($B90,'Rate peg calcs'!$B$26:$B$153,0)) -> 0.03882841796 | F90: =INDEX('Rate peg calcs'!F$26:F$153,MATCH($B90,'Rate peg calcs'!$B$26:$B$153,0)) -> 0.0041 | G90: =INDEX('Rate peg calcs'!G$26:G$153,MATCH($B90,'Rate peg calcs'!$B$26:$B$153,0)) -> 0.006378454698 | H90: =INDEX('Rate peg calcs'!H$26:H$153,MATCH($B90,'Rate peg calcs'!$B$26:$B$153,0)) -> 0 | I90: =INDEX('Rate peg calcs'!N$26:N$153,MATCH($B90,'Rate peg calcs'!$B$26:$B$153,0)) -> 0 | J90: =INDEX('Rate peg calcs'!O$26:O$153,MATCH($B90,'Rate peg calcs'!$B$26:$B$153,0)) -> 0 | K90: 0.049 | L90: =INDEX('Rate peg calcs'!I$26:I$153,MATCH($B90,'Rate peg calcs'!$B$26:$B$153,0)) -> 0.010782556 | M90: =INDEX('Rate peg calcs'!J$26:J$153,MATCH($B90,'Rate peg calcs'!$B$26:$B$153,0)) -> 0.01092753515 | N90: =INDEX('Rate peg calcs'!K$26:K$153,MATCH($B90,'Rate peg calcs'!$B$26:$B$153,0)) -> 0 | O90: =INDEX('Rate peg calcs'!L$26:L$153,MATCH($B90,'Rate peg calcs'!$B$26:$B$153,0)) -> 0 | P90: =INDEX('Rate peg calcs'!M$26:M$153,MATCH($B90,'Rate peg calcs'!$B$26:$B$153,0)) -> 0 | Q90: =INDEX('Rate peg calcs'!P$26:P$153,MATCH($B90,'Rate peg calcs'!$B$26:$B$153,0)) -> 0.049 | S90: 0.006378454698
B91: ='Rate peg calcs'!B92 -> 144 | C91: =INDEX('Rate peg calcs'!C$26:C$153,MATCH($B91,'Rate peg calcs'!$B$26:$B$153,0)) -> Rural | D91: =INDEX('Rate peg calcs'!D$26:D$153,MATCH($B91,'Rate peg calcs'!$B$26:$B$153,0)) -> Leeton | E91: =INDEX('Rate peg calcs'!E$26:E$153,MATCH($B91,'Rate peg calcs'!$B$26:$B$153,0)) -> 0.0388443815 | F91: =INDEX('Rate peg calcs'!F$26:F$153,MATCH($B91,'Rate peg calcs'!$B$26:$B$153,0)) -> 0.0036 | G91: =INDEX('Rate peg calcs'!G$26:G$153,MATCH($B91,'Rate peg calcs'!$B$26:$B$153,0)) -> 0.002139499327 | H91: =INDEX('Rate peg calcs'!H$26:H$153,MATCH($B91,'Rate peg calcs'!$B$26:$B$153,0)) -> 0 | I91: =INDEX('Rate peg calcs'!N$26:N$153,MATCH($B91,'Rate peg calcs'!$B$26:$B$153,0)) -> 0 | J91: =INDEX('Rate peg calcs'!O$26:O$153,MATCH($B91,'Rate peg calcs'!$B$26:$B$153,0)) -> 0 | K91: 0.045 | L91: =INDEX('Rate peg calcs'!I$26:I$153,MATCH($B91,'Rate peg calcs'!$B$26:$B$153,0)) -> 0 | M91: =INDEX('Rate peg calcs'!J$26:J$153,MATCH($B91,'Rate peg calcs'!$B$26:$B$153,0)) -> 0.002439964043 | N91: =INDEX('Rate peg calcs'!K$26:K$153,MATCH($B91,'Rate peg calcs'!$B$26:$B$153,0)) -> 0 | O91: =INDEX('Rate peg calcs'!L$26:L$153,MATCH($B91,'Rate peg calcs'!$B$26:$B$153,0)) -> 0 | P91: =INDEX('Rate peg calcs'!M$26:M$153,MATCH($B91,'Rate peg calcs'!$B$26:$B$153,0)) -> 0 | Q91: =INDEX('Rate peg calcs'!P$26:P$153,MATCH($B91,'Rate peg calcs'!$B$26:$B$153,0)) -> 0.045 | S91: 0.002139499327
B92: ='Rate peg calcs'!B93 -> 146 | C92: =INDEX('Rate peg calcs'!C$26:C$153,MATCH($B92,'Rate peg calcs'!$B$26:$B$153,0)) -> Regional | D92: =INDEX('Rate peg calcs'!D$26:D$153,MATCH($B92,'Rate peg calcs'!$B$26:$B$153,0)) -> Lismore | E92: =INDEX('Rate peg calcs'!E$26:E$153,MATCH($B92,'Rate peg calcs'!$B$26:$B$153,0)) -> 0.03872464517 | F92: =INDEX('Rate peg calcs'!F$26:F$153,MATCH($B92,'Rate peg calcs'!$B$26:$B$153,0)) -> 0.0037 | G92: =INDEX('Rate peg calcs'!G$26:G$153,MATCH($B92,'Rate peg calcs'!$B$26:$B$153,0)) -> 0.004138220608 | H92: =INDEX('Rate peg calcs'!H$26:H$153,MATCH($B92,'Rate peg calcs'!$B$26:$B$153,0)) -> 0 | I92: =INDEX('Rate peg calcs'!N$26:N$153,MATCH($B92,'Rate peg calcs'!$B$26:$B$153,0)) -> 0 | J92: =INDEX('Rate peg calcs'!O$26:O$153,MATCH($B92,'Rate peg calcs'!$B$26:$B$153,0)) -> 0 | K92: 0.047 | L92: =INDEX('Rate peg calcs'!I$26:I$153,MATCH($B92,'Rate peg calcs'!$B$26:$B$153,0)) -> 0 | M92: =INDEX('Rate peg calcs'!J$26:J$153,MATCH($B92,'Rate peg calcs'!$B$26:$B$153,0)) -> 0.008859560688 | N92: =INDEX('Rate peg calcs'!K$26:K$153,MATCH($B92,'Rate peg calcs'!$B$26:$B$153,0)) -> 0 | O92: =INDEX('Rate peg calcs'!L$26:L$153,MATCH($B92,'Rate peg calcs'!$B$26:$B$153,0)) -> 0 | P92: =INDEX('Rate peg calcs'!M$26:M$153,MATCH($B92,'Rate peg calcs'!$B$26:$B$153,0)) -> 0 | Q92: =INDEX('Rate peg calcs'!P$26:P$153,MATCH($B92,'Rate peg calcs'!$B$26:$B$153,0)) -> 0.047 | S92: 0.004138220608
B93: ='Rate peg calcs'!B94 -> 2044 | C93: =INDEX('Rate peg calcs'!C$26:C$153,MATCH($B93,'Rate peg calcs'!$B$26:$B$153,0)) -> Regional | D93: =INDEX('Rate peg calcs'!D$26:D$153,MATCH($B93,'Rate peg calcs'!$B$26:$B$153,0)) -> Lithgow | E93: =INDEX('Rate peg calcs'!E$26:E$153,MATCH($B93,'Rate peg calcs'!$B$26:$B$153,0)) -> 0.03872464517 | F93: =INDEX('Rate peg calcs'!F$26:F$153,MATCH($B93,'Rate peg calcs'!$B$26:$B$153,0)) -> 0.0037 | G93: =INDEX('Rate peg calcs'!G$26:G$153,MATCH($B93,'Rate peg calcs'!$B$26:$B$153,0)) -> 0.001721836716 | H93: =INDEX('Rate peg calcs'!H$26:H$153,MATCH($B93,'Rate peg calcs'!$B$26:$B$153,0)) -> 0.0003627250366 | I93: =INDEX('Rate peg calcs'!N$26:N$153,MATCH($B93,'Rate peg calcs'!$B$26:$B$153,0)) -> 0 | J93: =INDEX('Rate peg calcs'!O$26:O$153,MATCH($B93,'Rate peg calcs'!$B$26:$B$153,0)) -> 0 | K93: 0.045 | L93: =INDEX('Rate peg calcs'!I$26:I$153,MATCH($B93,'Rate peg calcs'!$B$26:$B$153,0)) -> 0 | M93: =INDEX('Rate peg calcs'!J$26:J$153,MATCH($B93,'Rate peg calcs'!$B$26:$B$153,0)) -> 0 | N93: =INDEX('Rate peg calcs'!K$26:K$153,MATCH($B93,'Rate peg calcs'!$B$26:$B$153,0)) -> 0 | O93: =INDEX('Rate peg calcs'!L$26:L$153,MATCH($B93,'Rate peg calcs'!$B$26:$B$153,0)) -> -1.342219478e-05 | P93: =INDEX('Rate peg calcs'!M$26:M$153,MATCH($B93,'Rate peg calcs'!$B$26:$B$153,0)) -> 0 | Q93: =INDEX('Rate peg calcs'!P$26:P$153,MATCH($B93,'Rate peg calcs'!$B$26:$B$153,0)) -> 0.045 | S93: 0.002084561753
B94: ='Rate peg calcs'!B95 -> 147 | C94: =INDEX('Rate peg calcs'!C$26:C$153,MATCH($B94,'Rate peg calcs'!$B$26:$B$153,0)) -> Metropolitan | D94: =INDEX('Rate peg calcs'!D$26:D$153,MATCH($B94,'Rate peg calcs'!$B$26:$B$153,0)) -> Liverpool | E94: =INDEX('Rate peg calcs'!E$26:E$153,MATCH($B94,'Rate peg calcs'!$B$26:$B$153,0)) -> 0.03882841796 | F94: =INDEX('Rate peg calcs'!F$26:F$153,MATCH($B94,'Rate peg calcs'!$B$26:$B$153,0)) -> 0.0041 | G94: =INDEX('Rate peg calcs'!G$26:G$153,MATCH($B94,'Rate peg calcs'!$B$26:$B$153,0)) -> 0.005630966483 | H94: =INDEX('Rate peg calcs'!H$26:H$153,MATCH($B94,'Rate peg calcs'!$B$26:$B$153,0)) -> 0 | I94: =INDEX('Rate peg calcs'!N$26:N$153,MATCH($B94,'Rate peg calcs'!$B$26:$B$153,0)) -> 0 | J94: =INDEX('Rate peg calcs'!O$26:O$153,MATCH($B94,'Rate peg calcs'!$B$26:$B$153,0)) -> 0 | K94: 0.049 | L94: =INDEX('Rate peg calcs'!I$26:I$153,MATCH($B94,'Rate peg calcs'!$B$26:$B$153,0)) -> 0.02157671745 | M94: =INDEX('Rate peg calcs'!J$26:J$153,MATCH($B94,'Rate peg calcs'!$B$26:$B$153,0)) -> 0.02372792934 | N94: =INDEX('Rate peg calcs'!K$26:K$153,MATCH($B94,'Rate peg calcs'!$B$26:$B$153,0)) -> 0 | O94: =INDEX('Rate peg calcs'!L$26:L$153,MATCH($B94,'Rate peg calcs'!$B$26:$B$153,0)) -> 0.0007770571257 | P94: =INDEX('Rate peg calcs'!M$26:M$153,MATCH($B94,'Rate peg calcs'!$B$26:$B$153,0)) -> 0.001 | Q94: =INDEX('Rate peg calcs'!P$26:P$153,MATCH($B94,'Rate peg calcs'!$B$26:$B$153,0)) -> 0.05 | S94: 0.005630966483
B95: ='Rate peg calcs'!B96 -> 2040 | C95: =INDEX('Rate peg calcs'!C$26:C$153,MATCH($B95,'Rate peg calcs'!$B$26:$B$153,0)) -> Rural | D95: =INDEX('Rate peg calcs'!D$26:D$153,MATCH($B95,'Rate peg calcs'!$B$26:$B$153,0)) -> Liverpool Plains | E95: =INDEX('Rate peg calcs'!E$26:E$153,MATCH($B95,'Rate peg calcs'!$B$26:$B$153,0)) -> 0.0388443815 | F95: =INDEX('Rate peg calcs'!F$26:F$153,MATCH($B95,'Rate peg calcs'!$B$26:$B$153,0)) -> 0.0036 | G95: =INDEX('Rate peg calcs'!G$26:G$153,MATCH($B95,'Rate peg calcs'!$B$26:$B$153,0)) -> -0.000347942633 | H95: =INDEX('Rate peg calcs'!H$26:H$153,MATCH($B95,'Rate peg calcs'!$B$26:$B$153,0)) -> 0.002426273057 | I95: =INDEX('Rate peg calcs'!N$26:N$153,MATCH($B95,'Rate peg calcs'!$B$26:$B$153,0)) -> 0 | J95: =INDEX('Rate peg calcs'!O$26:O$153,MATCH($B95,'Rate peg calcs'!$B$26:$B$153,0)) -> 0 | K95: 0.045 | L95: =INDEX('Rate peg calcs'!I$26:I$153,MATCH($B95,'Rate peg calcs'!$B$26:$B$153,0)) -> 0.006177707676 | M95: =INDEX('Rate peg calcs'!J$26:J$153,MATCH($B95,'Rate peg calcs'!$B$26:$B$153,0)) -> 0.003242853711 | N95: =INDEX('Rate peg calcs'!K$26:K$153,MATCH($B95,'Rate peg calcs'!$B$26:$B$153,0)) -> 0.002934853965 | O95: =INDEX('Rate peg calcs'!L$26:L$153,MATCH($B95,'Rate peg calcs'!$B$26:$B$153,0)) -> 0 | P95: =INDEX('Rate peg calcs'!M$26:M$153,MATCH($B95,'Rate peg calcs'!$B$26:$B$153,0)) -> 0.003 | Q95: =INDEX('Rate peg calcs'!P$26:P$153,MATCH($B95,'Rate peg calcs'!$B$26:$B$153,0)) -> 0.048 | S95: 0.002078330424
B96: ='Rate peg calcs'!B97 -> 148 | C96: =INDEX('Rate peg calcs'!C$26:C$153,MATCH($B96,'Rate peg calcs'!$B$26:$B$153,0)) -> Rural | D96: =INDEX('Rate peg calcs'!D$26:D$153,MATCH($B96,'Rate peg calcs'!$B$26:$B$153,0)) -> Lockhart | E96: =INDEX('Rate peg calcs'!E$26:E$153,MATCH($B96,'Rate peg calcs'!$B$26:$B$153,0)) -> 0.0388443815 | F96: =INDEX('Rate peg calcs'!F$26:F$153,MATCH($B96,'Rate peg calcs'!$B$26:$B$153,0)) -> 0.0036 | G96: =INDEX('Rate peg calcs'!G$26:G$153,MATCH($B96,'Rate peg calcs'!$B$26:$B$153,0)) -> -0.003926313934 | H96: =INDEX('Rate peg calcs'!H$26:H$153,MATCH($B96,'Rate peg calcs'!$B$26:$B$153,0)) -> 0.006003833487 | I96: =INDEX('Rate peg calcs'!N$26:N$153,MATCH($B96,'Rate peg calcs'!$B$26:$B$153,0)) -> 0 | J96: =INDEX('Rate peg calcs'!O$26:O$153,MATCH($B96,'Rate peg calcs'!$B$26:$B$153,0)) -> 0 | K96: 0.045 | L96: =INDEX('Rate peg calcs'!I$26:I$153,MATCH($B96,'Rate peg calcs'!$B$26:$B$153,0)) -> 0.01111778846 | M96: =INDEX('Rate peg calcs'!J$26:J$153,MATCH($B96,'Rate peg calcs'!$B$26:$B$153,0)) -> 0.0003849114704 | N96: =INDEX('Rate peg calcs'!K$26:K$153,MATCH($B96,'Rate peg calcs'!$B$26:$B$153,0)) -> 0.01073287699 | O96: =INDEX('Rate peg calcs'!L$26:L$153,MATCH($B96,'Rate peg calcs'!$B$26:$B$153,0)) -> 0.01607310601 | P96: =INDEX('Rate peg calcs'!M$26:M$153,MATCH($B96,'Rate peg calcs'!$B$26:$B$153,0)) -> 0.027 | Q96: =INDEX('Rate peg calcs'!P$26:P$153,MATCH($B96,'Rate peg calcs'!$B$26:$B$153,0)) -> 0.072 | S96: 0.002077519553
B97: ='Rate peg calcs'!B98 -> 150 | C97: =INDEX('Rate peg calcs'!C$26:C$153,MATCH($B97,'Rate peg calcs'!$B$26:$B$153,0)) -> Regional | D97: =INDEX('Rate peg calcs'!D$26:D$153,MATCH($B97,'Rate peg calcs'!$B$26:$B$153,0)) -> Maitland | E97: =INDEX('Rate peg calcs'!E$26:E$153,MATCH($B97,'Rate peg calcs'!$B$26:$B$153,0)) -> 0.03872464517 | F97: =INDEX('Rate peg calcs'!F$26:F$153,MATCH($B97,'Rate peg calcs'!$B$26:$B$153,0)) -> 0.0037 | G97: =INDEX('Rate peg calcs'!G$26:G$153,MATCH($B97,'Rate peg calcs'!$B$26:$B$153,0)) -> 0.003085454878 | H97: =INDEX('Rate peg calcs'!H$26:H$153,MATCH($B97,'Rate peg calcs'!$B$26:$B$153,0)) -> 0 | I97: =INDEX('Rate peg calcs'!N$26:N$153,MATCH($B97,'Rate peg calcs'!$B$26:$B$153,0)) -> 0 | J97: =INDEX('Rate peg calcs'!O$26:O$153,MATCH($B97,'Rate peg calcs'!$B$26:$B$153,0)) -> 0 | K97: 0.046 | L97: =INDEX('Rate peg calcs'!I$26:I$153,MATCH($B97,'Rate peg calcs'!$B$26:$B$153,0)) -> 0.03251134695 | M97: =INDEX('Rate peg calcs'!J$26:J$153,MATCH($B97,'Rate peg calcs'!$B$26:$B$153,0)) -> 0.02592766312 | N97: =INDEX('Rate peg calcs'!K$26:K$153,MATCH($B97,'Rate peg calcs'!$B$26:$B$153,0)) -> 0.006583683823 | O97: =INDEX('Rate peg calcs'!L$26:L$153,MATCH($B97,'Rate peg calcs'!$B$26:$B$153,0)) -> -0.002731371148 | P97: =INDEX('Rate peg calcs'!M$26:M$153,MATCH($B97,'Rate peg calcs'!$B$26:$B$153,0)) -> 0.004 | Q97: =INDEX('Rate peg calcs'!P$26:P$153,MATCH($B97,'Rate peg calcs'!$B$26:$B$153,0)) -> 0.05 | S97: 0.003085454878
B98: ='Rate peg calcs'!B99 -> 2084 | C98: =INDEX('Rate peg calcs'!C$26:C$153,MATCH($B98,'Rate peg calcs'!$B$26:$B$153,0)) -> Regional | D98: =INDEX('Rate peg calcs'!D$26:D$153,MATCH($B98,'Rate peg calcs'!$B$26:$B$153,0)) -> Mid-Coast | E98: =INDEX('Rate peg calcs'!E$26:E$153,MATCH($B98,'Rate peg calcs'!$B$26:$B$153,0)) -> 0.03872464517 | F98: =INDEX('Rate peg calcs'!F$26:F$153,MATCH($B98,'Rate peg calcs'!$B$26:$B$153,0)) -> 0.0037 | G98: =INDEX('Rate peg calcs'!G$26:G$153,MATCH($B98,'Rate peg calcs'!$B$26:$B$153,0)) -> 0.001173896586 | H98: =INDEX('Rate peg calcs'!H$26:H$153,MATCH($B98,'Rate peg calcs'!$B$26:$B$153,0)) -> 0.0009017922541 | I98: =INDEX('Rate peg calcs'!N$26:N$153,MATCH($B98,'Rate peg calcs'!$B$26:$B$153,0)) -> 0 | J98: =INDEX('Rate peg calcs'!O$26:O$153,MATCH($B98,'Rate peg calcs'!$B$26:$B$153,0)) -> 0 | K98: 0.045 | L98: =INDEX('Rate peg calcs'!I$26:I$153,MATCH($B98,'Rate peg calcs'!$B$26:$B$153,0)) -> 0.006896551724 | M98: =INDEX('Rate peg calcs'!J$26:J$153,MATCH($B98,'Rate peg calcs'!$B$26:$B$153,0)) -> 0.003888258847 | N98: =INDEX('Rate peg calcs'!K$26:K$153,MATCH($B98,'Rate peg calcs'!$B$26:$B$153,0)) -> 0.003008292877 | O98: =INDEX('Rate peg calcs'!L$26:L$153,MATCH($B98,'Rate peg calcs'!$B$26:$B$153,0)) -> 0.003894110629 | P98: =INDEX('Rate peg calcs'!M$26:M$153,MATCH($B98,'Rate peg calcs'!$B$26:$B$153,0)) -> 0.007 | Q98: =INDEX('Rate peg calcs'!P$26:P$153,MATCH($B98,'Rate peg calcs'!$B$26:$B$153,0)) -> 0.052 | S98: 0.00207568884
B99: ='Rate peg calcs'!B100 -> 2042 | C99: =INDEX('Rate peg calcs'!C$26:C$153,MATCH($B99,'Rate peg calcs'!$B$26:$B$153,0)) -> Regional | D99: =INDEX('Rate peg calcs'!D$26:D$153,MATCH($B99,'Rate peg calcs'!$B$26:$B$153,0)) -> Mid-Western Regional | E99: =INDEX('Rate peg calcs'!E$26:E$153,MATCH($B99,'Rate peg calcs'!$B$26:$B$153,0)) -> 0.03872464517 | F99: =INDEX('Rate peg calcs'!F$26:F$153,MATCH($B99,'Rate peg calcs'!$B$26:$B$153,0)) -> 0.0037 | G99: =INDEX('Rate peg calcs'!G$26:G$153,MATCH($B99,'Rate peg calcs'!$B$26:$B$153,0)) -> 0.0005541397312 | H99: =INDEX('Rate peg calcs'!H$26:H$153,MATCH($B99,'Rate peg calcs'!$B$26:$B$153,0)) -> 0.001560938869 | I99: =INDEX('Rate peg calcs'!N$26:N$153,MATCH($B99,'Rate peg calcs'!$B$26:$B$153,0)) -> 0 | J99: =INDEX('Rate peg calcs'!O$26:O$153,MATCH($B99,'Rate peg calcs'!$B$26:$B$153,0)) -> 0 | K99: 0.045 | L99: =INDEX('Rate peg calcs'!I$26:I$153,MATCH($B99,'Rate peg calcs'!$B$26:$B$153,0)) -> 0.002178649237 | M99: =INDEX('Rate peg calcs'!J$26:J$153,MATCH($B99,'Rate peg calcs'!$B$26:$B$153,0)) -> 0.007236081282 | N99: =INDEX('Rate peg calcs'!K$26:K$153,MATCH($B99,'Rate peg calcs'!$B$26:$B$153,0)) -> 0 | O99: =INDEX('Rate peg calcs'!L$26:L$153,MATCH($B99,'Rate peg calcs'!$B$26:$B$153,0)) -> 0.0001009040382 | P99: =INDEX('Rate peg calcs'!M$26:M$153,MATCH($B99,'Rate peg calcs'!$B$26:$B$153,0)) -> 0 | Q99: =INDEX('Rate peg calcs'!P$26:P$153,MATCH($B99,'Rate peg calcs'!$B$26:$B$153,0)) -> 0.045 | S99: 0.0021150786
B100: ='Rate peg calcs'!B101 -> 155 | C100: =INDEX('Rate peg calcs'!C$26:C$153,MATCH($B100,'Rate peg calcs'!$B$26:$B$153,0)) -> Rural | D100: =INDEX('Rate peg calcs'!D$26:D$153,MATCH($B100,'Rate peg calcs'!$B$26:$B$153,0)) -> Moree Plains | E100: =INDEX('Rate peg calcs'!E$26:E$153,MATCH($B100,'Rate peg calcs'!$B$26:$B$153,0)) -> 0.0388443815 | F100: =INDEX('Rate peg calcs'!F$26:F$153,MATCH($B100,'Rate peg calcs'!$B$26:$B$153,0)) -> 0.0036 | G100: =INDEX('Rate peg calcs'!G$26:G$153,MATCH($B100,'Rate peg calcs'!$B$26:$B$153,0)) -> 0.0009769019058 | H100: =INDEX('Rate peg calcs'!H$26:H$153,MATCH($B100,'Rate peg calcs'!$B$26:$B$153,0)) -> 0.001104680844 | I100: =INDEX('Rate peg calcs'!N$26:N$153,MATCH($B100,'Rate peg calcs'!$B$26:$B$153,0)) -> 0 | J100: =INDEX('Rate peg calcs'!O$26:O$153,MATCH($B100,'Rate peg calcs'!$B$26:$B$153,0)) -> 0 | K100: 0.045 | L100: =INDEX('Rate peg calcs'!I$26:I$153,MATCH($B100,'Rate peg calcs'!$B$26:$B$153,0)) -> 0 | M100: =INDEX('Rate peg calcs'!J$26:J$153,MATCH($B100,'Rate peg calcs'!$B$26:$B$153,0)) -> 0 | N100: =INDEX('Rate peg calcs'!K$26:K$153,MATCH($B100,'Rate peg calcs'!$B$26:$B$153,0)) -> 0 | O100: =INDEX('Rate peg calcs'!L$26:L$153,MATCH($B100,'Rate peg calcs'!$B$26:$B$153,0)) -> 0 | P100: =INDEX('Rate peg calcs'!M$26:M$153,MATCH($B100,'Rate peg calcs'!$B$26:$B$153,0)) -> 0 | Q100: =INDEX('Rate peg calcs'!P$26:P$153,MATCH($B100,'Rate peg calcs'!$B$26:$B$153,0)) -> 0.045 | S100: 0.00208158275
B101: ='Rate peg calcs'!B102 -> 156 | C101: =INDEX('Rate peg calcs'!C$26:C$153,MATCH($B101,'Rate peg calcs'!$B$26:$B$153,0)) -> Metropolitan | D101: =INDEX('Rate peg calcs'!D$26:D$153,MATCH($B101,'Rate peg calcs'!$B$26:$B$153,0)) -> Mosman | E101: =INDEX('Rate peg calcs'!E$26:E$153,MATCH($B101,'Rate peg calcs'!$B$26:$B$153,0)) -> 0.03882841796 | F101: =INDEX('Rate peg calcs'!F$26:F$153,MATCH($B101,'Rate peg calcs'!$B$26:$B$153,0)) -> 0.0041 | G101: =INDEX('Rate peg calcs'!G$26:G$153,MATCH($B101,'Rate peg calcs'!$B$26:$B$153,0)) -> 0.01024799685 | H101: =INDEX('Rate peg calcs'!H$26:H$153,MATCH($B101,'Rate peg calcs'!$B$26:$B$153,0)) -> 0 | I101: =INDEX('Rate peg calcs'!N$26:N$153,MATCH($B101,'Rate peg calcs'!$B$26:$B$153,0)) -> 0 | J101: =INDEX('Rate peg calcs'!O$26:O$153,MATCH($B101,'Rate peg calcs'!$B$26:$B$153,0)) -> 0 | K101: 0.053 | L101: =INDEX('Rate peg calcs'!I$26:I$153,MATCH($B101,'Rate peg calcs'!$B$26:$B$153,0)) -> 0 | M101: =INDEX('Rate peg calcs'!J$26:J$153,MATCH($B101,'Rate peg calcs'!$B$26:$B$153,0)) -> 0 | N101: =INDEX('Rate peg calcs'!K$26:K$153,MATCH($B101,'Rate peg calcs'!$B$26:$B$153,0)) -> 0 | O101: =INDEX('Rate peg calcs'!L$26:L$153,MATCH($B101,'Rate peg calcs'!$B$26:$B$153,0)) -> 0 | P101: =INDEX('Rate peg calcs'!M$26:M$153,MATCH($B101,'Rate peg calcs'!$B$26:$B$153,0)) -> 0 | Q101: =INDEX('Rate peg calcs'!P$26:P$153,MATCH($B101,'Rate peg calcs'!$B$26:$B$153,0)) -> 0.053 | S101: 0.01024799685
B102: ='Rate peg calcs'!B103 -> 2085 | C102: =INDEX('Rate peg calcs'!C$26:C$153,MATCH($B102,'Rate peg calcs'!$B$26:$B$153,0)) -> Rural | D102: =INDEX('Rate peg calcs'!D$26:D$153,MATCH($B102,'Rate peg calcs'!$B$26:$B$153,0)) -> Murray River | E102: =INDEX('Rate peg calcs'!E$26:E$153,MATCH($B102,'Rate peg calcs'!$B$26:$B$153,0)) -> 0.0388443815 | F102: =INDEX('Rate peg calcs'!F$26:F$153,MATCH($B102,'Rate peg calcs'!$B$26:$B$153,0)) -> 0.0036 | G102: =INDEX('Rate peg calcs'!G$26:G$153,MATCH($B102,'Rate peg calcs'!$B$26:$B$153,0)) -> 9.136485404e-05 | H102: =INDEX('Rate peg calcs'!H$26:H$153,MATCH($B102,'Rate peg calcs'!$B$26:$B$153,0)) -> 0.002050268388 | I102: =INDEX('Rate peg calcs'!N$26:N$153,MATCH($B102,'Rate peg calcs'!$B$26:$B$153,0)) -> 0 | J102: =INDEX('Rate peg calcs'!O$26:O$153,MATCH($B102,'Rate peg calcs'!$B$26:$B$153,0)) -> 0 | K102: 0.045 | L102: =INDEX('Rate peg calcs'!I$26:I$153,MATCH($B102,'Rate peg calcs'!$B$26:$B$153,0)) -> 0.01776212833 | M102: =INDEX('Rate peg calcs'!J$26:J$153,MATCH($B102,'Rate peg calcs'!$B$26:$B$153,0)) -> 0.01407588739 | N102: =INDEX('Rate peg calcs'!K$26:K$153,MATCH($B102,'Rate peg calcs'!$B$26:$B$153,0)) -> 0.003686240933 | O102: =INDEX('Rate peg calcs'!L$26:L$153,MATCH($B102,'Rate peg calcs'!$B$26:$B$153,0)) -> -0.001375137472 | P102: =INDEX('Rate peg calcs'!M$26:M$153,MATCH($B102,'Rate peg calcs'!$B$26:$B$153,0)) -> 0.002 | Q102: =INDEX('Rate peg calcs'!P$26:P$153,MATCH($B102,'Rate peg calcs'!$B$26:$B$153,0)) -> 0.047 | S102: 0.002141633242
B103: ='Rate peg calcs'!B104 -> 2086 | C103: =INDEX('Rate peg calcs'!C$26:C$153,MATCH($B103,'Rate peg calcs'!$B$26:$B$153,0)) -> Rural | D103: =INDEX('Rate peg calcs'!D$26:D$153,MATCH($B103,'Rate peg calcs'!$B$26:$B$153,0)) -> Murrumbidgee | E103: =INDEX('Rate peg calcs'!E$26:E$153,MATCH($B103,'Rate peg calcs'!$B$26:$B$153,0)) -> 0.0388443815 | F103: =INDEX('Rate peg calcs'!F$26:F$153,MATCH($B103,'Rate peg calcs'!$B$26:$B$153,0)) -> 0.0036 | G103: =INDEX('Rate peg calcs'!G$26:G$153,MATCH($B103,'Rate peg calcs'!$B$26:$B$153,0)) -> -0.00179858646 | H103: =INDEX('Rate peg calcs'!H$26:H$153,MATCH($B103,'Rate peg calcs'!$B$26:$B$153,0)) -> 0.003944174551 | I103: =INDEX('Rate peg calcs'!N$26:N$153,MATCH($B103,'Rate peg calcs'!$B$26:$B$153,0)) -> 0 | J103: =INDEX('Rate peg calcs'!O$26:O$153,MATCH($B103,'Rate peg calcs'!$B$26:$B$153,0)) -> 0 | K103: 0.045 | L103: =INDEX('Rate peg calcs'!I$26:I$153,MATCH($B103,'Rate peg calcs'!$B$26:$B$153,0)) -> 0 | M103: =INDEX('Rate peg calcs'!J$26:J$153,MATCH($B103,'Rate peg calcs'!$B$26:$B$153,0)) -> 0 | N103: =INDEX('Rate peg calcs'!K$26:K$153,MATCH($B103,'Rate peg calcs'!$B$26:$B$153,0)) -> 0 | O103: =INDEX('Rate peg calcs'!L$26:L$153,MATCH($B103,'Rate peg calcs'!$B$26:$B$153,0)) -> 0 | P103: =INDEX('Rate peg calcs'!M$26:M$153,MATCH($B103,'Rate peg calcs'!$B$26:$B$153,0)) -> 0 | Q103: =INDEX('Rate peg calcs'!P$26:P$153,MATCH($B103,'Rate peg calcs'!$B$26:$B$153,0)) -> 0.045 | S103: 0.002145588091
B104: ='Rate peg calcs'!B105 -> 162 | C104: =INDEX('Rate peg calcs'!C$26:C$153,MATCH($B104,'Rate peg calcs'!$B$26:$B$153,0)) -> Rural | D104: =INDEX('Rate peg calcs'!D$26:D$153,MATCH($B104,'Rate peg calcs'!$B$26:$B$153,0)) -> Muswellbrook | E104: =INDEX('Rate peg calcs'!E$26:E$153,MATCH($B104,'Rate peg calcs'!$B$26:$B$153,0)) -> 0.0388443815 | F104: =INDEX('Rate peg calcs'!F$26:F$153,MATCH($B104,'Rate peg calcs'!$B$26:$B$153,0)) -> 0.0036 | G104: =INDEX('Rate peg calcs'!G$26:G$153,MATCH($B104,'Rate peg calcs'!$B$26:$B$153,0)) -> 0.000604274688 | H104: =INDEX('Rate peg calcs'!H$26:H$153,MATCH($B104,'Rate peg calcs'!$B$26:$B$153,0)) -> 0.001479363677 | I104: =INDEX('Rate peg calcs'!N$26:N$153,MATCH($B104,'Rate peg calcs'!$B$26:$B$153,0)) -> 0 | J104: =INDEX('Rate peg calcs'!O$26:O$153,MATCH($B104,'Rate peg calcs'!$B$26:$B$153,0)) -> 0 | K104: 0.045 | L104: =INDEX('Rate peg calcs'!I$26:I$153,MATCH($B104,'Rate peg calcs'!$B$26:$B$153,0)) -> 0.00696241528 | M104: =INDEX('Rate peg calcs'!J$26:J$153,MATCH($B104,'Rate peg calcs'!$B$26:$B$153,0)) -> 0.01497770876 | N104: =INDEX('Rate peg calcs'!K$26:K$153,MATCH($B104,'Rate peg calcs'!$B$26:$B$153,0)) -> 0 | O104: =INDEX('Rate peg calcs'!L$26:L$153,MATCH($B104,'Rate peg calcs'!$B$26:$B$153,0)) -> 0 | P104: =INDEX('Rate peg calcs'!M$26:M$153,MATCH($B104,'Rate peg calcs'!$B$26:$B$153,0)) -> 0 | Q104: =INDEX('Rate peg calcs'!P$26:P$153,MATCH($B104,'Rate peg calcs'!$B$26:$B$153,0)) -> 0.045 | S104: 0.002083638365
B105: ='Rate peg calcs'!B106 -> 163 | C105: =INDEX('Rate peg calcs'!C$26:C$153,MATCH($B105,'Rate peg calcs'!$B$26:$B$153,0)) -> Rural | D105: =INDEX('Rate peg calcs'!D$26:D$153,MATCH($B105,'Rate peg calcs'!$B$26:$B$153,0)) -> Nambucca | E105: =INDEX('Rate peg calcs'!E$26:E$153,MATCH($B105,'Rate peg calcs'!$B$26:$B$153,0)) -> 0.0388443815 | F105: =INDEX('Rate peg calcs'!F$26:F$153,MATCH($B105,'Rate peg calcs'!$B$26:$B$153,0)) -> 0.0036 | G105: =INDEX('Rate peg calcs'!G$26:G$153,MATCH($B105,'Rate peg calcs'!$B$26:$B$153,0)) -> 0.002289487342 | H105: =INDEX('Rate peg calcs'!H$26:H$153,MATCH($B105,'Rate peg calcs'!$B$26:$B$153,0)) -> 0 | I105: =INDEX('Rate peg calcs'!N$26:N$153,MATCH($B105,'Rate peg calcs'!$B$26:$B$153,0)) -> 0 | J105: =INDEX('Rate peg calcs'!O$26:O$153,MATCH($B105,'Rate peg calcs'!$B$26:$B$153,0)) -> 0 | K105: 0.045 | L105: =INDEX('Rate peg calcs'!I$26:I$153,MATCH($B105,'Rate peg calcs'!$B$26:$B$153,0)) -> 0.009619631902 | M105: =INDEX('Rate peg calcs'!J$26:J$153,MATCH($B105,'Rate peg calcs'!$B$26:$B$153,0)) -> 0.01637683606 | N105: =INDEX('Rate peg calcs'!K$26:K$153,MATCH($B105,'Rate peg calcs'!$B$26:$B$153,0)) -> 0 | O105: =INDEX('Rate peg calcs'!L$26:L$153,MATCH($B105,'Rate peg calcs'!$B$26:$B$153,0)) -> 0 | P105: =INDEX('Rate peg calcs'!M$26:M$153,MATCH($B105,'Rate peg calcs'!$B$26:$B$153,0)) -> 0 | Q105: =INDEX('Rate peg calcs'!P$26:P$153,MATCH($B105,'Rate peg calcs'!$B$26:$B$153,0)) -> 0.045 | S105: 0.002289487342
B106: ='Rate peg calcs'!B107 -> 164 | C106: =INDEX('Rate peg calcs'!C$26:C$153,MATCH($B106,'Rate peg calcs'!$B$26:$B$153,0)) -> Rural | D106: =INDEX('Rate peg calcs'!D$26:D$153,MATCH($B106,'Rate peg calcs'!$B$26:$B$153,0)) -> Narrabri | E106: =INDEX('Rate peg calcs'!E$26:E$153,MATCH($B106,'Rate peg calcs'!$B$26:$B$153,0)) -> 0.0388443815 | F106: =INDEX('Rate peg calcs'!F$26:F$153,MATCH($B106,'Rate peg calcs'!$B$26:$B$153,0)) -> 0.0036 | G106: =INDEX('Rate peg calcs'!G$26:G$153,MATCH($B106,'Rate peg calcs'!$B$26:$B$153,0)) -> 0.001211924283 | H106: =INDEX('Rate peg calcs'!H$26:H$153,MATCH($B106,'Rate peg calcs'!$B$26:$B$153,0)) -> 0.0008975227087 | I106: =INDEX('Rate peg calcs'!N$26:N$153,MATCH($B106,'Rate peg calcs'!$B$26:$B$153,0)) -> 0 | J106: =INDEX('Rate peg calcs'!O$26:O$153,MATCH($B106,'Rate peg calcs'!$B$26:$B$153,0)) -> 0 | K106: 0.045 | L106: =INDEX('Rate peg calcs'!I$26:I$153,MATCH($B106,'Rate peg calcs'!$B$26:$B$153,0)) -> 0 | M106: =INDEX('Rate peg calcs'!J$26:J$153,MATCH($B106,'Rate peg calcs'!$B$26:$B$153,0)) -> . | N106: =INDEX('Rate peg calcs'!K$26:K$153,MATCH($B106,'Rate peg calcs'!$B$26:$B$153,0)) -> 0 | O106: =INDEX('Rate peg calcs'!L$26:L$153,MATCH($B106,'Rate peg calcs'!$B$26:$B$153,0)) -> 0 | P106: =INDEX('Rate peg calcs'!M$26:M$153,MATCH($B106,'Rate peg calcs'!$B$26:$B$153,0)) -> 0 | Q106: =INDEX('Rate peg calcs'!P$26:P$153,MATCH($B106,'Rate peg calcs'!$B$26:$B$153,0)) -> 0.045 | S106: 0.002109446992
B107: ='Rate peg calcs'!B108 -> 165 | C107: =INDEX('Rate peg calcs'!C$26:C$153,MATCH($B107,'Rate peg calcs'!$B$26:$B$153,0)) -> Rural | D107: =INDEX('Rate peg calcs'!D$26:D$153,MATCH($B107,'Rate peg calcs'!$B$26:$B$153,0)) -> Narrandera | E107: =INDEX('Rate peg calcs'!E$26:E$153,MATCH($B107,'Rate peg calcs'!$B$26:$B$153,0)) -> 0.0388443815 | F107: =INDEX('Rate peg calcs'!F$26:F$153,MATCH($B107,'Rate peg calcs'!$B$26:$B$153,0)) -> 0.0036 | G107: =INDEX('Rate peg calcs'!G$26:G$153,MATCH($B107,'Rate peg calcs'!$B$26:$B$153,0)) -> 0.001049146455 | H107: =INDEX('Rate peg calcs'!H$26:H$153,MATCH($B107,'Rate peg calcs'!$B$26:$B$153,0)) -> 0.001081735897 | I107: =INDEX('Rate peg calcs'!N$26:N$153,MATCH($B107,'Rate peg calcs'!$B$26:$B$153,0)) -> 0 | J107: =INDEX('Rate peg calcs'!O$26:O$153,MATCH($B107,'Rate peg calcs'!$B$26:$B$153,0)) -> 0 | K107: 0.045 | L107: =INDEX('Rate peg calcs'!I$26:I$153,MATCH($B107,'Rate peg calcs'!$B$26:$B$153,0)) -> 0 | M107: =INDEX('Rate peg calcs'!J$26:J$153,MATCH($B107,'Rate peg calcs'!$B$26:$B$153,0)) -> 0.004043905257 | N107: =INDEX('Rate peg calcs'!K$26:K$153,MATCH($B107,'Rate peg calcs'!$B$26:$B$153,0)) -> 0 | O107: =INDEX('Rate peg calcs'!L$26:L$153,MATCH($B107,'Rate peg calcs'!$B$26:$B$153,0)) -> 0 | P107: =INDEX('Rate peg calcs'!M$26:M$153,MATCH($B107,'Rate peg calcs'!$B$26:$B$153,0)) -> 0 | Q107: =INDEX('Rate peg calcs'!P$26:P$153,MATCH($B107,'Rate peg calcs'!$B$26:$B$153,0)) -> 0.045 | S107: 0.002130882353
B108: ='Rate peg calcs'!B109 -> 166 | C108: =INDEX('Rate peg calcs'!C$26:C$153,MATCH($B108,'Rate peg calcs'!$B$26:$B$153,0)) -> Rural | D108: =INDEX('Rate peg calcs'!D$26:D$153,MATCH($B108,'Rate peg calcs'!$B$26:$B$153,0)) -> Narromine | E108: =INDEX('Rate peg calcs'!E$26:E$153,MATCH($B108,'Rate peg calcs'!$B$26:$B$153,0)) -> 0.0388443815 | F108: =INDEX('Rate peg calcs'!F$26:F$153,MATCH($B108,'Rate peg calcs'!$B$26:$B$153,0)) -> 0.0036 | G108: =INDEX('Rate peg calcs'!G$26:G$153,MATCH($B108,'Rate peg calcs'!$B$26:$B$153,0)) -> 0.0001438006992 | H108: =INDEX('Rate peg calcs'!H$26:H$153,MATCH($B108,'Rate peg calcs'!$B$26:$B$153,0)) -> 0.00199492509 | I108: =INDEX('Rate peg calcs'!N$26:N$153,MATCH($B108,'Rate peg calcs'!$B$26:$B$153,0)) -> 0 | J108: =INDEX('Rate peg calcs'!O$26:O$153,MATCH($B108,'Rate peg calcs'!$B$26:$B$153,0)) -> 0 | K108: 0.045 | L108: =INDEX('Rate peg calcs'!I$26:I$153,MATCH($B108,'Rate peg calcs'!$B$26:$B$153,0)) -> 0 | M108: =INDEX('Rate peg calcs'!J$26:J$153,MATCH($B108,'Rate peg calcs'!$B$26:$B$153,0)) -> 0.01041327693 | N108: =INDEX('Rate peg calcs'!K$26:K$153,MATCH($B108,'Rate peg calcs'!$B$26:$B$153,0)) -> 0 | O108: =INDEX('Rate peg calcs'!L$26:L$153,MATCH($B108,'Rate peg calcs'!$B$26:$B$153,0)) -> 0 | P108: =INDEX('Rate peg calcs'!M$26:M$153,MATCH($B108,'Rate peg calcs'!$B$26:$B$153,0)) -> 0 | Q108: =INDEX('Rate peg calcs'!P$26:P$153,MATCH($B108,'Rate peg calcs'!$B$26:$B$153,0)) -> 0.045 | S108: 0.002138725789
B109: ='Rate peg calcs'!B110 -> 167 | C109: =INDEX('Rate peg calcs'!C$26:C$153,MATCH($B109,'Rate peg calcs'!$B$26:$B$153,0)) -> Regional | D109: =INDEX('Rate peg calcs'!D$26:D$153,MATCH($B109,'Rate peg calcs'!$B$26:$B$153,0)) -> Newcastle | E109: =INDEX('Rate peg calcs'!E$26:E$153,MATCH($B109,'Rate peg calcs'!$B$26:$B$153,0)) -> 0.03872464517 | F109: =INDEX('Rate peg calcs'!F$26:F$153,MATCH($B109,'Rate peg calcs'!$B$26:$B$153,0)) -> 0.0037 | G109: =INDEX('Rate peg calcs'!G$26:G$153,MATCH($B109,'Rate peg calcs'!$B$26:$B$153,0)) -> 0.004357201286 | H109: =INDEX('Rate peg calcs'!H$26:H$153,MATCH($B109,'Rate peg calcs'!$B$26:$B$153,0)) -> 0 | I109: =INDEX('Rate peg calcs'!N$26:N$153,MATCH($B109,'Rate peg calcs'!$B$26:$B$153,0)) -> 0 | J109: =INDEX('Rate peg calcs'!O$26:O$153,MATCH($B109,'Rate peg calcs'!$B$26:$B$153,0)) -> 0 | K109: 0.047 | L109: =INDEX('Rate peg calcs'!I$26:I$153,MATCH($B109,'Rate peg calcs'!$B$26:$B$153,0)) -> 0.01180055991 | M109: =INDEX('Rate peg calcs'!J$26:J$153,MATCH($B109,'Rate peg calcs'!$B$26:$B$153,0)) -> 0.005486790405 | N109: =INDEX('Rate peg calcs'!K$26:K$153,MATCH($B109,'Rate peg calcs'!$B$26:$B$153,0)) -> 0.006313769502 | O109: =INDEX('Rate peg calcs'!L$26:L$153,MATCH($B109,'Rate peg calcs'!$B$26:$B$153,0)) -> -0.001427721433 | P109: =INDEX('Rate peg calcs'!M$26:M$153,MATCH($B109,'Rate peg calcs'!$B$26:$B$153,0)) -> 0.005 | Q109: =INDEX('Rate peg calcs'!P$26:P$153,MATCH($B109,'Rate peg calcs'!$B$26:$B$153,0)) -> 0.052 | S109: 0.004357201286
B110: ='Rate peg calcs'!B111 -> 168 | C110: =INDEX('Rate peg calcs'!C$26:C$153,MATCH($B110,'Rate peg calcs'!$B$26:$B$153,0)) -> Metropolitan | D110: =INDEX('Rate peg calcs'!D$26:D$153,MATCH($B110,'Rate peg calcs'!$B$26:$B$153,0)) -> North Sydney | E110: =INDEX('Rate peg calcs'!E$26:E$153,MATCH($B110,'Rate peg calcs'!$B$26:$B$153,0)) -> 0.03882841796 | F110: =INDEX('Rate peg calcs'!F$26:F$153,MATCH($B110,'Rate peg calcs'!$B$26:$B$153,0)) -> 0.0041 | G110: =INDEX('Rate peg calcs'!G$26:G$153,MATCH($B110,'Rate peg calcs'!$B$26:$B$153,0)) -> 0.006891002718 | H110: =INDEX('Rate peg calcs'!H$26:H$153,MATCH($B110,'Rate peg calcs'!$B$26:$B$153,0)) -> 0 | I110: =INDEX('Rate peg calcs'!N$26:N$153,MATCH($B110,'Rate peg calcs'!$B$26:$B$153,0)) -> 0 | J110: =INDEX('Rate peg calcs'!O$26:O$153,MATCH($B110,'Rate peg calcs'!$B$26:$B$153,0)) -> 0 | K110: 0.05 | L110: =INDEX('Rate peg calcs'!I$26:I$153,MATCH($B110,'Rate peg calcs'!$B$26:$B$153,0)) -> 0 | M110: =INDEX('Rate peg calcs'!J$26:J$153,MATCH($B110,'Rate peg calcs'!$B$26:$B$153,0)) -> 0 | N110: =INDEX('Rate peg calcs'!K$26:K$153,MATCH($B110,'Rate peg calcs'!$B$26:$B$153,0)) -> 0 | O110: =INDEX('Rate peg calcs'!L$26:L$153,MATCH($B110,'Rate peg calcs'!$B$26:$B$153,0)) -> -0.001827714556 | P110: =INDEX('Rate peg calcs'!M$26:M$153,MATCH($B110,'Rate peg calcs'!$B$26:$B$153,0)) -> 0 | Q110: =INDEX('Rate peg calcs'!P$26:P$153,MATCH($B110,'Rate peg calcs'!$B$26:$B$153,0)) -> 0.05 | S110: 0.006891002718
B111: ='Rate peg calcs'!B112 -> 2087 | C111: =INDEX('Rate peg calcs'!C$26:C$153,MATCH($B111,'Rate peg calcs'!$B$26:$B$153,0)) -> Metropolitan | D111: =INDEX('Rate peg calcs'!D$26:D$153,MATCH($B111,'Rate peg calcs'!$B$26:$B$153,0)) -> Northern Beaches | E111: =INDEX('Rate peg calcs'!E$26:E$153,MATCH($B111,'Rate peg calcs'!$B$26:$B$153,0)) -> 0.03882841796 | F111: =INDEX('Rate peg calcs'!F$26:F$153,MATCH($B111,'Rate peg calcs'!$B$26:$B$153,0)) -> 0.0041 | G111: =INDEX('Rate peg calcs'!G$26:G$153,MATCH($B111,'Rate peg calcs'!$B$26:$B$153,0)) -> 0.006276002416 | H111: =INDEX('Rate peg calcs'!H$26:H$153,MATCH($B111,'Rate peg calcs'!$B$26:$B$153,0)) -> 0 | I111: =INDEX('Rate peg calcs'!N$26:N$153,MATCH($B111,'Rate peg calcs'!$B$26:$B$153,0)) -> 0 | J111: =INDEX('Rate peg calcs'!O$26:O$153,MATCH($B111,'Rate peg calcs'!$B$26:$B$153,0)) -> 0 | K111: 0.049 | L111: =INDEX('Rate peg calcs'!I$26:I$153,MATCH($B111,'Rate peg calcs'!$B$26:$B$153,0)) -> 0 | M111: =INDEX('Rate peg calcs'!J$26:J$153,MATCH($B111,'Rate peg calcs'!$B$26:$B$153,0)) -> 0.0005416812432 | N111: =INDEX('Rate peg calcs'!K$26:K$153,MATCH($B111,'Rate peg calcs'!$B$26:$B$153,0)) -> 0 | O111: =INDEX('Rate peg calcs'!L$26:L$153,MATCH($B111,'Rate peg calcs'!$B$26:$B$153,0)) -> 0 | P111: =INDEX('Rate peg calcs'!M$26:M$153,MATCH($B111,'Rate peg calcs'!$B$26:$B$153,0)) -> 0 | Q111: =INDEX('Rate peg calcs'!P$26:P$153,MATCH($B111,'Rate peg calcs'!$B$26:$B$153,0)) -> 0.049 | S111: 0.006276002416
B112: ='Rate peg calcs'!B113 -> 2045 | C112: =INDEX('Rate peg calcs'!C$26:C$153,MATCH($B112,'Rate peg calcs'!$B$26:$B$153,0)) -> Rural | D112: =INDEX('Rate peg calcs'!D$26:D$153,MATCH($B112,'Rate peg calcs'!$B$26:$B$153,0)) -> Oberon | E112: =INDEX('Rate peg calcs'!E$26:E$153,MATCH($B112,'Rate peg calcs'!$B$26:$B$153,0)) -> 0.0388443815 | F112: =INDEX('Rate peg calcs'!F$26:F$153,MATCH($B112,'Rate peg calcs'!$B$26:$B$153,0)) -> 0.0036 | G112: =INDEX('Rate peg calcs'!G$26:G$153,MATCH($B112,'Rate peg calcs'!$B$26:$B$153,0)) -> -0.001562583043 | H112: =INDEX('Rate peg calcs'!H$26:H$153,MATCH($B112,'Rate peg calcs'!$B$26:$B$153,0)) -> 0.003635323619 | I112: =INDEX('Rate peg calcs'!N$26:N$153,MATCH($B112,'Rate peg calcs'!$B$26:$B$153,0)) -> 0 | J112: =INDEX('Rate peg calcs'!O$26:O$153,MATCH($B112,'Rate peg calcs'!$B$26:$B$153,0)) -> 0 | K112: 0.045 | L112: =INDEX('Rate peg calcs'!I$26:I$153,MATCH($B112,'Rate peg calcs'!$B$26:$B$153,0)) -> 0.0005479452055 | M112: =INDEX('Rate peg calcs'!J$26:J$153,MATCH($B112,'Rate peg calcs'!$B$26:$B$153,0)) -> 0.007847996696 | N112: =INDEX('Rate peg calcs'!K$26:K$153,MATCH($B112,'Rate peg calcs'!$B$26:$B$153,0)) -> 0 | O112: =INDEX('Rate peg calcs'!L$26:L$153,MATCH($B112,'Rate peg calcs'!$B$26:$B$153,0)) -> 0.007331990369 | P112: =INDEX('Rate peg calcs'!M$26:M$153,MATCH($B112,'Rate peg calcs'!$B$26:$B$153,0)) -> 0.007 | Q112: =INDEX('Rate peg calcs'!P$26:P$153,MATCH($B112,'Rate peg calcs'!$B$26:$B$153,0)) -> 0.052 | S112: 0.002072740576
B113: ='Rate peg calcs'!B114 -> 172 | C113: =INDEX('Rate peg calcs'!C$26:C$153,MATCH($B113,'Rate peg calcs'!$B$26:$B$153,0)) -> Regional | D113: =INDEX('Rate peg calcs'!D$26:D$153,MATCH($B113,'Rate peg calcs'!$B$26:$B$153,0)) -> Orange | E113: =INDEX('Rate peg calcs'!E$26:E$153,MATCH($B113,'Rate peg calcs'!$B$26:$B$153,0)) -> 0.03872464517 | F113: =INDEX('Rate peg calcs'!F$26:F$153,MATCH($B113,'Rate peg calcs'!$B$26:$B$153,0)) -> 0.0037 | G113: =INDEX('Rate peg calcs'!G$26:G$153,MATCH($B113,'Rate peg calcs'!$B$26:$B$153,0)) -> 0.003214811982 | H113: =INDEX('Rate peg calcs'!H$26:H$153,MATCH($B113,'Rate peg calcs'!$B$26:$B$153,0)) -> 0 | I113: =INDEX('Rate peg calcs'!N$26:N$153,MATCH($B113,'Rate peg calcs'!$B$26:$B$153,0)) -> 0 | J113: =INDEX('Rate peg calcs'!O$26:O$153,MATCH($B113,'Rate peg calcs'!$B$26:$B$153,0)) -> 0 | K113: 0.046 | L113: =INDEX('Rate peg calcs'!I$26:I$153,MATCH($B113,'Rate peg calcs'!$B$26:$B$153,0)) -> 0.003886958112 | M113: =INDEX('Rate peg calcs'!J$26:J$153,MATCH($B113,'Rate peg calcs'!$B$26:$B$153,0)) -> 0.01043835616 | N113: =INDEX('Rate peg calcs'!K$26:K$153,MATCH($B113,'Rate peg calcs'!$B$26:$B$153,0)) -> 0 | O113: =INDEX('Rate peg calcs'!L$26:L$153,MATCH($B113,'Rate peg calcs'!$B$26:$B$153,0)) -> 0.0006288547737 | P113: =INDEX('Rate peg calcs'!M$26:M$153,MATCH($B113,'Rate peg calcs'!$B$26:$B$153,0)) -> 0.001 | Q113: =INDEX('Rate peg calcs'!P$26:P$153,MATCH($B113,'Rate peg calcs'!$B$26:$B$153,0)) -> 0.047 | S113: 0.003214811982
B114: ='Rate peg calcs'!B115 -> 173 | C114: =INDEX('Rate peg calcs'!C$26:C$153,MATCH($B114,'Rate peg calcs'!$B$26:$B$153,0)) -> Rural | D114: =INDEX('Rate peg calcs'!D$26:D$153,MATCH($B114,'Rate peg calcs'!$B$26:$B$153,0)) -> Parkes | E114: =INDEX('Rate peg calcs'!E$26:E$153,MATCH($B114,'Rate peg calcs'!$B$26:$B$153,0)) -> 0.0388443815 | F114: =INDEX('Rate peg calcs'!F$26:F$153,MATCH($B114,'Rate peg calcs'!$B$26:$B$153,0)) -> 0.0036 | G114: =INDEX('Rate peg calcs'!G$26:G$153,MATCH($B114,'Rate peg calcs'!$B$26:$B$153,0)) -> 0.0007202365311 | H114: =INDEX('Rate peg calcs'!H$26:H$153,MATCH($B114,'Rate peg calcs'!$B$26:$B$153,0)) -> 0.001404800849 | I114: =INDEX('Rate peg calcs'!N$26:N$153,MATCH($B114,'Rate peg calcs'!$B$26:$B$153,0)) -> 0 | J114: =INDEX('Rate peg calcs'!O$26:O$153,MATCH($B114,'Rate peg calcs'!$B$26:$B$153,0)) -> 0 | K114: 0.045 | L114: =INDEX('Rate peg calcs'!I$26:I$153,MATCH($B114,'Rate peg calcs'!$B$26:$B$153,0)) -> 0 | M114: =INDEX('Rate peg calcs'!J$26:J$153,MATCH($B114,'Rate peg calcs'!$B$26:$B$153,0)) -> 0.003381805884 | N114: =INDEX('Rate peg calcs'!K$26:K$153,MATCH($B114,'Rate peg calcs'!$B$26:$B$153,0)) -> 0 | O114: =INDEX('Rate peg calcs'!L$26:L$153,MATCH($B114,'Rate peg calcs'!$B$26:$B$153,0)) -> 0 | P114: =INDEX('Rate peg calcs'!M$26:M$153,MATCH($B114,'Rate peg calcs'!$B$26:$B$153,0)) -> 0 | Q114: =INDEX('Rate peg calcs'!P$26:P$153,MATCH($B114,'Rate peg calcs'!$B$26:$B$153,0)) -> 0.045 | S114: 0.00212503738
B115: ='Rate peg calcs'!B116 -> 2089 | C115: =INDEX('Rate peg calcs'!C$26:C$153,MATCH($B115,'Rate peg calcs'!$B$26:$B$153,0)) -> Metropolitan | D115: =INDEX('Rate peg calcs'!D$26:D$153,MATCH($B115,'Rate peg calcs'!$B$26:$B$153,0)) -> Parramatta | E115: =INDEX('Rate peg calcs'!E$26:E$153,MATCH($B115,'Rate peg calcs'!$B$26:$B$153,0)) -> 0.03882841796 | F115: =INDEX('Rate peg calcs'!F$26:F$153,MATCH($B115,'Rate peg calcs'!$B$26:$B$153,0)) -> 0.0041 | G115: =INDEX('Rate peg calcs'!G$26:G$153,MATCH($B115,'Rate peg calcs'!$B$26:$B$153,0)) -> 0.005641312665 | H115: =INDEX('Rate peg calcs'!H$26:H$153,MATCH($B115,'Rate peg calcs'!$B$26:$B$153,0)) -> 0 | I115: =INDEX('Rate peg calcs'!N$26:N$153,MATCH($B115,'Rate peg calcs'!$B$26:$B$153,0)) -> 0 | J115: =INDEX('Rate peg calcs'!O$26:O$153,MATCH($B115,'Rate peg calcs'!$B$26:$B$153,0)) -> 0 | K115: 0.049 | L115: =INDEX('Rate peg calcs'!I$26:I$153,MATCH($B115,'Rate peg calcs'!$B$26:$B$153,0)) -> 0.00634022364 | M115: =INDEX('Rate peg calcs'!J$26:J$153,MATCH($B115,'Rate peg calcs'!$B$26:$B$153,0)) -> 0.004336176007 | N115: =INDEX('Rate peg calcs'!K$26:K$153,MATCH($B115,'Rate peg calcs'!$B$26:$B$153,0)) -> 0.002004047632 | O115: =INDEX('Rate peg calcs'!L$26:L$153,MATCH($B115,'Rate peg calcs'!$B$26:$B$153,0)) -> 0 | P115: =INDEX('Rate peg calcs'!M$26:M$153,MATCH($B115,'Rate peg calcs'!$B$26:$B$153,0)) -> 0.002 | Q115: =INDEX('Rate peg calcs'!P$26:P$153,MATCH($B115,'Rate peg calcs'!$B$26:$B$153,0)) -> 0.051 | S115: 0.005641312665
B116: ='Rate peg calcs'!B117 -> 176 | C116: =INDEX('Rate peg calcs'!C$26:C$153,MATCH($B116,'Rate peg calcs'!$B$26:$B$153,0)) -> Metropolitan | D116: =INDEX('Rate peg calcs'!D$26:D$153,MATCH($B116,'Rate peg calcs'!$B$26:$B$153,0)) -> Penrith | E116: =INDEX('Rate peg calcs'!E$26:E$153,MATCH($B116,'Rate peg calcs'!$B$26:$B$153,0)) -> 0.03882841796 | F116: =INDEX('Rate peg calcs'!F$26:F$153,MATCH($B116,'Rate peg calcs'!$B$26:$B$153,0)) -> 0.0041 | G116: =INDEX('Rate peg calcs'!G$26:G$153,MATCH($B116,'Rate peg calcs'!$B$26:$B$153,0)) -> 0.004618344458 | H116: =INDEX('Rate peg calcs'!H$26:H$153,MATCH($B116,'Rate peg calcs'!$B$26:$B$153,0)) -> 0 | I116: =INDEX('Rate peg calcs'!N$26:N$153,MATCH($B116,'Rate peg calcs'!$B$26:$B$153,0)) -> 0 | J116: =INDEX('Rate peg calcs'!O$26:O$153,MATCH($B116,'Rate peg calcs'!$B$26:$B$153,0)) -> 0 | K116: 0.048 | L116: =INDEX('Rate peg calcs'!I$26:I$153,MATCH($B116,'Rate peg calcs'!$B$26:$B$153,0)) -> 0.008020482514 | M116: =INDEX('Rate peg calcs'!J$26:J$153,MATCH($B116,'Rate peg calcs'!$B$26:$B$153,0)) -> 0.01639426023 | N116: =INDEX('Rate peg calcs'!K$26:K$153,MATCH($B116,'Rate peg calcs'!$B$26:$B$153,0)) -> 0 | O116: =INDEX('Rate peg calcs'!L$26:L$153,MATCH($B116,'Rate peg calcs'!$B$26:$B$153,0)) -> -0.0002585405356 | P116: =INDEX('Rate peg calcs'!M$26:M$153,MATCH($B116,'Rate peg calcs'!$B$26:$B$153,0)) -> 0 | Q116: =INDEX('Rate peg calcs'!P$26:P$153,MATCH($B116,'Rate peg calcs'!$B$26:$B$153,0)) -> 0.048 | S116: 0.004618344458
B117: ='Rate peg calcs'!B118 -> 124 | C117: =INDEX('Rate peg calcs'!C$26:C$153,MATCH($B117,'Rate peg calcs'!$B$26:$B$153,0)) -> Regional | D117: =INDEX('Rate peg calcs'!D$26:D$153,MATCH($B117,'Rate peg calcs'!$B$26:$B$153,0)) -> Port Macquarie-Hastings | E117: =INDEX('Rate peg calcs'!E$26:E$153,MATCH($B117,'Rate peg calcs'!$B$26:$B$153,0)) -> 0.03872464517 | F117: =INDEX('Rate peg calcs'!F$26:F$153,MATCH($B117,'Rate peg calcs'!$B$26:$B$153,0)) -> 0.0037 | G117: =INDEX('Rate peg calcs'!G$26:G$153,MATCH($B117,'Rate peg calcs'!$B$26:$B$153,0)) -> 0.00326493748 | H117: =INDEX('Rate peg calcs'!H$26:H$153,MATCH($B117,'Rate peg calcs'!$B$26:$B$153,0)) -> 0 | I117: =INDEX('Rate peg calcs'!N$26:N$153,MATCH($B117,'Rate peg calcs'!$B$26:$B$153,0)) -> 0 | J117: =INDEX('Rate peg calcs'!O$26:O$153,MATCH($B117,'Rate peg calcs'!$B$26:$B$153,0)) -> 0 | K117: 0.046 | L117: =INDEX('Rate peg calcs'!I$26:I$153,MATCH($B117,'Rate peg calcs'!$B$26:$B$153,0)) -> 0.01801697754 | M117: =INDEX('Rate peg calcs'!J$26:J$153,MATCH($B117,'Rate peg calcs'!$B$26:$B$153,0)) -> 0.01295430011 | N117: =INDEX('Rate peg calcs'!K$26:K$153,MATCH($B117,'Rate peg calcs'!$B$26:$B$153,0)) -> 0.005062677429 | O117: =INDEX('Rate peg calcs'!L$26:L$153,MATCH($B117,'Rate peg calcs'!$B$26:$B$153,0)) -> -0.00546129777 | P117: =INDEX('Rate peg calcs'!M$26:M$153,MATCH($B117,'Rate peg calcs'!$B$26:$B$153,0)) -> 0 | Q117: =INDEX('Rate peg calcs'!P$26:P$153,MATCH($B117,'Rate peg calcs'!$B$26:$B$153,0)) -> 0.046 | S117: 0.00326493748
B118: ='Rate peg calcs'!B119 -> 178 | C118: =INDEX('Rate peg calcs'!C$26:C$153,MATCH($B118,'Rate peg calcs'!$B$26:$B$153,0)) -> Regional | D118: =INDEX('Rate peg calcs'!D$26:D$153,MATCH($B118,'Rate peg calcs'!$B$26:$B$153,0)) -> Port Stephens | E118: =INDEX('Rate peg calcs'!E$26:E$153,MATCH($B118,'Rate peg calcs'!$B$26:$B$153,0)) -> 0.03872464517 | F118: =INDEX('Rate peg calcs'!F$26:F$153,MATCH($B118,'Rate peg calcs'!$B$26:$B$153,0)) -> 0.0037 | G118: =INDEX('Rate peg calcs'!G$26:G$153,MATCH($B118,'Rate peg calcs'!$B$26:$B$153,0)) -> 0.00276447764 | H118: =INDEX('Rate peg calcs'!H$26:H$153,MATCH($B118,'Rate peg calcs'!$B$26:$B$153,0)) -> 0 | I118: =INDEX('Rate peg calcs'!N$26:N$153,MATCH($B118,'Rate peg calcs'!$B$26:$B$153,0)) -> 0 | J118: =INDEX('Rate peg calcs'!O$26:O$153,MATCH($B118,'Rate peg calcs'!$B$26:$B$153,0)) -> 0 | K118: 0.045 | L118: =INDEX('Rate peg calcs'!I$26:I$153,MATCH($B118,'Rate peg calcs'!$B$26:$B$153,0)) -> 0.01671050185 | M118: =INDEX('Rate peg calcs'!J$26:J$153,MATCH($B118,'Rate peg calcs'!$B$26:$B$153,0)) -> 0.009763262485 | N118: =INDEX('Rate peg calcs'!K$26:K$153,MATCH($B118,'Rate peg calcs'!$B$26:$B$153,0)) -> 0.006947239362 | O118: =INDEX('Rate peg calcs'!L$26:L$153,MATCH($B118,'Rate peg calcs'!$B$26:$B$153,0)) -> -0.004209229025 | P118: =INDEX('Rate peg calcs'!M$26:M$153,MATCH($B118,'Rate peg calcs'!$B$26:$B$153,0)) -> 0.003 | Q118: =INDEX('Rate peg calcs'!P$26:P$153,MATCH($B118,'Rate peg calcs'!$B$26:$B$153,0)) -> 0.048 | S118: 0.00276447764
B119: ='Rate peg calcs'!B120 -> 2095 | C119: =INDEX('Rate peg calcs'!C$26:C$153,MATCH($B119,'Rate peg calcs'!$B$26:$B$153,0)) -> Regional | D119: =INDEX('Rate peg calcs'!D$26:D$153,MATCH($B119,'Rate peg calcs'!$B$26:$B$153,0)) -> Queanbeyan-Palerang Regional | E119: =INDEX('Rate peg calcs'!E$26:E$153,MATCH($B119,'Rate peg calcs'!$B$26:$B$153,0)) -> 0.03872464517 | F119: =INDEX('Rate peg calcs'!F$26:F$153,MATCH($B119,'Rate peg calcs'!$B$26:$B$153,0)) -> 0.0037 | G119: =INDEX('Rate peg calcs'!G$26:G$153,MATCH($B119,'Rate peg calcs'!$B$26:$B$153,0)) -> 0.002960634572 | H119: =INDEX('Rate peg calcs'!H$26:H$153,MATCH($B119,'Rate peg calcs'!$B$26:$B$153,0)) -> 0 | I119: =INDEX('Rate peg calcs'!N$26:N$153,MATCH($B119,'Rate peg calcs'!$B$26:$B$153,0)) -> 0 | J119: =INDEX('Rate peg calcs'!O$26:O$153,MATCH($B119,'Rate peg calcs'!$B$26:$B$153,0)) -> 0 | K119: 0.045 | L119: =INDEX('Rate peg calcs'!I$26:I$153,MATCH($B119,'Rate peg calcs'!$B$26:$B$153,0)) -> 0.01297266587 | M119: =INDEX('Rate peg calcs'!J$26:J$153,MATCH($B119,'Rate peg calcs'!$B$26:$B$153,0)) -> 0.02366425413 | N119: =INDEX('Rate peg calcs'!K$26:K$153,MATCH($B119,'Rate peg calcs'!$B$26:$B$153,0)) -> 0 | O119: =INDEX('Rate peg calcs'!L$26:L$153,MATCH($B119,'Rate peg calcs'!$B$26:$B$153,0)) -> -0.004244524122 | P119: =INDEX('Rate peg calcs'!M$26:M$153,MATCH($B119,'Rate peg calcs'!$B$26:$B$153,0)) -> 0 | Q119: =INDEX('Rate peg calcs'!P$26:P$153,MATCH($B119,'Rate peg calcs'!$B$26:$B$153,0)) -> 0.045 | S119: 0.002960634572
B120: ='Rate peg calcs'!B121 -> 181 | C120: =INDEX('Rate peg calcs'!C$26:C$153,MATCH($B120,'Rate peg calcs'!$B$26:$B$153,0)) -> Metropolitan | D120: =INDEX('Rate peg calcs'!D$26:D$153,MATCH($B120,'Rate peg calcs'!$B$26:$B$153,0)) -> Randwick | E120: =INDEX('Rate peg calcs'!E$26:E$153,MATCH($B120,'Rate peg calcs'!$B$26:$B$153,0)) -> 0.03882841796 | F120: =INDEX('Rate peg calcs'!F$26:F$153,MATCH($B120,'Rate peg calcs'!$B$26:$B$153,0)) -> 0.0041 | G120: =INDEX('Rate peg calcs'!G$26:G$153,MATCH($B120,'Rate peg calcs'!$B$26:$B$153,0)) -> 0.006090154278 | H120: =INDEX('Rate peg calcs'!H$26:H$153,MATCH($B120,'Rate peg calcs'!$B$26:$B$153,0)) -> 0 | I120: =INDEX('Rate peg calcs'!N$26:N$153,MATCH($B120,'Rate peg calcs'!$B$26:$B$153,0)) -> 0 | J120: =INDEX('Rate peg calcs'!O$26:O$153,MATCH($B120,'Rate peg calcs'!$B$26:$B$153,0)) -> 0 | K120: 0.049 | L120: =INDEX('Rate peg calcs'!I$26:I$153,MATCH($B120,'Rate peg calcs'!$B$26:$B$153,0)) -> 0.003940321632 | M120: =INDEX('Rate peg calcs'!J$26:J$153,MATCH($B120,'Rate peg calcs'!$B$26:$B$153,0)) -> 0.0006756970766 | N120: =INDEX('Rate peg calcs'!K$26:K$153,MATCH($B120,'Rate peg calcs'!$B$26:$B$153,0)) -> 0.003264624555 | O120: =INDEX('Rate peg calcs'!L$26:L$153,MATCH($B120,'Rate peg calcs'!$B$26:$B$153,0)) -> -0.006270936997 | P120: =INDEX('Rate peg calcs'!M$26:M$153,MATCH($B120,'Rate peg calcs'!$B$26:$B$153,0)) -> 0 | Q120: =INDEX('Rate peg calcs'!P$26:P$153,MATCH($B120,'Rate peg calcs'!$B$26:$B$153,0)) -> 0.049 | S120: 0.006090154278
B121: ='Rate peg calcs'!B122 -> 1981 | C121: =INDEX('Rate peg calcs'!C$26:C$153,MATCH($B121,'Rate peg calcs'!$B$26:$B$153,0)) -> Regional | D121: =INDEX('Rate peg calcs'!D$26:D$153,MATCH($B121,'Rate peg calcs'!$B$26:$B$153,0)) -> Richmond Valley | E121: =INDEX('Rate peg calcs'!E$26:E$153,MATCH($B121,'Rate peg calcs'!$B$26:$B$153,0)) -> 0.03872464517 | F121: =INDEX('Rate peg calcs'!F$26:F$153,MATCH($B121,'Rate peg calcs'!$B$26:$B$153,0)) -> 0.0037 | G121: =INDEX('Rate peg calcs'!G$26:G$153,MATCH($B121,'Rate peg calcs'!$B$26:$B$153,0)) -> 0.001314705469 | H121: =INDEX('Rate peg calcs'!H$26:H$153,MATCH($B121,'Rate peg calcs'!$B$26:$B$153,0)) -> 0.0008090961119 | I121: =INDEX('Rate peg calcs'!N$26:N$153,MATCH($B121,'Rate peg calcs'!$B$26:$B$153,0)) -> 0 | J121: =INDEX('Rate peg calcs'!O$26:O$153,MATCH($B121,'Rate peg calcs'!$B$26:$B$153,0)) -> 0 | K121: =Q121-P121 -> 0.045 | L121: =INDEX('Rate peg calcs'!I$26:I$153,MATCH($B121,'Rate peg calcs'!$B$26:$B$153,0)) -> 0.003476196532 | M121: =INDEX('Rate peg calcs'!J$26:J$153,MATCH($B121,'Rate peg calcs'!$B$26:$B$153,0)) -> 0.002446316934 | N121: =INDEX('Rate peg calcs'!K$26:K$153,MATCH($B121,'Rate peg calcs'!$B$26:$B$153,0)) -> 0.001029879598 | O121: =INDEX('Rate peg calcs'!L$26:L$153,MATCH($B121,'Rate peg calcs'!$B$26:$B$153,0)) -> 0 | P121: =INDEX('Rate peg calcs'!M$26:M$153,MATCH($B121,'Rate peg calcs'!$B$26:$B$153,0)) -> 0.001 | Q121: =INDEX('Rate peg calcs'!P$26:P$153,MATCH($B121,'Rate peg calcs'!$B$26:$B$153,0)) -> 0.046 | S121: =SUM(G121:H121) -> 0.002123801581
B122: ='Rate peg calcs'!B123 -> 184 | C122: =INDEX('Rate peg calcs'!C$26:C$153,MATCH($B122,'Rate peg calcs'!$B$26:$B$153,0)) -> Metropolitan | D122: =INDEX('Rate peg calcs'!D$26:D$153,MATCH($B122,'Rate peg calcs'!$B$26:$B$153,0)) -> Ryde | E122: =INDEX('Rate peg calcs'!E$26:E$153,MATCH($B122,'Rate peg calcs'!$B$26:$B$153,0)) -> 0.03882841796 | F122: =INDEX('Rate peg calcs'!F$26:F$153,MATCH($B122,'Rate peg calcs'!$B$26:$B$153,0)) -> 0.0041 | G122: =INDEX('Rate peg calcs'!G$26:G$153,MATCH($B122,'Rate peg calcs'!$B$26:$B$153,0)) -> 0.0077007462 | H122: =INDEX('Rate peg calcs'!H$26:H$153,MATCH($B122,'Rate peg calcs'!$B$26:$B$153,0)) -> 0 | I122: =INDEX('Rate peg calcs'!N$26:N$153,MATCH($B122,'Rate peg calcs'!$B$26:$B$153,0)) -> 0 | J122: =INDEX('Rate peg calcs'!O$26:O$153,MATCH($B122,'Rate peg calcs'!$B$26:$B$153,0)) -> 0 | K122: 0.051 | L122: =INDEX('Rate peg calcs'!I$26:I$153,MATCH($B122,'Rate peg calcs'!$B$26:$B$153,0)) -> 0.009092800505 | M122: =INDEX('Rate peg calcs'!J$26:J$153,MATCH($B122,'Rate peg calcs'!$B$26:$B$153,0)) -> 0.01754453663 | N122: =INDEX('Rate peg calcs'!K$26:K$153,MATCH($B122,'Rate peg calcs'!$B$26:$B$153,0)) -> 0 | O122: =INDEX('Rate peg calcs'!L$26:L$153,MATCH($B122,'Rate peg calcs'!$B$26:$B$153,0)) -> 0 | P122: =INDEX('Rate peg calcs'!M$26:M$153,MATCH($B122,'Rate peg calcs'!$B$26:$B$153,0)) -> 0 | Q122: =INDEX('Rate peg calcs'!P$26:P$153,MATCH($B122,'Rate peg calcs'!$B$26:$B$153,0)) -> 0.051 | S122: 0.0077007462
B123: ='Rate peg calcs'!B124 -> 188 | C123: =INDEX('Rate peg calcs'!C$26:C$153,MATCH($B123,'Rate peg calcs'!$B$26:$B$153,0)) -> Regional | D123: =INDEX('Rate peg calcs'!D$26:D$153,MATCH($B123,'Rate peg calcs'!$B$26:$B$153,0)) -> Shellharbour | E123: =INDEX('Rate peg calcs'!E$26:E$153,MATCH($B123,'Rate peg calcs'!$B$26:$B$153,0)) -> 0.03872464517 | F123: =INDEX('Rate peg calcs'!F$26:F$153,MATCH($B123,'Rate peg calcs'!$B$26:$B$153,0)) -> 0.0037 | G123: =INDEX('Rate peg calcs'!G$26:G$153,MATCH($B123,'Rate peg calcs'!$B$26:$B$153,0)) -> 0.003949591423 | H123: =INDEX('Rate peg calcs'!H$26:H$153,MATCH($B123,'Rate peg calcs'!$B$26:$B$153,0)) -> 0 | I123: =INDEX('Rate peg calcs'!N$26:N$153,MATCH($B123,'Rate peg calcs'!$B$26:$B$153,0)) -> 0 | J123: =INDEX('Rate peg calcs'!O$26:O$153,MATCH($B123,'Rate peg calcs'!$B$26:$B$153,0)) -> 0 | K123: 0.046 | L123: =INDEX('Rate peg calcs'!I$26:I$153,MATCH($B123,'Rate peg calcs'!$B$26:$B$153,0)) -> 0.02371701791 | M123: =INDEX('Rate peg calcs'!J$26:J$153,MATCH($B123,'Rate peg calcs'!$B$26:$B$153,0)) -> 0.009182581263 | N123: =INDEX('Rate peg calcs'!K$26:K$153,MATCH($B123,'Rate peg calcs'!$B$26:$B$153,0)) -> 0.01453443665 | O123: =INDEX('Rate peg calcs'!L$26:L$153,MATCH($B123,'Rate peg calcs'!$B$26:$B$153,0)) -> 0.001782169362 | P123: =INDEX('Rate peg calcs'!M$26:M$153,MATCH($B123,'Rate peg calcs'!$B$26:$B$153,0)) -> 0.016 | Q123: =INDEX('Rate peg calcs'!P$26:P$153,MATCH($B123,'Rate peg calcs'!$B$26:$B$153,0)) -> 0.062 | S123: 0.003949591423
B124: ='Rate peg calcs'!B125 -> 189 | C124: =INDEX('Rate peg calcs'!C$26:C$153,MATCH($B124,'Rate peg calcs'!$B$26:$B$153,0)) -> Regional | D124: =INDEX('Rate peg calcs'!D$26:D$153,MATCH($B124,'Rate peg calcs'!$B$26:$B$153,0)) -> Shoalhaven | E124: =INDEX('Rate peg calcs'!E$26:E$153,MATCH($B124,'Rate peg calcs'!$B$26:$B$153,0)) -> 0.03872464517 | F124: =INDEX('Rate peg calcs'!F$26:F$153,MATCH($B124,'Rate peg calcs'!$B$26:$B$153,0)) -> 0.0037 | G124: =INDEX('Rate peg calcs'!G$26:G$153,MATCH($B124,'Rate peg calcs'!$B$26:$B$153,0)) -> 0.002917807071 | H124: =INDEX('Rate peg calcs'!H$26:H$153,MATCH($B124,'Rate peg calcs'!$B$26:$B$153,0)) -> 0 | I124: =INDEX('Rate peg calcs'!N$26:N$153,MATCH($B124,'Rate peg calcs'!$B$26:$B$153,0)) -> 0 | J124: =INDEX('Rate peg calcs'!O$26:O$153,MATCH($B124,'Rate peg calcs'!$B$26:$B$153,0)) -> 0 | K124: 0.045 | L124: =INDEX('Rate peg calcs'!I$26:I$153,MATCH($B124,'Rate peg calcs'!$B$26:$B$153,0)) -> 0.008701951206 | M124: =INDEX('Rate peg calcs'!J$26:J$153,MATCH($B124,'Rate peg calcs'!$B$26:$B$153,0)) -> 0.00681654082 | N124: =INDEX('Rate peg calcs'!K$26:K$153,MATCH($B124,'Rate peg calcs'!$B$26:$B$153,0)) -> 0.001885410386 | O124: =INDEX('Rate peg calcs'!L$26:L$153,MATCH($B124,'Rate peg calcs'!$B$26:$B$153,0)) -> -0.003437995587 | P124: =INDEX('Rate peg calcs'!M$26:M$153,MATCH($B124,'Rate peg calcs'!$B$26:$B$153,0)) -> 0 | Q124: =INDEX('Rate peg calcs'!P$26:P$153,MATCH($B124,'Rate peg calcs'!$B$26:$B$153,0)) -> 0.045 | S124: 0.002917807071
B125: ='Rate peg calcs'!B126 -> 190 | C125: =INDEX('Rate peg calcs'!C$26:C$153,MATCH($B125,'Rate peg calcs'!$B$26:$B$153,0)) -> Regional | D125: =INDEX('Rate peg calcs'!D$26:D$153,MATCH($B125,'Rate peg calcs'!$B$26:$B$153,0)) -> Singleton | E125: =INDEX('Rate peg calcs'!E$26:E$153,MATCH($B125,'Rate peg calcs'!$B$26:$B$153,0)) -> 0.03872464517 | F125: =INDEX('Rate peg calcs'!F$26:F$153,MATCH($B125,'Rate peg calcs'!$B$26:$B$153,0)) -> 0.0037 | G125: =INDEX('Rate peg calcs'!G$26:G$153,MATCH($B125,'Rate peg calcs'!$B$26:$B$153,0)) -> 0.0003905538485 | H125: =INDEX('Rate peg calcs'!H$26:H$153,MATCH($B125,'Rate peg calcs'!$B$26:$B$153,0)) -> 0.001730111951 | I125: =INDEX('Rate peg calcs'!N$26:N$153,MATCH($B125,'Rate peg calcs'!$B$26:$B$153,0)) -> 0 | J125: =INDEX('Rate peg calcs'!O$26:O$153,MATCH($B125,'Rate peg calcs'!$B$26:$B$153,0)) -> 0 | K125: 0.045 | L125: =INDEX('Rate peg calcs'!I$26:I$153,MATCH($B125,'Rate peg calcs'!$B$26:$B$153,0)) -> 0.0144018771 | M125: =INDEX('Rate peg calcs'!J$26:J$153,MATCH($B125,'Rate peg calcs'!$B$26:$B$153,0)) -> 0.004492096453 | N125: =INDEX('Rate peg calcs'!K$26:K$153,MATCH($B125,'Rate peg calcs'!$B$26:$B$153,0)) -> 0.009909780646 | O125: =INDEX('Rate peg calcs'!L$26:L$153,MATCH($B125,'Rate peg calcs'!$B$26:$B$153,0)) -> 0.002414634142 | P125: =INDEX('Rate peg calcs'!M$26:M$153,MATCH($B125,'Rate peg calcs'!$B$26:$B$153,0)) -> 0.012 | Q125: =INDEX('Rate peg calcs'!P$26:P$153,MATCH($B125,'Rate peg calcs'!$B$26:$B$153,0)) -> 0.057 | S125: 0.002120665799
B126: ='Rate peg calcs'!B127 -> 2096 | C126: =INDEX('Rate peg calcs'!C$26:C$153,MATCH($B126,'Rate peg calcs'!$B$26:$B$153,0)) -> Regional | D126: =INDEX('Rate peg calcs'!D$26:D$153,MATCH($B126,'Rate peg calcs'!$B$26:$B$153,0)) -> Snowy Monaro Regional | E126: =INDEX('Rate peg calcs'!E$26:E$153,MATCH($B126,'Rate peg calcs'!$B$26:$B$153,0)) -> 0.03872464517 | F126: =INDEX('Rate peg calcs'!F$26:F$153,MATCH($B126,'Rate peg calcs'!$B$26:$B$153,0)) -> 0.0037 | G126: =INDEX('Rate peg calcs'!G$26:G$153,MATCH($B126,'Rate peg calcs'!$B$26:$B$153,0)) -> -0.0006264612932 | H126: =INDEX('Rate peg calcs'!H$26:H$153,MATCH($B126,'Rate peg calcs'!$B$26:$B$153,0)) -> 0.002777898102 | I126: =INDEX('Rate peg calcs'!N$26:N$153,MATCH($B126,'Rate peg calcs'!$B$26:$B$153,0)) -> 0 | J126: =INDEX('Rate peg calcs'!O$26:O$153,MATCH($B126,'Rate peg calcs'!$B$26:$B$153,0)) -> 0 | K126: 0.045 | L126: =INDEX('Rate peg calcs'!I$26:I$153,MATCH($B126,'Rate peg calcs'!$B$26:$B$153,0)) -> 0.009085402786 | M126: =INDEX('Rate peg calcs'!J$26:J$153,MATCH($B126,'Rate peg calcs'!$B$26:$B$153,0)) -> 0.005862405885 | N126: =INDEX('Rate peg calcs'!K$26:K$153,MATCH($B126,'Rate peg calcs'!$B$26:$B$153,0)) -> 0.003222996901 | O126: =INDEX('Rate peg calcs'!L$26:L$153,MATCH($B126,'Rate peg calcs'!$B$26:$B$153,0)) -> 0.00364236488 | P126: =INDEX('Rate peg calcs'!M$26:M$153,MATCH($B126,'Rate peg calcs'!$B$26:$B$153,0)) -> 0.007 | Q126: =INDEX('Rate peg calcs'!P$26:P$153,MATCH($B126,'Rate peg calcs'!$B$26:$B$153,0)) -> 0.052 | S126: 0.002151436808
B127: ='Rate peg calcs'!B128 -> 2097 | C127: =INDEX('Rate peg calcs'!C$26:C$153,MATCH($B127,'Rate peg calcs'!$B$26:$B$153,0)) -> Rural | D127: =INDEX('Rate peg calcs'!D$26:D$153,MATCH($B127,'Rate peg calcs'!$B$26:$B$153,0)) -> Snowy Valleys | E127: =INDEX('Rate peg calcs'!E$26:E$153,MATCH($B127,'Rate peg calcs'!$B$26:$B$153,0)) -> 0.0388443815 | F127: =INDEX('Rate peg calcs'!F$26:F$153,MATCH($B127,'Rate peg calcs'!$B$26:$B$153,0)) -> 0.0036 | G127: =INDEX('Rate peg calcs'!G$26:G$153,MATCH($B127,'Rate peg calcs'!$B$26:$B$153,0)) -> 0.0004292465044 | H127: =INDEX('Rate peg calcs'!H$26:H$153,MATCH($B127,'Rate peg calcs'!$B$26:$B$153,0)) -> 0.00163647398 | I127: =INDEX('Rate peg calcs'!N$26:N$153,MATCH($B127,'Rate peg calcs'!$B$26:$B$153,0)) -> 0 | J127: =INDEX('Rate peg calcs'!O$26:O$153,MATCH($B127,'Rate peg calcs'!$B$26:$B$153,0)) -> 0 | K127: 0.045 | L127: =INDEX('Rate peg calcs'!I$26:I$153,MATCH($B127,'Rate peg calcs'!$B$26:$B$153,0)) -> 0.003254899302 | M127: =INDEX('Rate peg calcs'!J$26:J$153,MATCH($B127,'Rate peg calcs'!$B$26:$B$153,0)) -> 0.001947209 | N127: =INDEX('Rate peg calcs'!K$26:K$153,MATCH($B127,'Rate peg calcs'!$B$26:$B$153,0)) -> 0.001307690301 | O127: =INDEX('Rate peg calcs'!L$26:L$153,MATCH($B127,'Rate peg calcs'!$B$26:$B$153,0)) -> 0.003464826669 | P127: =INDEX('Rate peg calcs'!M$26:M$153,MATCH($B127,'Rate peg calcs'!$B$26:$B$153,0)) -> 0.005 | Q127: =INDEX('Rate peg calcs'!P$26:P$153,MATCH($B127,'Rate peg calcs'!$B$26:$B$153,0)) -> 0.05 | S127: 0.002065720484
B128: ='Rate peg calcs'!B129 -> 193 | C128: =INDEX('Rate peg calcs'!C$26:C$153,MATCH($B128,'Rate peg calcs'!$B$26:$B$153,0)) -> Metropolitan | D128: =INDEX('Rate peg calcs'!D$26:D$153,MATCH($B128,'Rate peg calcs'!$B$26:$B$153,0)) -> Strathfield | E128: =INDEX('Rate peg calcs'!E$26:E$153,MATCH($B128,'Rate peg calcs'!$B$26:$B$153,0)) -> 0.03882841796 | F128: =INDEX('Rate peg calcs'!F$26:F$153,MATCH($B128,'Rate peg calcs'!$B$26:$B$153,0)) -> 0.0041 | G128: =INDEX('Rate peg calcs'!G$26:G$153,MATCH($B128,'Rate peg calcs'!$B$26:$B$153,0)) -> 0.007192182595 | H128: =INDEX('Rate peg calcs'!H$26:H$153,MATCH($B128,'Rate peg calcs'!$B$26:$B$153,0)) -> 0 | I128: =INDEX('Rate peg calcs'!N$26:N$153,MATCH($B128,'Rate peg calcs'!$B$26:$B$153,0)) -> 0 | J128: =INDEX('Rate peg calcs'!O$26:O$153,MATCH($B128,'Rate peg calcs'!$B$26:$B$153,0)) -> 0 | K128: 0.05 | L128: =INDEX('Rate peg calcs'!I$26:I$153,MATCH($B128,'Rate peg calcs'!$B$26:$B$153,0)) -> 0.004332680165 | M128: =INDEX('Rate peg calcs'!J$26:J$153,MATCH($B128,'Rate peg calcs'!$B$26:$B$153,0)) -> 0.005511328843 | N128: =INDEX('Rate peg calcs'!K$26:K$153,MATCH($B128,'Rate peg calcs'!$B$26:$B$153,0)) -> 0 | O128: =INDEX('Rate peg calcs'!L$26:L$153,MATCH($B128,'Rate peg calcs'!$B$26:$B$153,0)) -> -0.004404400713 | P128: =INDEX('Rate peg calcs'!M$26:M$153,MATCH($B128,'Rate peg calcs'!$B$26:$B$153,0)) -> 0 | Q128: =INDEX('Rate peg calcs'!P$26:P$153,MATCH($B128,'Rate peg calcs'!$B$26:$B$153,0)) -> 0.05 | S128: 0.007192182595
B129: ='Rate peg calcs'!B130 -> 194 | C129: =INDEX('Rate peg calcs'!C$26:C$153,MATCH($B129,'Rate peg calcs'!$B$26:$B$153,0)) -> Metropolitan | D129: =INDEX('Rate peg calcs'!D$26:D$153,MATCH($B129,'Rate peg calcs'!$B$26:$B$153,0)) -> Sutherland | E129: =INDEX('Rate peg calcs'!E$26:E$153,MATCH($B129,'Rate peg calcs'!$B$26:$B$153,0)) -> 0.03882841796 | F129: =INDEX('Rate peg calcs'!F$26:F$153,MATCH($B129,'Rate peg calcs'!$B$26:$B$153,0)) -> 0.0041 | G129: =INDEX('Rate peg calcs'!G$26:G$153,MATCH($B129,'Rate peg calcs'!$B$26:$B$153,0)) -> 0.00542331162 | H129: =INDEX('Rate peg calcs'!H$26:H$153,MATCH($B129,'Rate peg calcs'!$B$26:$B$153,0)) -> 0 | I129: =INDEX('Rate peg calcs'!N$26:N$153,MATCH($B129,'Rate peg calcs'!$B$26:$B$153,0)) -> 0 | J129: =INDEX('Rate peg calcs'!O$26:O$153,MATCH($B129,'Rate peg calcs'!$B$26:$B$153,0)) -> 0 | K129: 0.048 | L129: =INDEX('Rate peg calcs'!I$26:I$153,MATCH($B129,'Rate peg calcs'!$B$26:$B$153,0)) -> 0.003551274778 | M129: =INDEX('Rate peg calcs'!J$26:J$153,MATCH($B129,'Rate peg calcs'!$B$26:$B$153,0)) -> 0.003219459846 | N129: =INDEX('Rate peg calcs'!K$26:K$153,MATCH($B129,'Rate peg calcs'!$B$26:$B$153,0)) -> 0.0003318149315 | O129: =INDEX('Rate peg calcs'!L$26:L$153,MATCH($B129,'Rate peg calcs'!$B$26:$B$153,0)) -> 0 | P129: =INDEX('Rate peg calcs'!M$26:M$153,MATCH($B129,'Rate peg calcs'!$B$26:$B$153,0)) -> 0 | Q129: =INDEX('Rate peg calcs'!P$26:P$153,MATCH($B129,'Rate peg calcs'!$B$26:$B$153,0)) -> 0.048 | S129: 0.00542331162
B130: ='Rate peg calcs'!B131 -> 2029 | C130: =INDEX('Rate peg calcs'!C$26:C$153,MATCH($B130,'Rate peg calcs'!$B$26:$B$153,0)) -> Metropolitan | D130: =INDEX('Rate peg calcs'!D$26:D$153,MATCH($B130,'Rate peg calcs'!$B$26:$B$153,0)) -> Sydney | E130: =INDEX('Rate peg calcs'!E$26:E$153,MATCH($B130,'Rate peg calcs'!$B$26:$B$153,0)) -> 0.03882841796 | F130: =INDEX('Rate peg calcs'!F$26:F$153,MATCH($B130,'Rate peg calcs'!$B$26:$B$153,0)) -> 0.0041 | G130: =INDEX('Rate peg calcs'!G$26:G$153,MATCH($B130,'Rate peg calcs'!$B$26:$B$153,0)) -> 0.002265590394 | H130: =INDEX('Rate peg calcs'!H$26:H$153,MATCH($B130,'Rate peg calcs'!$B$26:$B$153,0)) -> 0 | I130: =INDEX('Rate peg calcs'!N$26:N$153,MATCH($B130,'Rate peg calcs'!$B$26:$B$153,0)) -> 0 | J130: =INDEX('Rate peg calcs'!O$26:O$153,MATCH($B130,'Rate peg calcs'!$B$26:$B$153,0)) -> 0 | K130: 0.045 | L130: =INDEX('Rate peg calcs'!I$26:I$153,MATCH($B130,'Rate peg calcs'!$B$26:$B$153,0)) -> 0.01346124307 | M130: =INDEX('Rate peg calcs'!J$26:J$153,MATCH($B130,'Rate peg calcs'!$B$26:$B$153,0)) -> 0.001002314721 | N130: =INDEX('Rate peg calcs'!K$26:K$153,MATCH($B130,'Rate peg calcs'!$B$26:$B$153,0)) -> 0.01245892835 | O130: =INDEX('Rate peg calcs'!L$26:L$153,MATCH($B130,'Rate peg calcs'!$B$26:$B$153,0)) -> -0.006538478849 | P130: =INDEX('Rate peg calcs'!M$26:M$153,MATCH($B130,'Rate peg calcs'!$B$26:$B$153,0)) -> 0.006 | Q130: =INDEX('Rate peg calcs'!P$26:P$153,MATCH($B130,'Rate peg calcs'!$B$26:$B$153,0)) -> 0.051 | S130: 0.002265590394
B131: ='Rate peg calcs'!B132 -> 2038 | C131: =INDEX('Rate peg calcs'!C$26:C$153,MATCH($B131,'Rate peg calcs'!$B$26:$B$153,0)) -> Regional | D131: =INDEX('Rate peg calcs'!D$26:D$153,MATCH($B131,'Rate peg calcs'!$B$26:$B$153,0)) -> Tamworth Regional | E131: =INDEX('Rate peg calcs'!E$26:E$153,MATCH($B131,'Rate peg calcs'!$B$26:$B$153,0)) -> 0.03872464517 | F131: =INDEX('Rate peg calcs'!F$26:F$153,MATCH($B131,'Rate peg calcs'!$B$26:$B$153,0)) -> 0.0037 | G131: =INDEX('Rate peg calcs'!G$26:G$153,MATCH($B131,'Rate peg calcs'!$B$26:$B$153,0)) -> 0.006181538636 | H131: =INDEX('Rate peg calcs'!H$26:H$153,MATCH($B131,'Rate peg calcs'!$B$26:$B$153,0)) -> 0 | I131: =INDEX('Rate peg calcs'!N$26:N$153,MATCH($B131,'Rate peg calcs'!$B$26:$B$153,0)) -> 0 | J131: =INDEX('Rate peg calcs'!O$26:O$153,MATCH($B131,'Rate peg calcs'!$B$26:$B$153,0)) -> 0 | K131: 0.049 | L131: =INDEX('Rate peg calcs'!I$26:I$153,MATCH($B131,'Rate peg calcs'!$B$26:$B$153,0)) -> 0.01254440846 | M131: =INDEX('Rate peg calcs'!J$26:J$153,MATCH($B131,'Rate peg calcs'!$B$26:$B$153,0)) -> 0.0137302675 | N131: =INDEX('Rate peg calcs'!K$26:K$153,MATCH($B131,'Rate peg calcs'!$B$26:$B$153,0)) -> 0 | O131: =INDEX('Rate peg calcs'!L$26:L$153,MATCH($B131,'Rate peg calcs'!$B$26:$B$153,0)) -> 0 | P131: =INDEX('Rate peg calcs'!M$26:M$153,MATCH($B131,'Rate peg calcs'!$B$26:$B$153,0)) -> 0 | Q131: =INDEX('Rate peg calcs'!P$26:P$153,MATCH($B131,'Rate peg calcs'!$B$26:$B$153,0)) -> 0.049 | S131: 0.006181538636
B132: ='Rate peg calcs'!B133 -> 198 | C132: =INDEX('Rate peg calcs'!C$26:C$153,MATCH($B132,'Rate peg calcs'!$B$26:$B$153,0)) -> Rural | D132: =INDEX('Rate peg calcs'!D$26:D$153,MATCH($B132,'Rate peg calcs'!$B$26:$B$153,0)) -> Temora | E132: =INDEX('Rate peg calcs'!E$26:E$153,MATCH($B132,'Rate peg calcs'!$B$26:$B$153,0)) -> 0.0388443815 | F132: =INDEX('Rate peg calcs'!F$26:F$153,MATCH($B132,'Rate peg calcs'!$B$26:$B$153,0)) -> 0.0036 | G132: =INDEX('Rate peg calcs'!G$26:G$153,MATCH($B132,'Rate peg calcs'!$B$26:$B$153,0)) -> -3.960828461e-05 | H132: =INDEX('Rate peg calcs'!H$26:H$153,MATCH($B132,'Rate peg calcs'!$B$26:$B$153,0)) -> 0.002179986676 | I132: =INDEX('Rate peg calcs'!N$26:N$153,MATCH($B132,'Rate peg calcs'!$B$26:$B$153,0)) -> 0 | J132: =INDEX('Rate peg calcs'!O$26:O$153,MATCH($B132,'Rate peg calcs'!$B$26:$B$153,0)) -> 0 | K132: 0.045 | L132: =INDEX('Rate peg calcs'!I$26:I$153,MATCH($B132,'Rate peg calcs'!$B$26:$B$153,0)) -> 0 | M132: =INDEX('Rate peg calcs'!J$26:J$153,MATCH($B132,'Rate peg calcs'!$B$26:$B$153,0)) -> 0.001414093802 | N132: =INDEX('Rate peg calcs'!K$26:K$153,MATCH($B132,'Rate peg calcs'!$B$26:$B$153,0)) -> 0 | O132: =INDEX('Rate peg calcs'!L$26:L$153,MATCH($B132,'Rate peg calcs'!$B$26:$B$153,0)) -> 0 | P132: =INDEX('Rate peg calcs'!M$26:M$153,MATCH($B132,'Rate peg calcs'!$B$26:$B$153,0)) -> 0 | Q132: =INDEX('Rate peg calcs'!P$26:P$153,MATCH($B132,'Rate peg calcs'!$B$26:$B$153,0)) -> 0.045 | S132: 0.002140378391
B133: ='Rate peg calcs'!B134 -> 199 | C133: =INDEX('Rate peg calcs'!C$26:C$153,MATCH($B133,'Rate peg calcs'!$B$26:$B$153,0)) -> Rural | D133: =INDEX('Rate peg calcs'!D$26:D$153,MATCH($B133,'Rate peg calcs'!$B$26:$B$153,0)) -> Tenterfield | E133: =INDEX('Rate peg calcs'!E$26:E$153,MATCH($B133,'Rate peg calcs'!$B$26:$B$153,0)) -> 0.0388443815 | F133: =INDEX('Rate peg calcs'!F$26:F$153,MATCH($B133,'Rate peg calcs'!$B$26:$B$153,0)) -> 0.0036 | G133: =INDEX('Rate peg calcs'!G$26:G$153,MATCH($B133,'Rate peg calcs'!$B$26:$B$153,0)) -> -0.001185641807 | H133: =INDEX('Rate peg calcs'!H$26:H$153,MATCH($B133,'Rate peg calcs'!$B$26:$B$153,0)) -> 0.003293824744 | I133: =INDEX('Rate peg calcs'!N$26:N$153,MATCH($B133,'Rate peg calcs'!$B$26:$B$153,0)) -> 0 | J133: =INDEX('Rate peg calcs'!O$26:O$153,MATCH($B133,'Rate peg calcs'!$B$26:$B$153,0)) -> 0 | K133: 0.045 | L133: =INDEX('Rate peg calcs'!I$26:I$153,MATCH($B133,'Rate peg calcs'!$B$26:$B$153,0)) -> 0.01162106502 | M133: =INDEX('Rate peg calcs'!J$26:J$153,MATCH($B133,'Rate peg calcs'!$B$26:$B$153,0)) -> 0 | N133: =INDEX('Rate peg calcs'!K$26:K$153,MATCH($B133,'Rate peg calcs'!$B$26:$B$153,0)) -> 0.01162106502 | O133: =INDEX('Rate peg calcs'!L$26:L$153,MATCH($B133,'Rate peg calcs'!$B$26:$B$153,0)) -> -6.107423132e-05 | P133: =INDEX('Rate peg calcs'!M$26:M$153,MATCH($B133,'Rate peg calcs'!$B$26:$B$153,0)) -> 0.012 | Q133: =INDEX('Rate peg calcs'!P$26:P$153,MATCH($B133,'Rate peg calcs'!$B$26:$B$153,0)) -> 0.057 | S133: 0.002108182937
B134: ='Rate peg calcs'!B135 -> 59 | C134: =INDEX('Rate peg calcs'!C$26:C$153,MATCH($B134,'Rate peg calcs'!$B$26:$B$153,0)) -> Metropolitan | D134: =INDEX('Rate peg calcs'!D$26:D$153,MATCH($B134,'Rate peg calcs'!$B$26:$B$153,0)) -> The Hills | E134: =INDEX('Rate peg calcs'!E$26:E$153,MATCH($B134,'Rate peg calcs'!$B$26:$B$153,0)) -> 0.03882841796 | F134: =INDEX('Rate peg calcs'!F$26:F$153,MATCH($B134,'Rate peg calcs'!$B$26:$B$153,0)) -> 0.0041 | G134: =INDEX('Rate peg calcs'!G$26:G$153,MATCH($B134,'Rate peg calcs'!$B$26:$B$153,0)) -> 0.005686509169 | H134: =INDEX('Rate peg calcs'!H$26:H$153,MATCH($B134,'Rate peg calcs'!$B$26:$B$153,0)) -> 0 | I134: =INDEX('Rate peg calcs'!N$26:N$153,MATCH($B134,'Rate peg calcs'!$B$26:$B$153,0)) -> 0 | J134: =INDEX('Rate peg calcs'!O$26:O$153,MATCH($B134,'Rate peg calcs'!$B$26:$B$153,0)) -> 0 | K134: 0.049 | L134: =INDEX('Rate peg calcs'!I$26:I$153,MATCH($B134,'Rate peg calcs'!$B$26:$B$153,0)) -> 0.03400879959 | M134: =INDEX('Rate peg calcs'!J$26:J$153,MATCH($B134,'Rate peg calcs'!$B$26:$B$153,0)) -> 0.02227908522 | N134: =INDEX('Rate peg calcs'!K$26:K$153,MATCH($B134,'Rate peg calcs'!$B$26:$B$153,0)) -> 0.01172971437 | O134: =INDEX('Rate peg calcs'!L$26:L$153,MATCH($B134,'Rate peg calcs'!$B$26:$B$153,0)) -> 0.01070565796 | P134: =INDEX('Rate peg calcs'!M$26:M$153,MATCH($B134,'Rate peg calcs'!$B$26:$B$153,0)) -> 0.022 | Q134: =INDEX('Rate peg calcs'!P$26:P$153,MATCH($B134,'Rate peg calcs'!$B$26:$B$153,0)) -> 0.071 | S134: 0.005686509169
B135: ='Rate peg calcs'!B136 -> 202 | C135: =INDEX('Rate peg calcs'!C$26:C$153,MATCH($B135,'Rate peg calcs'!$B$26:$B$153,0)) -> Regional | D135: =INDEX('Rate peg calcs'!D$26:D$153,MATCH($B135,'Rate peg calcs'!$B$26:$B$153,0)) -> Tweed | E135: =INDEX('Rate peg calcs'!E$26:E$153,MATCH($B135,'Rate peg calcs'!$B$26:$B$153,0)) -> 0.03872464517 | F135: =INDEX('Rate peg calcs'!F$26:F$153,MATCH($B135,'Rate peg calcs'!$B$26:$B$153,0)) -> 0.0037 | G135: =INDEX('Rate peg calcs'!G$26:G$153,MATCH($B135,'Rate peg calcs'!$B$26:$B$153,0)) -> 0.003198269038 | H135: =INDEX('Rate peg calcs'!H$26:H$153,MATCH($B135,'Rate peg calcs'!$B$26:$B$153,0)) -> 0 | I135: =INDEX('Rate peg calcs'!N$26:N$153,MATCH($B135,'Rate peg calcs'!$B$26:$B$153,0)) -> 0 | J135: =INDEX('Rate peg calcs'!O$26:O$153,MATCH($B135,'Rate peg calcs'!$B$26:$B$153,0)) -> 0 | K135: 0.046 | L135: =INDEX('Rate peg calcs'!I$26:I$153,MATCH($B135,'Rate peg calcs'!$B$26:$B$153,0)) -> 0.005836275489 | M135: =INDEX('Rate peg calcs'!J$26:J$153,MATCH($B135,'Rate peg calcs'!$B$26:$B$153,0)) -> 0 | N135: =INDEX('Rate peg calcs'!K$26:K$153,MATCH($B135,'Rate peg calcs'!$B$26:$B$153,0)) -> 0.005836275489 | O135: =INDEX('Rate peg calcs'!L$26:L$153,MATCH($B135,'Rate peg calcs'!$B$26:$B$153,0)) -> -0.00935103708 | P135: =INDEX('Rate peg calcs'!M$26:M$153,MATCH($B135,'Rate peg calcs'!$B$26:$B$153,0)) -> 0 | Q135: =INDEX('Rate peg calcs'!P$26:P$153,MATCH($B135,'Rate peg calcs'!$B$26:$B$153,0)) -> 0.046 | S135: 0.003198269038
B136: ='Rate peg calcs'!B137 -> 2046 | C136: =INDEX('Rate peg calcs'!C$26:C$153,MATCH($B136,'Rate peg calcs'!$B$26:$B$153,0)) -> Rural | D136: =INDEX('Rate peg calcs'!D$26:D$153,MATCH($B136,'Rate peg calcs'!$B$26:$B$153,0)) -> Upper Hunter | E136: =INDEX('Rate peg calcs'!E$26:E$153,MATCH($B136,'Rate peg calcs'!$B$26:$B$153,0)) -> 0.0388443815 | F136: =INDEX('Rate peg calcs'!F$26:F$153,MATCH($B136,'Rate peg calcs'!$B$26:$B$153,0)) -> 0.0036 | G136: =INDEX('Rate peg calcs'!G$26:G$153,MATCH($B136,'Rate peg calcs'!$B$26:$B$153,0)) -> 0.0005147230231 | H136: =INDEX('Rate peg calcs'!H$26:H$153,MATCH($B136,'Rate peg calcs'!$B$26:$B$153,0)) -> 0.001572837402 | I136: =INDEX('Rate peg calcs'!N$26:N$153,MATCH($B136,'Rate peg calcs'!$B$26:$B$153,0)) -> 0 | J136: =INDEX('Rate peg calcs'!O$26:O$153,MATCH($B136,'Rate peg calcs'!$B$26:$B$153,0)) -> 0 | K136: 0.045 | L136: =INDEX('Rate peg calcs'!I$26:I$153,MATCH($B136,'Rate peg calcs'!$B$26:$B$153,0)) -> 0.002665918339 | M136: =INDEX('Rate peg calcs'!J$26:J$153,MATCH($B136,'Rate peg calcs'!$B$26:$B$153,0)) -> 0.002233485096 | N136: =INDEX('Rate peg calcs'!K$26:K$153,MATCH($B136,'Rate peg calcs'!$B$26:$B$153,0)) -> 0.0004324332429 | O136: =INDEX('Rate peg calcs'!L$26:L$153,MATCH($B136,'Rate peg calcs'!$B$26:$B$153,0)) -> 0 | P136: =INDEX('Rate peg calcs'!M$26:M$153,MATCH($B136,'Rate peg calcs'!$B$26:$B$153,0)) -> 0 | Q136: =INDEX('Rate peg calcs'!P$26:P$153,MATCH($B136,'Rate peg calcs'!$B$26:$B$153,0)) -> 0.045 | S136: 0.002087560425
B137: ='Rate peg calcs'!B138 -> 2035 | C137: =INDEX('Rate peg calcs'!C$26:C$153,MATCH($B137,'Rate peg calcs'!$B$26:$B$153,0)) -> Rural | D137: =INDEX('Rate peg calcs'!D$26:D$153,MATCH($B137,'Rate peg calcs'!$B$26:$B$153,0)) -> Upper Lachlan | E137: =INDEX('Rate peg calcs'!E$26:E$153,MATCH($B137,'Rate peg calcs'!$B$26:$B$153,0)) -> 0.0388443815 | F137: =INDEX('Rate peg calcs'!F$26:F$153,MATCH($B137,'Rate peg calcs'!$B$26:$B$153,0)) -> 0.0036 | G137: =INDEX('Rate peg calcs'!G$26:G$153,MATCH($B137,'Rate peg calcs'!$B$26:$B$153,0)) -> -0.0009656684697 | H137: =INDEX('Rate peg calcs'!H$26:H$153,MATCH($B137,'Rate peg calcs'!$B$26:$B$153,0)) -> 0.003119840741 | I137: =INDEX('Rate peg calcs'!N$26:N$153,MATCH($B137,'Rate peg calcs'!$B$26:$B$153,0)) -> 0 | J137: =INDEX('Rate peg calcs'!O$26:O$153,MATCH($B137,'Rate peg calcs'!$B$26:$B$153,0)) -> 0 | K137: 0.045 | L137: =INDEX('Rate peg calcs'!I$26:I$153,MATCH($B137,'Rate peg calcs'!$B$26:$B$153,0)) -> 0.0056530444 | M137: =INDEX('Rate peg calcs'!J$26:J$153,MATCH($B137,'Rate peg calcs'!$B$26:$B$153,0)) -> 0.02475997979 | N137: =INDEX('Rate peg calcs'!K$26:K$153,MATCH($B137,'Rate peg calcs'!$B$26:$B$153,0)) -> 0 | O137: =INDEX('Rate peg calcs'!L$26:L$153,MATCH($B137,'Rate peg calcs'!$B$26:$B$153,0)) -> -0.008407845973 | P137: =INDEX('Rate peg calcs'!M$26:M$153,MATCH($B137,'Rate peg calcs'!$B$26:$B$153,0)) -> 0 | Q137: =INDEX('Rate peg calcs'!P$26:P$153,MATCH($B137,'Rate peg calcs'!$B$26:$B$153,0)) -> 0.045 | S137: 0.002154172271
B138: ='Rate peg calcs'!B139 -> 204 | C138: =INDEX('Rate peg calcs'!C$26:C$153,MATCH($B138,'Rate peg calcs'!$B$26:$B$153,0)) -> Rural | D138: =INDEX('Rate peg calcs'!D$26:D$153,MATCH($B138,'Rate peg calcs'!$B$26:$B$153,0)) -> Uralla | E138: =INDEX('Rate peg calcs'!E$26:E$153,MATCH($B138,'Rate peg calcs'!$B$26:$B$153,0)) -> 0.0388443815 | F138: =INDEX('Rate peg calcs'!F$26:F$153,MATCH($B138,'Rate peg calcs'!$B$26:$B$153,0)) -> 0.0036 | G138: =INDEX('Rate peg calcs'!G$26:G$153,MATCH($B138,'Rate peg calcs'!$B$26:$B$153,0)) -> 0.001530131951 | H138: =INDEX('Rate peg calcs'!H$26:H$153,MATCH($B138,'Rate peg calcs'!$B$26:$B$153,0)) -> 0.0005570670051 | I138: =INDEX('Rate peg calcs'!N$26:N$153,MATCH($B138,'Rate peg calcs'!$B$26:$B$153,0)) -> 0 | J138: =INDEX('Rate peg calcs'!O$26:O$153,MATCH($B138,'Rate peg calcs'!$B$26:$B$153,0)) -> 0 | K138: 0.045 | L138: =INDEX('Rate peg calcs'!I$26:I$153,MATCH($B138,'Rate peg calcs'!$B$26:$B$153,0)) -> 0 | M138: =INDEX('Rate peg calcs'!J$26:J$153,MATCH($B138,'Rate peg calcs'!$B$26:$B$153,0)) -> 0 | N138: =INDEX('Rate peg calcs'!K$26:K$153,MATCH($B138,'Rate peg calcs'!$B$26:$B$153,0)) -> 0 | O138: =INDEX('Rate peg calcs'!L$26:L$153,MATCH($B138,'Rate peg calcs'!$B$26:$B$153,0)) -> 0 | P138: =INDEX('Rate peg calcs'!M$26:M$153,MATCH($B138,'Rate peg calcs'!$B$26:$B$153,0)) -> 0 | Q138: =INDEX('Rate peg calcs'!P$26:P$153,MATCH($B138,'Rate peg calcs'!$B$26:$B$153,0)) -> 0.045 | S138: 0.002087198956
B139: ='Rate peg calcs'!B140 -> 206 | C139: =INDEX('Rate peg calcs'!C$26:C$153,MATCH($B139,'Rate peg calcs'!$B$26:$B$153,0)) -> Regional | D139: =INDEX('Rate peg calcs'!D$26:D$153,MATCH($B139,'Rate peg calcs'!$B$26:$B$153,0)) -> Wagga Wagga | E139: =INDEX('Rate peg calcs'!E$26:E$153,MATCH($B139,'Rate peg calcs'!$B$26:$B$153,0)) -> 0.03872464517 | F139: =INDEX('Rate peg calcs'!F$26:F$153,MATCH($B139,'Rate peg calcs'!$B$26:$B$153,0)) -> 0.0037 | G139: =INDEX('Rate peg calcs'!G$26:G$153,MATCH($B139,'Rate peg calcs'!$B$26:$B$153,0)) -> 0.003452137673 | H139: =INDEX('Rate peg calcs'!H$26:H$153,MATCH($B139,'Rate peg calcs'!$B$26:$B$153,0)) -> 0 | I139: =INDEX('Rate peg calcs'!N$26:N$153,MATCH($B139,'Rate peg calcs'!$B$26:$B$153,0)) -> 0 | J139: =INDEX('Rate peg calcs'!O$26:O$153,MATCH($B139,'Rate peg calcs'!$B$26:$B$153,0)) -> 0 | K139: 0.046 | L139: =INDEX('Rate peg calcs'!I$26:I$153,MATCH($B139,'Rate peg calcs'!$B$26:$B$153,0)) -> 0.005408432439 | M139: =INDEX('Rate peg calcs'!J$26:J$153,MATCH($B139,'Rate peg calcs'!$B$26:$B$153,0)) -> 0.00432072227 | N139: =INDEX('Rate peg calcs'!K$26:K$153,MATCH($B139,'Rate peg calcs'!$B$26:$B$153,0)) -> 0.001087710169 | O139: =INDEX('Rate peg calcs'!L$26:L$153,MATCH($B139,'Rate peg calcs'!$B$26:$B$153,0)) -> 0.002521642416 | P139: =INDEX('Rate peg calcs'!M$26:M$153,MATCH($B139,'Rate peg calcs'!$B$26:$B$153,0)) -> 0.004 | Q139: =INDEX('Rate peg calcs'!P$26:P$153,MATCH($B139,'Rate peg calcs'!$B$26:$B$153,0)) -> 0.05 | S139: 0.003452137673
B140: ='Rate peg calcs'!B141 -> 208 | C140: =INDEX('Rate peg calcs'!C$26:C$153,MATCH($B140,'Rate peg calcs'!$B$26:$B$153,0)) -> Rural | D140: =INDEX('Rate peg calcs'!D$26:D$153,MATCH($B140,'Rate peg calcs'!$B$26:$B$153,0)) -> Walcha | E140: =INDEX('Rate peg calcs'!E$26:E$153,MATCH($B140,'Rate peg calcs'!$B$26:$B$153,0)) -> 0.0388443815 | F140: =INDEX('Rate peg calcs'!F$26:F$153,MATCH($B140,'Rate peg calcs'!$B$26:$B$153,0)) -> 0.0036 | G140: =INDEX('Rate peg calcs'!G$26:G$153,MATCH($B140,'Rate peg calcs'!$B$26:$B$153,0)) -> 0.0002855712451 | H140: =INDEX('Rate peg calcs'!H$26:H$153,MATCH($B140,'Rate peg calcs'!$B$26:$B$153,0)) -> 0.001847672869 | I140: =INDEX('Rate peg calcs'!N$26:N$153,MATCH($B140,'Rate peg calcs'!$B$26:$B$153,0)) -> 0 | J140: =INDEX('Rate peg calcs'!O$26:O$153,MATCH($B140,'Rate peg calcs'!$B$26:$B$153,0)) -> 0 | K140: 0.045 | L140: =INDEX('Rate peg calcs'!I$26:I$153,MATCH($B140,'Rate peg calcs'!$B$26:$B$153,0)) -> 0 | M140: =INDEX('Rate peg calcs'!J$26:J$153,MATCH($B140,'Rate peg calcs'!$B$26:$B$153,0)) -> 0 | N140: =INDEX('Rate peg calcs'!K$26:K$153,MATCH($B140,'Rate peg calcs'!$B$26:$B$153,0)) -> 0 | O140: =INDEX('Rate peg calcs'!L$26:L$153,MATCH($B140,'Rate peg calcs'!$B$26:$B$153,0)) -> 0 | P140: =INDEX('Rate peg calcs'!M$26:M$153,MATCH($B140,'Rate peg calcs'!$B$26:$B$153,0)) -> 0 | Q140: =INDEX('Rate peg calcs'!P$26:P$153,MATCH($B140,'Rate peg calcs'!$B$26:$B$153,0)) -> 0.045 | S140: 0.002133244115
B141: ='Rate peg calcs'!B142 -> 209 | C141: =INDEX('Rate peg calcs'!C$26:C$153,MATCH($B141,'Rate peg calcs'!$B$26:$B$153,0)) -> Rural | D141: =INDEX('Rate peg calcs'!D$26:D$153,MATCH($B141,'Rate peg calcs'!$B$26:$B$153,0)) -> Walgett | E141: =INDEX('Rate peg calcs'!E$26:E$153,MATCH($B141,'Rate peg calcs'!$B$26:$B$153,0)) -> 0.0388443815 | F141: =INDEX('Rate peg calcs'!F$26:F$153,MATCH($B141,'Rate peg calcs'!$B$26:$B$153,0)) -> 0.0036 | G141: =INDEX('Rate peg calcs'!G$26:G$153,MATCH($B141,'Rate peg calcs'!$B$26:$B$153,0)) -> 0.0004261592767 | H141: =INDEX('Rate peg calcs'!H$26:H$153,MATCH($B141,'Rate peg calcs'!$B$26:$B$153,0)) -> 0.001638655426 | I141: =INDEX('Rate peg calcs'!N$26:N$153,MATCH($B141,'Rate peg calcs'!$B$26:$B$153,0)) -> 0 | J141: =INDEX('Rate peg calcs'!O$26:O$153,MATCH($B141,'Rate peg calcs'!$B$26:$B$153,0)) -> 0 | K141: 0.045 | L141: =INDEX('Rate peg calcs'!I$26:I$153,MATCH($B141,'Rate peg calcs'!$B$26:$B$153,0)) -> 0 | M141: =INDEX('Rate peg calcs'!J$26:J$153,MATCH($B141,'Rate peg calcs'!$B$26:$B$153,0)) -> 0.0008447372867 | N141: =INDEX('Rate peg calcs'!K$26:K$153,MATCH($B141,'Rate peg calcs'!$B$26:$B$153,0)) -> 0 | O141: =INDEX('Rate peg calcs'!L$26:L$153,MATCH($B141,'Rate peg calcs'!$B$26:$B$153,0)) -> 0 | P141: =INDEX('Rate peg calcs'!M$26:M$153,MATCH($B141,'Rate peg calcs'!$B$26:$B$153,0)) -> 0 | Q141: =INDEX('Rate peg calcs'!P$26:P$153,MATCH($B141,'Rate peg calcs'!$B$26:$B$153,0)) -> 0.045 | S141: 0.002064814702
B142: ='Rate peg calcs'!B143 -> 210 | C142: =INDEX('Rate peg calcs'!C$26:C$153,MATCH($B142,'Rate peg calcs'!$B$26:$B$153,0)) -> Rural | D142: =INDEX('Rate peg calcs'!D$26:D$153,MATCH($B142,'Rate peg calcs'!$B$26:$B$153,0)) -> Warren | E142: =INDEX('Rate peg calcs'!E$26:E$153,MATCH($B142,'Rate peg calcs'!$B$26:$B$153,0)) -> 0.0388443815 | F142: =INDEX('Rate peg calcs'!F$26:F$153,MATCH($B142,'Rate peg calcs'!$B$26:$B$153,0)) -> 0.0036 | G142: =INDEX('Rate peg calcs'!G$26:G$153,MATCH($B142,'Rate peg calcs'!$B$26:$B$153,0)) -> 0.0002256417024 | H142: =INDEX('Rate peg calcs'!H$26:H$153,MATCH($B142,'Rate peg calcs'!$B$26:$B$153,0)) -> 0.001850708419 | I142: =INDEX('Rate peg calcs'!N$26:N$153,MATCH($B142,'Rate peg calcs'!$B$26:$B$153,0)) -> 0 | J142: =INDEX('Rate peg calcs'!O$26:O$153,MATCH($B142,'Rate peg calcs'!$B$26:$B$153,0)) -> 0 | K142: 0.045 | L142: =INDEX('Rate peg calcs'!I$26:I$153,MATCH($B142,'Rate peg calcs'!$B$26:$B$153,0)) -> 0 | M142: =INDEX('Rate peg calcs'!J$26:J$153,MATCH($B142,'Rate peg calcs'!$B$26:$B$153,0)) -> 0.0009737098345 | N142: =INDEX('Rate peg calcs'!K$26:K$153,MATCH($B142,'Rate peg calcs'!$B$26:$B$153,0)) -> 0 | O142: =INDEX('Rate peg calcs'!L$26:L$153,MATCH($B142,'Rate peg calcs'!$B$26:$B$153,0)) -> -0.006024664705 | P142: =INDEX('Rate peg calcs'!M$26:M$153,MATCH($B142,'Rate peg calcs'!$B$26:$B$153,0)) -> 0 | Q142: =INDEX('Rate peg calcs'!P$26:P$153,MATCH($B142,'Rate peg calcs'!$B$26:$B$153,0)) -> 0.045 | S142: 0.002076350122
B143: ='Rate peg calcs'!B144 -> 2050 | C143: =INDEX('Rate peg calcs'!C$26:C$153,MATCH($B143,'Rate peg calcs'!$B$26:$B$153,0)) -> Rural | D143: =INDEX('Rate peg calcs'!D$26:D$153,MATCH($B143,'Rate peg calcs'!$B$26:$B$153,0)) -> Warrumbungle | E143: =INDEX('Rate peg calcs'!E$26:E$153,MATCH($B143,'Rate peg calcs'!$B$26:$B$153,0)) -> 0.0388443815 | F143: =INDEX('Rate peg calcs'!F$26:F$153,MATCH($B143,'Rate peg calcs'!$B$26:$B$153,0)) -> 0.0036 | G143: =INDEX('Rate peg calcs'!G$26:G$153,MATCH($B143,'Rate peg calcs'!$B$26:$B$153,0)) -> -0.000421117735 | H143: =INDEX('Rate peg calcs'!H$26:H$153,MATCH($B143,'Rate peg calcs'!$B$26:$B$153,0)) -> 0.002478066447 | I143: =INDEX('Rate peg calcs'!N$26:N$153,MATCH($B143,'Rate peg calcs'!$B$26:$B$153,0)) -> 0 | J143: =INDEX('Rate peg calcs'!O$26:O$153,MATCH($B143,'Rate peg calcs'!$B$26:$B$153,0)) -> 0 | K143: 0.045 | L143: =INDEX('Rate peg calcs'!I$26:I$153,MATCH($B143,'Rate peg calcs'!$B$26:$B$153,0)) -> 0 | M143: =INDEX('Rate peg calcs'!J$26:J$153,MATCH($B143,'Rate peg calcs'!$B$26:$B$153,0)) -> 0 | N143: =INDEX('Rate peg calcs'!K$26:K$153,MATCH($B143,'Rate peg calcs'!$B$26:$B$153,0)) -> 0 | O143: =INDEX('Rate peg calcs'!L$26:L$153,MATCH($B143,'Rate peg calcs'!$B$26:$B$153,0)) -> 0 | P143: =INDEX('Rate peg calcs'!M$26:M$153,MATCH($B143,'Rate peg calcs'!$B$26:$B$153,0)) -> 0 | Q143: =INDEX('Rate peg calcs'!P$26:P$153,MATCH($B143,'Rate peg calcs'!$B$26:$B$153,0)) -> 0.045 | S143: 0.002056948712
B144: ='Rate peg calcs'!B145 -> 212 | C144: =INDEX('Rate peg calcs'!C$26:C$153,MATCH($B144,'Rate peg calcs'!$B$26:$B$153,0)) -> Metropolitan | D144: =INDEX('Rate peg calcs'!D$26:D$153,MATCH($B144,'Rate peg calcs'!$B$26:$B$153,0)) -> Waverley | E144: =INDEX('Rate peg calcs'!E$26:E$153,MATCH($B144,'Rate peg calcs'!$B$26:$B$153,0)) -> 0.03882841796 | F144: =INDEX('Rate peg calcs'!F$26:F$153,MATCH($B144,'Rate peg calcs'!$B$26:$B$153,0)) -> 0.0041 | G144: =INDEX('Rate peg calcs'!G$26:G$153,MATCH($B144,'Rate peg calcs'!$B$26:$B$153,0)) -> 0.007177494544 | H144: =INDEX('Rate peg calcs'!H$26:H$153,MATCH($B144,'Rate peg calcs'!$B$26:$B$153,0)) -> 0 | I144: =INDEX('Rate peg calcs'!N$26:N$153,MATCH($B144,'Rate peg calcs'!$B$26:$B$153,0)) -> 0 | J144: =INDEX('Rate peg calcs'!O$26:O$153,MATCH($B144,'Rate peg calcs'!$B$26:$B$153,0)) -> 0 | K144: 0.05 | L144: =INDEX('Rate peg calcs'!I$26:I$153,MATCH($B144,'Rate peg calcs'!$B$26:$B$153,0)) -> 0 | M144: =INDEX('Rate peg calcs'!J$26:J$153,MATCH($B144,'Rate peg calcs'!$B$26:$B$153,0)) -> 0 | N144: =INDEX('Rate peg calcs'!K$26:K$153,MATCH($B144,'Rate peg calcs'!$B$26:$B$153,0)) -> 0 | O144: =INDEX('Rate peg calcs'!L$26:L$153,MATCH($B144,'Rate peg calcs'!$B$26:$B$153,0)) -> -0.0007275470885 | P144: =INDEX('Rate peg calcs'!M$26:M$153,MATCH($B144,'Rate peg calcs'!$B$26:$B$153,0)) -> 0 | Q144: =INDEX('Rate peg calcs'!P$26:P$153,MATCH($B144,'Rate peg calcs'!$B$26:$B$153,0)) -> 0.05 | S144: 0.007177494544
B145: ='Rate peg calcs'!B146 -> 213 | C145: =INDEX('Rate peg calcs'!C$26:C$153,MATCH($B145,'Rate peg calcs'!$B$26:$B$153,0)) -> Rural | D145: =INDEX('Rate peg calcs'!D$26:D$153,MATCH($B145,'Rate peg calcs'!$B$26:$B$153,0)) -> Weddin | E145: =INDEX('Rate peg calcs'!E$26:E$153,MATCH($B145,'Rate peg calcs'!$B$26:$B$153,0)) -> 0.0388443815 | F145: =INDEX('Rate peg calcs'!F$26:F$153,MATCH($B145,'Rate peg calcs'!$B$26:$B$153,0)) -> 0.0036 | G145: =INDEX('Rate peg calcs'!G$26:G$153,MATCH($B145,'Rate peg calcs'!$B$26:$B$153,0)) -> -0.0009840832014 | H145: =INDEX('Rate peg calcs'!H$26:H$153,MATCH($B145,'Rate peg calcs'!$B$26:$B$153,0)) -> 0.003116660114 | I145: =INDEX('Rate peg calcs'!N$26:N$153,MATCH($B145,'Rate peg calcs'!$B$26:$B$153,0)) -> 0 | J145: =INDEX('Rate peg calcs'!O$26:O$153,MATCH($B145,'Rate peg calcs'!$B$26:$B$153,0)) -> 0 | K145: 0.045 | L145: =INDEX('Rate peg calcs'!I$26:I$153,MATCH($B145,'Rate peg calcs'!$B$26:$B$153,0)) -> 0.004179437169 | M145: =INDEX('Rate peg calcs'!J$26:J$153,MATCH($B145,'Rate peg calcs'!$B$26:$B$153,0)) -> 0.002025658339 | N145: =INDEX('Rate peg calcs'!K$26:K$153,MATCH($B145,'Rate peg calcs'!$B$26:$B$153,0)) -> 0.00215377883 | O145: =INDEX('Rate peg calcs'!L$26:L$153,MATCH($B145,'Rate peg calcs'!$B$26:$B$153,0)) -> 0 | P145: =INDEX('Rate peg calcs'!M$26:M$153,MATCH($B145,'Rate peg calcs'!$B$26:$B$153,0)) -> 0.002 | Q145: =INDEX('Rate peg calcs'!P$26:P$153,MATCH($B145,'Rate peg calcs'!$B$26:$B$153,0)) -> 0.047 | S145: 0.002132576912
B146: ='Rate peg calcs'!B147 -> 215 | C146: =INDEX('Rate peg calcs'!C$26:C$153,MATCH($B146,'Rate peg calcs'!$B$26:$B$153,0)) -> Rural | D146: =INDEX('Rate peg calcs'!D$26:D$153,MATCH($B146,'Rate peg calcs'!$B$26:$B$153,0)) -> Wentworth | E146: =INDEX('Rate peg calcs'!E$26:E$153,MATCH($B146,'Rate peg calcs'!$B$26:$B$153,0)) -> 0.0388443815 | F146: =INDEX('Rate peg calcs'!F$26:F$153,MATCH($B146,'Rate peg calcs'!$B$26:$B$153,0)) -> 0.0036 | G146: =INDEX('Rate peg calcs'!G$26:G$153,MATCH($B146,'Rate peg calcs'!$B$26:$B$153,0)) -> -0.0003566198396 | H146: =INDEX('Rate peg calcs'!H$26:H$153,MATCH($B146,'Rate peg calcs'!$B$26:$B$153,0)) -> 0.002456324987 | I146: =INDEX('Rate peg calcs'!N$26:N$153,MATCH($B146,'Rate peg calcs'!$B$26:$B$153,0)) -> 0 | J146: =INDEX('Rate peg calcs'!O$26:O$153,MATCH($B146,'Rate peg calcs'!$B$26:$B$153,0)) -> 0 | K146: 0.045 | L146: =INDEX('Rate peg calcs'!I$26:I$153,MATCH($B146,'Rate peg calcs'!$B$26:$B$153,0)) -> 0.00908240951 | M146: =INDEX('Rate peg calcs'!J$26:J$153,MATCH($B146,'Rate peg calcs'!$B$26:$B$153,0)) -> 0.01692226335 | N146: =INDEX('Rate peg calcs'!K$26:K$153,MATCH($B146,'Rate peg calcs'!$B$26:$B$153,0)) -> 0 | O146: =INDEX('Rate peg calcs'!L$26:L$153,MATCH($B146,'Rate peg calcs'!$B$26:$B$153,0)) -> 0.006666997148 | P146: =INDEX('Rate peg calcs'!M$26:M$153,MATCH($B146,'Rate peg calcs'!$B$26:$B$153,0)) -> 0.007 | Q146: =INDEX('Rate peg calcs'!P$26:P$153,MATCH($B146,'Rate peg calcs'!$B$26:$B$153,0)) -> 0.052 | S146: 0.002099705148
B147: ='Rate peg calcs'!B148 -> 216 | C147: =INDEX('Rate peg calcs'!C$26:C$153,MATCH($B147,'Rate peg calcs'!$B$26:$B$153,0)) -> Metropolitan | D147: =INDEX('Rate peg calcs'!D$26:D$153,MATCH($B147,'Rate peg calcs'!$B$26:$B$153,0)) -> Willoughby | E147: =INDEX('Rate peg calcs'!E$26:E$153,MATCH($B147,'Rate peg calcs'!$B$26:$B$153,0)) -> 0.03882841796 | F147: =INDEX('Rate peg calcs'!F$26:F$153,MATCH($B147,'Rate peg calcs'!$B$26:$B$153,0)) -> 0.0041 | G147: =INDEX('Rate peg calcs'!G$26:G$153,MATCH($B147,'Rate peg calcs'!$B$26:$B$153,0)) -> 0.00730465262 | H147: =INDEX('Rate peg calcs'!H$26:H$153,MATCH($B147,'Rate peg calcs'!$B$26:$B$153,0)) -> 0 | I147: =INDEX('Rate peg calcs'!N$26:N$153,MATCH($B147,'Rate peg calcs'!$B$26:$B$153,0)) -> 0 | J147: =INDEX('Rate peg calcs'!O$26:O$153,MATCH($B147,'Rate peg calcs'!$B$26:$B$153,0)) -> 0 | K147: 0.05 | L147: =INDEX('Rate peg calcs'!I$26:I$153,MATCH($B147,'Rate peg calcs'!$B$26:$B$153,0)) -> 0 | M147: =INDEX('Rate peg calcs'!J$26:J$153,MATCH($B147,'Rate peg calcs'!$B$26:$B$153,0)) -> 0.001974789141 | N147: =INDEX('Rate peg calcs'!K$26:K$153,MATCH($B147,'Rate peg calcs'!$B$26:$B$153,0)) -> 0 | O147: =INDEX('Rate peg calcs'!L$26:L$153,MATCH($B147,'Rate peg calcs'!$B$26:$B$153,0)) -> -0.000530530795 | P147: =INDEX('Rate peg calcs'!M$26:M$153,MATCH($B147,'Rate peg calcs'!$B$26:$B$153,0)) -> 0 | Q147: =INDEX('Rate peg calcs'!P$26:P$153,MATCH($B147,'Rate peg calcs'!$B$26:$B$153,0)) -> 0.05 | S147: 0.00730465262
B148: ='Rate peg calcs'!B149 -> 218 | C148: =INDEX('Rate peg calcs'!C$26:C$153,MATCH($B148,'Rate peg calcs'!$B$26:$B$153,0)) -> Regional | D148: =INDEX('Rate peg calcs'!D$26:D$153,MATCH($B148,'Rate peg calcs'!$B$26:$B$153,0)) -> Wingecarribee | E148: =INDEX('Rate peg calcs'!E$26:E$153,MATCH($B148,'Rate peg calcs'!$B$26:$B$153,0)) -> 0.03872464517 | F148: =INDEX('Rate peg calcs'!F$26:F$153,MATCH($B148,'Rate peg calcs'!$B$26:$B$153,0)) -> 0.0037 | G148: =INDEX('Rate peg calcs'!G$26:G$153,MATCH($B148,'Rate peg calcs'!$B$26:$B$153,0)) -> 0.001047005679 | H148: =INDEX('Rate peg calcs'!H$26:H$153,MATCH($B148,'Rate peg calcs'!$B$26:$B$153,0)) -> 0.001065823524 | I148: =INDEX('Rate peg calcs'!N$26:N$153,MATCH($B148,'Rate peg calcs'!$B$26:$B$153,0)) -> 0 | J148: =INDEX('Rate peg calcs'!O$26:O$153,MATCH($B148,'Rate peg calcs'!$B$26:$B$153,0)) -> 0 | K148: 0.045 | L148: =INDEX('Rate peg calcs'!I$26:I$153,MATCH($B148,'Rate peg calcs'!$B$26:$B$153,0)) -> 0.006157541559 | M148: =INDEX('Rate peg calcs'!J$26:J$153,MATCH($B148,'Rate peg calcs'!$B$26:$B$153,0)) -> 0.009919828574 | N148: =INDEX('Rate peg calcs'!K$26:K$153,MATCH($B148,'Rate peg calcs'!$B$26:$B$153,0)) -> 0 | O148: =INDEX('Rate peg calcs'!L$26:L$153,MATCH($B148,'Rate peg calcs'!$B$26:$B$153,0)) -> 0.001163383811 | P148: =INDEX('Rate peg calcs'!M$26:M$153,MATCH($B148,'Rate peg calcs'!$B$26:$B$153,0)) -> 0.001 | Q148: =INDEX('Rate peg calcs'!P$26:P$153,MATCH($B148,'Rate peg calcs'!$B$26:$B$153,0)) -> 0.046 | S148: 0.002112829203
B149: ='Rate peg calcs'!B150 -> 219 | C149: =INDEX('Rate peg calcs'!C$26:C$153,MATCH($B149,'Rate peg calcs'!$B$26:$B$153,0)) -> Metropolitan | D149: =INDEX('Rate peg calcs'!D$26:D$153,MATCH($B149,'Rate peg calcs'!$B$26:$B$153,0)) -> Wollondilly | E149: =INDEX('Rate peg calcs'!E$26:E$153,MATCH($B149,'Rate peg calcs'!$B$26:$B$153,0)) -> 0.03882841796 | F149: =INDEX('Rate peg calcs'!F$26:F$153,MATCH($B149,'Rate peg calcs'!$B$26:$B$153,0)) -> 0.0041 | G149: =INDEX('Rate peg calcs'!G$26:G$153,MATCH($B149,'Rate peg calcs'!$B$26:$B$153,0)) -> 0.001446565056 | H149: =INDEX('Rate peg calcs'!H$26:H$153,MATCH($B149,'Rate peg calcs'!$B$26:$B$153,0)) -> 0.0005870272841 | I149: =INDEX('Rate peg calcs'!N$26:N$153,MATCH($B149,'Rate peg calcs'!$B$26:$B$153,0)) -> 0 | J149: =INDEX('Rate peg calcs'!O$26:O$153,MATCH($B149,'Rate peg calcs'!$B$26:$B$153,0)) -> 0 | K149: 0.045 | L149: =INDEX('Rate peg calcs'!I$26:I$153,MATCH($B149,'Rate peg calcs'!$B$26:$B$153,0)) -> 0.03017941524 | M149: =INDEX('Rate peg calcs'!J$26:J$153,MATCH($B149,'Rate peg calcs'!$B$26:$B$153,0)) -> 0.01934516613 | N149: =INDEX('Rate peg calcs'!K$26:K$153,MATCH($B149,'Rate peg calcs'!$B$26:$B$153,0)) -> 0.01083424911 | O149: =INDEX('Rate peg calcs'!L$26:L$153,MATCH($B149,'Rate peg calcs'!$B$26:$B$153,0)) -> -0.00171719201 | P149: =INDEX('Rate peg calcs'!M$26:M$153,MATCH($B149,'Rate peg calcs'!$B$26:$B$153,0)) -> 0.009 | Q149: =INDEX('Rate peg calcs'!P$26:P$153,MATCH($B149,'Rate peg calcs'!$B$26:$B$153,0)) -> 0.054 | S149: 0.00203359234
B150: ='Rate peg calcs'!B151 -> 220 | C150: =INDEX('Rate peg calcs'!C$26:C$153,MATCH($B150,'Rate peg calcs'!$B$26:$B$153,0)) -> Regional | D150: =INDEX('Rate peg calcs'!D$26:D$153,MATCH($B150,'Rate peg calcs'!$B$26:$B$153,0)) -> Wollongong | E150: =INDEX('Rate peg calcs'!E$26:E$153,MATCH($B150,'Rate peg calcs'!$B$26:$B$153,0)) -> 0.03872464517 | F150: =INDEX('Rate peg calcs'!F$26:F$153,MATCH($B150,'Rate peg calcs'!$B$26:$B$153,0)) -> 0.0037 | G150: =INDEX('Rate peg calcs'!G$26:G$153,MATCH($B150,'Rate peg calcs'!$B$26:$B$153,0)) -> 0.004445099101 | H150: =INDEX('Rate peg calcs'!H$26:H$153,MATCH($B150,'Rate peg calcs'!$B$26:$B$153,0)) -> 0 | I150: =INDEX('Rate peg calcs'!N$26:N$153,MATCH($B150,'Rate peg calcs'!$B$26:$B$153,0)) -> 0 | J150: =INDEX('Rate peg calcs'!O$26:O$153,MATCH($B150,'Rate peg calcs'!$B$26:$B$153,0)) -> 0 | K150: 0.047 | L150: =INDEX('Rate peg calcs'!I$26:I$153,MATCH($B150,'Rate peg calcs'!$B$26:$B$153,0)) -> 0.00760748543 | M150: =INDEX('Rate peg calcs'!J$26:J$153,MATCH($B150,'Rate peg calcs'!$B$26:$B$153,0)) -> 0.001752469262 | N150: =INDEX('Rate peg calcs'!K$26:K$153,MATCH($B150,'Rate peg calcs'!$B$26:$B$153,0)) -> 0.005855016168 | O150: =INDEX('Rate peg calcs'!L$26:L$153,MATCH($B150,'Rate peg calcs'!$B$26:$B$153,0)) -> -0.003047652992 | P150: =INDEX('Rate peg calcs'!M$26:M$153,MATCH($B150,'Rate peg calcs'!$B$26:$B$153,0)) -> 0.003 | Q150: =INDEX('Rate peg calcs'!P$26:P$153,MATCH($B150,'Rate peg calcs'!$B$26:$B$153,0)) -> 0.05 | S150: 0.004445099101
B151: ='Rate peg calcs'!B152 -> 221 | C151: =INDEX('Rate peg calcs'!C$26:C$153,MATCH($B151,'Rate peg calcs'!$B$26:$B$153,0)) -> Metropolitan | D151: =INDEX('Rate peg calcs'!D$26:D$153,MATCH($B151,'Rate peg calcs'!$B$26:$B$153,0)) -> Woollahra | E151: =INDEX('Rate peg calcs'!E$26:E$153,MATCH($B151,'Rate peg calcs'!$B$26:$B$153,0)) -> 0.03882841796 | F151: =INDEX('Rate peg calcs'!F$26:F$153,MATCH($B151,'Rate peg calcs'!$B$26:$B$153,0)) -> 0.0041 | G151: =INDEX('Rate peg calcs'!G$26:G$153,MATCH($B151,'Rate peg calcs'!$B$26:$B$153,0)) -> 0.01037723402 | H151: =INDEX('Rate peg calcs'!H$26:H$153,MATCH($B151,'Rate peg calcs'!$B$26:$B$153,0)) -> 0 | I151: =INDEX('Rate peg calcs'!N$26:N$153,MATCH($B151,'Rate peg calcs'!$B$26:$B$153,0)) -> 0 | J151: =INDEX('Rate peg calcs'!O$26:O$153,MATCH($B151,'Rate peg calcs'!$B$26:$B$153,0)) -> 0 | K151: 0.053 | L151: =INDEX('Rate peg calcs'!I$26:I$153,MATCH($B151,'Rate peg calcs'!$B$26:$B$153,0)) -> 0 | M151: =INDEX('Rate peg calcs'!J$26:J$153,MATCH($B151,'Rate peg calcs'!$B$26:$B$153,0)) -> 0.0006609853403 | N151: =INDEX('Rate peg calcs'!K$26:K$153,MATCH($B151,'Rate peg calcs'!$B$26:$B$153,0)) -> 0 | O151: =INDEX('Rate peg calcs'!L$26:L$153,MATCH($B151,'Rate peg calcs'!$B$26:$B$153,0)) -> 0 | P151: =INDEX('Rate peg calcs'!M$26:M$153,MATCH($B151,'Rate peg calcs'!$B$26:$B$153,0)) -> 0 | Q151: =INDEX('Rate peg calcs'!P$26:P$153,MATCH($B151,'Rate peg calcs'!$B$26:$B$153,0)) -> 0.053 | S151: 0.01037723402
B152: ='Rate peg calcs'!B153 -> 2036 | C152: =INDEX('Rate peg calcs'!C$26:C$153,MATCH($B152,'Rate peg calcs'!$B$26:$B$153,0)) -> Rural | D152: =INDEX('Rate peg calcs'!D$26:D$153,MATCH($B152,'Rate peg calcs'!$B$26:$B$153,0)) -> Yass Valley | E152: =INDEX('Rate peg calcs'!E$26:E$153,MATCH($B152,'Rate peg calcs'!$B$26:$B$153,0)) -> 0.0388443815 | F152: =INDEX('Rate peg calcs'!F$26:F$153,MATCH($B152,'Rate peg calcs'!$B$26:$B$153,0)) -> 0.0036 | G152: =INDEX('Rate peg calcs'!G$26:G$153,MATCH($B152,'Rate peg calcs'!$B$26:$B$153,0)) -> 0.0008000914421 | H152: =INDEX('Rate peg calcs'!H$26:H$153,MATCH($B152,'Rate peg calcs'!$B$26:$B$153,0)) -> 0.001294191801 | I152: =INDEX('Rate peg calcs'!N$26:N$153,MATCH($B152,'Rate peg calcs'!$B$26:$B$153,0)) -> 0 | J152: =INDEX('Rate peg calcs'!O$26:O$153,MATCH($B152,'Rate peg calcs'!$B$26:$B$153,0)) -> 0 | K152: 0.045 | L152: =INDEX('Rate peg calcs'!I$26:I$153,MATCH($B152,'Rate peg calcs'!$B$26:$B$153,0)) -> 0.008297551352 | M152: =INDEX('Rate peg calcs'!J$26:J$153,MATCH($B152,'Rate peg calcs'!$B$26:$B$153,0)) -> 0.0127612196 | N152: =INDEX('Rate peg calcs'!K$26:K$153,MATCH($B152,'Rate peg calcs'!$B$26:$B$153,0)) -> 0 | O152: =INDEX('Rate peg calcs'!L$26:L$153,MATCH($B152,'Rate peg calcs'!$B$26:$B$153,0)) -> -0.01064731123 | P152: =INDEX('Rate peg calcs'!M$26:M$153,MATCH($B152,'Rate peg calcs'!$B$26:$B$153,0)) -> 0 | Q152: =INDEX('Rate peg calcs'!P$26:P$153,MATCH($B152,'Rate peg calcs'!$B$26:$B$153,0)) -> 0.045 | S152: 0.002094283243
B154: Note: Totals may not sum due to rounding. We round the Population factor after true-up and the final Rate Peg to 3 decimal places. All other components of the Rate Peg are unrounded.

Sheet Rate peg order (hidden)
B2: =Cover!$B$3 -> IPART Rate peg model
B4: ="Rate Peg Order for "&'Rate peg'!$D$9&"-"&RIGHT('Rate peg'!$D$9,2)+1 -> Rate Peg Order for 2024-25
B9: DO NOT DELETE
B10: ORG ID | C10: ='Rate peg calcs'!D24 -> Council | D10: ='Rate peg calcs'!P24 -> Rate Peg
D11: %
B12: =Names!I9 -> 2047 | C12: =Names!G9 -> Albury City | D12: =INDEX('Rate peg calcs'!P$26:P$153,MATCH($B12,'Rate peg calcs'!$B$26:$B$153,0))*100 -> 4.7
B13: =Names!I10 -> 2079 | C13: =Names!G10 -> Armidale Regional | D13: =INDEX('Rate peg calcs'!P$26:P$153,MATCH($B13,'Rate peg calcs'!$B$26:$B$153,0))*100 -> 4.5
B14: =Names!I11 -> 54 | C14: =Names!G11 -> Ballina Shire | D14: =INDEX('Rate peg calcs'!P$26:P$153,MATCH($B14,'Rate peg calcs'!$B$26:$B$153,0))*100 -> 4.6
B15: =Names!I12 -> 55 | C15: =Names!G12 -> Balranald Shire | D15: =INDEX('Rate peg calcs'!P$26:P$153,MATCH($B15,'Rate peg calcs'!$B$26:$B$153,0))*100 -> 4.5
B16: =Names!I13 -> 2043 | C16: =Names!G13 -> Bathurst Regional | D16: =INDEX('Rate peg calcs'!P$26:P$153,MATCH($B16,'Rate peg calcs'!$B$26:$B$153,0))*100 -> 4.8
B17: =Names!I14 -> 2099 | C17: =Names!G14 -> Bayside | D17: =INDEX('Rate peg calcs'!P$26:P$153,MATCH($B17,'Rate peg calcs'!$B$26:$B$153,0))*100 -> 4.8
B18: =Names!I15 -> 60 | C18: =Names!G15 -> Bega Valley Shire | D18: =INDEX('Rate peg calcs'!P$26:P$153,MATCH($B18,'Rate peg calcs'!$B$26:$B$153,0))*100 -> 4.9
B19: =Names!I16 -> 61 | C19: =Names!G16 -> Bellingen Shire | D19: =INDEX('Rate peg calcs'!P$26:P$153,MATCH($B19,'Rate peg calcs'!$B$26:$B$153,0))*100 -> 4.5
B20: =Names!I17 -> 62 | C20: =Names!G17 -> Berrigan Shire | D20: =INDEX('Rate peg calcs'!P$26:P$153,MATCH($B20,'Rate peg calcs'!$B$26:$B$153,0))*100 -> 4.5
B21: =Names!I18 -> 64 | C21: =Names!G18 -> Blacktown City | D21: =INDEX('Rate peg calcs'!P$26:P$153,MATCH($B21,'Rate peg calcs'!$B$26:$B$153,0))*100 -> 7.1
B22: =Names!I19 -> 65 | C22: =Names!G19 -> Bland Shire | D22: =INDEX('Rate peg calcs'!P$26:P$153,MATCH($B22,'Rate peg calcs'!$B$26:$B$153,0))*100 -> 4.5
B23: =Names!I20 -> 66 | C23: =Names!G20 -> Blayney Shire | D23: =INDEX('Rate peg calcs'!P$26:P$153,MATCH($B23,'Rate peg calcs'!$B$26:$B$153,0))*100 -> 5.7
B24: =Names!I21 -> 67 | C24: =Names!G21 -> Blue Mountains City | D24: =INDEX('Rate peg calcs'!P$26:P$153,MATCH($B24,'Rate peg calcs'!$B$26:$B$153,0))*100 -> 4.6
B25: =Names!I22 -> 68 | C25: =Names!G22 -> Bogan Shire | D25: =INDEX('Rate peg calcs'!P$26:P$153,MATCH($B25,'Rate peg calcs'!$B$26:$B$153,0))*100 -> 4.5
B26: =Names!I23 -> 72 | C26: =Names!G23 -> Bourke Shire | D26: =INDEX('Rate peg calcs'!P$26:P$153,MATCH($B26,'Rate peg calcs'!$B$26:$B$153,0))*100 -> 4.5
B27: =Names!I24 -> 73 | C27: =Names!G24 -> Brewarrina Shire | D27: =INDEX('Rate peg calcs'!P$26:P$153,MATCH($B27,'Rate peg calcs'!$B$26:$B$153,0))*100 -> 4.5
B28: =Names!I25 -> 74 | C28: =Names!G25 -> Broken Hill City | D28: =INDEX('Rate peg calcs'!P$26:P$153,MATCH($B28,'Rate peg calcs'!$B$26:$B$153,0))*100 -> 4.9
B29: =Names!I26 -> 75 | C29: =Names!G26 -> Burwood | D29: =INDEX('Rate peg calcs'!P$26:P$153,MATCH($B29,'Rate peg calcs'!$B$26:$B$153,0))*100 -> 4.8
B30: =Names!I27 -> 76 | C30: =Names!G27 -> Byron Shire | D30: =INDEX('Rate peg calcs'!P$26:P$153,MATCH($B30,'Rate peg calcs'!$B$26:$B$153,0))*100 -> 4.8
B31: =Names!I28 -> 77 | C31: =Names!G28 -> Cabonne | D31: =INDEX('Rate peg calcs'!P$26:P$153,MATCH($B31,'Rate peg calcs'!$B$26:$B$153,0))*100 -> 4.5
B32: =Names!I29 -> 78 | C32: =Names!G29 -> Camden | D32: =INDEX('Rate peg calcs'!P$26:P$153,MATCH($B32,'Rate peg calcs'!$B$26:$B$153,0))*100 -> 8.2
B33: =Names!I30 -> 79 | C33: =Names!G30 -> Campbelltown City | D33: =INDEX('Rate peg calcs'!P$26:P$153,MATCH($B33,'Rate peg calcs'!$B$26:$B$153,0))*100 -> 5.3
B34: =Names!I32 -> 2080 | C34: =Names!G32 -> Canterbury-Bankstown | D34: =INDEX('Rate peg calcs'!P$26:P$153,MATCH($B34,'Rate peg calcs'!$B$26:$B$153,0))*100 -> 4.9
B35: =Names!I33 -> 81 | C35: =Names!G33 -> Carrathool Shire | D35: =INDEX('Rate peg calcs'!P$26:P$153,MATCH($B35,'Rate peg calcs'!$B$26:$B$153,0))*100 -> 5.5
B36: =Names!I34 -> 2088 | C36: =Names!G34 -> Central Coast | D36: =INDEX('Rate peg calcs'!P$26:P$153,MATCH($B36,'Rate peg calcs'!$B$26:$B$153,0))*100 -> 4.8
B37: =Names!I35 -> 83 | C37: =Names!G35 -> Central Darling Shire | D37: =INDEX('Rate peg calcs'!P$26:P$153,MATCH($B37,'Rate peg calcs'!$B$26:$B$153,0))*100 -> 4.5
B38: =Names!I36 -> 84 | C38: =Names!G36 -> Cessnock City | D38: =INDEX('Rate peg calcs'!P$26:P$153,MATCH($B38,'Rate peg calcs'!$B$26:$B$153,0))*100 -> 5.3
B39: =Names!I31 -> 1989 | C39: =Names!G31 -> City of Canada Bay | D39: =INDEX('Rate peg calcs'!P$26:P$153,MATCH($B39,'Rate peg calcs'!$B$26:$B$153,0))*100 -> 5.3
B40: =Names!I99 -> 2089 | C40: =Names!G99 -> City of Parramatta | D40: =INDEX('Rate peg calcs'!P$26:P$153,MATCH($B40,'Rate peg calcs'!$B$26:$B$153,0))*100 -> 5.1
B41: =Names!I106 -> 184 | C41: =Names!G106 -> City of Ryde | D41: =INDEX('Rate peg calcs'!P$26:P$153,MATCH($B41,'Rate peg calcs'!$B$26:$B$153,0))*100 -> 5.1
B42: =Names!I114 -> 2029 | C42: =Names!G114 -> City of Sydney | D42: =INDEX('Rate peg calcs'!P$26:P$153,MATCH($B42,'Rate peg calcs'!$B$26:$B$153,0))*100 -> 5.1
B43: =Names!I37 -> 2037 | C43: =Names!G37 -> Clarence Valley | D43: =INDEX('Rate peg calcs'!P$26:P$153,MATCH($B43,'Rate peg calcs'!$B$26:$B$153,0))*100 -> 4.7
B44: =Names!I38 -> 85 | C44: =Names!G38 -> Cobar Shire | D44: =INDEX('Rate peg calcs'!P$26:P$153,MATCH($B44,'Rate peg calcs'!$B$26:$B$153,0))*100 -> 4.5
B45: =Names!I39 -> 86 | C45: =Names!G39 -> Coffs Harbour City | D45: =INDEX('Rate peg calcs'!P$26:P$153,MATCH($B45,'Rate peg calcs'!$B$26:$B$153,0))*100 -> 5.6
B46: =Names!I40 -> 90 | C46: =Names!G40 -> Coolamon Shire | D46: =INDEX('Rate peg calcs'!P$26:P$153,MATCH($B46,'Rate peg calcs'!$B$26:$B$153,0))*100 -> 5.9
B47: =Names!I41 -> 93 | C47: =Names!G41 -> Coonamble Shire | D47: =INDEX('Rate peg calcs'!P$26:P$153,MATCH($B47,'Rate peg calcs'!$B$26:$B$153,0))*100 -> 4.5
B48: =Names!I42 -> 2094 | C48: =Names!G42 -> Cootamundra-Gundagai Regional | D48: =INDEX('Rate peg calcs'!P$26:P$153,MATCH($B48,'Rate peg calcs'!$B$26:$B$153,0))*100 -> 4.7
B49: =Names!I43 -> 97 | C49: =Names!G43 -> Cowra Shire | D49: =INDEX('Rate peg calcs'!P$26:P$153,MATCH($B49,'Rate peg calcs'!$B$26:$B$153,0))*100 -> 4.5
B50: =Names!I44 -> 2090 | C50: =Names!G44 -> Cumberland City | D50: =INDEX('Rate peg calcs'!P$26:P$153,MATCH($B50,'Rate peg calcs'!$B$26:$B$153,0))*100 -> 5
B51: =Names!I45 -> 2098 | C51: =Names!G45 -> Dubbo Regional | D51: =INDEX('Rate peg calcs'!P$26:P$153,MATCH($B51,'Rate peg calcs'!$B$26:$B$153,0))*100 -> 5
B52: =Names!I46 -> 104 | C52: =Names!G46 -> Dungog Shire | D52: =INDEX('Rate peg calcs'!P$26:P$153,MATCH($B52,'Rate peg calcs'!$B$26:$B$153,0))*100 -> 4.5
B53: =Names!I47 -> 2091 | C53: =Names!G47 -> Edward River | D53: =INDEX('Rate peg calcs'!P$26:P$153,MATCH($B53,'Rate peg calcs'!$B$26:$B$153,0))*100 -> 4.5
B54: =Names!I48 -> 105 | C54: =Names!G48 -> Eurobodalla Shire | D54: =INDEX('Rate peg calcs'!P$26:P$153,MATCH($B54,'Rate peg calcs'!$B$26:$B$153,0))*100 -> 5.5
B55: =Names!I49 -> 107 | C55: =Names!G49 -> Fairfield City | D55: =INDEX('Rate peg calcs'!P$26:P$153,MATCH($B55,'Rate peg calcs'!$B$26:$B$153,0))*100 -> 4.9
B56: =Names!I50 -> 2092 | C56: =Names!G50 -> Federation | D56: =INDEX('Rate peg calcs'!P$26:P$153,MATCH($B56,'Rate peg calcs'!$B$26:$B$153,0))*100 -> 4.5
B57: =Names!I51 -> 108 | C57: =Names!G51 -> Forbes Shire | D57: =INDEX('Rate peg calcs'!P$26:P$153,MATCH($B57,'Rate peg calcs'!$B$26:$B$153,0))*100 -> 4.5
B58: =Names!I52 -> 2093 | C58: =Names!G52 -> Georges River | D58: =INDEX('Rate peg calcs'!P$26:P$153,MATCH($B58,'Rate peg calcs'!$B$26:$B$153,0))*100 -> 4.8
B59: =Names!I53 -> 109 | C59: =Names!G53 -> Gilgandra Shire | D59: =INDEX('Rate peg calcs'!P$26:P$153,MATCH($B59,'Rate peg calcs'!$B$26:$B$153,0))*100 -> 4.5
B60: =Names!I54 -> 2053 | C60: =Names!G54 -> Glen Innes Severn | D60: =INDEX('Rate peg calcs'!P$26:P$153,MATCH($B60,'Rate peg calcs'!$B$26:$B$153,0))*100 -> 4.8
B61: =Names!I55 -> 2032 | C61: =Names!G55 -> Goulburn Mulwaree | D61: =INDEX('Rate peg calcs'!P$26:P$153,MATCH($B61,'Rate peg calcs'!$B$26:$B$153,0))*100 -> 4.5
B62: =Names!I56 -> 2049 | C62: =Names!G56 -> Greater Hume Shire | D62: =INDEX('Rate peg calcs'!P$26:P$153,MATCH($B62,'Rate peg calcs'!$B$26:$B$153,0))*100 -> 5.2
B63: =Names!I57 -> 118 | C63: =Names!G57 -> Griffith City | D63: =INDEX('Rate peg calcs'!P$26:P$153,MATCH($B63,'Rate peg calcs'!$B$26:$B$153,0))*100 -> 4.5
B64: =Names!I58 -> 120 | C64: =Names!G58 -> Gunnedah Shire | D64: =INDEX('Rate peg calcs'!P$26:P$153,MATCH($B64,'Rate peg calcs'!$B$26:$B$153,0))*100 -> 5.6
B65: =Names!I59 -> 2039 | C65: =Names!G59 -> Gwydir Shire | D65: =INDEX('Rate peg calcs'!P$26:P$153,MATCH($B65,'Rate peg calcs'!$B$26:$B$153,0))*100 -> 4.5
B66: =Names!I60 -> 125 | C66: =Names!G60 -> Hawkesbury City | D66: =INDEX('Rate peg calcs'!P$26:P$153,MATCH($B66,'Rate peg calcs'!$B$26:$B$153,0))*100 -> 4.5
B67: =Names!I61 -> 126 | C67: =Names!G61 -> Hay Shire | D67: =INDEX('Rate peg calcs'!P$26:P$153,MATCH($B67,'Rate peg calcs'!$B$26:$B$153,0))*100 -> 4.5
B68: =Names!I62 -> 2081 | C68: =Names!G62 -> Hilltops | D68: =INDEX('Rate peg calcs'!P$26:P$153,MATCH($B68,'Rate peg calcs'!$B$26:$B$153,0))*100 -> 5.1
B69: =Names!I63 -> 129 | C69: =Names!G63 -> Hornsby Shire | D69: =INDEX('Rate peg calcs'!P$26:P$153,MATCH($B69,'Rate peg calcs'!$B$26:$B$153,0))*100 -> 4.9
B70: =Names!I64 -> 131 | C70: =Names!G64 -> Hunters Hill | D70: =INDEX('Rate peg calcs'!P$26:P$153,MATCH($B70,'Rate peg calcs'!$B$26:$B$153,0))*100 -> 5
B71: =Names!I65 -> 2083 | C71: =Names!G65 -> Inner West | D71: =INDEX('Rate peg calcs'!P$26:P$153,MATCH($B71,'Rate peg calcs'!$B$26:$B$153,0))*100 -> 4.9
B72: =Names!I66 -> 133 | C72: =Names!G66 -> Inverell Shire | D72: =INDEX('Rate peg calcs'!P$26:P$153,MATCH($B72,'Rate peg calcs'!$B$26:$B$153,0))*100 -> 4.5
B73: =Names!I67 -> 135 | C73: =Names!G67 -> Junee Shire | D73: =INDEX('Rate peg calcs'!P$26:P$153,MATCH($B73,'Rate peg calcs'!$B$26:$B$153,0))*100 -> 4.5
B74: =Names!I68 -> 136 | C74: =Names!G68 -> Kempsey Shire | D74: =INDEX('Rate peg calcs'!P$26:P$153,MATCH($B74,'Rate peg calcs'!$B$26:$B$153,0))*100 -> 4.7
B75: =Names!I69 -> 137 | C75: =Names!G69 -> Kiama Municipal | D75: =INDEX('Rate peg calcs'!P$26:P$153,MATCH($B75,'Rate peg calcs'!$B$26:$B$153,0))*100 -> 4.5
B76: =Names!I70 -> 139 | C76: =Names!G70 -> Ku-ring-gai | D76: =INDEX('Rate peg calcs'!P$26:P$153,MATCH($B76,'Rate peg calcs'!$B$26:$B$153,0))*100 -> 5.2
B77: =Names!I71 -> 140 | C77: =Names!G71 -> Kyogle | D77: =INDEX('Rate peg calcs'!P$26:P$153,MATCH($B77,'Rate peg calcs'!$B$26:$B$153,0))*100 -> 4.7
B78: =Names!I72 -> 141 | C78: =Names!G72 -> Lachlan Shire | D78: =INDEX('Rate peg calcs'!P$26:P$153,MATCH($B78,'Rate peg calcs'!$B$26:$B$153,0))*100 -> 4.5
B79: =Names!I73 -> 142 | C79: =Names!G73 -> Lake Macquarie City | D79: =INDEX('Rate peg calcs'!P$26:P$153,MATCH($B79,'Rate peg calcs'!$B$26:$B$153,0))*100 -> 5.6
B80: =Names!I74 -> 143 | C80: =Names!G74 -> Lane Cove | D80: =INDEX('Rate peg calcs'!P$26:P$153,MATCH($B80,'Rate peg calcs'!$B$26:$B$153,0))*100 -> 4.9
B81: =Names!I75 -> 144 | C81: =Names!G75 -> Leeton Shire | D81: =INDEX('Rate peg calcs'!P$26:P$153,MATCH($B81,'Rate peg calcs'!$B$26:$B$153,0))*100 -> 4.5
B82: =Names!I76 -> 146 | C82: =Names!G76 -> Lismore City | D82: =INDEX('Rate peg calcs'!P$26:P$153,MATCH($B82,'Rate peg calcs'!$B$26:$B$153,0))*100 -> 4.7
B83: =Names!I77 -> 2044 | C83: =Names!G77 -> Lithgow City | D83: =INDEX('Rate peg calcs'!P$26:P$153,MATCH($B83,'Rate peg calcs'!$B$26:$B$153,0))*100 -> 4.5
B84: =Names!I78 -> 147 | C84: =Names!G78 -> Liverpool City | D84: =INDEX('Rate peg calcs'!P$26:P$153,MATCH($B84,'Rate peg calcs'!$B$26:$B$153,0))*100 -> 5
B85: =Names!I79 -> 2040 | C85: =Names!G79 -> Liverpool Plains Shire | D85: =INDEX('Rate peg calcs'!P$26:P$153,MATCH($B85,'Rate peg calcs'!$B$26:$B$153,0))*100 -> 4.8
B86: =Names!I80 -> 148 | C86: =Names!G80 -> Lockhart Shire | D86: =INDEX('Rate peg calcs'!P$26:P$153,MATCH($B86,'Rate peg calcs'!$B$26:$B$153,0))*100 -> 7.2
B87: =Names!I81 -> 150 | C87: =Names!G81 -> Maitland City | D87: =INDEX('Rate peg calcs'!P$26:P$153,MATCH($B87,'Rate peg calcs'!$B$26:$B$153,0))*100 -> 5
B88: =Names!I82 -> 2084 | C88: =Names!G82 -> Mid-Coast | D88: =INDEX('Rate peg calcs'!P$26:P$153,MATCH($B88,'Rate peg calcs'!$B$26:$B$153,0))*100 -> 5.2
B89: =Names!I83 -> 2042 | C89: =Names!G83 -> Mid-Western Regional | D89: =INDEX('Rate peg calcs'!P$26:P$153,MATCH($B89,'Rate peg calcs'!$B$26:$B$153,0))*100 -> 4.5
B90: =Names!I84 -> 155 | C90: =Names!G84 -> Moree Plains Shire | D90: =INDEX('Rate peg calcs'!P$26:P$153,MATCH($B90,'Rate peg calcs'!$B$26:$B$153,0))*100 -> 4.5
B91: =Names!I85 -> 156 | C91: =Names!G85 -> Mosman | D91: =INDEX('Rate peg calcs'!P$26:P$153,MATCH($B91,'Rate peg calcs'!$B$26:$B$153,0))*100 -> 5.3
B92: =Names!I86 -> 2085 | C92: =Names!G86 -> Murray River | D92: =INDEX('Rate peg calcs'!P$26:P$153,MATCH($B92,'Rate peg calcs'!$B$26:$B$153,0))*100 -> 4.7
B93: =Names!I87 -> 2086 | C93: =Names!G87 -> Murrumbidgee | D93: =INDEX('Rate peg calcs'!P$26:P$153,MATCH($B93,'Rate peg calcs'!$B$26:$B$153,0))*100 -> 4.5
B94: =Names!I88 -> 162 | C94: =Names!G88 -> Muswellbrook Shire | D94: =INDEX('Rate peg calcs'!P$26:P$153,MATCH($B94,'Rate peg calcs'!$B$26:$B$153,0))*100 -> 4.5
B95: =Names!I89 -> 163 | C95: =Names!G89 -> Nambucca Valley | D95: =INDEX('Rate peg calcs'!P$26:P$153,MATCH($B95,'Rate peg calcs'!$B$26:$B$153,0))*100 -> 4.5
B96: =Names!I90 -> 164 | C96: =Names!G90 -> Narrabri Shire | D96: =INDEX('Rate peg calcs'!P$26:P$153,MATCH($B96,'Rate peg calcs'!$B$26:$B$153,0))*100 -> 4.5
B97: =Names!I91 -> 165 | C97: =Names!G91 -> Narrandera Shire | D97: =INDEX('Rate peg calcs'!P$26:P$153,MATCH($B97,'Rate peg calcs'!$B$26:$B$153,0))*100 -> 4.5
B98: =Names!I92 -> 166 | C98: =Names!G92 -> Narromine Shire | D98: =INDEX('Rate peg calcs'!P$26:P$153,MATCH($B98,'Rate peg calcs'!$B$26:$B$153,0))*100 -> 4.5
B99: =Names!I93 -> 167 | C99: =Names!G93 -> Newcastle City | D99: =INDEX('Rate peg calcs'!P$26:P$153,MATCH($B99,'Rate peg calcs'!$B$26:$B$153,0))*100 -> 5.2
B100: =Names!I94 -> 168 | C100: =Names!G94 -> North Sydney | D100: =INDEX('Rate peg calcs'!P$26:P$153,MATCH($B100,'Rate peg calcs'!$B$26:$B$153,0))*100 -> 5
B101: =Names!I95 -> 2087 | C101: =Names!G95 -> Northern Beaches | D101: =INDEX('Rate peg calcs'!P$26:P$153,MATCH($B101,'Rate peg calcs'!$B$26:$B$153,0))*100 -> 4.9
B102: =Names!I96 -> 2045 | C102: =Names!G96 -> Oberon | D102: =INDEX('Rate peg calcs'!P$26:P$153,MATCH($B102,'Rate peg calcs'!$B$26:$B$153,0))*100 -> 5.2
B103: =Names!I97 -> 172 | C103: =Names!G97 -> Orange City | D103: =INDEX('Rate peg calcs'!P$26:P$153,MATCH($B103,'Rate peg calcs'!$B$26:$B$153,0))*100 -> 4.7
B104: =Names!I98 -> 173 | C104: =Names!G98 -> Parkes Shire | D104: =INDEX('Rate peg calcs'!P$26:P$153,MATCH($B104,'Rate peg calcs'!$B$26:$B$153,0))*100 -> 4.5
B105: =Names!I100 -> 176 | C105: =Names!G100 -> Penrith City | D105: =INDEX('Rate peg calcs'!P$26:P$153,MATCH($B105,'Rate peg calcs'!$B$26:$B$153,0))*100 -> 4.8
B106: =Names!I101 -> 124 | C106: =Names!G101 -> Port Macquarie-Hastings | D106: =INDEX('Rate peg calcs'!P$26:P$153,MATCH($B106,'Rate peg calcs'!$B$26:$B$153,0))*100 -> 4.6
B107: =Names!I102 -> 178 | C107: =Names!G102 -> Port Stephens | D107: =INDEX('Rate peg calcs'!P$26:P$153,MATCH($B107,'Rate peg calcs'!$B$26:$B$153,0))*100 -> 4.8
B108: =Names!I103 -> 2095 | C108: =Names!G103 -> Queanbeyan-Palerang Regional | D108: =INDEX('Rate peg calcs'!P$26:P$153,MATCH($B108,'Rate peg calcs'!$B$26:$B$153,0))*100 -> 4.5
B109: =Names!I104 -> 181 | C109: =Names!G104 -> Randwick City | D109: =INDEX('Rate peg calcs'!P$26:P$153,MATCH($B109,'Rate peg calcs'!$B$26:$B$153,0))*100 -> 4.9
B110: =Names!I105 -> 1981 | C110: =Names!G105 -> Richmond Valley | D110: =INDEX('Rate peg calcs'!P$26:P$153,MATCH($B110,'Rate peg calcs'!$B$26:$B$153,0))*100 -> 4.6
B111: =Names!I107 -> 188 | C111: =Names!G107 -> Shellharbour City | D111: =INDEX('Rate peg calcs'!P$26:P$153,MATCH($B111,'Rate peg calcs'!$B$26:$B$153,0))*100 -> 6.2
B112: =Names!I108 -> 189 | C112: =Names!G108 -> Shoalhaven City | D112: =INDEX('Rate peg calcs'!P$26:P$153,MATCH($B112,'Rate peg calcs'!$B$26:$B$153,0))*100 -> 4.5
B113: =Names!I109 -> 190 | C113: =Names!G109 -> Singleton | D113: =INDEX('Rate peg calcs'!P$26:P$153,MATCH($B113,'Rate peg calcs'!$B$26:$B$153,0))*100 -> 5.7
B114: =Names!I110 -> 2096 | C114: =Names!G110 -> Snowy Monaro Regional | D114: =INDEX('Rate peg calcs'!P$26:P$153,MATCH($B114,'Rate peg calcs'!$B$26:$B$153,0))*100 -> 5.2
B115: =Names!I111 -> 2097 | C115: =Names!G111 -> Snowy Valleys | D115: =INDEX('Rate peg calcs'!P$26:P$153,MATCH($B115,'Rate peg calcs'!$B$26:$B$153,0))*100 -> 5
B116: =Names!I112 -> 193 | C116: =Names!G112 -> Strathfield | D116: =INDEX('Rate peg calcs'!P$26:P$153,MATCH($B116,'Rate peg calcs'!$B$26:$B$153,0))*100 -> 5
B117: =Names!I113 -> 194 | C117: =Names!G113 -> Sutherland Shire | D117: =INDEX('Rate peg calcs'!P$26:P$153,MATCH($B117,'Rate peg calcs'!$B$26:$B$153,0))*100 -> 4.8
B118: =Names!I115 -> 2038 | C118: =Names!G115 -> Tamworth Regional | D118: =INDEX('Rate peg calcs'!P$26:P$153,MATCH($B118,'Rate peg calcs'!$B$26:$B$153,0))*100 -> 4.9
B119: =Names!I116 -> 198 | C119: =Names!G116 -> Temora Shire | D119: =INDEX('Rate peg calcs'!P$26:P$153,MATCH($B119,'Rate peg calcs'!$B$26:$B$153,0))*100 -> 4.5
B120: =Names!I117 -> 199 | C120: =Names!G117 -> Tenterfield Shire | D120: =INDEX('Rate peg calcs'!P$26:P$153,MATCH($B120,'Rate peg calcs'!$B$26:$B$153,0))*100 -> 5.7
B121: =Names!I118 -> 59 | C121: =Names!G118 -> The Hills Shire | D121: =INDEX('Rate peg calcs'!P$26:P$153,MATCH($B121,'Rate peg calcs'!$B$26:$B$153,0))*100 -> 7.1
B122: =Names!I119 -> 202 | C122: =Names!G119 -> Tweed Shire | D122: =INDEX('Rate peg calcs'!P$26:P$153,MATCH($B122,'Rate peg calcs'!$B$26:$B$153,0))*100 -> 4.6
B123: =Names!I120 -> 2046 | C123: =Names!G120 -> Upper Hunter Shire | D123: =INDEX('Rate peg calcs'!P$26:P$153,MATCH($B123,'Rate peg calcs'!$B$26:$B$153,0))*100 -> 4.5
B124: =Names!I121 -> 2035 | C124: =Names!G121 -> Upper Lachlan Shire | D124: =INDEX('Rate peg calcs'!P$26:P$153,MATCH($B124,'Rate peg calcs'!$B$26:$B$153,0))*100 -> 4.5
B125: =Names!I122 -> 204 | C125: =Names!G122 -> Uralla Shire | D125: =INDEX('Rate peg calcs'!P$26:P$153,MATCH($B125,'Rate peg calcs'!$B$26:$B$153,0))*100 -> 4.5
B126: =Names!I123 -> 206 | C126: =Names!G123 -> Wagga Wagga City | D126: =INDEX('Rate peg calcs'!P$26:P$153,MATCH($B126,'Rate peg calcs'!$B$26:$B$153,0))*100 -> 5
B127: =Names!I124 -> 208 | C127: =Names!G124 -> Walcha | D127: =INDEX('Rate peg calcs'!P$26:P$153,MATCH($B127,'Rate peg calcs'!$B$26:$B$153,0))*100 -> 4.5
B128: =Names!I125 -> 209 | C128: =Names!G125 -> Walgett Shire | D128: =INDEX('Rate peg calcs'!P$26:P$153,MATCH($B128,'Rate peg calcs'!$B$26:$B$153,0))*100 -> 4.5
B129: =Names!I126 -> 210 | C129: =Names!G126 -> Warren Shire | D129: =INDEX('Rate peg calcs'!P$26:P$153,MATCH($B129,'Rate peg calcs'!$B$26:$B$153,0))*100 -> 4.5
B130: =Names!I127 -> 2050 | C130: =Names!G127 -> Warrumbungle Shire | D130: =INDEX('Rate peg calcs'!P$26:P$153,MATCH($B130,'Rate peg calcs'!$B$26:$B$153,0))*100 -> 4.5
B131: =Names!I128 -> 212 | C131: =Names!G128 -> Waverley | D131: =INDEX('Rate peg calcs'!P$26:P$153,MATCH($B131,'Rate peg calcs'!$B$26:$B$153,0))*100 -> 5
B132: =Names!I129 -> 213 | C132: =Names!G129 -> Weddin Shire | D132: =INDEX('Rate peg calcs'!P$26:P$153,MATCH($B132,'Rate peg calcs'!$B$26:$B$153,0))*100 -> 4.7
B133: =Names!I130 -> 215 | C133: =Names!G130 -> Wentworth Shire | D133: =INDEX('Rate peg calcs'!P$26:P$153,MATCH($B133,'Rate peg calcs'!$B$26:$B$153,0))*100 -> 5.2
B134: =Names!I131 -> 216 | C134: =Names!G131 -> Willoughby City | D134: =INDEX('Rate peg calcs'!P$26:P$153,MATCH($B134,'Rate peg calcs'!$B$26:$B$153,0))*100 -> 5
B135: =Names!I132 -> 218 | C135: =Names!G132 -> Wingecarribee Shire | D135: =INDEX('Rate peg calcs'!P$26:P$153,MATCH($B135,'Rate peg calcs'!$B$26:$B$153,0))*100 -> 4.6
B136: =Names!I133 -> 219 | C136: =Names!G133 -> Wollondilly Shire | D136: =INDEX('Rate peg calcs'!P$26:P$153,MATCH($B136,'Rate peg calcs'!$B$26:$B$153,0))*100 -> 5.4
B137: =Names!I134 -> 220 | C137: =Names!G134 -> Wollongong City | D137: =INDEX('Rate peg calcs'!P$26:P$153,MATCH($B137,'Rate peg calcs'!$B$26:$B$153,0))*100 -> 5
B138: =Names!I135 -> 221 | C138: =Names!G135 -> Woollahra Municipal | D138: =INDEX('Rate peg calcs'!P$26:P$153,MATCH($B138,'Rate peg calcs'!$B$26:$B$153,0))*100 -> 5.3
B139: =Names!I136 -> 2036 | C139: =Names!G136 -> Yass Valley | D139: =INDEX('Rate peg calcs'!P$26:P$153,MATCH($B139,'Rate peg calcs'!$B$26:$B$153,0))*100 -> 4.5

Sheet Rate peg calcs
B2: =Cover!$B$3 -> IPART Rate peg model
B4: ="Calculation of the rate Peg for "&'Rate peg'!$D$9&"-"&RIGHT('Rate peg'!$D$9,2)+1 -> Calculation of the rate Peg for 2024-25
B5: Rate peg from 1 July | D5: ='Rate peg'!D9 -> 2024
B7: BCC and superannuation catch-up | H7: Summary of outcomes (ranges)
D8: Metropolitan | E8: Regional | F8: Rural | I8: =E24 -> BCC | J8: =K24 -> Population factor before true-up | K8: =L24 -> Census true-up | L8: =M24 -> Population factor after true-up | M8: =G24 -> ESL factor (excl subsidy catch-up) | N8: =H24 -> ESL subsidy catch-up adjustment | O8: =F24 -> Super-annuation catch-up adjustment | P8: =N24 -> Other adjustment (placeholder) | Q8: Rate Peg | R8: =Q24 -> Rate peg excl population factor (after true-up) | T8: ESL factor + subsidy catch-up adjustment | U8: =U24 -> ESL factor + subsidy catch-up adjustment | W8: Councils with catch-up adjustment
B9: BCC | D9: =INDEX('BCC calcs'!$J$34:$J$41,MATCH($D$5,'BCC calcs'!$B$34:$B$41,0)) -> 0.03882841796 | E9: =INDEX('BCC calcs'!$J$46:$J$53,MATCH($D$5,'BCC calcs'!$B$46:$B$53,0)) -> 0.03872464517 | F9: =INDEX('BCC calcs'!$J$58:$J$65,MATCH($D$5,'BCC calcs'!$B$58:$B$65,0)) -> 0.0388443815 | X9: =X25 -> 2024-25 | Y9: =Y25 -> 2025-26 | Z9: =Z25 -> 2026-27 | AA9: =AA25 -> 2027-28 | AB9: =AB25 -> 2028-29
B10: One-off superannuation catch-up | D10: =IF('Rate peg'!$D$9=2024,SUM('BCC Inputs'!$M$38:$M$39),0) -> 0.01 | E10: =D10 -> 0.01 | F10: =E10 -> 0.01 | H10: Maximum | T10: =H10 -> Maximum | W10: Number
B11: Employee cost weight | D11: =TRANSPOSE('BCC Inputs'!$F$124:$F$126) -> 0.41 | E11: 0.37 | F11: 0.36 | H11: Metropolitan | I11: =TRANSPOSE($D$9:$F$9) -> 0.03882841796 | J11: =_xlfn.MAXIFS(K$26:K$153,$C$26:$C$153,$H11) -> 0.01461574603 | K11: 0.01828521694 | L11: 0.027 | M11: =_xlfn.MAXIFS(G$26:G$153,$C$26:$C$153,$H11) -> 0.01211310559 | N11: 0.0005870272841 | O11: =TRANSPOSE($D$12:$F$12) -> 0.0041 | P11: =_xlfn.MAXIFS(N$26:N$153,$C$26:$C$153,$H11) -> 0 | Q11: =_xlfn.MAXIFS(P$26:P$153,$C$26:$C$153,$H11) -> 0.082 | R11: 0.055 | T11: Metropolitan | U11: =_xlfn.MAXIFS(U$26:U$153,$C$26:$C$153,$H11) -> 0.01211310559 | W11: =H11 -> Metropolitan | X11: =COUNTIFS($C$26:$C$153,$W11,X$26:X$153,">0") -> 1 | Y11: 0 | Z11: 0 | AA11: 0 | AB11: 0
B12: Superannuation catch-up in rate peg | D12: =D11*D10 -> 0.0041 | E12: =E11*E10 -> 0.0037 | F12: 0.0036 | H12: Regional | I12: 0.03872464517 | J12: 0.01453443665 | K12: 0.008013874078 | L12: 0.016 | M12: 0.006496561824 | N12: 0.002777898102 | O12: 0.0037 | P12: =_xlfn.MAXIFS(N$26:N$153,$C$26:$C$153,$H12) -> 0 | Q12: 0.062 | R12: 0.049 | T12: Regional | U12: =_xlfn.MAXIFS(U$26:U$153,$C$26:$C$153,$H12) -> 0.006496561824 | W12: =H12 -> Regional | X12: 12 | Y12: 0 | Z12: 0 | AA12: 0 | AB12: 0
B13: Rounding factor | D13: 3 | H13: Rural | I13: 0.0388443815 | J13: 0.01565646315 | K13: 0.01607310601 | L13: 0.027 | M13: 0.002837791445 | N13: 0.009575066154 | O13: 0.0036 | P13: =_xlfn.MAXIFS(N$26:N$153,$C$26:$C$153,$H13) -> 0 | Q13: 0.072 | R13: 0.045 | T13: Rural | U13: =_xlfn.MAXIFS(U$26:U$153,$C$26:$C$153,$H13) -> 0.002837791445 | W13: =H13 -> Rural | X13: 54 | Y13: 0 | Z13: 0 | AA13: 0 | AB13: 0
H14: Minimum | T14: Minimum | W14: Total | X14: =SUM(X11:X13) -> 67 | Y14: =SUM(Y11:Y13) -> 0 | Z14: =SUM(Z11:Z13) -> 0 | AA14: =SUM(AA11:AA13) -> 0 | AB14: =SUM(AB11:AB13) -> 0
H15: =H11 -> Metropolitan | I15: 0.03882841796 | J15: =_xlfn.MINIFS(K$26:K$153,$C$26:$C$153,$H15) -> 0 | K15: -0.006538478849 | L15: 0 | M15: =_xlfn.MINIFS(G$26:G$153,$C$26:$C$153,$H15) -> 0.001446565056 | N15: 0 | O15: =O11 -> 0.0041 | P15: =_xlfn.MINIFS(N$26:N$153,$C$26:$C$153,$H15) -> 0 | Q15: =_xlfn.MINIFS(P$26:P$153,$C$26:$C$153,$H15) -> 0.045 | R15: 0.045 | T15: Metropolitan | U15: =_xlfn.MINIFS(U$26:U$153,$C$26:$C$153,$H15) -> 0.001859654055 | W15: Percentage
H16: =H12 -> Regional | I16: 0.03872464517 | J16: 0 | K16: -0.0140425121 | L16: 0 | M16: -0.0006264612932 | N16: 0 | O16: =O12 -> 0.0037 | P16: =_xlfn.MINIFS(N$26:N$153,$C$26:$C$153,$H16) -> 0 | Q16: 0.045 | R16: 0.045 | T16: Regional | U16: =_xlfn.MINIFS(U$26:U$153,$C$26:$C$153,$H16) -> 0.00207568884 | W16: =W11 -> Metropolitan | X16: =X11/COUNTIFS($C$26:$C$153,$W11) -> 0.02941176471 | Y16: 0 | Z16: 0 | AA16: 0 | AB16: 0
H17: =H13 -> Rural | I17: =I13 -> 0.0388443815 | J17: 0 | K17: -0.01556711821 | L17: 0 | M17: -0.007429017086 | N17: 0 | O17: =O13 -> 0.0036 | P17: =_xlfn.MINIFS(N$26:N$153,$C$26:$C$153,$H17) -> 0 | Q17: 0.045 | R17: 0.045 | T17: Rural | U17: =_xlfn.MINIFS(U$26:U$153,$C$26:$C$153,$H17) -> 0.002056948712 | W17: =W12 -> Regional | X17: 0.3243243243 | Y17: 0 | Z17: 0 | AA17: 0 | AB17: 0
W18: =W13 -> Rural | X18: 0.9473684211 | Y18: 0 | Z18: 0 | AA18: 0 | AB18: 0
W19: =W14 -> Total | X19: =X14/COUNT($P$26:$P$153) -> 0.5234375 | Y19: =Y14/COUNT($P$26:$P$153) -> 0 | Z19: =Z14/COUNT($P$26:$P$153) -> 0 | AA19: =AA14/COUNT($P$26:$P$153) -> 0 | AB19: =AB14/COUNT($P$26:$P$153) -> 0
B20: Rounding rules: We round the Population factor after true-up to 3 decimal places and the final Rate Peg to 3 decimal places. All other components of the Rate Peg are unrounded.
B24: ='Supp val'!B15 -> Org. Id | D24: Council | E24: BCC | F24: Super-annuation catch-up adjustment | G24: ESL factor (excl subsidy catch-up) | H24: ESL subsidy catch-up adjustment | I24: Change in population | J24: Supplementary valuations percentage | K24: Population factor before true-up | L24: Census true-up | M24: Population factor after true-up | N24: Other adjustment (placeholder) | O24: Productivity factor | P24: Rate Peg | Q24: Rate peg excl population factor (after true-up) | U24: ESL factor + subsidy catch-up adjustment | X24: % of remaining ESL subsidy included in rate peg
E25: unrounded | F25: unrounded | G25: unrounded | H25: unrounded | I25: unrounded | J25: unrounded | K25: unrounded | L25: unrounded | M25: rounded | N25: unrounded | O25: unrounded | P25: rounded | X25: ='ESL data'!I13 -> 2024-25 | Y25: ='ESL data'!J13 -> 2025-26 | Z25: ='ESL data'!K13 -> 2026-27 | AA25: ='ESL data'!L13 -> 2027-28 | AB25: ='ESL data'!M13 -> 2028-29
B26: =Names!I9 -> 2047 | C26: =INDEX(Names!$K$9:$K$136,MATCH(B26,Names!$I$9:$I$136,0)) -> Regional | D26: =Names!F9 -> Albury | E26: =INDEX($D$9:$F$9,MATCH(C26,$D$8:$F$8,0)) -> 0.03872464517 | F26: =INDEX($D$12:$F$12,MATCH(C26,$D$8:$F$8,0)) -> 0.0037 | G26: =INDEX('ESL calcs'!$Z$12:$AD$139,MATCH($B26,'ESL calcs'!$C$12:$C$139,0),MATCH($D$5,'ESL calcs'!$Z$10:$AD$10,0)) -> 0.0033945965 | H26: =INDEX('ESL calcs'!$BB$12:$BF$139,MATCH($B26,'ESL calcs'!$C$12:$C$139,0),MATCH($D$5,'ESL calcs'!$BB$10:$BF$10,0)) -> 0 | I26: =INDEX('Pop calcs'!$D14:$I14,MATCH($D$5,'Pop calcs'!$D$12:$I$12,0)) -> 0.0100292669 | J26: =INDEX('Pop calcs'!$K14:$P14,MATCH($D$5,'Pop calcs'!$K$12:$P$12,0)) -> 0.01504696804 | K26: =IFERROR(MAX(0,I26-J26),0) -> 0 | L26: =IFERROR(INDEX('Pop calcs'!$Y14:$Z14,MATCH($D$5,'Pop calcs'!$Y$12:$Z$12,0)),0) -> 0.001266010948 | M26: =IFERROR(MAX(0,ROUND(K26+L26,$D$13)),".") -> 0.001 | N26: 0 | O26: 0 | P26: =M26+ROUND(E26+F26+G26+H26+N26-O26,$D$13) -> 0.047 | Q26: =P26-M26 -> 0.046 | U26: =SUM(G26:H26) -> 0.0033945965 | X26: 0
B27: =Names!I10 -> 2079 | C27: =INDEX(Names!$K$9:$K$136,MATCH(B27,Names!$I$9:$I$136,0)) -> Regional | D27: =Names!F10 -> Armidale Regional | E27: 0.03872464517 | F27: 0.0037 | G27: =INDEX('ESL calcs'!$Z$12:$AD$139,MATCH($B27,'ESL calcs'!$C$12:$C$139,0),MATCH($D$5,'ESL calcs'!$Z$10:$AD$10,0)) -> 0.002461259521 | H27: =INDEX('ESL calcs'!$BB$12:$BF$139,MATCH($B27,'ESL calcs'!$C$12:$C$139,0),MATCH($D$5,'ESL calcs'!$BB$10:$BF$10,0)) -> 0 | I27: =INDEX('Pop calcs'!$D15:$I15,MATCH($D$5,'Pop calcs'!$D$12:$I$12,0)) -> 0 | J27: =INDEX('Pop calcs'!$K15:$P15,MATCH($D$5,'Pop calcs'!$K$12:$P$12,0)) -> 0.006465952718 | K27: 0 | L27: =IFERROR(INDEX('Pop calcs'!$Y15:$Z15,MATCH($D$5,'Pop calcs'!$Y$12:$Z$12,0)),0) -> 0 | M27: 0 | N27: 0 | O27: 0 | P27: =M27+ROUND(E27+F27+G27+H27+N27-O27,$D$13) -> 0.045 | Q27: 0.045 | U27: 0.002461259521 | X27: 0
B28: =Names!I11 -> 54 | C28: =INDEX(Names!$K$9:$K$136,MATCH(B28,Names!$I$9:$I$136,0)) -> Regional | D28: =Names!F11 -> Ballina | E28: 0.03872464517 | F28: 0.0037 | G28: =INDEX('ESL calcs'!$Z$12:$AD$139,MATCH($B28,'ESL calcs'!$C$12:$C$139,0),MATCH($D$5,'ESL calcs'!$Z$10:$AD$10,0)) -> 0.002957404284 | H28: =INDEX('ESL calcs'!$BB$12:$BF$139,MATCH($B28,'ESL calcs'!$C$12:$C$139,0),MATCH($D$5,'ESL calcs'!$BB$10:$BF$10,0)) -> 0 | I28: =INDEX('Pop calcs'!$D16:$I16,MATCH($D$5,'Pop calcs'!$D$12:$I$12,0)) -> 0.0127349909 | J28: =INDEX('Pop calcs'!$K16:$P16,MATCH($D$5,'Pop calcs'!$K$12:$P$12,0)) -> 0.01294571883 | K28: 0 | L28: =IFERROR(INDEX('Pop calcs'!$Y16:$Z16,MATCH($D$5,'Pop calcs'!$Y$12:$Z$12,0)),0) -> 0.001025961994 | M28: 0.001 | N28: 0 | O28: 0 | P28: 0.046 | Q28: 0.045 | U28: 0.002957404284 | X28: 0
B29: =Names!I12 -> 55 | C29: =INDEX(Names!$K$9:$K$136,MATCH(B29,Names!$I$9:$I$136,0)) -> Rural | D29: =Names!F12 -> Balranald | E29: 0.0388443815 | F29: 0.0036 | G29: =INDEX('ESL calcs'!$Z$12:$AD$139,MATCH($B29,'ESL calcs'!$C$12:$C$139,0),MATCH($D$5,'ESL calcs'!$Z$10:$AD$10,0)) -> -0.00226363817 | H29: =INDEX('ESL calcs'!$BB$12:$BF$139,MATCH($B29,'ESL calcs'!$C$12:$C$139,0),MATCH($D$5,'ESL calcs'!$BB$10:$BF$10,0)) -> 0.004346646875 | I29: =INDEX('Pop calcs'!$D17:$I17,MATCH($D$5,'Pop calcs'!$D$12:$I$12,0)) -> 0 | J29: =INDEX('Pop calcs'!$K17:$P17,MATCH($D$5,'Pop calcs'!$K$12:$P$12,0)) -> 0 | K29: 0 | L29: =IFERROR(INDEX('Pop calcs'!$Y17:$Z17,MATCH($D$5,'Pop calcs'!$Y$12:$Z$12,0)),0) -> 0 | M29: 0 | N29: 0 | O29: 0 | P29: 0.045 | Q29: 0.045 | U29: 0.002083008705 | X29: 0.146
B30: =Names!I13 -> 2043 | C30: =INDEX(Names!$K$9:$K$136,MATCH(B30,Names!$I$9:$I$136,0)) -> Regional | D30: =Names!F13 -> Bathurst Regional | E30: 0.03872464517 | F30: 0.0037 | G30: =INDEX('ESL calcs'!$Z$12:$AD$139,MATCH($B30,'ESL calcs'!$C$12:$C$139,0),MATCH($D$5,'ESL calcs'!$Z$10:$AD$10,0)) -> 0.003944484448 | H30: =INDEX('ESL calcs'!$BB$12:$BF$139,MATCH($B30,'ESL calcs'!$C$12:$C$139,0),MATCH($D$5,'ESL calcs'!$BB$10:$BF$10,0)) -> 0 | I30: =INDEX('Pop calcs'!$D18:$I18,MATCH($D$5,'Pop calcs'!$D$12:$I$12,0)) -> 0.01173164735 | J30: =INDEX('Pop calcs'!$K18:$P18,MATCH($D$5,'Pop calcs'!$K$12:$P$12,0)) -> 0.007095101651 | K30: 0.004636545697 | L30: =IFERROR(INDEX('Pop calcs'!$Y18:$Z18,MATCH($D$5,'Pop calcs'!$Y$12:$Z$12,0)),0) -> -0.002968163157 | M30: 0.002 | N30: 0 | O30: 0 | P30: 0.048 | Q30: 0.046 | U30: 0.003944484448 | X30: 0
B31: =Names!I14 -> 2099 | C31: =INDEX(Names!$K$9:$K$136,MATCH(B31,Names!$I$9:$I$136,0)) -> Metropolitan | D31: =Names!F14 -> Bayside | E31: 0.03882841796 | F31: 0.0041 | G31: =INDEX('ESL calcs'!$Z$12:$AD$139,MATCH($B31,'ESL calcs'!$C$12:$C$139,0),MATCH($D$5,'ESL calcs'!$Z$10:$AD$10,0)) -> 0.005391306673 | H31: =INDEX('ESL calcs'!$BB$12:$BF$139,MATCH($B31,'ESL calcs'!$C$12:$C$139,0),MATCH($D$5,'ESL calcs'!$BB$10:$BF$10,0)) -> 0 | I31: =INDEX('Pop calcs'!$D19:$I19,MATCH($D$5,'Pop calcs'!$D$12:$I$12,0)) -> 0.008906004169 | J31: =INDEX('Pop calcs'!$K19:$P19,MATCH($D$5,'Pop calcs'!$K$12:$P$12,0)) -> 0.005062611067 | K31: 0.003843393102 | L31: =IFERROR(INDEX('Pop calcs'!$Y19:$Z19,MATCH($D$5,'Pop calcs'!$Y$12:$Z$12,0)),0) -> -0.004986959525 | M31: 0 | N31: 0 | O31: 0 | P31: 0.048 | Q31: 0.048 | U31: 0.005391306673 | X31: 0
B32: =Names!I15 -> 60 | C32: =INDEX(Names!$K$9:$K$136,MATCH(B32,Names!$I$9:$I$136,0)) -> Regional | D32: =Names!F15 -> Bega Valley | E32: 0.03872464517 | F32: 0.0037 | G32: =INDEX('ESL calcs'!$Z$12:$AD$139,MATCH($B32,'ESL calcs'!$C$12:$C$139,0),MATCH($D$5,'ESL calcs'!$Z$10:$AD$10,0)) -> 0.001118500466 | H32: =INDEX('ESL calcs'!$BB$12:$BF$139,MATCH($B32,'ESL calcs'!$C$12:$C$139,0),MATCH($D$5,'ESL calcs'!$BB$10:$BF$10,0)) -> 0.0009959676744 | I32: =INDEX('Pop calcs'!$D20:$I20,MATCH($D$5,'Pop calcs'!$D$12:$I$12,0)) -> 0.005900282431 | J32: =INDEX('Pop calcs'!$K20:$P20,MATCH($D$5,'Pop calcs'!$K$12:$P$12,0)) -> 0.007856037152 | K32: 0 | L32: =IFERROR(INDEX('Pop calcs'!$Y20:$Z20,MATCH($D$5,'Pop calcs'!$Y$12:$Z$12,0)),0) -> 0.003974788112 | M32: 0.004 | N32: 0 | O32: 0 | P32: 0.049 | Q32: 0.045 | U32: 0.00211446814 | X32: 0.11
B33: =Names!I16 -> 61 | C33: =INDEX(Names!$K$9:$K$136,MATCH(B33,Names!$I$9:$I$136,0)) -> Rural | D33: =Names!F16 -> Bellingen | E33: 0.0388443815 | F33: 0.0036 | G33: =INDEX('ESL calcs'!$Z$12:$AD$139,MATCH($B33,'ESL calcs'!$C$12:$C$139,0),MATCH($D$5,'ESL calcs'!$Z$10:$AD$10,0)) -> 0.0009933697563 | H33: =INDEX('ESL calcs'!$BB$12:$BF$139,MATCH($B33,'ESL calcs'!$C$12:$C$139,0),MATCH($D$5,'ESL calcs'!$BB$10:$BF$10,0)) -> 0.001100855133 | I33: =INDEX('Pop calcs'!$D21:$I21,MATCH($D$5,'Pop calcs'!$D$12:$I$12,0)) -> 0.001667045541 | J33: =INDEX('Pop calcs'!$K21:$P21,MATCH($D$5,'Pop calcs'!$K$12:$P$12,0)) -> 0.001111234582 | K33: 0.000555810959 | L33: =IFERROR(INDEX('Pop calcs'!$Y21:$Z21,MATCH($D$5,'Pop calcs'!$Y$12:$Z$12,0)),0) -> -0.006404589861 | M33: 0 | N33: 0 | O33: 0 | P33: 0.045 | Q33: 0.045 | U33: 0.00209422489 | X33: 0.06
B34: =Names!I17 -> 62 | C34: =INDEX(Names!$K$9:$K$136,MATCH(B34,Names!$I$9:$I$136,0)) -> Rural | D34: =Names!F17 -> Berrigan | E34: 0.0388443815 | F34: 0.0036 | G34: =INDEX('ESL calcs'!$Z$12:$AD$139,MATCH($B34,'ESL calcs'!$C$12:$C$139,0),MATCH($D$5,'ESL calcs'!$Z$10:$AD$10,0)) -> 0.002837791445 | H34: =INDEX('ESL calcs'!$BB$12:$BF$139,MATCH($B34,'ESL calcs'!$C$12:$C$139,0),MATCH($D$5,'ESL calcs'!$BB$10:$BF$10,0)) -> 0 | I34: =INDEX('Pop calcs'!$D22:$I22,MATCH($D$5,'Pop calcs'!$D$12:$I$12,0)) -> 0.005225267069 | J34: =INDEX('Pop calcs'!$K22:$P22,MATCH($D$5,'Pop calcs'!$K$12:$P$12,0)) -> 0.004127041091 | K34: 0.001098225978 | L34: =IFERROR(INDEX('Pop calcs'!$Y22:$Z22,MATCH($D$5,'Pop calcs'!$Y$12:$Z$12,0)),0) -> -0.001622417417 | M34: 0 | N34: 0 | O34: 0 | P34: 0.045 | Q34: 0.045 | U34: 0.002837791445 | X34: 0
B35: =Names!I18 -> 64 | C35: =INDEX(Names!$K$9:$K$136,MATCH(B35,Names!$I$9:$I$136,0)) -> Metropolitan | D35: =Names!F18 -> Blacktown | E35: 0.03882841796 | F35: 0.0041 | G35: =INDEX('ESL calcs'!$Z$12:$AD$139,MATCH($B35,'ESL calcs'!$C$12:$C$139,0),MATCH($D$5,'ESL calcs'!$Z$10:$AD$10,0)) -> 0.006314337461 | H35: =INDEX('ESL calcs'!$BB$12:$BF$139,MATCH($B35,'ESL calcs'!$C$12:$C$139,0),MATCH($D$5,'ESL calcs'!$BB$10:$BF$10,0)) -> 0 | I35: =INDEX('Pop calcs'!$D23:$I23,MATCH($D$5,'Pop calcs'!$D$12:$I$12,0)) -> 0.02698774859 | J35: =INDEX('Pop calcs'!$K23:$P23,MATCH($D$5,'Pop calcs'!$K$12:$P$12,0)) -> 0.01237200256 | K35: 0.01461574603 | L35: =IFERROR(INDEX('Pop calcs'!$Y23:$Z23,MATCH($D$5,'Pop calcs'!$Y$12:$Z$12,0)),0) -> 0.007547873552 | M35: 0.022 | N35: 0 | O35: 0 | P35: 0.071 | Q35: 0.049 | U35: 0.006314337461 | X35: 0
B36: =Names!I19 -> 65 | C36: =INDEX(Names!$K$9:$K$136,MATCH(B36,Names!$I$9:$I$136,0)) -> Rural | D36: =Names!F19 -> Bland | E36: 0.0388443815 | F36: 0.0036 | G36: =INDEX('ESL calcs'!$Z$12:$AD$139,MATCH($B36,'ESL calcs'!$C$12:$C$139,0),MATCH($D$5,'ESL calcs'!$Z$10:$AD$10,0)) -> -0.001444931673 | H36: =INDEX('ESL calcs'!$BB$12:$BF$139,MATCH($B36,'ESL calcs'!$C$12:$C$139,0),MATCH($D$5,'ESL calcs'!$BB$10:$BF$10,0)) -> 0.003519626126 | I36: =INDEX('Pop calcs'!$D24:$I24,MATCH($D$5,'Pop calcs'!$D$12:$I$12,0)) -> 0 | J36: =INDEX('Pop calcs'!$K24:$P24,MATCH($D$5,'Pop calcs'!$K$12:$P$12,0)) -> 0.0002850627138 | K36: 0 | L36: =IFERROR(INDEX('Pop calcs'!$Y24:$Z24,MATCH($D$5,'Pop calcs'!$Y$12:$Z$12,0)),0) -> 0 | M36: 0 | N36: 0 | O36: 0 | P36: 0.045 | Q36: 0.045 | U36: 0.002074694452 | X36: 0.146
B37: =Names!I20 -> 66 | C37: =INDEX(Names!$K$9:$K$136,MATCH(B37,Names!$I$9:$I$136,0)) -> Rural | D37: =Names!F20 -> Blayney | E37: 0.0388443815 | F37: 0.0036 | G37: =INDEX('ESL calcs'!$Z$12:$AD$139,MATCH($B37,'ESL calcs'!$C$12:$C$139,0),MATCH($D$5,'ESL calcs'!$Z$10:$AD$10,0)) -> -0.0006037920396 | H37: =INDEX('ESL calcs'!$BB$12:$BF$139,MATCH($B37,'ESL calcs'!$C$12:$C$139,0),MATCH($D$5,'ESL calcs'!$BB$10:$BF$10,0)) -> 0.00273215546 | I37: =INDEX('Pop calcs'!$D25:$I25,MATCH($D$5,'Pop calcs'!$D$12:$I$12,0)) -> 0.01065530101 | J37: =INDEX('Pop calcs'!$K25:$P25,MATCH($D$5,'Pop calcs'!$K$12:$P$12,0)) -> 0.003977639217 | K37: 0.006677661795 | L37: =IFERROR(INDEX('Pop calcs'!$Y25:$Z25,MATCH($D$5,'Pop calcs'!$Y$12:$Z$12,0)),0) -> 0.005332034225 | M37: 0.012 | N37: 0 | O37: 0 | P37: 0.057 | Q37: 0.045 | U37: 0.00212836342 | X37: 0.22
B38: =Names!I21 -> 67 | C38: =INDEX(Names!$K$9:$K$136,MATCH(B38,Names!$I$9:$I$136,0)) -> Metropolitan | D38: =Names!F21 -> Blue Mountains | E38: 0.03882841796 | F38: 0.0041 | G38: =INDEX('ESL calcs'!$Z$12:$AD$139,MATCH($B38,'ESL calcs'!$C$12:$C$139,0),MATCH($D$5,'ESL calcs'!$Z$10:$AD$10,0)) -> 0.00355001096 | H38: =INDEX('ESL calcs'!$BB$12:$BF$139,MATCH($B38,'ESL calcs'!$C$12:$C$139,0),MATCH($D$5,'ESL calcs'!$BB$10:$BF$10,0)) -> 0 | I38: =INDEX('Pop calcs'!$D26:$I26,MATCH($D$5,'Pop calcs'!$D$12:$I$12,0)) -> 0 | J38: =INDEX('Pop calcs'!$K26:$P26,MATCH($D$5,'Pop calcs'!$K$12:$P$12,0)) -> 0.0008224924262 | K38: 0 | L38: =IFERROR(INDEX('Pop calcs'!$Y26:$Z26,MATCH($D$5,'Pop calcs'!$Y$12:$Z$12,0)),0) -> -0.0008700950807 | M38: 0 | N38: 0 | O38: 0 | P38: 0.046 | Q38: 0.046 | U38: 0.00355001096 | X38: 0
B39: =Names!I22 -> 68 | C39: =INDEX(Names!$K$9:$K$136,MATCH(B39,Names!$I$9:$I$136,0)) -> Rural | D39: =Names!F22 -> Bogan | E39: 0.0388443815 | F39: 0.0036 | G39: =INDEX('ESL calcs'!$Z$12:$AD$139,MATCH($B39,'ESL calcs'!$C$12:$C$139,0),MATCH($D$5,'ESL calcs'!$Z$10:$AD$10,0)) -> 0.0001116688985 | H39: =INDEX('ESL calcs'!$BB$12:$BF$139,MATCH($B39,'ESL calcs'!$C$12:$C$139,0),MATCH($D$5,'ESL calcs'!$BB$10:$BF$10,0)) -> 0.002071826903 | I39: =INDEX('Pop calcs'!$D27:$I27,MATCH($D$5,'Pop calcs'!$D$12:$I$12,0)) -> 0 | J39: =INDEX('Pop calcs'!$K27:$P27,MATCH($D$5,'Pop calcs'!$K$12:$P$12,0)) -> 0 | K39: 0 | L39: =IFERROR(INDEX('Pop calcs'!$Y27:$Z27,MATCH($D$5,'Pop calcs'!$Y$12:$Z$12,0)),0) -> 0 | M39: 0 | N39: 0 | O39: 0 | P39: 0.045 | Q39: 0.045 | U39: 0.002183495802 | X39: 0.12
B40: =Names!I23 -> 72 | C40: =INDEX(Names!$K$9:$K$136,MATCH(B40,Names!$I$9:$I$136,0)) -> Rural | D40: =Names!F23 -> Bourke | E40: 0.0388443815 | F40: 0.0036 | G40: =INDEX('ESL calcs'!$Z$12:$AD$139,MATCH($B40,'ESL calcs'!$C$12:$C$139,0),MATCH($D$5,'ESL calcs'!$Z$10:$AD$10,0)) -> 0.00118357506 | H40: =INDEX('ESL calcs'!$BB$12:$BF$139,MATCH($B40,'ESL calcs'!$C$12:$C$139,0),MATCH($D$5,'ESL calcs'!$BB$10:$BF$10,0)) -> 0.0009249235866 | I40: =INDEX('Pop calcs'!$D28:$I28,MATCH($D$5,'Pop calcs'!$D$12:$I$12,0)) -> 0 | J40: =INDEX('Pop calcs'!$K28:$P28,MATCH($D$5,'Pop calcs'!$K$12:$P$12,0)) -> 0 | K40: 0 | L40: =IFERROR(INDEX('Pop calcs'!$Y28:$Z28,MATCH($D$5,'Pop calcs'!$Y$12:$Z$12,0)),0) -> -0.01351351351 | M40: 0 | N40: 0 | O40: 0 | P40: 0.045 | Q40: 0.045 | U40: 0.002108498647 | X40: 0.03
B41: =Names!I24 -> 73 | C41: =INDEX(Names!$K$9:$K$136,MATCH(B41,Names!$I$9:$I$136,0)) -> Rural | D41: =Names!F24 -> Brewarrina | E41: 0.0388443815 | F41: 0.0036 | G41: =INDEX('ESL calcs'!$Z$12:$AD$139,MATCH($B41,'ESL calcs'!$C$12:$C$139,0),MATCH($D$5,'ESL calcs'!$Z$10:$AD$10,0)) -> -0.002433311354 | H41: =INDEX('ESL calcs'!$BB$12:$BF$139,MATCH($B41,'ESL calcs'!$C$12:$C$139,0),MATCH($D$5,'ESL calcs'!$BB$10:$BF$10,0)) -> 0.004618646388 | I41: =INDEX('Pop calcs'!$D29:$I29,MATCH($D$5,'Pop calcs'!$D$12:$I$12,0)) -> 0 | J41: =INDEX('Pop calcs'!$K29:$P29,MATCH($D$5,'Pop calcs'!$K$12:$P$12,0)) -> 0 | K41: 0 | L41: =IFERROR(INDEX('Pop calcs'!$Y29:$Z29,MATCH($D$5,'Pop calcs'!$Y$12:$Z$12,0)),0) -> 0 | M41: 0 | N41: 0 | O41: 0 | P41: 0.045 | Q41: 0.045 | U41: 0.002185335034 | X41: 0.096
B42: =Names!I25 -> 74 | C42: =INDEX(Names!$K$9:$K$136,MATCH(B42,Names!$I$9:$I$136,0)) -> Regional | D42: =Names!F25 -> Broken Hill | E42: 0.03872464517 | F42: 0.0037 | G42: =INDEX('ESL calcs'!$Z$12:$AD$139,MATCH($B42,'ESL calcs'!$C$12:$C$139,0),MATCH($D$5,'ESL calcs'!$Z$10:$AD$10,0)) -> 0.006496561824 | H42: =INDEX('ESL calcs'!$BB$12:$BF$139,MATCH($B42,'ESL calcs'!$C$12:$C$139,0),MATCH($D$5,'ESL calcs'!$BB$10:$BF$10,0)) -> 0 | I42: =INDEX('Pop calcs'!$D30:$I30,MATCH($D$5,'Pop calcs'!$D$12:$I$12,0)) -> 0 | J42: =INDEX('Pop calcs'!$K30:$P30,MATCH($D$5,'Pop calcs'!$K$12:$P$12,0)) -> 0.0007190364911 | K42: 0 | L42: =IFERROR(INDEX('Pop calcs'!$Y30:$Z30,MATCH($D$5,'Pop calcs'!$Y$12:$Z$12,0)),0) -> 0 | M42: 0 | N42: 0 | O42: 0 | P42: 0.049 | Q42: 0.049 | U42: 0.006496561824 | X42: 0
B43: =Names!I26 -> 75 | C43: =INDEX(Names!$K$9:$K$136,MATCH(B43,Names!$I$9:$I$136,0)) -> Metropolitan | D43: =Names!F26 -> Burwood | E43: 0.03882841796 | F43: 0.0041 | G43: =INDEX('ESL calcs'!$Z$12:$AD$139,MATCH($B43,'ESL calcs'!$C$12:$C$139,0),MATCH($D$5,'ESL calcs'!$Z$10:$AD$10,0)) -> 0.00511804384 | H43: =INDEX('ESL calcs'!$BB$12:$BF$139,MATCH($B43,'ESL calcs'!$C$12:$C$139,0),MATCH($D$5,'ESL calcs'!$BB$10:$BF$10,0)) -> 0 | I43: =INDEX('Pop calcs'!$D31:$I31,MATCH($D$5,'Pop calcs'!$D$12:$I$12,0)) -> 0.008664009704 | J43: =INDEX('Pop calcs'!$K31:$P31,MATCH($D$5,'Pop calcs'!$K$12:$P$12,0)) -> 0.01242349837 | K43: 0 | L43: =IFERROR(INDEX('Pop calcs'!$Y31:$Z31,MATCH($D$5,'Pop calcs'!$Y$12:$Z$12,0)),0) -> 0 | M43: 0 | N43: 0 | O43: 0 | P43: 0.048 | Q43: 0.048 | U43: 0.00511804384 | X43: 0
B44: =Names!I27 -> 76 | C44: =INDEX(Names!$K$9:$K$136,MATCH(B44,Names!$I$9:$I$136,0)) -> Regional | D44: =Names!F27 -> Byron | E44: 0.03872464517 | F44: 0.0037 | G44: =INDEX('ESL calcs'!$Z$12:$AD$139,MATCH($B44,'ESL calcs'!$C$12:$C$139,0),MATCH($D$5,'ESL calcs'!$Z$10:$AD$10,0)) -> 0.002309486056 | H44: =INDEX('ESL calcs'!$BB$12:$BF$139,MATCH($B44,'ESL calcs'!$C$12:$C$139,0),MATCH($D$5,'ESL calcs'!$BB$10:$BF$10,0)) -> 0 | I44: =INDEX('Pop calcs'!$D32:$I32,MATCH($D$5,'Pop calcs'!$D$12:$I$12,0)) -> 0.008897635613 | J44: =INDEX('Pop calcs'!$K32:$P32,MATCH($D$5,'Pop calcs'!$K$12:$P$12,0)) -> 0.003908390255 | K44: 0.004989245358 | L44: =IFERROR(INDEX('Pop calcs'!$Y32:$Z32,MATCH($D$5,'Pop calcs'!$Y$12:$Z$12,0)),0) -> -0.001546266067 | M44: 0.003 | N44: 0 | O44: 0 | P44: 0.048 | Q44: 0.045 | U44: 0.002309486056 | X44: 0
B45: =Names!I28 -> 77 | C45: =INDEX(Names!$K$9:$K$136,MATCH(B45,Names!$I$9:$I$136,0)) -> Rural | D45: =Names!F28 -> Cabonne | E45: 0.0388443815 | F45: 0.0036 | G45: =INDEX('ESL calcs'!$Z$12:$AD$139,MATCH($B45,'ESL calcs'!$C$12:$C$139,0),MATCH($D$5,'ESL calcs'!$Z$10:$AD$10,0)) -> 0.0004812842442 | H45: =INDEX('ESL calcs'!$BB$12:$BF$139,MATCH($B45,'ESL calcs'!$C$12:$C$139,0),MATCH($D$5,'ESL calcs'!$BB$10:$BF$10,0)) -> 0.00165092276 | I45: =INDEX('Pop calcs'!$D33:$I33,MATCH($D$5,'Pop calcs'!$D$12:$I$12,0)) -> 0.004723837209 | J45: =INDEX('Pop calcs'!$K33:$P33,MATCH($D$5,'Pop calcs'!$K$12:$P$12,0)) -> 0.0006397952655 | K45: 0.004084041944 | L45: =IFERROR(INDEX('Pop calcs'!$Y33:$Z33,MATCH($D$5,'Pop calcs'!$Y$12:$Z$12,0)),0) -> -0.004277427129 | M45: 0 | N45: 0 | O45: 0 | P45: 0.045 | Q45: 0.045 | U45: 0.002132207004 | X45: 0.1
B46: =Names!I29 -> 78 | C46: =INDEX(Names!$K$9:$K$136,MATCH(B46,Names!$I$9:$I$136,0)) -> Metropolitan | D46: =Names!F29 -> Camden | E46: 0.03882841796 | F46: 0.0041 | G46: =INDEX('ESL calcs'!$Z$12:$AD$139,MATCH($B46,'ESL calcs'!$C$12:$C$139,0),MATCH($D$5,'ESL calcs'!$Z$10:$AD$10,0)) -> 0.01211310559 | H46: =INDEX('ESL calcs'!$BB$12:$BF$139,MATCH($B46,'ESL calcs'!$C$12:$C$139,0),MATCH($D$5,'ESL calcs'!$BB$10:$BF$10,0)) -> 0 | I46: =INDEX('Pop calcs'!$D34:$I34,MATCH($D$5,'Pop calcs'!$D$12:$I$12,0)) -> 0.06407616443 | J46: =INDEX('Pop calcs'!$K34:$P34,MATCH($D$5,'Pop calcs'!$K$12:$P$12,0)) -> 0.0551354217 | K46: 0.008940742732 | L46: =IFERROR(INDEX('Pop calcs'!$Y34:$Z34,MATCH($D$5,'Pop calcs'!$Y$12:$Z$12,0)),0) -> 0.01828521694 | M46: 0.027 | N46: 0 | O46: 0 | P46: 0.082 | Q46: 0.055 | U46: 0.01211310559 | X46: 0
B47: =Names!I30 -> 79 | C47: =INDEX(Names!$K$9:$K$136,MATCH(B47,Names!$I$9:$I$136,0)) -> Metropolitan | D47: =Names!F30 -> Campbelltown | E47: 0.03882841796 | F47: 0.0041 | G47: =INDEX('ESL calcs'!$Z$12:$AD$139,MATCH($B47,'ESL calcs'!$C$12:$C$139,0),MATCH($D$5,'ESL calcs'!$Z$10:$AD$10,0)) -> 0.00457374512 | H47: =INDEX('ESL calcs'!$BB$12:$BF$139,MATCH($B47,'ESL calcs'!$C$12:$C$139,0),MATCH($D$5,'ESL calcs'!$BB$10:$BF$10,0)) -> 0 | I47: =INDEX('Pop calcs'!$D35:$I35,MATCH($D$5,'Pop calcs'!$D$12:$I$12,0)) -> 0.01430589401 | J47: =INDEX('Pop calcs'!$K35:$P35,MATCH($D$5,'Pop calcs'!$K$12:$P$12,0)) -> 0.01525900958 | K47: 0 | L47: =IFERROR(INDEX('Pop calcs'!$Y35:$Z35,MATCH($D$5,'Pop calcs'!$Y$12:$Z$12,0)),0) -> 0.004848660094 | M47: 0.005 | N47: 0 | O47: 0 | P47: 0.053 | Q47: 0.048 | U47: 0.00457374512 | X47: 0
B48: =Names!I31 -> 1989 | C48: =INDEX(Names!$K$9:$K$136,MATCH(B48,Names!$I$9:$I$136,0)) -> Metropolitan | D48: =Names!F31 -> Canada Bay | E48: 0.03882841796 | F48: 0.0041 | G48: =INDEX('ESL calcs'!$Z$12:$AD$139,MATCH($B48,'ESL calcs'!$C$12:$C$139,0),MATCH($D$5,'ESL calcs'!$Z$10:$AD$10,0)) -> 0.009716192662 | H48: =INDEX('ESL calcs'!$BB$12:$BF$139,MATCH($B48,'ESL calcs'!$C$12:$C$139,0),MATCH($D$5,'ESL calcs'!$BB$10:$BF$10,0)) -> 0 | I48: =INDEX('Pop calcs'!$D36:$I36,MATCH($D$5,'Pop calcs'!$D$12:$I$12,0)) -> 0 | J48: =INDEX('Pop calcs'!$K36:$P36,MATCH($D$5,'Pop calcs'!$K$12:$P$12,0)) -> 0.001165722986 | K48: 0 | L48: =IFERROR(INDEX('Pop calcs'!$Y36:$Z36,MATCH($D$5,'Pop calcs'!$Y$12:$Z$12,0)),0) -> -0.004671371785 | M48: 0 | N48: 0 | O48: 0 | P48: 0.053 | Q48: 0.053 | U48: 0.009716192662 | X48: 0
B49: =Names!I32 -> 2080 | C49: =INDEX(Names!$K$9:$K$136,MATCH(B49,Names!$I$9:$I$136,0)) -> Metropolitan | D49: =Names!F32 -> Canterbury-Bankstown | E49: 0.03882841796 | F49: 0.0041 | G49: =INDEX('ESL calcs'!$Z$12:$AD$139,MATCH($B49,'ESL calcs'!$C$12:$C$139,0),MATCH($D$5,'ESL calcs'!$Z$10:$AD$10,0)) -> 0.006193047764 | H49: =INDEX('ESL calcs'!$BB$12:$BF$139,MATCH($B49,'ESL calcs'!$C$12:$C$139,0),MATCH($D$5,'ESL calcs'!$BB$10:$BF$10,0)) -> 0 | I49: =INDEX('Pop calcs'!$D37:$I37,MATCH($D$5,'Pop calcs'!$D$12:$I$12,0)) -> 0 | J49: =INDEX('Pop calcs'!$K37:$P37,MATCH($D$5,'Pop calcs'!$K$12:$P$12,0)) -> 0.002782169534 | K49: 0 | L49: =IFERROR(INDEX('Pop calcs'!$Y37:$Z37,MATCH($D$5,'Pop calcs'!$Y$12:$Z$12,0)),0) -> -0.001270853996 | M49: 0 | N49: 0 | O49: 0 | P49: 0.049 | Q49: 0.049 | U49: 0.006193047764 | X49: 0
B50: =Names!I33 -> 81 | C50: =INDEX(Names!$K$9:$K$136,MATCH(B50,Names!$I$9:$I$136,0)) -> Rural | D50: =Names!F33 -> Carrathool | E50: 0.0388443815 | F50: 0.0036 | G50: =INDEX('ESL calcs'!$Z$12:$AD$139,MATCH($B50,'ESL calcs'!$C$12:$C$139,0),MATCH($D$5,'ESL calcs'!$Z$10:$AD$10,0)) -> -0.002020263844 | H50: =INDEX('ESL calcs'!$BB$12:$BF$139,MATCH($B50,'ESL calcs'!$C$12:$C$139,0),MATCH($D$5,'ESL calcs'!$BB$10:$BF$10,0)) -> 0.00414825398 | I50: =INDEX('Pop calcs'!$D38:$I38,MATCH($D$5,'Pop calcs'!$D$12:$I$12,0)) -> 0 | J50: =INDEX('Pop calcs'!$K38:$P38,MATCH($D$5,'Pop calcs'!$K$12:$P$12,0)) -> 0 | K50: 0 | L50: =IFERROR(INDEX('Pop calcs'!$Y38:$Z38,MATCH($D$5,'Pop calcs'!$Y$12:$Z$12,0)),0) -> 0.009797060882 | M50: 0.01 | N50: 0 | O50: 0 | P50: 0.055 | Q50: 0.045 | U50: 0.002127990136 | X50: 0.174
B51: =Names!I34 -> 2088 | C51: =INDEX(Names!$K$9:$K$136,MATCH(B51,Names!$I$9:$I$136,0)) -> Metropolitan | D51: =Names!F34 -> Central Coast | E51: 0.03882841796 | F51: 0.0041 | G51: =INDEX('ESL calcs'!$Z$12:$AD$139,MATCH($B51,'ESL calcs'!$C$12:$C$139,0),MATCH($D$5,'ESL calcs'!$Z$10:$AD$10,0)) -> 0.00472945756 | H51: =INDEX('ESL calcs'!$BB$12:$BF$139,MATCH($B51,'ESL calcs'!$C$12:$C$139,0),MATCH($D$5,'ESL calcs'!$BB$10:$BF$10,0)) -> 0 | I51: =INDEX('Pop calcs'!$D39:$I39,MATCH($D$5,'Pop calcs'!$D$12:$I$12,0)) -> 0.001593188616 | J51: =INDEX('Pop calcs'!$K39:$P39,MATCH($D$5,'Pop calcs'!$K$12:$P$12,0)) -> 0.002352557418 | K51: 0 | L51: =IFERROR(INDEX('Pop calcs'!$Y39:$Z39,MATCH($D$5,'Pop calcs'!$Y$12:$Z$12,0)),0) -> -0.000117830521 | M51: 0 | N51: 0 | O51: 0 | P51: 0.048 | Q51: 0.048 | U51: 0.00472945756 | X51: 0
B52: =Names!I35 -> 83 | C52: =INDEX(Names!$K$9:$K$136,MATCH(B52,Names!$I$9:$I$136,0)) -> Rural | D52: =Names!F35 -> Central Darling | E52: 0.0388443815 | F52: 0.0036 | G52: =INDEX('ESL calcs'!$Z$12:$AD$139,MATCH($B52,'ESL calcs'!$C$12:$C$139,0),MATCH($D$5,'ESL calcs'!$Z$10:$AD$10,0)) -> -0.007429017086 | H52: =INDEX('ESL calcs'!$BB$12:$BF$139,MATCH($B52,'ESL calcs'!$C$12:$C$139,0),MATCH($D$5,'ESL calcs'!$BB$10:$BF$10,0)) -> 0.009575066154 | I52: =INDEX('Pop calcs'!$D40:$I40,MATCH($D$5,'Pop calcs'!$D$12:$I$12,0)) -> 0 | J52: =INDEX('Pop calcs'!$K40:$P40,MATCH($D$5,'Pop calcs'!$K$12:$P$12,0)) -> 0 | K52: 0 | L52: =IFERROR(INDEX('Pop calcs'!$Y40:$Z40,MATCH($D$5,'Pop calcs'!$Y$12:$Z$12,0)),0) -> 0 | M52: 0 | N52: 0 | O52: 0 | P52: 0.045 | Q52: 0.045 | U52: 0.002146049068 | X52: 0.124
B53: =Names!I36 -> 84 | C53: =INDEX(Names!$K$9:$K$136,MATCH(B53,Names!$I$9:$I$136,0)) -> Regional | D53: =Names!F36 -> Cessnock | E53: 0.03872464517 | F53: 0.0037 | G53: =INDEX('ESL calcs'!$Z$12:$AD$139,MATCH($B53,'ESL calcs'!$C$12:$C$139,0),MATCH($D$5,'ESL calcs'!$Z$10:$AD$10,0)) -> 0.002839738097 | H53: =INDEX('ESL calcs'!$BB$12:$BF$139,MATCH($B53,'ESL calcs'!$C$12:$C$139,0),MATCH($D$5,'ESL calcs'!$BB$10:$BF$10,0)) -> 0 | I53: =INDEX('Pop calcs'!$D41:$I41,MATCH($D$5,'Pop calcs'!$D$12:$I$12,0)) -> 0.03184062116 | J53: =INDEX('Pop calcs'!$K41:$P41,MATCH($D$5,'Pop calcs'!$K$12:$P$12,0)) -> 0.0285124829 | K53: 0.003328138252 | L53: =IFERROR(INDEX('Pop calcs'!$Y41:$Z41,MATCH($D$5,'Pop calcs'!$Y$12:$Z$12,0)),0) -> 0.004439406376 | M53: 0.008 | N53: 0 | O53: 0 | P53: 0.053 | Q53: 0.045 | U53: 0.002839738097 | X53: 0
B54: =Names!I37 -> 2037 | C54: =INDEX(Names!$K$9:$K$136,MATCH(B54,Names!$I$9:$I$136,0)) -> Regional | D54: =Names!F37 -> Clarence Valley | E54: 0.03872464517 | F54: 0.0037 | G54: =INDEX('ESL calcs'!$Z$12:$AD$139,MATCH($B54,'ESL calcs'!$C$12:$C$139,0),MATCH($D$5,'ESL calcs'!$Z$10:$AD$10,0)) -> 0.001496907586 | H54: =INDEX('ESL calcs'!$BB$12:$BF$139,MATCH($B54,'ESL calcs'!$C$12:$C$139,0),MATCH($D$5,'ESL calcs'!$BB$10:$BF$10,0)) -> 0.0006726776113 | I54: =INDEX('Pop calcs'!$D42:$I42,MATCH($D$5,'Pop calcs'!$D$12:$I$12,0)) -> 0.007498539857 | J54: =INDEX('Pop calcs'!$K42:$P42,MATCH($D$5,'Pop calcs'!$K$12:$P$12,0)) -> 0.01049463282 | K54: 0 | L54: =IFERROR(INDEX('Pop calcs'!$Y42:$Z42,MATCH($D$5,'Pop calcs'!$Y$12:$Z$12,0)),0) -> 0.002208972013 | M54: 0.002 | N54: 0 | O54: 0 | P54: 0.047 | Q54: 0.045 | U54: 0.002169585197 | X54: 0.06
B55: =Names!I38 -> 85 | C55: =INDEX(Names!$K$9:$K$136,MATCH(B55,Names!$I$9:$I$136,0)) -> Rural | D55: =Names!F38 -> Cobar | E55: 0.0388443815 | F55: 0.0036 | G55: =INDEX('ESL calcs'!$Z$12:$AD$139,MATCH($B55,'ESL calcs'!$C$12:$C$139,0),MATCH($D$5,'ESL calcs'!$Z$10:$AD$10,0)) -> 1.189086757e-05 | H55: =INDEX('ESL calcs'!$BB$12:$BF$139,MATCH($B55,'ESL calcs'!$C$12:$C$139,0),MATCH($D$5,'ESL calcs'!$BB$10:$BF$10,0)) -> 0.002050127053 | I55: =INDEX('Pop calcs'!$D43:$I43,MATCH($D$5,'Pop calcs'!$D$12:$I$12,0)) -> 0 | J55: =INDEX('Pop calcs'!$K43:$P43,MATCH($D$5,'Pop calcs'!$K$12:$P$12,0)) -> 0 | K55: 0 | L55: =IFERROR(INDEX('Pop calcs'!$Y43:$Z43,MATCH($D$5,'Pop calcs'!$Y$12:$Z$12,0)),0) -> 0 | M55: 0 | N55: 0 | O55: 0 | P55: 0.045 | Q55: 0.045 | U55: 0.002062017921 | X55: 0.1
B56: =Names!I39 -> 86 | C56: =INDEX(Names!$K$9:$K$136,MATCH(B56,Names!$I$9:$I$136,0)) -> Regional | D56: =Names!F39 -> Coffs Harbour | E56: 0.03872464517 | F56: 0.0037 | G56: =INDEX('ESL calcs'!$Z$12:$AD$139,MATCH($B56,'ESL calcs'!$C$12:$C$139,0),MATCH($D$5,'ESL calcs'!$Z$10:$AD$10,0)) -> 0.003186360812 | H56: =INDEX('ESL calcs'!$BB$12:$BF$139,MATCH($B56,'ESL calcs'!$C$12:$C$139,0),MATCH($D$5,'ESL calcs'!$BB$10:$BF$10,0)) -> 0 | I56: =INDEX('Pop calcs'!$D44:$I44,MATCH($D$5,'Pop calcs'!$D$12:$I$12,0)) -> 0.01092229927 | J56: =INDEX('Pop calcs'!$K44:$P44,MATCH($D$5,'Pop calcs'!$K$12:$P$12,0)) -> 0.003445788925 | K56: 0.007476510346 | L56: =IFERROR(INDEX('Pop calcs'!$Y44:$Z44,MATCH($D$5,'Pop calcs'!$Y$12:$Z$12,0)),0) -> 0.002903005203 | M56: 0.01 | N56: 0 | O56: 0 | P56: 0.056 | Q56: 0.046 | U56: 0.003186360812 | X56: 0
B57: =Names!I40 -> 90 | C57: =INDEX(Names!$K$9:$K$136,MATCH(B57,Names!$I$9:$I$136,0)) -> Rural | D57: =Names!F40 -> Coolamon | E57: 0.0388443815 | F57: 0.0036 | G57: =INDEX('ESL calcs'!$Z$12:$AD$139,MATCH($B57,'ESL calcs'!$C$12:$C$139,0),MATCH($D$5,'ESL calcs'!$Z$10:$AD$10,0)) -> -0.00207603529 | H57: =INDEX('ESL calcs'!$BB$12:$BF$139,MATCH($B57,'ESL calcs'!$C$12:$C$139,0),MATCH($D$5,'ESL calcs'!$BB$10:$BF$10,0)) -> 0.004306926843 | I57: =INDEX('Pop calcs'!$D45:$I45,MATCH($D$5,'Pop calcs'!$D$12:$I$12,0)) -> 0.01408770734 | J57: =INDEX('Pop calcs'!$K45:$P45,MATCH($D$5,'Pop calcs'!$K$12:$P$12,0)) -> 0 | K57: 0.01408770734 | L57: =IFERROR(INDEX('Pop calcs'!$Y45:$Z45,MATCH($D$5,'Pop calcs'!$Y$12:$Z$12,0)),0) -> 0 | M57: 0.014 | N57: 0 | O57: 0 | P57: 0.059 | Q57: 0.045 | U57: 0.002230891553 | X57: 0.13
B58: =Names!I41 -> 93 | C58: =INDEX(Names!$K$9:$K$136,MATCH(B58,Names!$I$9:$I$136,0)) -> Rural | D58: =Names!F41 -> Coonamble | E58: =INDEX($D$9:$F$9,MATCH(C58,$D$8:$F$8,0)) -> 0.0388443815 | F58: =INDEX($D$12:$F$12,MATCH(C58,$D$8:$F$8,0)) -> 0.0036 | G58: =INDEX('ESL calcs'!$Z$12:$AD$139,MATCH($B58,'ESL calcs'!$C$12:$C$139,0),MATCH($D$5,'ESL calcs'!$Z$10:$AD$10,0)) -> 0.0005768367523 | H58: =INDEX('ESL calcs'!$BB$12:$BF$139,MATCH($B58,'ESL calcs'!$C$12:$C$139,0),MATCH($D$5,'ESL calcs'!$BB$10:$BF$10,0)) -> 0.001481965839 | I58: =INDEX('Pop calcs'!$D46:$I46,MATCH($D$5,'Pop calcs'!$D$12:$I$12,0)) -> 0 | J58: =INDEX('Pop calcs'!$K46:$P46,MATCH($D$5,'Pop calcs'!$K$12:$P$12,0)) -> 0.0007996801279 | K58: 0 | L58: =IFERROR(INDEX('Pop calcs'!$Y46:$Z46,MATCH($D$5,'Pop calcs'!$Y$12:$Z$12,0)),0) -> 0 | M58: =IFERROR(MAX(0,ROUND(K58+L58,$D$13)),".") -> 0 | N58: 0 | O58: 0 | P58: 0.045 | Q58: =P58-M58 -> 0.045 | U58: =SUM(G58:H58) -> 0.002058802592 | X58: 0.14
B59: =Names!I42 -> 2094 | C59: =INDEX(Names!$K$9:$K$136,MATCH(B59,Names!$I$9:$I$136,0)) -> Rural | D59: =Names!F42 -> Cootamundra-Gundagai Regional | E59: 0.0388443815 | F59: 0.0036 | G59: =INDEX('ESL calcs'!$Z$12:$AD$139,MATCH($B59,'ESL calcs'!$C$12:$C$139,0),MATCH($D$5,'ESL calcs'!$Z$10:$AD$10,0)) -> 0.0003522461956 | H59: =INDEX('ESL calcs'!$BB$12:$BF$139,MATCH($B59,'ESL calcs'!$C$12:$C$139,0),MATCH($D$5,'ESL calcs'!$BB$10:$BF$10,0)) -> 0.001868540272 | I59: =INDEX('Pop calcs'!$D47:$I47,MATCH($D$5,'Pop calcs'!$D$12:$I$12,0)) -> 0.0006147361026 | J59: =INDEX('Pop calcs'!$K47:$P47,MATCH($D$5,'Pop calcs'!$K$12:$P$12,0)) -> 0.0009766684753 | K59: 0 | L59: =IFERROR(INDEX('Pop calcs'!$Y47:$Z47,MATCH($D$5,'Pop calcs'!$Y$12:$Z$12,0)),0) -> 0.002379903041 | M59: 0.002 | N59: 0 | O59: 0 | P59: 0.047 | Q59: 0.045 | U59: 0.002220786468 | X59: 0.11
B60: =Names!I43 -> 97 | C60: =INDEX(Names!$K$9:$K$136,MATCH(B60,Names!$I$9:$I$136,0)) -> Rural | D60: =Names!F43 -> Cowra | E60: 0.0388443815 | F60: 0.0036 | G60: =INDEX('ESL calcs'!$Z$12:$AD$139,MATCH($B60,'ESL calcs'!$C$12:$C$139,0),MATCH($D$5,'ESL calcs'!$Z$10:$AD$10,0)) -> 0.001494509257 | H60: =INDEX('ESL calcs'!$BB$12:$BF$139,MATCH($B60,'ESL calcs'!$C$12:$C$139,0),MATCH($D$5,'ESL calcs'!$BB$10:$BF$10,0)) -> 0.0006404959296 | I60: =INDEX('Pop calcs'!$D48:$I48,MATCH($D$5,'Pop calcs'!$D$12:$I$12,0)) -> 0 | J60: =INDEX('Pop calcs'!$K48:$P48,MATCH($D$5,'Pop calcs'!$K$12:$P$12,0)) -> 0.001638672675 | K60: 0 | L60: =IFERROR(INDEX('Pop calcs'!$Y48:$Z48,MATCH($D$5,'Pop calcs'!$Y$12:$Z$12,0)),0) -> -0.001509478836 | M60: 0 | N60: 0 | O60: 0 | P60: 0.045 | Q60: 0.045 | U60: 0.002135005187 | X60: 0.038
B61: =Names!I44 -> 2090 | C61: =INDEX(Names!$K$9:$K$136,MATCH(B61,Names!$I$9:$I$136,0)) -> Metropolitan | D61: =Names!F44 -> Cumberland | E61: 0.03882841796 | F61: 0.0041 | G61: =INDEX('ESL calcs'!$Z$12:$AD$139,MATCH($B61,'ESL calcs'!$C$12:$C$139,0),MATCH($D$5,'ESL calcs'!$Z$10:$AD$10,0)) -> 0.007012136513 | H61: =INDEX('ESL calcs'!$BB$12:$BF$139,MATCH($B61,'ESL calcs'!$C$12:$C$139,0),MATCH($D$5,'ESL calcs'!$BB$10:$BF$10,0)) -> 0 | I61: =INDEX('Pop calcs'!$D49:$I49,MATCH($D$5,'Pop calcs'!$D$12:$I$12,0)) -> 0.000650000211 | J61: =INDEX('Pop calcs'!$K49:$P49,MATCH($D$5,'Pop calcs'!$K$12:$P$12,0)) -> 0.006114203539 | K61: 0 | L61: =IFERROR(INDEX('Pop calcs'!$Y49:$Z49,MATCH($D$5,'Pop calcs'!$Y$12:$Z$12,0)),0) -> -0.002378905525 | M61: 0 | N61: 0 | O61: 0 | P61: 0.05 | Q61: 0.05 | U61: 0.007012136513 | X61: 0
B62: =Names!I45 -> 2098 | C62: =INDEX(Names!$K$9:$K$136,MATCH(B62,Names!$I$9:$I$136,0)) -> Regional | D62: =Names!F45 -> Dubbo Regional | E62: 0.03872464517 | F62: 0.0037 | G62: =INDEX('ESL calcs'!$Z$12:$AD$139,MATCH($B62,'ESL calcs'!$C$12:$C$139,0),MATCH($D$5,'ESL calcs'!$Z$10:$AD$10,0)) -> 0.002638987442 | H62: =INDEX('ESL calcs'!$BB$12:$BF$139,MATCH($B62,'ESL calcs'!$C$12:$C$139,0),MATCH($D$5,'ESL calcs'!$BB$10:$BF$10,0)) -> 0 | I62: =INDEX('Pop calcs'!$D50:$I50,MATCH($D$5,'Pop calcs'!$D$12:$I$12,0)) -> 0.004449852882 | J62: =INDEX('Pop calcs'!$K50:$P50,MATCH($D$5,'Pop calcs'!$K$12:$P$12,0)) -> 0.0123472313 | K62: 0 | L62: =IFERROR(INDEX('Pop calcs'!$Y50:$Z50,MATCH($D$5,'Pop calcs'!$Y$12:$Z$12,0)),0) -> 0.005350631361 | M62: 0.005 | N62: 0 | O62: 0 | P62: 0.05 | Q62: 0.045 | U62: 0.002638987442 | X62: 0
B63: =Names!I46 -> 104 | C63: =INDEX(Names!$K$9:$K$136,MATCH(B63,Names!$I$9:$I$136,0)) -> Rural | D63: =Names!F46 -> Dungog | E63: 0.0388443815 | F63: 0.0036 | G63: =INDEX('ESL calcs'!$Z$12:$AD$139,MATCH($B63,'ESL calcs'!$C$12:$C$139,0),MATCH($D$5,'ESL calcs'!$Z$10:$AD$10,0)) -> -0.0004372680029 | H63: =INDEX('ESL calcs'!$BB$12:$BF$139,MATCH($B63,'ESL calcs'!$C$12:$C$139,0),MATCH($D$5,'ESL calcs'!$BB$10:$BF$10,0)) -> 0.00254982603 | I63: =INDEX('Pop calcs'!$D51:$I51,MATCH($D$5,'Pop calcs'!$D$12:$I$12,0)) -> 0.01910761155 | J63: =INDEX('Pop calcs'!$K51:$P51,MATCH($D$5,'Pop calcs'!$K$12:$P$12,0)) -> 0.003451148399 | K63: 0.01565646315 | L63: =IFERROR(INDEX('Pop calcs'!$Y51:$Z51,MATCH($D$5,'Pop calcs'!$Y$12:$Z$12,0)),0) -> -0.01556711821 | M63: 0 | N63: 0 | O63: 0 | P63: 0.045 | Q63: 0.045 | U63: 0.002112558027 | X63: 0.138
B64: =Names!I47 -> 2091 | C64: =INDEX(Names!$K$9:$K$136,MATCH(B64,Names!$I$9:$I$136,0)) -> Rural | D64: =Names!F47 -> Edward River | E64: 0.0388443815 | F64: 0.0036 | G64: =INDEX('ESL calcs'!$Z$12:$AD$139,MATCH($B64,'ESL calcs'!$C$12:$C$139,0),MATCH($D$5,'ESL calcs'!$Z$10:$AD$10,0)) -> 0.001117784926 | H64: =INDEX('ESL calcs'!$BB$12:$BF$139,MATCH($B64,'ESL calcs'!$C$12:$C$139,0),MATCH($D$5,'ESL calcs'!$BB$10:$BF$10,0)) -> 0.0009812485143 | I64: =INDEX('Pop calcs'!$D52:$I52,MATCH($D$5,'Pop calcs'!$D$12:$I$12,0)) -> 0.002014934218 | J64: =INDEX('Pop calcs'!$K52:$P52,MATCH($D$5,'Pop calcs'!$K$12:$P$12,0)) -> 0.0009010168619 | K64: 0.001113917356 | L64: =IFERROR(INDEX('Pop calcs'!$Y52:$Z52,MATCH($D$5,'Pop calcs'!$Y$12:$Z$12,0)),0) -> -0.007337674733 | M64: 0 | N64: 0 | O64: 0 | P64: 0.045 | Q64: 0.045 | U64: 0.00209903344 | X64: 0.06
B65: =Names!I48 -> 105 | C65: =INDEX(Names!$K$9:$K$136,MATCH(B65,Names!$I$9:$I$136,0)) -> Regional | D65: =Names!F48 -> Eurobodalla | E65: 0.03872464517 | F65: 0.0037 | G65: =INDEX('ESL calcs'!$Z$12:$AD$139,MATCH($B65,'ESL calcs'!$C$12:$C$139,0),MATCH($D$5,'ESL calcs'!$Z$10:$AD$10,0)) -> 0.002770541162 | H65: =INDEX('ESL calcs'!$BB$12:$BF$139,MATCH($B65,'ESL calcs'!$C$12:$C$139,0),MATCH($D$5,'ESL calcs'!$BB$10:$BF$10,0)) -> 0 | I65: =INDEX('Pop calcs'!$D53:$I53,MATCH($D$5,'Pop calcs'!$D$12:$I$12,0)) -> 0.00689689269 | J65: =INDEX('Pop calcs'!$K53:$P53,MATCH($D$5,'Pop calcs'!$K$12:$P$12,0)) -> 0.004523633678 | K65: 0.002373259012 | L65: =IFERROR(INDEX('Pop calcs'!$Y53:$Z53,MATCH($D$5,'Pop calcs'!$Y$12:$Z$12,0)),0) -> 0.008013874078 | M65: 0.01 | N65: 0 | O65: 0 | P65: 0.055 | Q65: 0.045 | U65: 0.002770541162 | X65: 0
B66: =Names!I49 -> 107 | C66: =INDEX(Names!$K$9:$K$136,MATCH(B66,Names!$I$9:$I$136,0)) -> Metropolitan | D66: =Names!F49 -> Fairfield | E66: 0.03882841796 | F66: 0.0041 | G66: =INDEX('ESL calcs'!$Z$12:$AD$139,MATCH($B66,'ESL calcs'!$C$12:$C$139,0),MATCH($D$5,'ESL calcs'!$Z$10:$AD$10,0)) -> 0.006116196445 | H66: =INDEX('ESL calcs'!$BB$12:$BF$139,MATCH($B66,'ESL calcs'!$C$12:$C$139,0),MATCH($D$5,'ESL calcs'!$BB$10:$BF$10,0)) -> 0 | I66: =INDEX('Pop calcs'!$D54:$I54,MATCH($D$5,'Pop calcs'!$D$12:$I$12,0)) -> 0 | J66: =INDEX('Pop calcs'!$K54:$P54,MATCH($D$5,'Pop calcs'!$K$12:$P$12,0)) -> 0.001001981697 | K66: 0 | L66: =IFERROR(INDEX('Pop calcs'!$Y54:$Z54,MATCH($D$5,'Pop calcs'!$Y$12:$Z$12,0)),0) -> 0 | M66: 0 | N66: 0 | O66: 0 | P66: 0.049 | Q66: 0.049 | U66: 0.006116196445 | X66: 0
B67: =Names!I50 -> 2092 | C67: =INDEX(Names!$K$9:$K$136,MATCH(B67,Names!$I$9:$I$136,0)) -> Rural | D67: =Names!F50 -> Federation | E67: 0.0388443815 | F67: 0.0036 | G67: =INDEX('ESL calcs'!$Z$12:$AD$139,MATCH($B67,'ESL calcs'!$C$12:$C$139,0),MATCH($D$5,'ESL calcs'!$Z$10:$AD$10,0)) -> 0.0009383532659 | H67: =INDEX('ESL calcs'!$BB$12:$BF$139,MATCH($B67,'ESL calcs'!$C$12:$C$139,0),MATCH($D$5,'ESL calcs'!$BB$10:$BF$10,0)) -> 0.001139082456 | I67: =INDEX('Pop calcs'!$D55:$I55,MATCH($D$5,'Pop calcs'!$D$12:$I$12,0)) -> 0.002417908119 | J67: =INDEX('Pop calcs'!$K55:$P55,MATCH($D$5,'Pop calcs'!$K$12:$P$12,0)) -> 0.007596067918 | K67: 0 | L67: =IFERROR(INDEX('Pop calcs'!$Y55:$Z55,MATCH($D$5,'Pop calcs'!$Y$12:$Z$12,0)),0) -> -0.007198911717 | M67: 0 | N67: 0 | O67: 0 | P67: 0.045 | Q67: 0.045 | U67: 0.002077435722 | X67: 0.08
B68: =Names!I51 -> 108 | C68: =INDEX(Names!$K$9:$K$136,MATCH(B68,Names!$I$9:$I$136,0)) -> Rural | D68: =Names!F51 -> Forbes | E68: 0.0388443815 | F68: 0.0036 | G68: =INDEX('ESL calcs'!$Z$12:$AD$139,MATCH($B68,'ESL calcs'!$C$12:$C$139,0),MATCH($D$5,'ESL calcs'!$Z$10:$AD$10,0)) -> 0.0002972212856 | H68: =INDEX('ESL calcs'!$BB$12:$BF$139,MATCH($B68,'ESL calcs'!$C$12:$C$139,0),MATCH($D$5,'ESL calcs'!$BB$10:$BF$10,0)) -> 0.00181493876 | I68: =INDEX('Pop calcs'!$D56:$I56,MATCH($D$5,'Pop calcs'!$D$12:$I$12,0)) -> 0 | J68: =INDEX('Pop calcs'!$K56:$P56,MATCH($D$5,'Pop calcs'!$K$12:$P$12,0)) -> 0.0005001875703 | K68: 0 | L68: =IFERROR(INDEX('Pop calcs'!$Y56:$Z56,MATCH($D$5,'Pop calcs'!$Y$12:$Z$12,0)),0) -> -0.0007982534562 | M68: 0 | N68: 0 | O68: 0 | P68: 0.045 | Q68: 0.045 | U68: 0.002112160046 | X68: 0.105
B69: =Names!I52 -> 2093 | C69: =INDEX(Names!$K$9:$K$136,MATCH(B69,Names!$I$9:$I$136,0)) -> Metropolitan | D69: =Names!F52 -> Georges River | E69: 0.03882841796 | F69: 0.0041 | G69: =INDEX('ESL calcs'!$Z$12:$AD$139,MATCH($B69,'ESL calcs'!$C$12:$C$139,0),MATCH($D$5,'ESL calcs'!$Z$10:$AD$10,0)) -> 0.005409233032 | H69: =INDEX('ESL calcs'!$BB$12:$BF$139,MATCH($B69,'ESL calcs'!$C$12:$C$139,0),MATCH($D$5,'ESL calcs'!$BB$10:$BF$10,0)) -> 0 | I69: =INDEX('Pop calcs'!$D57:$I57,MATCH($D$5,'Pop calcs'!$D$12:$I$12,0)) -> 0.002305128256 | J69: =INDEX('Pop calcs'!$K57:$P57,MATCH($D$5,'Pop calcs'!$K$12:$P$12,0)) -> 0.00979931539 | K69: 0 | L69: =IFERROR(INDEX('Pop calcs'!$Y57:$Z57,MATCH($D$5,'Pop calcs'!$Y$12:$Z$12,0)),0) -> 0 | M69: 0 | N69: 0 | O69: 0 | P69: 0.048 | Q69: 0.048 | U69: 0.005409233032 | X69: 0
B70: =Names!I53 -> 109 | C70: =INDEX(Names!$K$9:$K$136,MATCH(B70,Names!$I$9:$I$136,0)) -> Rural | D70: =Names!F53 -> Gilgandra | E70: 0.0388443815 | F70: 0.0036 | G70: =INDEX('ESL calcs'!$Z$12:$AD$139,MATCH($B70,'ESL calcs'!$C$12:$C$139,0),MATCH($D$5,'ESL calcs'!$Z$10:$AD$10,0)) -> -0.0003716460255 | H70: =INDEX('ESL calcs'!$BB$12:$BF$139,MATCH($B70,'ESL calcs'!$C$12:$C$139,0),MATCH($D$5,'ESL calcs'!$BB$10:$BF$10,0)) -> 0.002443584114 | I70: =INDEX('Pop calcs'!$D58:$I58,MATCH($D$5,'Pop calcs'!$D$12:$I$12,0)) -> 0 | J70: =INDEX('Pop calcs'!$K58:$P58,MATCH($D$5,'Pop calcs'!$K$12:$P$12,0)) -> 0 | K70: 0 | L70: =IFERROR(INDEX('Pop calcs'!$Y58:$Z58,MATCH($D$5,'Pop calcs'!$Y$12:$Z$12,0)),0) -> 0.0001038659575 | M70: 0 | N70: 0 | O70: 0 | P70: 0.045 | Q70: 0.045 | U70: 0.002071938088 | X70: 0.133
B71: =Names!I54 -> 2053 | C71: =INDEX(Names!$K$9:$K$136,MATCH(B71,Names!$I$9:$I$136,0)) -> Rural | D71: =Names!F54 -> Glen Innes Severn | E71: 0.0388443815 | F71: 0.0036 | G71: =INDEX('ESL calcs'!$Z$12:$AD$139,MATCH($B71,'ESL calcs'!$C$12:$C$139,0),MATCH($D$5,'ESL calcs'!$Z$10:$AD$10,0)) -> -0.001476448284 | H71: =INDEX('ESL calcs'!$BB$12:$BF$139,MATCH($B71,'ESL calcs'!$C$12:$C$139,0),MATCH($D$5,'ESL calcs'!$BB$10:$BF$10,0)) -> 0.003615552151 | I71: =INDEX('Pop calcs'!$D59:$I59,MATCH($D$5,'Pop calcs'!$D$12:$I$12,0)) -> 0.004543905487 | J71: =INDEX('Pop calcs'!$K59:$P59,MATCH($D$5,'Pop calcs'!$K$12:$P$12,0)) -> 0.001498229365 | K71: 0.003045676121 | L71: =IFERROR(INDEX('Pop calcs'!$Y59:$Z59,MATCH($D$5,'Pop calcs'!$Y$12:$Z$12,0)),0) -> 0 | M71: 0.003 | N71: 0 | O71: 0 | P71: 0.048 | Q71: 0.045 | U71: 0.002139103867 | X71: 0.19
B72: =Names!I55 -> 2032 | C72: =INDEX(Names!$K$9:$K$136,MATCH(B72,Names!$I$9:$I$136,0)) -> Regional | D72: =Names!F55 -> Goulburn Mulwaree | E72: 0.03872464517 | F72: 0.0037 | G72: =INDEX('ESL calcs'!$Z$12:$AD$139,MATCH($B72,'ESL calcs'!$C$12:$C$139,0),MATCH($D$5,'ESL calcs'!$Z$10:$AD$10,0)) -> 0.002371899442 | H72: =INDEX('ESL calcs'!$BB$12:$BF$139,MATCH($B72,'ESL calcs'!$C$12:$C$139,0),MATCH($D$5,'ESL calcs'!$BB$10:$BF$10,0)) -> 0 | I72: =INDEX('Pop calcs'!$D60:$I60,MATCH($D$5,'Pop calcs'!$D$12:$I$12,0)) -> 0.008080042925 | J72: =INDEX('Pop calcs'!$K60:$P60,MATCH($D$5,'Pop calcs'!$K$12:$P$12,0)) -> 0.008629648037 | K72: 0 | L72: =IFERROR(INDEX('Pop calcs'!$Y60:$Z60,MATCH($D$5,'Pop calcs'!$Y$12:$Z$12,0)),0) -> -4.201921372e-05 | M72: 0 | N72: 0 | O72: 0 | P72: 0.045 | Q72: 0.045 | U72: 0.002371899442 | X72: 0
B73: =Names!I56 -> 2049 | C73: =INDEX(Names!$K$9:$K$136,MATCH(B73,Names!$I$9:$I$136,0)) -> Rural | D73: =Names!F56 -> Greater Hume | E73: 0.0388443815 | F73: 0.0036 | G73: =INDEX('ESL calcs'!$Z$12:$AD$139,MATCH($B73,'ESL calcs'!$C$12:$C$139,0),MATCH($D$5,'ESL calcs'!$Z$10:$AD$10,0)) -> -0.0002185889658 | H73: =INDEX('ESL calcs'!$BB$12:$BF$139,MATCH($B73,'ESL calcs'!$C$12:$C$139,0),MATCH($D$5,'ESL calcs'!$BB$10:$BF$10,0)) -> 0.002356199108 | I73: =INDEX('Pop calcs'!$D61:$I61,MATCH($D$5,'Pop calcs'!$D$12:$I$12,0)) -> 0.01197658712 | J73: =INDEX('Pop calcs'!$K61:$P61,MATCH($D$5,'Pop calcs'!$K$12:$P$12,0)) -> 0.01035375324 | K73: 0.001622833887 | L73: =IFERROR(INDEX('Pop calcs'!$Y61:$Z61,MATCH($D$5,'Pop calcs'!$Y$12:$Z$12,0)),0) -> 0.005195093717 | M73: 0.007 | N73: 0 | O73: 0 | P73: 0.052 | Q73: 0.045 | U73: 0.002137610143 | X73: 0.12
B74: =Names!I57 -> 118 | C74: =INDEX(Names!$K$9:$K$136,MATCH(B74,Names!$I$9:$I$136,0)) -> Regional | D74: =Names!F57 -> Griffith | E74: 0.03872464517 | F74: 0.0037 | G74: =INDEX('ESL calcs'!$Z$12:$AD$139,MATCH($B74,'ESL calcs'!$C$12:$C$139,0),MATCH($D$5,'ESL calcs'!$Z$10:$AD$10,0)) -> 0.001433024634 | H74: =INDEX('ESL calcs'!$BB$12:$BF$139,MATCH($B74,'ESL calcs'!$C$12:$C$139,0),MATCH($D$5,'ESL calcs'!$BB$10:$BF$10,0)) -> 0.0006763960223 | I74: =INDEX('Pop calcs'!$D62:$I62,MATCH($D$5,'Pop calcs'!$D$12:$I$12,0)) -> 0 | J74: =INDEX('Pop calcs'!$K62:$P62,MATCH($D$5,'Pop calcs'!$K$12:$P$12,0)) -> 0.008212770586 | K74: 0 | L74: =IFERROR(INDEX('Pop calcs'!$Y62:$Z62,MATCH($D$5,'Pop calcs'!$Y$12:$Z$12,0)),0) -> 0 | M74: 0 | N74: 0 | O74: 0 | P74: 0.045 | Q74: 0.045 | U74: 0.002109420656 | X74: 0.075
B75: =Names!I58 -> 120 | C75: =INDEX(Names!$K$9:$K$136,MATCH(B75,Names!$I$9:$I$136,0)) -> Rural | D75: =Names!F58 -> Gunnedah | E75: 0.0388443815 | F75: 0.0036 | G75: =INDEX('ESL calcs'!$Z$12:$AD$139,MATCH($B75,'ESL calcs'!$C$12:$C$139,0),MATCH($D$5,'ESL calcs'!$Z$10:$AD$10,0)) -> 0.0008310030359 | H75: =INDEX('ESL calcs'!$BB$12:$BF$139,MATCH($B75,'ESL calcs'!$C$12:$C$139,0),MATCH($D$5,'ESL calcs'!$BB$10:$BF$10,0)) -> 0.001242353853 | I75: =INDEX('Pop calcs'!$D63:$I63,MATCH($D$5,'Pop calcs'!$D$12:$I$12,0)) -> 0.003056935422 | J75: =INDEX('Pop calcs'!$K63:$P63,MATCH($D$5,'Pop calcs'!$K$12:$P$12,0)) -> 0.02217262976 | K75: 0 | L75: =IFERROR(INDEX('Pop calcs'!$Y63:$Z63,MATCH($D$5,'Pop calcs'!$Y$12:$Z$12,0)),0) -> 0.01141471298 | M75: 0.011 | N75: 0 | O75: 0 | P75: 0.056 | Q75: 0.045 | U75: 0.002073356889 | X75: 0.19
B76: =Names!I59 -> 2039 | C76: =INDEX(Names!$K$9:$K$136,MATCH(B76,Names!$I$9:$I$136,0)) -> Rural | D76: =Names!F59 -> Gwydir | E76: 0.0388443815 | F76: 0.0036 | G76: =INDEX('ESL calcs'!$Z$12:$AD$139,MATCH($B76,'ESL calcs'!$C$12:$C$139,0),MATCH($D$5,'ESL calcs'!$Z$10:$AD$10,0)) -> -0.000646022815 | H76: =INDEX('ESL calcs'!$BB$12:$BF$139,MATCH($B76,'ESL calcs'!$C$12:$C$139,0),MATCH($D$5,'ESL calcs'!$BB$10:$BF$10,0)) -> 0.002739060759 | I76: =INDEX('Pop calcs'!$D64:$I64,MATCH($D$5,'Pop calcs'!$D$12:$I$12,0)) -> 0.0008144980656 | J76: =INDEX('Pop calcs'!$K64:$P64,MATCH($D$5,'Pop calcs'!$K$12:$P$12,0)) -> 0.0004756242568 | K76: 0.0003388738087 | L76: =IFERROR(INDEX('Pop calcs'!$Y64:$Z64,MATCH($D$5,'Pop calcs'!$Y$12:$Z$12,0)),0) -> -0.003557929056 | M76: 0 | N76: 0 | O76: 0 | P76: 0.045 | Q76: 0.045 | U76: 0.002093037944 | X76: 0.16
B77: =Names!I60 -> 125 | C77: =INDEX(Names!$K$9:$K$136,MATCH(B77,Names!$I$9:$I$136,0)) -> Metropolitan | D77: =Names!F60 -> Hawkesbury | E77: 0.03882841796 | F77: 0.0041 | G77: =INDEX('ESL calcs'!$Z$12:$AD$139,MATCH($B77,'ESL calcs'!$C$12:$C$139,0),MATCH($D$5,'ESL calcs'!$Z$10:$AD$10,0)) -> 0.001859654055 | H77: =INDEX('ESL calcs'!$BB$12:$BF$139,MATCH($B77,'ESL calcs'!$C$12:$C$139,0),MATCH($D$5,'ESL calcs'!$BB$10:$BF$10,0)) -> 0 | I77: =INDEX('Pop calcs'!$D65:$I65,MATCH($D$5,'Pop calcs'!$D$12:$I$12,0)) -> 0.003462511653 | J77: =INDEX('Pop calcs'!$K65:$P65,MATCH($D$5,'Pop calcs'!$K$12:$P$12,0)) -> 0.004504712622 | K77: 0 | L77: =IFERROR(INDEX('Pop calcs'!$Y65:$Z65,MATCH($D$5,'Pop calcs'!$Y$12:$Z$12,0)),0) -> -0.001378029363 | M77: 0 | N77: 0 | O77: 0 | P77: 0.045 | Q77: 0.045 | U77: 0.001859654055
B78: =Names!I61 -> 126 | C78: =INDEX(Names!$K$9:$K$136,MATCH(B78,Names!$I$9:$I$136,0)) -> Rural | D78: =Names!F61 -> Hay | E78: 0.0388443815 | F78: 0.0036 | G78: =INDEX('ESL calcs'!$Z$12:$AD$139,MATCH($B78,'ESL calcs'!$C$12:$C$139,0),MATCH($D$5,'ESL calcs'!$Z$10:$AD$10,0)) -> -4.609244525e-05 | H78: =INDEX('ESL calcs'!$BB$12:$BF$139,MATCH($B78,'ESL calcs'!$C$12:$C$139,0),MATCH($D$5,'ESL calcs'!$BB$10:$BF$10,0)) -> 0.002183077141 | I78: =INDEX('Pop calcs'!$D66:$I66,MATCH($D$5,'Pop calcs'!$D$12:$I$12,0)) -> 0 | J78: =INDEX('Pop calcs'!$K66:$P66,MATCH($D$5,'Pop calcs'!$K$12:$P$12,0)) -> 0.0003895597974 | K78: 0 | L78: =IFERROR(INDEX('Pop calcs'!$Y66:$Z66,MATCH($D$5,'Pop calcs'!$Y$12:$Z$12,0)),0) -> 0 | M78: 0 | N78: 0 | O78: 0 | P78: 0.045 | Q78: 0.045 | U78: 0.002136984696 | X78: 0.08
B79: =Names!I62 -> 2081 | C79: =INDEX(Names!$K$9:$K$136,MATCH(B79,Names!$I$9:$I$136,0)) -> Rural | D79: =Names!F62 -> Hilltops | E79: 0.0388443815 | F79: 0.0036 | G79: =INDEX('ESL calcs'!$Z$12:$AD$139,MATCH($B79,'ESL calcs'!$C$12:$C$139,0),MATCH($D$5,'ESL calcs'!$Z$10:$AD$10,0)) -> 9.468135744e-05 | H79: =INDEX('ESL calcs'!$BB$12:$BF$139,MATCH($B79,'ESL calcs'!$C$12:$C$139,0),MATCH($D$5,'ESL calcs'!$BB$10:$BF$10,0)) -> 0.002040363056 | I79: =INDEX('Pop calcs'!$D67:$I67,MATCH($D$5,'Pop calcs'!$D$12:$I$12,0)) -> 0.0006244796003 | J79: =INDEX('Pop calcs'!$K67:$P67,MATCH($D$5,'Pop calcs'!$K$12:$P$12,0)) -> 0.00377977464 | K79: 0 | L79: =IFERROR(INDEX('Pop calcs'!$Y67:$Z67,MATCH($D$5,'Pop calcs'!$Y$12:$Z$12,0)),0) -> 0.00596796147 | M79: 0.006 | N79: 0 | O79: 0 | P79: 0.051 | Q79: 0.045 | U79: 0.002135044413 | X79: 0.105
B80: =Names!I63 -> 129 | C80: =INDEX(Names!$K$9:$K$136,MATCH(B80,Names!$I$9:$I$136,0)) -> Metropolitan | D80: =Names!F63 -> Hornsby | E80: 0.03882841796 | F80: 0.0041 | G80: =INDEX('ESL calcs'!$Z$12:$AD$139,MATCH($B80,'ESL calcs'!$C$12:$C$139,0),MATCH($D$5,'ESL calcs'!$Z$10:$AD$10,0)) -> 0.005861668304 | H80: =INDEX('ESL calcs'!$BB$12:$BF$139,MATCH($B80,'ESL calcs'!$C$12:$C$139,0),MATCH($D$5,'ESL calcs'!$BB$10:$BF$10,0)) -> 0 | I80: =INDEX('Pop calcs'!$D68:$I68,MATCH($D$5,'Pop calcs'!$D$12:$I$12,0)) -> 0 | J80: =INDEX('Pop calcs'!$K68:$P68,MATCH($D$5,'Pop calcs'!$K$12:$P$12,0)) -> 0.0022964594 | K80: 0 | L80: =IFERROR(INDEX('Pop calcs'!$Y68:$Z68,MATCH($D$5,'Pop calcs'!$Y$12:$Z$12,0)),0) -> 0.0002899443589 | M80: 0 | N80: 0 | O80: 0 | P80: 0.049 | Q80: 0.049 | U80: 0.005861668304 | X80: 0
B81: =Names!I64 -> 131 | C81: =INDEX(Names!$K$9:$K$136,MATCH(B81,Names!$I$9:$I$136,0)) -> Metropolitan | D81: =Names!F64 -> Hunters Hill | E81: 0.03882841796 | F81: 0.0041 | G81: =INDEX('ESL calcs'!$Z$12:$AD$139,MATCH($B81,'ESL calcs'!$C$12:$C$139,0),MATCH($D$5,'ESL calcs'!$Z$10:$AD$10,0)) -> 0.006740095585 | H81: =INDEX('ESL calcs'!$BB$12:$BF$139,MATCH($B81,'ESL calcs'!$C$12:$C$139,0),MATCH($D$5,'ESL calcs'!$BB$10:$BF$10,0)) -> 0 | I81: =INDEX('Pop calcs'!$D69:$I69,MATCH($D$5,'Pop calcs'!$D$12:$I$12,0)) -> 0 | J81: =INDEX('Pop calcs'!$K69:$P69,MATCH($D$5,'Pop calcs'!$K$12:$P$12,0)) -> 0 | K81: 0 | L81: =IFERROR(INDEX('Pop calcs'!$Y69:$Z69,MATCH($D$5,'Pop calcs'!$Y$12:$Z$12,0)),0) -> 0 | M81: 0 | N81: 0 | O81: 0 | P81: 0.05 | Q81: 0.05 | U81: 0.006740095585 | X81: 0
B82: =Names!I65 -> 2083 | C82: =INDEX(Names!$K$9:$K$136,MATCH(B82,Names!$I$9:$I$136,0)) -> Metropolitan | D82: =Names!F65 -> Inner West | E82: 0.03882841796 | F82: 0.0041 | G82: =INDEX('ESL calcs'!$Z$12:$AD$139,MATCH($B82,'ESL calcs'!$C$12:$C$139,0),MATCH($D$5,'ESL calcs'!$Z$10:$AD$10,0)) -> 0.005969756917 | H82: =INDEX('ESL calcs'!$BB$12:$BF$139,MATCH($B82,'ESL calcs'!$C$12:$C$139,0),MATCH($D$5,'ESL calcs'!$BB$10:$BF$10,0)) -> 0 | I82: =INDEX('Pop calcs'!$D70:$I70,MATCH($D$5,'Pop calcs'!$D$12:$I$12,0)) -> 0 | J82: =INDEX('Pop calcs'!$K70:$P70,MATCH($D$5,'Pop calcs'!$K$12:$P$12,0)) -> 0 | K82: 0 | L82: =IFERROR(INDEX('Pop calcs'!$Y70:$Z70,MATCH($D$5,'Pop calcs'!$Y$12:$Z$12,0)),0) -> -0.005541702166 | M82: 0 | N82: 0 | O82: 0 | P82: 0.049 | Q82: 0.049 | U82: 0.005969756917 | X82: 0
B83: =Names!I66 -> 133 | C83: =INDEX(Names!$K$9:$K$136,MATCH(B83,Names!$I$9:$I$136,0)) -> Rural | D83: =Names!F66 -> Inverell | E83: 0.0388443815 | F83: 0.0036 | G83: =INDEX('ESL calcs'!$Z$12:$AD$139,MATCH($B83,'ESL calcs'!$C$12:$C$139,0),MATCH($D$5,'ESL calcs'!$Z$10:$AD$10,0)) -> 0.0006710779292 | H83: =INDEX('ESL calcs'!$BB$12:$BF$139,MATCH($B83,'ESL calcs'!$C$12:$C$139,0),MATCH($D$5,'ESL calcs'!$BB$10:$BF$10,0)) -> 0.001419982326 | I83: =INDEX('Pop calcs'!$D71:$I71,MATCH($D$5,'Pop calcs'!$D$12:$I$12,0)) -> 0.001339360455 | J83: =INDEX('Pop calcs'!$K71:$P71,MATCH($D$5,'Pop calcs'!$K$12:$P$12,0)) -> 0.002451982019 | K83: 0 | L83: =IFERROR(INDEX('Pop calcs'!$Y71:$Z71,MATCH($D$5,'Pop calcs'!$Y$12:$Z$12,0)),0) -> 0 | M83: 0 | N83: 0 | O83: 0 | P83: 0.045 | Q83: 0.045 | U83: 0.002091060255 | X83: 0.15
B84: =Names!I67 -> 135 | C84: =INDEX(Names!$K$9:$K$136,MATCH(B84,Names!$I$9:$I$136,0)) -> Rural | D84: =Names!F67 -> Junee | E84: 0.0388443815 | F84: 0.0036 | G84: =INDEX('ESL calcs'!$Z$12:$AD$139,MATCH($B84,'ESL calcs'!$C$12:$C$139,0),MATCH($D$5,'ESL calcs'!$Z$10:$AD$10,0)) -> 0.0007844376316 | H84: =INDEX('ESL calcs'!$BB$12:$BF$139,MATCH($B84,'ESL calcs'!$C$12:$C$139,0),MATCH($D$5,'ESL calcs'!$BB$10:$BF$10,0)) -> 0.001336963399 | I84: =INDEX('Pop calcs'!$D72:$I72,MATCH($D$5,'Pop calcs'!$D$12:$I$12,0)) -> 0 | J84: =INDEX('Pop calcs'!$K72:$P72,MATCH($D$5,'Pop calcs'!$K$12:$P$12,0)) -> 0.006273234201 | K84: 0 | L84: =IFERROR(INDEX('Pop calcs'!$Y72:$Z72,MATCH($D$5,'Pop calcs'!$Y$12:$Z$12,0)),0) -> -0.001162744917 | M84: 0 | N84: 0 | O84: 0 | P84: 0.045 | Q84: 0.045 | U84: 0.00212140103 | X84: 0.075
B85: =Names!I68 -> 136 | C85: =INDEX(Names!$K$9:$K$136,MATCH(B85,Names!$I$9:$I$136,0)) -> Regional | D85: =Names!F68 -> Kempsey | E85: 0.03872464517 | F85: 0.0037 | G85: =INDEX('ESL calcs'!$Z$12:$AD$139,MATCH($B85,'ESL calcs'!$C$12:$C$139,0),MATCH($D$5,'ESL calcs'!$Z$10:$AD$10,0)) -> 0.002038626172 | H85: =INDEX('ESL calcs'!$BB$12:$BF$139,MATCH($B85,'ESL calcs'!$C$12:$C$139,0),MATCH($D$5,'ESL calcs'!$BB$10:$BF$10,0)) -> 4.211027923e-05 | I85: =INDEX('Pop calcs'!$D73:$I73,MATCH($D$5,'Pop calcs'!$D$12:$I$12,0)) -> 0.009651545911 | J85: =INDEX('Pop calcs'!$K73:$P73,MATCH($D$5,'Pop calcs'!$K$12:$P$12,0)) -> 0.01297400646 | K85: 0 | L85: =IFERROR(INDEX('Pop calcs'!$Y73:$Z73,MATCH($D$5,'Pop calcs'!$Y$12:$Z$12,0)),0) -> 0.001935107764 | M85: 0.002 | N85: 0 | O85: 0 | P85: 0.047 | Q85: 0.045 | U85: 0.002080736451 | X85: 0.005
B86: =Names!I69 -> 137 | C86: =INDEX(Names!$K$9:$K$136,MATCH(B86,Names!$I$9:$I$136,0)) -> Regional | D86: =Names!F69 -> Kiama | E86: 0.03872464517 | F86: 0.0037 | G86: =INDEX('ESL calcs'!$Z$12:$AD$139,MATCH($B86,'ESL calcs'!$C$12:$C$139,0),MATCH($D$5,'ESL calcs'!$Z$10:$AD$10,0)) -> 0.00180945093 | H86: =INDEX('ESL calcs'!$BB$12:$BF$139,MATCH($B86,'ESL calcs'!$C$12:$C$139,0),MATCH($D$5,'ESL calcs'!$BB$10:$BF$10,0)) -> 0.000294824657 | I86: =INDEX('Pop calcs'!$D74:$I74,MATCH($D$5,'Pop calcs'!$D$12:$I$12,0)) -> 0 | J86: =INDEX('Pop calcs'!$K74:$P74,MATCH($D$5,'Pop calcs'!$K$12:$P$12,0)) -> . | K86: 0 | L86: =IFERROR(INDEX('Pop calcs'!$Y74:$Z74,MATCH($D$5,'Pop calcs'!$Y$12:$Z$12,0)),0) -> -0.0140425121 | M86: 0 | N86: 0 | O86: 0 | P86: 0.045 | Q86: 0.045 | U86: 0.002104275587 | X86: 0.05
B87: =Names!I70 -> 139 | C87: =INDEX(Names!$K$9:$K$136,MATCH(B87,Names!$I$9:$I$136,0)) -> Metropolitan | D87: =Names!F70 -> Ku-ring-gai | E87: 0.03882841796 | F87: 0.0041 | G87: =INDEX('ESL calcs'!$Z$12:$AD$139,MATCH($B87,'ESL calcs'!$C$12:$C$139,0),MATCH($D$5,'ESL calcs'!$Z$10:$AD$10,0)) -> 0.009473019413 | H87: =INDEX('ESL calcs'!$BB$12:$BF$139,MATCH($B87,'ESL calcs'!$C$12:$C$139,0),MATCH($D$5,'ESL calcs'!$BB$10:$BF$10,0)) -> 0 | I87: =INDEX('Pop calcs'!$D75:$I75,MATCH($D$5,'Pop calcs'!$D$12:$I$12,0)) -> 0 | J87: =INDEX('Pop calcs'!$K75:$P75,MATCH($D$5,'Pop calcs'!$K$12:$P$12,0)) -> 0.002699323748 | K87: 0 | L87: =IFERROR(INDEX('Pop calcs'!$Y75:$Z75,MATCH($D$5,'Pop calcs'!$Y$12:$Z$12,0)),0) -> 0 | M87: 0 | N87: 0 | O87: 0 | P87: 0.052 | Q87: 0.052 | U87: 0.009473019413 | X87: 0
B88: =Names!I71 -> 140 | C88: =INDEX(Names!$K$9:$K$136,MATCH(B88,Names!$I$9:$I$136,0)) -> Rural | D88: =Names!F71 -> Kyogle | E88: 0.0388443815 | F88: 0.0036 | G88: =INDEX('ESL calcs'!$Z$12:$AD$139,MATCH($B88,'ESL calcs'!$C$12:$C$139,0),MATCH($D$5,'ESL calcs'!$Z$10:$AD$10,0)) -> 9.352521578e-05 | H88: =INDEX('ESL calcs'!$BB$12:$BF$139,MATCH($B88,'ESL calcs'!$C$12:$C$139,0),MATCH($D$5,'ESL calcs'!$BB$10:$BF$10,0)) -> 0.002013839617 | I88: =INDEX('Pop calcs'!$D76:$I76,MATCH($D$5,'Pop calcs'!$D$12:$I$12,0)) -> 0.007919520548 | J88: =INDEX('Pop calcs'!$K76:$P76,MATCH($D$5,'Pop calcs'!$K$12:$P$12,0)) -> 0.006577250451 | K88: 0.001342270097 | L88: =IFERROR(INDEX('Pop calcs'!$Y76:$Z76,MATCH($D$5,'Pop calcs'!$Y$12:$Z$12,0)),0) -> 0.0003294751455 | M88: 0.002 | N88: 0 | O88: 0 | P88: 0.047 | Q88: 0.045 | U88: 0.002107364833 | X88: 0.125
B89: =Names!I72 -> 141 | C89: =INDEX(Names!$K$9:$K$136,MATCH(B89,Names!$I$9:$I$136,0)) -> Rural | D89: =Names!F72 -> Lachlan | E89: 0.0388443815 | F89: 0.0036 | G89: =INDEX('ESL calcs'!$Z$12:$AD$139,MATCH($B89,'ESL calcs'!$C$12:$C$139,0),MATCH($D$5,'ESL calcs'!$Z$10:$AD$10,0)) -> -0.0007352677508 | H89: =INDEX('ESL calcs'!$BB$12:$BF$139,MATCH($B89,'ESL calcs'!$C$12:$C$139,0),MATCH($D$5,'ESL calcs'!$BB$10:$BF$10,0)) -> 0.002810733995 | I89: =INDEX('Pop calcs'!$D77:$I77,MATCH($D$5,'Pop calcs'!$D$12:$I$12,0)) -> 0 | J89: =INDEX('Pop calcs'!$K77:$P77,MATCH($D$5,'Pop calcs'!$K$12:$P$12,0)) -> 0.001397712834 | K89: 0 | L89: =IFERROR(INDEX('Pop calcs'!$Y77:$Z77,MATCH($D$5,'Pop calcs'!$Y$12:$Z$12,0)),0) -> 0 | M89: 0 | N89: 0 | O89: 0 | P89: 0.045 | Q89: 0.045 | U89: 0.002075466244 | X89: 0.14
B90: =Names!I73 -> 142 | C90: =INDEX(Names!$K$9:$K$136,MATCH(B90,Names!$I$9:$I$136,0)) -> Regional | D90: =Names!F73 -> Lake Macquarie | E90: =INDEX($D$9:$F$9,MATCH(C90,$D$8:$F$8,0)) -> 0.03872464517 | F90: =INDEX($D$12:$F$12,MATCH(C90,$D$8:$F$8,0)) -> 0.0037 | G90: =INDEX('ESL calcs'!$Z$12:$AD$139,MATCH($B90,'ESL calcs'!$C$12:$C$139,0),MATCH($D$5,'ESL calcs'!$Z$10:$AD$10,0)) -> 0.00471898598 | H90: =INDEX('ESL calcs'!$BB$12:$BF$139,MATCH($B90,'ESL calcs'!$C$12:$C$139,0),MATCH($D$5,'ESL calcs'!$BB$10:$BF$10,0)) -> 0 | I90: =INDEX('Pop calcs'!$D78:$I78,MATCH($D$5,'Pop calcs'!$D$12:$I$12,0)) -> 0.01150177364 | J90: =INDEX('Pop calcs'!$K78:$P78,MATCH($D$5,'Pop calcs'!$K$12:$P$12,0)) -> 0.005022313905 | K90: 0.006479459733 | L90: =IFERROR(INDEX('Pop calcs'!$Y78:$Z78,MATCH($D$5,'Pop calcs'!$Y$12:$Z$12,0)),0) -> 0.00234373399 | M90: =IFERROR(MAX(0,ROUND(K90+L90,$D$13)),".") -> 0.009 | N90: 0 | O90: 0 | P90: 0.056 | Q90: =P90-M90 -> 0.047 | U90: =SUM(G90:H90) -> 0.00471898598 | X90: 0
B91: =Names!I74 -> 143 | C91: =INDEX(Names!$K$9:$K$136,MATCH(B91,Names!$I$9:$I$136,0)) -> Metropolitan | D91: =Names!F74 -> Lane Cove | E91: 0.03882841796 | F91: 0.0041 | G91: =INDEX('ESL calcs'!$Z$12:$AD$139,MATCH($B91,'ESL calcs'!$C$12:$C$139,0),MATCH($D$5,'ESL calcs'!$Z$10:$AD$10,0)) -> 0.006378454698 | H91: =INDEX('ESL calcs'!$BB$12:$BF$139,MATCH($B91,'ESL calcs'!$C$12:$C$139,0),MATCH($D$5,'ESL calcs'!$BB$10:$BF$10,0)) -> 0 | I91: =INDEX('Pop calcs'!$D79:$I79,MATCH($D$5,'Pop calcs'!$D$12:$I$12,0)) -> 0.010782556 | J91: =INDEX('Pop calcs'!$K79:$P79,MATCH($D$5,'Pop calcs'!$K$12:$P$12,0)) -> 0.01092753515 | K91: =IFERROR(MAX(0,I91-J91),0) -> 0 | L91: =IFERROR(INDEX('Pop calcs'!$Y79:$Z79,MATCH($D$5,'Pop calcs'!$Y$12:$Z$12,0)),0) -> 0 | M91: 0 | N91: 0 | O91: 0 | P91: =M91+ROUND(E91+F91+G91+H91+N91-O91,$D$13) -> 0.049 | Q91: 0.049 | U91: 0.006378454698 | X91: 0
B92: =Names!I75 -> 144 | C92: =INDEX(Names!$K$9:$K$136,MATCH(B92,Names!$I$9:$I$136,0)) -> Rural | D92: =Names!F75 -> Leeton | E92: 0.0388443815 | F92: 0.0036 | G92: =INDEX('ESL calcs'!$Z$12:$AD$139,MATCH($B92,'ESL calcs'!$C$12:$C$139,0),MATCH($D$5,'ESL calcs'!$Z$10:$AD$10,0)) -> 0.002139499327 | H92: =INDEX('ESL calcs'!$BB$12:$BF$139,MATCH($B92,'ESL calcs'!$C$12:$C$139,0),MATCH($D$5,'ESL calcs'!$BB$10:$BF$10,0)) -> 0 | I92: =INDEX('Pop calcs'!$D80:$I80,MATCH($D$5,'Pop calcs'!$D$12:$I$12,0)) -> 0 | J92: =INDEX('Pop calcs'!$K80:$P80,MATCH($D$5,'Pop calcs'!$K$12:$P$12,0)) -> 0.002439964043 | K92: 0 | L92: =IFERROR(INDEX('Pop calcs'!$Y80:$Z80,MATCH($D$5,'Pop calcs'!$Y$12:$Z$12,0)),0) -> 0 | M92: 0 | N92: 0 | O92: 0 | P92: 0.045 | Q92: 0.045 | U92: 0.002139499327 | X92: 0
B93: =Names!I76 -> 146 | C93: =INDEX(Names!$K$9:$K$136,MATCH(B93,Names!$I$9:$I$136,0)) -> Regional | D93: =Names!F76 -> Lismore | E93: 0.03872464517 | F93: 0.0037 | G93: =INDEX('ESL calcs'!$Z$12:$AD$139,MATCH($B93,'ESL calcs'!$C$12:$C$139,0),MATCH($D$5,'ESL calcs'!$Z$10:$AD$10,0)) -> 0.004138220608 | H93: =INDEX('ESL calcs'!$BB$12:$BF$139,MATCH($B93,'ESL calcs'!$C$12:$C$139,0),MATCH($D$5,'ESL calcs'!$BB$10:$BF$10,0)) -> 0 | I93: =INDEX('Pop calcs'!$D81:$I81,MATCH($D$5,'Pop calcs'!$D$12:$I$12,0)) -> 0 | J93: =INDEX('Pop calcs'!$K81:$P81,MATCH($D$5,'Pop calcs'!$K$12:$P$12,0)) -> 0.008859560688 | K93: 0 | L93: =IFERROR(INDEX('Pop calcs'!$Y81:$Z81,MATCH($D$5,'Pop calcs'!$Y$12:$Z$12,0)),0) -> 0 | M93: 0 | N93: 0 | O93: 0 | P93: 0.047 | Q93: 0.047 | U93: 0.004138220608 | X93: 0
B94: =Names!I77 -> 2044 | C94: =INDEX(Names!$K$9:$K$136,MATCH(B94,Names!$I$9:$I$136,0)) -> Regional | D94: =Names!F77 -> Lithgow | E94: 0.03872464517 | F94: 0.0037 | G94: =INDEX('ESL calcs'!$Z$12:$AD$139,MATCH($B94,'ESL calcs'!$C$12:$C$139,0),MATCH($D$5,'ESL calcs'!$Z$10:$AD$10,0)) -> 0.001721836716 | H94: =INDEX('ESL calcs'!$BB$12:$BF$139,MATCH($B94,'ESL calcs'!$C$12:$C$139,0),MATCH($D$5,'ESL calcs'!$BB$10:$BF$10,0)) -> 0.0003627250366 | I94: =INDEX('Pop calcs'!$D82:$I82,MATCH($D$5,'Pop calcs'!$D$12:$I$12,0)) -> 0 | J94: =INDEX('Pop calcs'!$K82:$P82,MATCH($D$5,'Pop calcs'!$K$12:$P$12,0)) -> 0 | K94: 0 | L94: =IFERROR(INDEX('Pop calcs'!$Y82:$Z82,MATCH($D$5,'Pop calcs'!$Y$12:$Z$12,0)),0) -> -1.342219478e-05 | M94: 0 | N94: 0 | O94: 0 | P94: 0.045 | Q94: 0.045 | U94: 0.002084561753 | X94: 0.035
B95: =Names!I78 -> 147 | C95: =INDEX(Names!$K$9:$K$136,MATCH(B95,Names!$I$9:$I$136,0)) -> Metropolitan | D95: =Names!F78 -> Liverpool | E95: 0.03882841796 | F95: 0.0041 | G95: =INDEX('ESL calcs'!$Z$12:$AD$139,MATCH($B95,'ESL calcs'!$C$12:$C$139,0),MATCH($D$5,'ESL calcs'!$Z$10:$AD$10,0)) -> 0.005630966483 | H95: =INDEX('ESL calcs'!$BB$12:$BF$139,MATCH($B95,'ESL calcs'!$C$12:$C$139,0),MATCH($D$5,'ESL calcs'!$BB$10:$BF$10,0)) -> 0 | I95: =INDEX('Pop calcs'!$D83:$I83,MATCH($D$5,'Pop calcs'!$D$12:$I$12,0)) -> 0.02157671745 | J95: =INDEX('Pop calcs'!$K83:$P83,MATCH($D$5,'Pop calcs'!$K$12:$P$12,0)) -> 0.02372792934 | K95: 0 | L95: =IFERROR(INDEX('Pop calcs'!$Y83:$Z83,MATCH($D$5,'Pop calcs'!$Y$12:$Z$12,0)),0) -> 0.0007770571257 | M95: 0.001 | N95: 0 | O95: 0 | P95: 0.05 | Q95: 0.049 | U95: 0.005630966483 | X95: 0
B96: =Names!I79 -> 2040 | C96: =INDEX(Names!$K$9:$K$136,MATCH(B96,Names!$I$9:$I$136,0)) -> Rural | D96: =Names!F79 -> Liverpool Plains | E96: 0.0388443815 | F96: 0.0036 | G96: =INDEX('ESL calcs'!$Z$12:$AD$139,MATCH($B96,'ESL calcs'!$C$12:$C$139,0),MATCH($D$5,'ESL calcs'!$Z$10:$AD$10,0)) -> -0.000347942633 | H96: =INDEX('ESL calcs'!$BB$12:$BF$139,MATCH($B96,'ESL calcs'!$C$12:$C$139,0),MATCH($D$5,'ESL calcs'!$BB$10:$BF$10,0)) -> 0.002426273057 | I96: =INDEX('Pop calcs'!$D84:$I84,MATCH($D$5,'Pop calcs'!$D$12:$I$12,0)) -> 0.006177707676 | J96: =INDEX('Pop calcs'!$K84:$P84,MATCH($D$5,'Pop calcs'!$K$12:$P$12,0)) -> 0.003242853711 | K96: 0.002934853965 | L96: =IFERROR(INDEX('Pop calcs'!$Y84:$Z84,MATCH($D$5,'Pop calcs'!$Y$12:$Z$12,0)),0) -> 0 | M96: 0.003 | N96: 0 | O96: 0 | P96: 0.048 | Q96: 0.045 | U96: 0.002078330424 | X96: 0.155
B97: =Names!I80 -> 148 | C97: =INDEX(Names!$K$9:$K$136,MATCH(B97,Names!$I$9:$I$136,0)) -> Rural | D97: =Names!F80 -> Lockhart | E97: 0.0388443815 | F97: 0.0036 | G97: =INDEX('ESL calcs'!$Z$12:$AD$139,MATCH($B97,'ESL calcs'!$C$12:$C$139,0),MATCH($D$5,'ESL calcs'!$Z$10:$AD$10,0)) -> -0.003926313934 | H97: =INDEX('ESL calcs'!$BB$12:$BF$139,MATCH($B97,'ESL calcs'!$C$12:$C$139,0),MATCH($D$5,'ESL calcs'!$BB$10:$BF$10,0)) -> 0.006003833487 | I97: =INDEX('Pop calcs'!$D85:$I85,MATCH($D$5,'Pop calcs'!$D$12:$I$12,0)) -> 0.01111778846 | J97: =INDEX('Pop calcs'!$K85:$P85,MATCH($D$5,'Pop calcs'!$K$12:$P$12,0)) -> 0.0003849114704 | K97: 0.01073287699 | L97: =IFERROR(INDEX('Pop calcs'!$Y85:$Z85,MATCH($D$5,'Pop calcs'!$Y$12:$Z$12,0)),0) -> 0.01607310601 | M97: 0.027 | N97: 0 | O97: 0 | P97: 0.072 | Q97: 0.045 | U97: 0.002077519553 | X97: 0.197
B98: =Names!I81 -> 150 | C98: =INDEX(Names!$K$9:$K$136,MATCH(B98,Names!$I$9:$I$136,0)) -> Regional | D98: =Names!F81 -> Maitland | E98: 0.03872464517 | F98: 0.0037 | G98: =INDEX('ESL calcs'!$Z$12:$AD$139,MATCH($B98,'ESL calcs'!$C$12:$C$139,0),MATCH($D$5,'ESL calcs'!$Z$10:$AD$10,0)) -> 0.003085454878 | H98: =INDEX('ESL calcs'!$BB$12:$BF$139,MATCH($B98,'ESL calcs'!$C$12:$C$139,0),MATCH($D$5,'ESL calcs'!$BB$10:$BF$10,0)) -> 0 | I98: =INDEX('Pop calcs'!$D86:$I86,MATCH($D$5,'Pop calcs'!$D$12:$I$12,0)) -> 0.03251134695 | J98: =INDEX('Pop calcs'!$K86:$P86,MATCH($D$5,'Pop calcs'!$K$12:$P$12,0)) -> 0.02592766312 | K98: 0.006583683823 | L98: =IFERROR(INDEX('Pop calcs'!$Y86:$Z86,MATCH($D$5,'Pop calcs'!$Y$12:$Z$12,0)),0) -> -0.002731371148 | M98: 0.004 | N98: 0 | O98: 0 | P98: 0.05 | Q98: 0.046 | U98: 0.003085454878 | X98: 0
B99: =Names!I82 -> 2084 | C99: =INDEX(Names!$K$9:$K$136,MATCH(B99,Names!$I$9:$I$136,0)) -> Regional | D99: =Names!F82 -> Mid-Coast | E99: 0.03872464517 | F99: 0.0037 | G99: =INDEX('ESL calcs'!$Z$12:$AD$139,MATCH($B99,'ESL calcs'!$C$12:$C$139,0),MATCH($D$5,'ESL calcs'!$Z$10:$AD$10,0)) -> 0.001173896586 | H99: =INDEX('ESL calcs'!$BB$12:$BF$139,MATCH($B99,'ESL calcs'!$C$12:$C$139,0),MATCH($D$5,'ESL calcs'!$BB$10:$BF$10,0)) -> 0.0009017922541 | I99: =INDEX('Pop calcs'!$D87:$I87,MATCH($D$5,'Pop calcs'!$D$12:$I$12,0)) -> 0.006896551724 | J99: =INDEX('Pop calcs'!$K87:$P87,MATCH($D$5,'Pop calcs'!$K$12:$P$12,0)) -> 0.003888258847 | K99: 0.003008292877 | L99: =IFERROR(INDEX('Pop calcs'!$Y87:$Z87,MATCH($D$5,'Pop calcs'!$Y$12:$Z$12,0)),0) -> 0.003894110629 | M99: 0.007 | N99: 0 | O99: 0 | P99: 0.052 | Q99: 0.045 | U99: 0.00207568884 | X99: 0.115
B100: =Names!I83 -> 2042 | C100: =INDEX(Names!$K$9:$K$136,MATCH(B100,Names!$I$9:$I$136,0)) -> Regional | D100: =Names!F83 -> Mid-Western Regional | E100: 0.03872464517 | F100: 0.0037 | G100: =INDEX('ESL calcs'!$Z$12:$AD$139,MATCH($B100,'ESL calcs'!$C$12:$C$139,0),MATCH($D$5,'ESL calcs'!$Z$10:$AD$10,0)) -> 0.0005541397312 | H100: =INDEX('ESL calcs'!$BB$12:$BF$139,MATCH($B100,'ESL calcs'!$C$12:$C$139,0),MATCH($D$5,'ESL calcs'!$BB$10:$BF$10,0)) -> 0.001560938869 | I100: =INDEX('Pop calcs'!$D88:$I88,MATCH($D$5,'Pop calcs'!$D$12:$I$12,0)) -> 0.002178649237 | J100: =INDEX('Pop calcs'!$K88:$P88,MATCH($D$5,'Pop calcs'!$K$12:$P$12,0)) -> 0.007236081282 | K100: 0 | L100: =IFERROR(INDEX('Pop calcs'!$Y88:$Z88,MATCH($D$5,'Pop calcs'!$Y$12:$Z$12,0)),0) -> 0.0001009040382 | M100: 0 | N100: 0 | O100: 0 | P100: 0.045 | Q100: 0.045 | U100: 0.0021150786 | X100: 0.155
B101: =Names!I84 -> 155 | C101: =INDEX(Names!$K$9:$K$136,MATCH(B101,Names!$I$9:$I$136,0)) -> Rural | D101: =Names!F84 -> Moree Plains | E101: 0.0388443815 | F101: 0.0036 | G101: =INDEX('ESL calcs'!$Z$12:$AD$139,MATCH($B101,'ESL calcs'!$C$12:$C$139,0),MATCH($D$5,'ESL calcs'!$Z$10:$AD$10,0)) -> 0.0009769019058 | H101: =INDEX('ESL calcs'!$BB$12:$BF$139,MATCH($B101,'ESL calcs'!$C$12:$C$139,0),MATCH($D$5,'ESL calcs'!$BB$10:$BF$10,0)) -> 0.001104680844 | I101: =INDEX('Pop calcs'!$D89:$I89,MATCH($D$5,'Pop calcs'!$D$12:$I$12,0)) -> 0 | J101: =INDEX('Pop calcs'!$K89:$P89,MATCH($D$5,'Pop calcs'!$K$12:$P$12,0)) -> 0 | K101: 0 | L101: =IFERROR(INDEX('Pop calcs'!$Y89:$Z89,MATCH($D$5,'Pop calcs'!$Y$12:$Z$12,0)),0) -> 0 | M101: 0 | N101: 0 | O101: 0 | P101: 0.045 | Q101: 0.045 | U101: 0.00208158275 | X101: 0.165
B102: =Names!I85 -> 156 | C102: =INDEX(Names!$K$9:$K$136,MATCH(B102,Names!$I$9:$I$136,0)) -> Metropolitan | D102: =Names!F85 -> Mosman | E102: 0.03882841796 | F102: 0.0041 | G102: =INDEX('ESL calcs'!$Z$12:$AD$139,MATCH($B102,'ESL calcs'!$C$12:$C$139,0),MATCH($D$5,'ESL calcs'!$Z$10:$AD$10,0)) -> 0.01024799685 | H102: =INDEX('ESL calcs'!$BB$12:$BF$139,MATCH($B102,'ESL calcs'!$C$12:$C$139,0),MATCH($D$5,'ESL calcs'!$BB$10:$BF$10,0)) -> 0 | I102: =INDEX('Pop calcs'!$D90:$I90,MATCH($D$5,'Pop calcs'!$D$12:$I$12,0)) -> 0 | J102: =INDEX('Pop calcs'!$K90:$P90,MATCH($D$5,'Pop calcs'!$K$12:$P$12,0)) -> 0 | K102: 0 | L102: =IFERROR(INDEX('Pop calcs'!$Y90:$Z90,MATCH($D$5,'Pop calcs'!$Y$12:$Z$12,0)),0) -> 0 | M102: 0 | N102: 0 | O102: 0 | P102: 0.053 | Q102: 0.053 | U102: 0.01024799685 | X102: 0
B103: =Names!I86 -> 2085 | C103: =INDEX(Names!$K$9:$K$136,MATCH(B103,Names!$I$9:$I$136,0)) -> Rural | D103: =Names!F86 -> Murray River | E103: 0.0388443815 | F103: 0.0036 | G103: =INDEX('ESL calcs'!$Z$12:$AD$139,MATCH($B103,'ESL calcs'!$C$12:$C$139,0),MATCH($D$5,'ESL calcs'!$Z$10:$AD$10,0)) -> 9.136485404e-05 | H103: =INDEX('ESL calcs'!$BB$12:$BF$139,MATCH($B103,'ESL calcs'!$C$12:$C$139,0),MATCH($D$5,'ESL calcs'!$BB$10:$BF$10,0)) -> 0.002050268388 | I103: =INDEX('Pop calcs'!$D91:$I91,MATCH($D$5,'Pop calcs'!$D$12:$I$12,0)) -> 0.01776212833 | J103: =INDEX('Pop calcs'!$K91:$P91,MATCH($D$5,'Pop calcs'!$K$12:$P$12,0)) -> 0.01407588739 | K103: 0.003686240933 | L103: =IFERROR(INDEX('Pop calcs'!$Y91:$Z91,MATCH($D$5,'Pop calcs'!$Y$12:$Z$12,0)),0) -> -0.001375137472 | M103: 0.002 | N103: 0 | O103: 0 | P103: 0.047 | Q103: 0.045 | U103: 0.002141633242 | X103: 0.127
B104: =Names!I87 -> 2086 | C104: =INDEX(Names!$K$9:$K$136,MATCH(B104,Names!$I$9:$I$136,0)) -> Rural | D104: =Names!F87 -> Murrumbidgee | E104: 0.0388443815 | F104: 0.0036 | G104: =INDEX('ESL calcs'!$Z$12:$AD$139,MATCH($B104,'ESL calcs'!$C$12:$C$139,0),MATCH($D$5,'ESL calcs'!$Z$10:$AD$10,0)) -> -0.00179858646 | H104: =INDEX('ESL calcs'!$BB$12:$BF$139,MATCH($B104,'ESL calcs'!$C$12:$C$139,0),MATCH($D$5,'ESL calcs'!$BB$10:$BF$10,0)) -> 0.003944174551 | I104: =INDEX('Pop calcs'!$D92:$I92,MATCH($D$5,'Pop calcs'!$D$12:$I$12,0)) -> 0 | J104: =INDEX('Pop calcs'!$K92:$P92,MATCH($D$5,'Pop calcs'!$K$12:$P$12,0)) -> 0 | K104: 0 | L104: =IFERROR(INDEX('Pop calcs'!$Y92:$Z92,MATCH($D$5,'Pop calcs'!$Y$12:$Z$12,0)),0) -> 0 | M104: 0 | N104: 0 | O104: 0 | P104: 0.045 | Q104: 0.045 | U104: 0.002145588091 | X104: 0.14
B105: =Names!I88 -> 162 | C105: =INDEX(Names!$K$9:$K$136,MATCH(B105,Names!$I$9:$I$136,0)) -> Rural | D105: =Names!F88 -> Muswellbrook | E105: 0.0388443815 | F105: 0.0036 | G105: =INDEX('ESL calcs'!$Z$12:$AD$139,MATCH($B105,'ESL calcs'!$C$12:$C$139,0),MATCH($D$5,'ESL calcs'!$Z$10:$AD$10,0)) -> 0.000604274688 | H105: =INDEX('ESL calcs'!$BB$12:$BF$139,MATCH($B105,'ESL calcs'!$C$12:$C$139,0),MATCH($D$5,'ESL calcs'!$BB$10:$BF$10,0)) -> 0.001479363677 | I105: =INDEX('Pop calcs'!$D93:$I93,MATCH($D$5,'Pop calcs'!$D$12:$I$12,0)) -> 0.00696241528 | J105: =INDEX('Pop calcs'!$K93:$P93,MATCH($D$5,'Pop calcs'!$K$12:$P$12,0)) -> 0.01497770876 | K105: 0 | L105: =IFERROR(INDEX('Pop calcs'!$Y93:$Z93,MATCH($D$5,'Pop calcs'!$Y$12:$Z$12,0)),0) -> 0 | M105: 0 | N105: 0 | O105: 0 | P105: 0.045 | Q105: 0.045 | U105: 0.002083638365 | X105: 0.17
B106: =Names!I89 -> 163 | C106: =INDEX(Names!$K$9:$K$136,MATCH(B106,Names!$I$9:$I$136,0)) -> Rural | D106: =Names!F89 -> Nambucca | E106: 0.0388443815 | F106: 0.0036 | G106: =INDEX('ESL calcs'!$Z$12:$AD$139,MATCH($B106,'ESL calcs'!$C$12:$C$139,0),MATCH($D$5,'ESL calcs'!$Z$10:$AD$10,0)) -> 0.002289487342 | H106: =INDEX('ESL calcs'!$BB$12:$BF$139,MATCH($B106,'ESL calcs'!$C$12:$C$139,0),MATCH($D$5,'ESL calcs'!$BB$10:$BF$10,0)) -> 0 | I106: =INDEX('Pop calcs'!$D94:$I94,MATCH($D$5,'Pop calcs'!$D$12:$I$12,0)) -> 0.009619631902 | J106: =INDEX('Pop calcs'!$K94:$P94,MATCH($D$5,'Pop calcs'!$K$12:$P$12,0)) -> 0.01637683606 | K106: 0 | L106: =IFERROR(INDEX('Pop calcs'!$Y94:$Z94,MATCH($D$5,'Pop calcs'!$Y$12:$Z$12,0)),0) -> 0 | M106: 0 | N106: 0 | O106: 0 | P106: 0.045 | Q106: 0.045 | U106: 0.002289487342 | X106: 0
B107: =Names!I90 -> 164 | C107: =INDEX(Names!$K$9:$K$136,MATCH(B107,Names!$I$9:$I$136,0)) -> Rural | D107: =Names!F90 -> Narrabri | E107: 0.0388443815 | F107: 0.0036 | G107: =INDEX('ESL calcs'!$Z$12:$AD$139,MATCH($B107,'ESL calcs'!$C$12:$C$139,0),MATCH($D$5,'ESL calcs'!$Z$10:$AD$10,0)) -> 0.001211924283 | H107: =INDEX('ESL calcs'!$BB$12:$BF$139,MATCH($B107,'ESL calcs'!$C$12:$C$139,0),MATCH($D$5,'ESL calcs'!$BB$10:$BF$10,0)) -> 0.0008975227087 | I107: =INDEX('Pop calcs'!$D95:$I95,MATCH($D$5,'Pop calcs'!$D$12:$I$12,0)) -> 0 | J107: =INDEX('Pop calcs'!$K95:$P95,MATCH($D$5,'Pop calcs'!$K$12:$P$12,0)) -> . | K107: 0 | L107: =IFERROR(INDEX('Pop calcs'!$Y95:$Z95,MATCH($D$5,'Pop calcs'!$Y$12:$Z$12,0)),0) -> 0 | M107: 0 | N107: 0 | O107: 0 | P107: 0.045 | Q107: 0.045 | U107: 0.002109446992 | X107: 0.085
B108: =Names!I91 -> 165 | C108: =INDEX(Names!$K$9:$K$136,MATCH(B108,Names!$I$9:$I$136,0)) -> Rural | D108: =Names!F91 -> Narrandera | E108: 0.0388443815 | F108: 0.0036 | G108: =INDEX('ESL calcs'!$Z$12:$AD$139,MATCH($B108,'ESL calcs'!$C$12:$C$139,0),MATCH($D$5,'ESL calcs'!$Z$10:$AD$10,0)) -> 0.001049146455 | H108: =INDEX('ESL calcs'!$BB$12:$BF$139,MATCH($B108,'ESL calcs'!$C$12:$C$139,0),MATCH($D$5,'ESL calcs'!$BB$10:$BF$10,0)) -> 0.001081735897 | I108: =INDEX('Pop calcs'!$D96:$I96,MATCH($D$5,'Pop calcs'!$D$12:$I$12,0)) -> 0 | J108: =INDEX('Pop calcs'!$K96:$P96,MATCH($D$5,'Pop calcs'!$K$12:$P$12,0)) -> 0.004043905257 | K108: 0 | L108: =IFERROR(INDEX('Pop calcs'!$Y96:$Z96,MATCH($D$5,'Pop calcs'!$Y$12:$Z$12,0)),0) -> 0 | M108: 0 | N108: 0 | O108: 0 | P108: 0.045 | Q108: 0.045 | U108: 0.002130882353 | X108: 0.065
B109: =Names!I92 -> 166 | C109: =INDEX(Names!$K$9:$K$136,MATCH(B109,Names!$I$9:$I$136,0)) -> Rural | D109: =Names!F92 -> Narromine | E109: 0.0388443815 | F109: 0.0036 | G109: =INDEX('ESL calcs'!$Z$12:$AD$139,MATCH($B109,'ESL calcs'!$C$12:$C$139,0),MATCH($D$5,'ESL calcs'!$Z$10:$AD$10,0)) -> 0.0001438006992 | H109: =INDEX('ESL calcs'!$BB$12:$BF$139,MATCH($B109,'ESL calcs'!$C$12:$C$139,0),MATCH($D$5,'ESL calcs'!$BB$10:$BF$10,0)) -> 0.00199492509 | I109: =INDEX('Pop calcs'!$D97:$I97,MATCH($D$5,'Pop calcs'!$D$12:$I$12,0)) -> 0 | J109: =INDEX('Pop calcs'!$K97:$P97,MATCH($D$5,'Pop calcs'!$K$12:$P$12,0)) -> 0.01041327693 | K109: 0 | L109: =IFERROR(INDEX('Pop calcs'!$Y97:$Z97,MATCH($D$5,'Pop calcs'!$Y$12:$Z$12,0)),0) -> 0 | M109: 0 | N109: 0 | O109: 0 | P109: 0.045 | Q109: 0.045 | U109: 0.002138725789 | X109: 0.105
B110: =Names!I93 -> 167 | C110: =INDEX(Names!$K$9:$K$136,MATCH(B110,Names!$I$9:$I$136,0)) -> Regional | D110: =Names!F93 -> Newcastle | E110: 0.03872464517 | F110: 0.0037 | G110: =INDEX('ESL calcs'!$Z$12:$AD$139,MATCH($B110,'ESL calcs'!$C$12:$C$139,0),MATCH($D$5,'ESL calcs'!$Z$10:$AD$10,0)) -> 0.004357201286 | H110: =INDEX('ESL calcs'!$BB$12:$BF$139,MATCH($B110,'ESL calcs'!$C$12:$C$139,0),MATCH($D$5,'ESL calcs'!$BB$10:$BF$10,0)) -> 0 | I110: =INDEX('Pop calcs'!$D98:$I98,MATCH($D$5,'Pop calcs'!$D$12:$I$12,0)) -> 0.01180055991 | J110: =INDEX('Pop calcs'!$K98:$P98,MATCH($D$5,'Pop calcs'!$K$12:$P$12,0)) -> 0.005486790405 | K110: 0.006313769502 | L110: =IFERROR(INDEX('Pop calcs'!$Y98:$Z98,MATCH($D$5,'Pop calcs'!$Y$12:$Z$12,0)),0) -> -0.001427721433 | M110: 0.005 | N110: 0 | O110: 0 | P110: 0.052 | Q110: 0.047 | U110: 0.004357201286 | X110: 0
B111: =Names!I94 -> 168 | C111: =INDEX(Names!$K$9:$K$136,MATCH(B111,Names!$I$9:$I$136,0)) -> Metropolitan | D111: =Names!F94 -> North Sydney | E111: 0.03882841796 | F111: 0.0041 | G111: =INDEX('ESL calcs'!$Z$12:$AD$139,MATCH($B111,'ESL calcs'!$C$12:$C$139,0),MATCH($D$5,'ESL calcs'!$Z$10:$AD$10,0)) -> 0.006891002718 | H111: =INDEX('ESL calcs'!$BB$12:$BF$139,MATCH($B111,'ESL calcs'!$C$12:$C$139,0),MATCH($D$5,'ESL calcs'!$BB$10:$BF$10,0)) -> 0 | I111: =INDEX('Pop calcs'!$D99:$I99,MATCH($D$5,'Pop calcs'!$D$12:$I$12,0)) -> 0 | J111: =INDEX('Pop calcs'!$K99:$P99,MATCH($D$5,'Pop calcs'!$K$12:$P$12,0)) -> 0 | K111: 0 | L111: =IFERROR(INDEX('Pop calcs'!$Y99:$Z99,MATCH($D$5,'Pop calcs'!$Y$12:$Z$12,0)),0) -> -0.001827714556 | M111: 0 | N111: 0 | O111: 0 | P111: 0.05 | Q111: 0.05 | U111: 0.006891002718 | X111: 0
B112: =Names!I95 -> 2087 | C112: =INDEX(Names!$K$9:$K$136,MATCH(B112,Names!$I$9:$I$136,0)) -> Metropolitan | D112: =Names!F95 -> Northern Beaches | E112: 0.03882841796 | F112: 0.0041 | G112: =INDEX('ESL calcs'!$Z$12:$AD$139,MATCH($B112,'ESL calcs'!$C$12:$C$139,0),MATCH($D$5,'ESL calcs'!$Z$10:$AD$10,0)) -> 0.006276002416 | H112: =INDEX('ESL calcs'!$BB$12:$BF$139,MATCH($B112,'ESL calcs'!$C$12:$C$139,0),MATCH($D$5,'ESL calcs'!$BB$10:$BF$10,0)) -> 0 | I112: =INDEX('Pop calcs'!$D100:$I100,MATCH($D$5,'Pop calcs'!$D$12:$I$12,0)) -> 0 | J112: =INDEX('Pop calcs'!$K100:$P100,MATCH($D$5,'Pop calcs'!$K$12:$P$12,0)) -> 0.0005416812432 | K112: 0 | L112: =IFERROR(INDEX('Pop calcs'!$Y100:$Z100,MATCH($D$5,'Pop calcs'!$Y$12:$Z$12,0)),0) -> 0 | M112: 0 | N112: 0 | O112: 0 | P112: 0.049 | Q112: 0.049 | U112: 0.006276002416 | X112: 0
B113: =Names!I96 -> 2045 | C113: =INDEX(Names!$K$9:$K$136,MATCH(B113,Names!$I$9:$I$136,0)) -> Rural | D113: =Names!F96 -> Oberon | E113: 0.0388443815 | F113: 0.0036 | G113: =INDEX('ESL calcs'!$Z$12:$AD$139,MATCH($B113,'ESL calcs'!$C$12:$C$139,0),MATCH($D$5,'ESL calcs'!$Z$10:$AD$10,0)) -> -0.001562583043 | H113: =INDEX('ESL calcs'!$BB$12:$BF$139,MATCH($B113,'ESL calcs'!$C$12:$C$139,0),MATCH($D$5,'ESL calcs'!$BB$10:$BF$10,0)) -> 0.003635323619 | I113: =INDEX('Pop calcs'!$D101:$I101,MATCH($D$5,'Pop calcs'!$D$12:$I$12,0)) -> 0.0005479452055 | J113: =INDEX('Pop calcs'!$K101:$P101,MATCH($D$5,'Pop calcs'!$K$12:$P$12,0)) -> 0.007847996696 | K113: 0 | L113: =IFERROR(INDEX('Pop calcs'!$Y101:$Z101,MATCH($D$5,'Pop calcs'!$Y$12:$Z$12,0)),0) -> 0.007331990369 | M113: 0.007 | N113: 0 | O113: 0 | P113: 0.052 | Q113: 0.045 | U113: 0.002072740576 | X113: 0.145
B114: =Names!I97 -> 172 | C114: =INDEX(Names!$K$9:$K$136,MATCH(B114,Names!$I$9:$I$136,0)) -> Regional | D114: =Names!F97 -> Orange | E114: 0.03872464517 | F114: 0.0037 | G114: =INDEX('ESL calcs'!$Z$12:$AD$139,MATCH($B114,'ESL calcs'!$C$12:$C$139,0),MATCH($D$5,'ESL calcs'!$Z$10:$AD$10,0)) -> 0.003214811982 | H114: =INDEX('ESL calcs'!$BB$12:$BF$139,MATCH($B114,'ESL calcs'!$C$12:$C$139,0),MATCH($D$5,'ESL calcs'!$BB$10:$BF$10,0)) -> 0 | I114: =INDEX('Pop calcs'!$D102:$I102,MATCH($D$5,'Pop calcs'!$D$12:$I$12,0)) -> 0.003886958112 | J114: =INDEX('Pop calcs'!$K102:$P102,MATCH($D$5,'Pop calcs'!$K$12:$P$12,0)) -> 0.01043835616 | K114: 0 | L114: =IFERROR(INDEX('Pop calcs'!$Y102:$Z102,MATCH($D$5,'Pop calcs'!$Y$12:$Z$12,0)),0) -> 0.0006288547737 | M114: 0.001 | N114: 0 | O114: 0 | P114: 0.047 | Q114: 0.046 | U114: 0.003214811982 | X114: 0
B115: =Names!I98 -> 173 | C115: =INDEX(Names!$K$9:$K$136,MATCH(B115,Names!$I$9:$I$136,0)) -> Rural | D115: =Names!F98 -> Parkes | E115: 0.0388443815 | F115: 0.0036 | G115: =INDEX('ESL calcs'!$Z$12:$AD$139,MATCH($B115,'ESL calcs'!$C$12:$C$139,0),MATCH($D$5,'ESL calcs'!$Z$10:$AD$10,0)) -> 0.0007202365311 | H115: =INDEX('ESL calcs'!$BB$12:$BF$139,MATCH($B115,'ESL calcs'!$C$12:$C$139,0),MATCH($D$5,'ESL calcs'!$BB$10:$BF$10,0)) -> 0.001404800849 | I115: =INDEX('Pop calcs'!$D103:$I103,MATCH($D$5,'Pop calcs'!$D$12:$I$12,0)) -> 0 | J115: =INDEX('Pop calcs'!$K103:$P103,MATCH($D$5,'Pop calcs'!$K$12:$P$12,0)) -> 0.003381805884 | K115: 0 | L115: =IFERROR(INDEX('Pop calcs'!$Y103:$Z103,MATCH($D$5,'Pop calcs'!$Y$12:$Z$12,0)),0) -> 0 | M115: 0 | N115: 0 | O115: 0 | P115: 0.045 | Q115: 0.045 | U115: 0.00212503738 | X115: 0.127
B116: =Names!I99 -> 2089 | C116: =INDEX(Names!$K$9:$K$136,MATCH(B116,Names!$I$9:$I$136,0)) -> Metropolitan | D116: =Names!F99 -> Parramatta | E116: 0.03882841796 | F116: 0.0041 | G116: =INDEX('ESL calcs'!$Z$12:$AD$139,MATCH($B116,'ESL calcs'!$C$12:$C$139,0),MATCH($D$5,'ESL calcs'!$Z$10:$AD$10,0)) -> 0.005641312665 | H116: =INDEX('ESL calcs'!$BB$12:$BF$139,MATCH($B116,'ESL calcs'!$C$12:$C$139,0),MATCH($D$5,'ESL calcs'!$BB$10:$BF$10,0)) -> 0 | I116: =INDEX('Pop calcs'!$D104:$I104,MATCH($D$5,'Pop calcs'!$D$12:$I$12,0)) -> 0.00634022364 | J116: =INDEX('Pop calcs'!$K104:$P104,MATCH($D$5,'Pop calcs'!$K$12:$P$12,0)) -> 0.004336176007 | K116: 0.002004047632 | L116: =IFERROR(INDEX('Pop calcs'!$Y104:$Z104,MATCH($D$5,'Pop calcs'!$Y$12:$Z$12,0)),0) -> 0 | M116: 0.002 | N116: 0 | O116: 0 | P116: 0.051 | Q116: 0.049 | U116: 0.005641312665 | X116: 0
B117: =Names!I100 -> 176 | C117: =INDEX(Names!$K$9:$K$136,MATCH(B117,Names!$I$9:$I$136,0)) -> Metropolitan | D117: =Names!F100 -> Penrith | E117: 0.03882841796 | F117: 0.0041 | G117: =INDEX('ESL calcs'!$Z$12:$AD$139,MATCH($B117,'ESL calcs'!$C$12:$C$139,0),MATCH($D$5,'ESL calcs'!$Z$10:$AD$10,0)) -> 0.004618344458 | H117: =INDEX('ESL calcs'!$BB$12:$BF$139,MATCH($B117,'ESL calcs'!$C$12:$C$139,0),MATCH($D$5,'ESL calcs'!$BB$10:$BF$10,0)) -> 0 | I117: =INDEX('Pop calcs'!$D105:$I105,MATCH($D$5,'Pop calcs'!$D$12:$I$12,0)) -> 0.008020482514 | J117: =INDEX('Pop calcs'!$K105:$P105,MATCH($D$5,'Pop calcs'!$K$12:$P$12,0)) -> 0.01639426023 | K117: 0 | L117: =IFERROR(INDEX('Pop calcs'!$Y105:$Z105,MATCH($D$5,'Pop calcs'!$Y$12:$Z$12,0)),0) -> -0.0002585405356 | M117: 0 | N117: 0 | O117: 0 | P117: 0.048 | Q117: 0.048 | U117: 0.004618344458 | X117: 0
